Workbook

Sheet HeroConfig
B1: Id | C1: Description | D1: ReadingName | E1: Painting | F1: Live | G1: Icon | H1: PiecesId | I1: PiecesCount | J1: Star | K1: Quality | L1: Natural | M1: Profession | N1: Scale | O1: Position | P1: PositionView | Q1: PropertyName | R1: MaxRank | S1: Hp | T1: Attack | U1: PhysicalDefence | V1: MagicDefence | W1: Speed | X1: SecondaryFactor | Y1: ActionPower | Z1: RankupConsumeMaterial | AA1: OpenSkillRules | AB1: OpenPassiveSkillRules | AC1: EquipTalismana | AD1: HeroStage | AE1: HeroLocation | AF1: AttackScale | AG1: DefenseScale | AH1: AssistScale | AI1: HeroStory | AJ1: GrowthSwitch | AK1: Heroadornlevel | AL1: HeroLocationDesc1 | AM1: HeroLocationDesc2 | AN1: RecommendTeamId | AO1: ShowHeroLocation
B2: int | C2: int | D2: string | E2: int | F2: int | G2: int | H2: int | I2: int | J2: int | K2: int | L2: int | M2: int | N2: float | O2: mut,float#float,1 | P2: mut,float#float,1 | Q2: int | R2: int | S2: float | T2: float | U2: float | V2: float | W2: float | X2: mut,int#int,2 | Y2: int | Z2: mut,int#int,2 | AA2: mut,int#int,2 | AB2: mut,int#int,2 | AC2: mut,int#int,1 | AD2: int | AE2: string | AF2: int | AG2: int | AH2: int | AI2: string | AJ2: mut,int#int,1 | AK2: mut.int#int,1 | AL2: String | AM2: String | AN2: mut,int#int,1 | AO2: int
B3: 2 | C3: 3 | D3: 2 | E3: 3 | F3: 3 | G3: 3 | H3: 2 | I3: 2 | J3: 2 | K3: 2 | L3: 2 | M3: 2 | N3: 3 | O3: 3 | P3: 3 | Q3: 2 | R3: 2 | S3: 2 | T3: 2 | U3: 2 | V3: 2 | W3: 2 | X3: 2 | Y3: 2 | Z3: 2 | AA3: 2 | AB3: 2 | AC3: 2 | AD3: 3 | AE3: 3 | AF3: 3 | AG3: 3 | AH3: 3 | AI3: 3 | AJ3: 2 | AK3: 3 | AL3: 3 | AM3: 3 | AN3: 3 | AO3: 3
B4: 角色ID | C4: 角色简单介绍 | D4: 角色名（辨识用） | E4: 角色静态立绘ID | F4: 角色动态立绘ID | G4: 角色小头像 | H4: 角色解锁需要碎片ID--对应物品表 | I4: 角色解锁需要碎片数量（若为0则不通过碎片解锁） 10000临时值 | J4: 初始星级 | K4: 角色品质- | L4: 角色资质 | M4: 角色职业 1、肉盾；2、输出； 3、控制；4，辅助； | N4: 角色缩放值 | O4: 位置 | P4: 妖灵师预览界面位置 | Q4: 角色属性（1、人；2、佛；3、妖；4、道；5.光；6.暗） | R4: 角色最高星级 10星 | S4: 生命值 | T4: 攻击力 | U4: 护甲 | V4: 魔抗 | W4: 速度 | X4: 二级属性中初始默认不为0都要在这边备注出来 属性id#num| | Y4: 初始行动力 | Z4: 升至下一星级需要材料 升至星级#槽位#卡组#数量 | AA4: 技能开放规则 星级#技能id | AB4: 技能开放规则 突破/升星#突破/升星id#技能id 1突破 2升星 突破/升星id去HeroRankupConfig表找 技能id去PassiveSkillLogicConfig表找 | AC4: 角色专属法宝 星级#id | AD4: 角色阶段 | AE4: 角色定位 | AF4: 攻（满值100） | AG4: 防（满值100） | AH4: 辅（满值100） | AI4: 角色传记 | AJ4: 妖灵师能不能升级进阶回溯 1、升级 2、进阶 3、回溯 | AK4: 英雄佩戴魂印等级 | AL4: 英雄定位描述 若未配置则详情界面不显示定位按钮 | AM4: 英雄定位描述补充文字，多行之间以|分割 | AN4: 读取的推荐队伍ID，多个ID之间以#分割 | AO4: 猎妖师详情是否显示定位按钮
A5: 默认值 | B5: 0 | C5: 0 | D5: ="" ->  | E5: 0 | F5: 0 | G5: 0 | H5: 0 | I5: 0 | K5: 0 | M5: 0 | O5: null | P5: null | Q5: 0 | R5: 0 | S5: 0 | T5: 0 | U5: 0 | V5: 0 | Y5: 0 | AN5: 0 | AO5: 0
A6: 正确性校对
A7: 校对值
B8: 10001 | C8: 10501 | D8: 伏羲 | E8: 1001 | F8: 2001 | G8: 3001 | H8: 11001 | I8: 50 | J8: 5 | K8: 5 | L8: 5 | M8: 2 | N8: 0.6 | O8: 0#280 | P8: 0#150 | Q8: 1 | R8: 10 | S8: 4000 | T8: 600 | U8: 200 | V8: 200 | W8: 268 | X8: 53#10000|57#10000|58#10000 | Y8: 30 | Z8: 6#1#3#1|6#2#22#1|6#3#17#3|7#1#17#4|8#1#18#1|8#2#17#3|9#1#3#1|9#2#18#1|9#3#17#2|10#1#3#2|10#2#18#1|10#3#14#1 | AA8: 5#1271|5#1272|6#1271|6#1272|7#1271|7#1272|8#1271|8#1272|9#1271|9#1272|10#1271|10#1272|11#1271|11#1272 | AB8: 1#1#127101|1#2#127102|1#3#127103|1#3#127104|1#4#127105|1#5#127106|2#7#127107|2#8#127108|2#9#127109|2#10#127110|2#11#127111 | AC8: 6#90027 | AD8: 4 | AE8: 灼烧队输出 | AF8: 64 | AG8: 60 | AH8: 81 | AI8: 上古时代，华胥国有个叫“华胥氏”的姑娘，到一个叫雷泽的地方去游玩，偶尔看到了一个巨大的脚印，便好奇地踩了一下，于是就有了身孕，怀孕十二年后生下一个儿子，这个儿子有蛇的身体人的脑袋，取名为伏羲。\n伏羲以一拟太极，然后一画开天，世间万物的创造，世界生命的诞生全靠这一画。\n有谓之天根者，以其混沌世界，黑暗无光，忽焉一画开天，而阴阳动静迭为升降，天地定位，日月运行，万物之生生不息。伏羲一画开天，岂非以一拟太极哉？则凡卦爻，莫非自此一来，固莫非太极之象。\n《易经》云：保世滋大，概群藉而罗万有者，悉在此一画开天，人文肇始之。 | AL8: 增伤 追击 高暴 | AM8: <color=#2C8B1C>六星：</color>释放技能后追加1次普攻|<color=#2C8B1C>九星：</color>敌方每阵亡一人伤害+15%|<color=#2C8B1C>法宝+25：</color>攻击时对灼烧目标暴击率额外+80% | AN8: 12#13 | AO8: 1
B9: 10002 | C9: 10502 | D9: 洛神 | E9: 1002 | F9: 2002 | G9: 3002 | H9: 11002 | I9: 50 | J9: 5 | K9: 5 | L9: 5 | M9: 2 | N9: 0.5 | O9: 0#350 | P9: 0#200 | Q9: 3 | R9: 10 | S9: 4000 | T9: 600 | U9: 200 | V9: 200 | W9: 396 | X9: 53#10000|57#10000|58#10000 | Y9: 30 | Z9: 6#1#3#1|6#2#23#1|6#3#17#3|7#1#17#4|8#1#18#1|8#2#17#3|9#1#3#1|9#2#18#1|9#3#17#2|10#1#3#2|10#2#18#1|10#3#14#1 | AA9: 5#1031|5#1032|6#1031|6#1032|7#1031|7#1032|8#1031|8#1032|9#1031|9#1032|10#1031|10#1032|11#1031|11#1032 | AB9: 1#1#103101|1#2#103102|1#3#103103|1#3#103104|1#4#103105|1#5#103106|2#7#103107|2#8#103108|2#9#103109|2#10#103110|2#11#103111 | AC9: 6#90003 | AD9: 3 | AE9: 永动队输出 | AF9: 64 | AG9: 74 | AH9: 82 | AI9: 洛神最初叫做“宓妃”，这一名称源于屈原《天问》：“帝降夷羿，革孽夏民。胡射夫河伯，而妻彼雒嫔？”意是“天帝降下后羿，（让后羿）改变夏民的灾祸。为何射河伯，娶洛川妃为妻？”宓妃的身份，是河伯之妻，被夏朝的有穷国君夷羿所霸占。\n“吾令丰隆乘云兮， 求宓妃之所在。解佩纕以结言兮，吾令蹇修以为理。纷总总其离合兮，忽纬繣其难迁。夕归次于穷石兮，朝濯发乎洧盤。保厥美以骄傲兮，日康娱以淫游。虽信美而无礼兮，来违弃而改求。”\n——屈原 | AL9: 爆发 追击 增伤 | AM9: <color=#2C8B1C>六星：</color>技能伤害+25%|<color=#2C8B1C>九星：</color>释放技能后追加1次普攻（不回怒气）|<color=#2C8B1C>法宝+25：</color>行动后回1点怒气 | AN9: 1#5 | AO9: 1
B10: 10003 | C10: 10503 | D10: 猪八戒 | E10: 1003 | F10: 2003 | G10: 3003 | H10: 11003 | I10: 50 | J10: 5 | K10: 5 | L10: 5 | M10: 1 | N10: 0.7 | O10: 45#-400 | P10: 45#-330 | Q10: 3 | R10: 10 | S10: 4000 | T10: 600 | U10: 200 | V10: 200 | W10: 260 | X10: 53#10000|57#10000|58#10000 | Y10: 30 | Z10: 6#1#3#1|6#2#24#1|6#3#17#3|7#1#17#4|8#1#18#1|8#2#17#3|9#1#3#1|9#2#18#1|9#3#17#2|10#1#3#2|10#2#18#1|10#3#14#1 | AA10: 5#1061|5#1062|6#1061|6#1062|7#1061|7#1062|8#1061|8#1062|9#1061|9#1062|10#1061|10#1062|11#1061|11#1062 | AB10: 1#1#106101|1#2#106102|1#3#106103|1#3#106104|1#4#106105|1#5#106106|2#7#106107|2#8#106108|2#9#106109|2#10#106110|2#11#106111 | AC10: 6#90006 | AD10: 4 | AE10: 永动队肉盾 | AF10: 70 | AG10: 81 | AH10: 64 | AI10: 猪八戒前世为执掌天河八万水军的“天蓬元帅”，一直倾慕容貌过人的霓裳仙子（属于嫦娥中的一员，《西游记》中各路神仙基本借鉴了正统道教神仙录，由高老庄一集猪八戒提及可见，猪八戒的前世天蓬元帅即是水神天河宪节）。因调戏嫦娥并且惹来纠察灵官后，又拱倒斗牛宫被贬下凡尘，却错投猪胎，在福陵山落草。后受观音菩萨点化，入赘高老庄务农，等待取经人。后成为唐僧的弟子之一，与孙悟空、沙悟净一同保护唐僧去西天取经，几经九九八十一劫难，因保护唐僧有功，成了正果，最后被如来佛祖亲封为“净坛使者”。 | AL10: 吸血 反伤 | AM10: <color=#2C8B1C>六星：</color>受到技能或普攻直接伤害的50%反弹|<color=#2C8B1C>九星：</color>生命+30%|<color=#2C8B1C>法宝+25：</color>受到普攻直接伤害时回1点怒气 | AN10: 1 | AO10: 1
B11: 10004 | C11: 10504 | D11: 慈航道人 | E11: 1004 | F11: 2004 | G11: 3004 | H11: 11004 | I11: 50 | J11: 5 | K11: 5 | L11: 5 | M11: 4 | N11: 0.65 | O11: 10#240 | P11: 10#140 | Q11: 1 | R11: 10 | S11: 4000 | T11: 600 | U11: 200 | V11: 200 | W11: 325 | X11: 53#10000|57#10000|58#10000 | Y11: 30 | Z11: 6#1#3#1|6#2#25#1|6#3#17#3|7#1#17#4|8#1#18#1|8#2#17#3|9#1#3#1|9#2#18#1|9#3#17#2|10#1#3#2|10#2#18#1|10#3#14#1 | AA11: 5#1291|5#1292|6#1291|6#1292|7#1291|7#1292|8#1291|8#1292|9#1291|9#1292|10#1291|10#1292|11#1291|11#1292 | AB11: 1#1#129101|1#2#129102|1#3#129103|1#3#129104|1#4#129105|1#5#129106|2#7#129107|2#8#129108|2#9#129109|2#10#129110|2#11#129111 | AC11: 6#90029 | AD11: 1 | AE11: 灼烧队辅助 | AF11: 70 | AG11: 82 | AH11: 90 | AI11: 慈航道人本来是民间的一名普通的人类女子，封神大战之时，为了搭救自己的母亲，被妲己所害，女娲娘娘感念她至孝纯真，将她安置于玄都洞八景宫太上老君处，并传她千手千眼之术，之后她与太上老君相处几月之后，她决定向女娲娘娘提出要拜玉虚宫的元始天尊为师，故元始天尊传授给她一本属于阐教、截教共修的神通哲理《道德真经》，随即被元始天尊封为十二金仙之一。 | AL11: 治疗 群体 缓回 | AM11: <color=#2C8B1C>六星：</color>释放技能后给目标附加持续治疗效果每回合回复大乔最大攻击20%生命持续2回合|<color=#2C8B1C>九星：</color>普攻后给目标附加持续治疗效果每回合回复慈航道人32%最大攻击生命2回合|<color=#2C8B1C>法宝+25：</color>释放技能时为队友附加持续治疗效果增大至32%攻击力 | AN11: 13 | AO11: 1
B12: 10005 | C12: 10505 | D12: 妲己 | E12: 1005 | F12: 2005 | G12: 3005 | H12: 11005 | I12: 50 | J12: 5 | K12: 5 | L12: 5 | M12: 3 | N12: 0.55 | O12: 0#270 | P12: -11#134 | Q12: 3 | R12: 10 | S12: 4000 | T12: 600 | U12: 200 | V12: 200 | W12: 343 | X12: 53#10000|57#10000|58#10000 | Y12: 30 | Z12: 6#1#3#1|6#2#23#1|6#3#17#3|7#1#17#4|8#1#18#1|8#2#17#3|9#1#3#1|9#2#18#1|9#3#17#2|10#1#3#2|10#2#18#1|10#3#14#1 | AA12: 5#1071|5#1072|6#1071|6#1072|7#1071|7#1072|8#1071|8#1072|9#1071|9#1072|10#1071|10#1072|11#1071|11#1072 | AB12: 1#1#107101|1#2#107102|1#3#107103|1#3#107104|1#4#107105|1#5#107106|2#7#107107|2#8#107108|2#9#107109|2#10#107110|2#11#107111 | AC12: 6#90007 | AD12: 3 | AE12: 永动队控制 | AF12: 72 | AG12: 74 | AH12: 68 | AI12: 妲己，本是商朝冀州侯苏护之女，苏全忠之妹，乃倾国倾城、美艳娇媚、闭月羞花的绝色美女。后其父亲献女于商纣王为妃，路上却惨遭九尾狐狸精害死噬魂并夺身附体，被利用来迷惑纣王，败殷商气运，断送商汤基业之辉。\n最终被女娲娘娘活捉，当场判了死罪，交给西周一方斩首示众而亡，死于陆压道人送给姜子牙的“斩仙飞刀”之下。 | AL12: 沉默 无消耗 | AM12: <color=#2C8B1C>六星：</color>释放技能后回1点怒气|<color=#2C8B1C>九星：</color>沉默概率提升至65%|<color=#2C8B1C>法宝+25：</color>释放技能后额外回1点怒气 | AN12: 4 | AO12: 1
B13: 10006 | C13: 10506 | D13: 共工 | E13: 1006 | F13: 2006 | G13: 3006 | H13: 11006 | I13: 50 | J13: 5 | K13: 5 | L13: 5 | M13: 4 | N13: 0.5 | O13: -25#210 | P13: -25#50 | Q13: 3 | R13: 10 | S13: 4000 | T13: 600 | U13: 200 | V13: 200 | W13: 311 | X13: 53#10000|57#10000|58#10000 | Y13: 30 | Z13: 6#1#3#1|6#2#27#1|6#3#17#3|7#1#17#4|8#1#18#1|8#2#17#3|9#1#3#1|9#2#18#1|9#3#17#2|10#1#3#2|10#2#18#1|10#3#14#1 | AA13: 5#1041|5#1042|6#1041|6#1042|7#1041|7#1042|8#1041|8#1042|9#1041|9#1042|10#1041|10#1042|11#1041|11#1042 | AB13: 1#1#104101|1#2#104102|1#3#104103|1#3#104104|1#4#104105|1#5#104106|2#7#104107|2#8#104108|2#9#104109|2#10#104110|2#11#104111 | AC13: 6#90004 | AD13: 3 | AE13: 永动队辅助 | AF13: 81 | AG13: 70 | AH13: 64 | AI13: 共工是上古神话里的水神，脾气暴躁，与火神祝融是一对冤家。共工曾与祝融大战连天，输掉以后以头撞向不周山，将不周山这根撑天的柱子撞断了。一时间天河之水倾泻而下，人间变成一片泽国。女娲不忍人间受苦，炼制五彩石将天大的窟窿堵住了。\n后来共工不满女娲受人们爱戴，发动洪水淹没大地。大禹请出应龙等隐居的神兽，打的共工求饶，最后才解决了水患。传说共工是太阳神炎帝的后人，炎帝长于姜水，因而姓姜，共工也姓姜。 | AL13: 无敌 回怒 光环 | AM13: <color=#2C8B1C>六星：</color>释放技能后给除自己外己方生命最少的神将附加无敌盾2回合|<color=#2C8B1C>九星：</color>全体攻击+20%|<color=#2C8B1C>法宝+25：</color>全体暴击率+20% | AN13: 1#2#3 | AO13: 1
B14: 10007 | C14: 10507 | D14: 唐僧 | E14: 1007 | F14: 2007 | G14: 3007 | H14: 11007 | I14: 50 | J14: 5 | K14: 5 | L14: 5 | M14: 4 | N14: 0.65 | O14: -9#340 | P14: 30#200 | Q14: 2 | R14: 10 | S14: 4000 | T14: 600 | U14: 200 | V14: 200 | W14: 343 | X14: 53#10000|57#10000|58#10000 | Y14: 30 | Z14: 6#1#3#1|6#2#28#1|6#3#17#3|7#1#17#4|8#1#18#1|8#2#17#3|9#1#3#1|9#2#18#1|9#3#17#2|10#1#3#2|10#2#18#1|10#3#14#1 | AA14: 5#1161|5#1162|6#1161|6#1162|7#1161|7#1162|8#1161|8#1162|9#1161|9#1162|10#1161|10#1162|11#1161|11#1162 | AB14: 1#1#116101|1#2#116102|1#3#116103|1#3#116104|1#4#116105|1#5#116106|2#7#116107|2#8#116108|2#8#116112|2#9#116109|2#10#116110|2#11#116111 | AC14: 6#90016 | AD14: 4 | AE14: 暴力队辅助 | AF14: 64 | AG14: 81 | AH14: 82 | AI14: 唐僧，俗名陈祎，小名江流儿，法号玄奘，号三藏，被唐太宗赐姓为唐。为如来佛祖座下二弟子金蝉长老投胎。他是遗腹子，由于父母凄惨、离奇的经历，自幼在寺庙中出家、长大，在金山寺出家，最终迁移到京城的著名寺院中落户、修行。\n唐僧勤敏好学，悟性极高，在寺庙僧人中脱颖而出。唐太宗请他开“水陆大会”，又被观音菩萨选定为取经人，与唐太宗结拜并前往西天取经。\n在取经路上，唐僧带领徒弟们经历九九八十一难，终于将真经带回东土大唐。 | AL14: 治疗 群体 | AM14: <color=#2C8B1C>六星：</color>受到伤害12%治疗己方全体|<color=#2C8B1C>九星：</color>释放普攻后回1点怒气|<color=#2C8B1C>法宝+25：</color>受到伤害18%治疗己方全体 | AN14: 6#10 | AO14: 1
B15: 10008 | C15: 10508 | D15: 精卫 | E15: 1008 | F15: 2008 | G15: 3008 | H15: 11008 | I15: 50 | J15: 5 | K15: 5 | L15: 5 | M15: 4 | N15: 0.6 | O15: 0#290 | P15: 0#180 | Q15: 3 | R15: 10 | S15: 4000 | T15: 600 | U15: 200 | V15: 200 | W15: 220 | X15: 53#10000|57#10000|58#10000 | Y15: 30 | Z15: 6#1#3#1|6#2#24#1|6#3#17#3|7#1#17#4|8#1#18#1|8#2#17#3|9#1#3#1|9#2#18#1|9#3#17#2|10#1#3#2|10#2#18#1|10#3#14#1 | AA15: 5#1021|5#1022|6#1021|6#1022|7#1021|7#1022|8#1021|8#1022|9#1021|9#1022|10#1021|10#1022|11#1021|11#1022 | AB15: 1#1#102101|1#2#102102|1#3#102103|1#3#102104|1#4#102105|1#5#102106|2#7#102107|2#8#102108|2#9#102109|2#10#102110|2#11#102111 | AC15: 6#90002 | AD15: 1 | AE15: 永动队辅助 | AF15: 81 | AG15: 60 | AH15: 64 | AI15: 女娃，炎帝最小的女儿，后化作精卫，精卫填海典故的主人公就是女娃。女娃化为精卫后住在发鸠山，形状和乌鸦相似，但头部有花纹，嘴是白色的，足是红色的，她的鸣叫就是自呼其名，她常常用嘴夹着西山上的小树枝和碎石，去填东海。\n发鸠之山，其上多柘木，有鸟焉，其状如乌，文首，白喙，赤足，名曰：“精卫”，其鸣自詨。是炎帝之少女，名曰女娃。女娃游于东海，溺而不返，故为精卫，常衔西山之木石，以堙于东海。漳水出焉，东流注于河。\n——《山海经》 | AL15: 回怒 无消耗 治疗 | AM15: <color=#2C8B1C>六星：</color>释放技能40%概率不消耗怒气|<color=#2C8B1C>九星：</color>技能直接伤害40%转化为生命治疗生命最少的队员|<color=#2C8B1C>法宝+25：</color>全体暴击率+30% | AN15: 1#5 | AO15: 1
B16: 10009 | C16: 10509 | D16: 龙吉公主 | E16: 1009 | F16: 2009 | G16: 3009 | H16: 11009 | I16: 50 | J16: 5 | K16: 5 | L16: 5 | M16: 4 | N16: 0.65 | O16: 0#260 | P16: 0#160 | Q16: 1 | R16: 10 | S16: 4000 | T16: 600 | U16: 200 | V16: 200 | W16: 310 | X16: 53#10000|57#10000|58#10000 | Y16: 30 | Z16: 6#1#3#1|6#2#22#1|6#3#17#3|7#1#17#4|8#1#18#1|8#2#17#3|9#1#3#1|9#2#18#1|9#3#17#2|10#1#3#2|10#2#18#1|10#3#14#1 | AA16: 5#1311|5#1312|6#1311|6#1312|7#1311|7#1312|8#1311|8#1312|9#1311|9#1312|10#1311|10#1312|11#1311|11#1312 | AB16: 1#1#131101|1#2#131102|1#3#131103|1#3#131104|1#4#131105|1#5#131106|2#7#131107|2#8#131108|2#8#131112|2#9#131109|2#10#131110|2#11#131111 | AC16: 6#90031 | AD16: 3 | AE16: 灼烧队辅助 | AF16: 82 | AG16: 70 | AH16: 65 | AI16: 龙吉公主原为天仙，乃昊天上帝之女，瑶池金母所生，有思凡之心，曾居于天宫，当年蟠桃会上失了礼数，被贬在凤凰山青鸾斗阙，因罗宣火焚西岐城，为此下山助武王伐纣，将功补过，并希望有朝一日恢复仙籍重回天庭。因符元仙翁称她与洪锦有姻缘，月下老人下凡牵线，嫁于手下败将洪锦。在攻打万仙阵之时，龙吉公主被金灵圣母用四象塔打落马下，被截教众仙所杀，其丈夫洪锦也被金灵圣母以龙虎如意打杀。后被姜子牙封神，成为红鸾星。 | AL16: 光环 回怒 无敌 | AM16: <color=#2C8B1C>六星：</color>全体攻击+20%|<color=#2C8B1C>九星：</color>释放技能后全体回1点怒气|<color=#2C8B1C>法宝+25：</color>释放技能后给两名血量最少队友附加无敌吸血盾1回合 | AN16: 12#13#14 | AO16: 1
B17: 10010 | C17: 10510 | D17: 孔雀明王 | E17: 1010 | F17: 2010 | G17: 3010 | H17: 11010 | I17: 50 | J17: 5 | K17: 5 | L17: 5 | M17: 1 | N17: 0.8 | O17: 10#250 | P17: 0#200 | Q17: 2 | R17: 10 | S17: 4000 | T17: 600 | U17: 200 | V17: 200 | W17: 300 | X17: 53#10000|57#10000|58#10000 | Y17: 30 | Z17: 6#1#3#1|6#2#31#1|6#3#17#3|7#1#17#4|8#1#18#1|8#2#17#3|9#1#3#1|9#2#18#1|9#3#17#2|10#1#3#2|10#2#18#1|10#3#14#1 | AA17: 5#1171|5#1172|6#1171|6#1172|7#1171|7#1172|8#1171|8#1172|9#1171|9#1172|10#1171|10#1172|11#1171|11#1172 | AB17: 1#1#117101|1#2#117102|1#3#117103|1#3#117104|1#4#117105|1#5#117106|2#7#117107|2#8#117108|2#9#117109|2#10#117110|2#11#117111 | AC17: 6#90017 | AD17: 3 | AE17: 暴力队肉盾 | AF17: 90 | AG17: 61 | AH17: 71 | AI17: 孔雀明王汉译有摩诃摩瑜利罗阇、佛母大孔雀明王等。此尊相传为毗卢遮那佛或释迦牟尼佛的等流身。密号为佛母金刚、护世金刚。在密教修法中，以孔雀明王为本尊而修者，称为孔雀明王经法，又称孔雀经法。为密教四大法之一。根据《孔雀明王经》记载，佛陀在世时，有一位莎底比丘遭到毒蛇咬螫，不胜其苦，当阿难向佛陀禀告之后，佛陀于是教导一个可以消除鬼魅、毒害、恶疾的修持法门，这就是《孔雀明王经》的主要内容。 | AL17: 减伤 增疗 | AM17: <color=#2C8B1C>六星：</color>减伤盾持续时间变为2回合|<color=#2C8B1C>九星：</color>生命+30%|<color=#2C8B1C>法宝+25：</color>受到治疗量增加50% | AN17: 10 | AO17: 1
B18: 10011 | C18: 10511 | D18: 雷震子 | E18: 1011 | F18: 2011 | G18: 3011 | H18: 11011 | I18: 50 | J18: 5 | K18: 5 | L18: 5 | M18: 2 | N18: 0.6 | O18: -60#230 | P18: 0#120 | Q18: 3 | R18: 10 | S18: 4000 | T18: 600 | U18: 200 | V18: 200 | W18: 292 | X18: 53#10000|57#10000|58#10000 | Y18: 30 | Z18: 6#1#3#1|6#2#32#1|6#3#17#3|7#1#17#4|8#1#18#1|8#2#17#3|9#1#3#1|9#2#18#1|9#3#17#2|10#1#3#2|10#2#18#1|10#3#14#1 | AA18: 5#1011|5#1012|6#1011|6#1012|7#1011|7#1012|8#1011|8#1012|9#1011|9#1012|10#1011|10#1012|11#1011|11#1012 | AB18: 1#1#101101|1#2#101102|1#3#101103|1#3#101104|1#4#101105|1#5#101106|2#7#101107|2#8#101108|2#9#101109|2#10#101110|2#11#101111 | AC18: 6#90001 | AD18: 1 | AE18: 永动队输出 | AF18: 90 | AG18: 71 | AH18: 72 | AI18: 雷震子乃天雷将星下世，身份神秘，商末年间诞生于燕山，周文王姬昌避雨时相遇后，并收养为义子。因其现身时霹雳交加，电闪雷鸣，所以取名雷震子。自幼修行学艺，拜在阐教门下福德真仙云中子为师。\n雷震子身长二丈，全身水合色，背肋下生出一对“风雷双翅”。手使一条黄金棍，力大无穷，武艺高强，展开羽翼飞行时风生雷动，且速度奇快，可日行万里。\n在封神之战后，因封神榜上无名，最终肉身成圣。 | AL18: 群体 爆发 追技 | AM18: <color=#2C8B1C>六星：</color>直接伤害击杀目标回2点怒气|<color=#2C8B1C>九星：</color>技能伤害增加30%|<color=#2C8B1C>法宝+25：</color>释放技能40%概率追加1次技能对敌方全体造成41%法术伤害不触发特性 | AN18: 1#2#3 | AO18: 1
B19: 10012 | C19: 10512 | D19: 降龙罗汉 | E19: 1012 | F19: 2012 | G19: 3012 | H19: 11012 | I19: 50 | J19: 5 | K19: 5 | L19: 5 | M19: 2 | N19: 0.5 | O19: 40#380 | P19: 0#250 | Q19: 2 | R19: 10 | S19: 4000 | T19: 600 | U19: 200 | V19: 200 | W19: 286 | X19: 53#10000|57#10000|58#10000 | Y19: 30 | Z19: 6#1#3#1|6#2#31#1|6#3#17#3|7#1#17#4|8#1#18#1|8#2#17#3|9#1#3#1|9#2#18#1|9#3#17#2|10#1#3#2|10#2#18#1|10#3#14#1 | AA19: 5#1211|5#1212|6#1211|6#1212|7#1211|7#1212|8#1211|8#1212|9#1211|9#1212|10#1211|10#1212|11#1211|11#1212 | AB19: 1#1#121101|1#2#121102|1#3#121103|1#3#121104|1#4#121105|1#5#121106|2#7#121107|2#8#121108|2#9#121109|2#10#121110|2#11#121111 | AC19: 6#90021 | AD19: 1 | AE19: 暴力队输出 | AF19: 90 | AG19: 60 | AH19: 71 | AI19: 传说古印度有龙王用洪水淹那竭国，将佛经藏于龙宫。后来降龙尊者降服了龙王取回佛经，立了大功，故称他为「降龙尊者」。降龙罗汉乃佛祖座下弟子，法力无边，助佛祖降龙伏妖，立下不少奇功。降龙修炼1420年却始终不能得成正果，求教观音，得知七世尘缘未了，便下凡普渡众生，了结未了尘缘。 | AL19: 追击 增伤 增暴 | AM19: <color=#2C8B1C>六星：</color>战斗中生命每降10%伤害+5%|<color=#2C8B1C>九星：</color>战斗中生命每降10%暴击率+5%|<color=#2C8B1C>法宝+25：</color>生命降低10%攻击增加5% | AN19: 6#11 | AO19: 1
B20: 10013 | C20: 10532 | D20: 吕洞宾 | E20: 1013 | F20: 2013 | G20: 3013 | H20: 11013 | I20: 50 | J20: 5 | K20: 5 | L20: 5 | M20: 3 | N20: 0.65 | O20: -35#267 | P20: -35#137 | Q20: 4 | R20: 10 | S20: 4000 | T20: 600 | U20: 200 | V20: 200 | W20: 264 | X20: 53#10000|57#10000|58#10000 | Y20: 30 | Z20: 6#1#3#1|6#2#34#1|6#3#17#3|7#1#17#4|8#1#18#1|8#2#17#3|9#1#3#1|9#2#18#1|9#3#17#2|10#1#3#2|10#2#18#1|10#3#14#1 | AA20: 5#1461|5#1462|6#1461|6#1462|7#1461|7#1462|8#1461|8#1462|9#1461|9#1462|10#1461|10#1462|11#1461|11#1462 | AB20: 1#1#146101|1#2#146102|1#3#146103|1#3#146104|1#4#146105|1#5#146106|2#7#146107|2#8#146108|2#9#146109|2#10#146110|2#11#146111 | AC20: 6#90046 | AD20: 3 | AE20: 减怒队控制 | AF20: 71 | AG20: 65 | AH20: 68 | AI20: 唐朝时，在一个叫永乐乡的地方，住着一户吕姓人家。这吕家世代都是读书人，并且都在朝廷上当过官。吕洞宾就出生在这样的人家。\n吕洞宾母亲在要生吕洞宾的时候，屋里异香扑鼻，空中仙乐阵阵，一只白鹤自天而下，飞入他母亲的帐中就消失。生下吕洞宾果然气度不凡，自小聪明过人，日记万言，过目成诵，出口成章。\n长安应考，在酒肆中遇见上天仙使钟离权。钟离权让他做了一个建功树名、出将入相、封妻荫子的美梦，醒后方知功名利禄均为梦幻，遂大彻大悟，拜钟离权为师，赴终南山中修道，改名喦，字洞宾。 | AL20: 群体 麻痹 减怒 | AM20: <color=#2C8B1C>六星：</color>释放技能回1点怒气|<color=#2C8B1C>九星：</color>技能伤害+25%|<color=#2C8B1C>法宝+25：</color>技能麻痹几率提升至50% | AN20: 17 | AO20: 1
B21: 10014 | C21: 10514 | D21: 哪吒 | E21: 1014 | F21: 2014 | G21: 3014 | H21: 11014 | I21: 50 | J21: 5 | K21: 5 | L21: 5 | M21: 4 | N21: 0.8 | O21: -30#295 | P21: -30#145 | Q21: 1 | R21: 10 | S21: 4000 | T21: 600 | U21: 200 | V21: 200 | W21: 313 | X21: 53#10000|57#10000|58#10000 | Y21: 30 | Z21: 6#1#3#1|6#2#35#1|6#3#17#3|7#1#17#4|8#1#18#1|8#2#17#3|9#1#3#1|9#2#18#1|9#3#17#2|10#1#3#2|10#2#18#1|10#3#14#1 | AA21: 5#1281|5#1282|6#1281|6#1282|7#1281|7#1282|8#1281|8#1282|9#1281|9#1282|10#1281|10#1282|11#1281|11#1282 | AB21: 1#1#128101|1#2#128102|1#3#128103|1#3#128104|1#4#128105|1#5#128106|2#7#128107|2#8#128108|2#9#128109|2#10#128110|2#11#128111 | AC21: 6#90028 | AD21: 3 | AE21: 灼烧队辅助 | AF21: 90 | AG21: 73 | AH21: 72 | AI21: 哪吒是陈塘关总兵李靖的第三个儿子，金吒、木吒的三弟，本是镇阐教之宝灵珠子投胎转世；奉元始天尊法旨下凡，母亲殷夫人怀胎三年零六个月 生出一个肉球，李靖以为是妖物就用剑切开，里面跳出一个手戴金镯、肚缠红绫的男婴。太乙真人登门道贺，收徒取名“哪吒”。\n在与东海龙王发生冲突后，哪吒挺身自刎保下百姓。事后太乙真人以莲花为哪吒做出了崭新的身躯，并在讨伐纣王的战斗中立下赫赫功劳，最终肉身成圣。 | AL21: 群体 灼烧 | AM21: <color=#2C8B1C>六星：</color>技能灼烧概率提升至65%|<color=#2C8B1C>九星：</color>普攻有40%概率使攻击者灼烧2回合|<color=#2C8B1C>法宝+25：</color>受到普攻有80%概率使攻击者灼烧2回合 | AN21: 12#13#14 | AO21: 1
B22: 10015 | C22: 10515 | D22: 伏虎罗汉 | E22: 1015 | F22: 2015 | G22: 3015 | H22: 11015 | I22: 50 | J22: 5 | K22: 5 | L22: 5 | M22: 2 | N22: 0.65 | O22: 0#350 | P22: 0#200 | Q22: 2 | R22: 10 | S22: 4000 | T22: 600 | U22: 200 | V22: 200 | W22: 300 | X22: 53#10000|57#10000|58#10000 | Y22: 30 | Z22: 6#1#3#1|6#2#28#1|6#3#17#3|7#1#17#4|8#1#18#1|8#2#17#3|9#1#3#1|9#2#18#1|9#3#17#2|10#1#3#2|10#2#18#1|10#3#14#1 | AA22: 5#1201|5#1202|6#1201|6#1202|7#1201|7#1202|8#1201|8#1202|9#1201|9#1202|10#1201|10#1202|11#1201|11#1202 | AB22: 1#1#120101|1#2#120102|1#3#120103|1#3#120104|1#4#120105|1#5#120106|2#7#120107|2#8#120108|2#9#120109|2#10#120110|2#11#120111 | AC22: 6#90020 | AD22: 1 | AE22: 暴力队输出 | AF22: 89 | AG22: 61 | AH22: 71 | AI22: 传说伏虎尊者所住的寺庙外，经常有猛虎因肚子饿长哮，伏虎尊者把自己的饭食分给这只老虎，时间一长了猛虎就被他降服了，常和他一起玩耍，故又称他为「伏虎罗汉」。 | AL22: 单体 爆发 必暴 | AM22: <color=#2C8B1C>六星：</color>战斗第一回合必定暴击|<color=#2C8B1C>九星：</color>技能伤害+25%|<color=#2C8B1C>法宝+25：</color>直接伤害击杀目标回1点怒气 | AN22: 6 | AO22: 1
B23: 10016 | C23: 10516 | D23: 蚩尤 | E23: 1016 | F23: 2016 | G23: 3016 | H23: 11016 | I23: 50 | J23: 5 | K23: 5 | L23: 5 | M23: 1 | N23: 0.6 | O23: 0#235 | P23: 0#100 | Q23: 1 | R23: 10 | S23: 4000 | T23: 600 | U23: 200 | V23: 200 | W23: 288 | X23: 53#10000|57#10000|58#10000 | Y23: 30 | Z23: 6#1#3#1|6#2#37#1|6#3#17#3|7#1#17#4|8#1#18#1|8#2#17#3|9#1#3#1|9#2#18#1|9#3#17#2|10#1#3#2|10#2#18#1|10#3#14#1 | AA23: 5#1301|5#1302|6#1301|6#1302|7#1301|7#1302|8#1301|8#1302|9#1301|9#1302|10#1301|10#1302|11#1301|11#1302 | AB23: 1#1#130101|1#2#130102|1#3#130103|1#3#130104|1#4#130105|1#5#130106|2#7#130107|2#8#130108|2#8#130112|2#9#130109|2#10#130110|2#11#130111 | AC23: 6#90030 | AD23: 3 | AE23: 灼烧队肉盾 | AF23: 70 | AG23: 67 | AH23: 67 | AI23: 传说蚩尤有八只脚，三头六臂，铜头铁额，刀枪不入。善于使用刀、斧、戈作战，不死不休，勇猛无比。黄帝不能力敌，请天神助其破之。杀得天昏地暗，血流成河。蚩尤被黄帝所杀，帝斩其首葬之，首级化为血枫林。后黄帝尊蚩尤为“兵主”，即战争之神。\n“食铁石”，“人身牛蹄，四目六手，耳鬓如剑戟，头有角”。\n——《述异记》 | AL23: 吸血 减伤 无敌 | AM23: <color=#2C8B1C>六星：</color>受到灼烧状态敌人攻击时受到伤害减少40%|<color=#2C8B1C>九星：</color>战斗第一回合无敌（不会被清除）|<color=#2C8B1C>法宝+25：</color>受到灼烧状态敌人攻击所受伤害额外再降低25% | AN23: 12#13 | AO23: 1
B24: 10017 | C24: 10517 | D24: 嫦娥 | E24: 1017 | F24: 2017 | G24: 3017 | H24: 11017 | I24: 50 | J24: 5 | K24: 5 | L24: 5 | M24: 2 | N24: 0.65 | O24: 62.45#227.81 | P24: 62.45#100 | Q24: 1 | R24: 10 | S24: 4000 | T24: 600 | U24: 200 | V24: 200 | W24: 264 | X24: 53#10000|57#10000|58#10000 | Y24: 30 | Z24: 6#1#3#1|6#2#25#1|6#3#17#3|7#1#17#4|8#1#18#1|8#2#17#3|9#1#3#1|9#2#18#1|9#3#17#2|10#1#3#2|10#2#18#1|10#3#14#1 | AA24: 5#1331|5#1332|6#1331|6#1332|7#1331|7#1332|8#1331|8#1332|9#1331|9#1332|10#1331|10#1332|11#1331|11#1332 | AB24: 1#1#133101|1#2#133102|1#3#133103|1#3#133104|1#4#133105|1#5#133106|2#7#133107|2#8#133108|2#9#133109|2#10#133110|2#11#133111 | AC24: 6#90033 | AD24: 1 | AE24: 灼烧队输出 | AF24: 64 | AG24: 72 | AH24: 81 | AI24: 嫦娥是后裔的妻子，两人在一起生活着。后羿射下九个太阳，受到百姓的尊敬和爱戴，不少志士慕名前来投师学艺。奸诈刁钻、心术不正的逢蒙也混了进来。后羿向西王母求得一包不死药，交予嫦娥保管。逢蒙趁后羿外出，逼迫嫦娥交出不死药，嫦娥危急之时吞下不死药，不多时便飘离地面，飞落月亮上成了仙。\n后羿回家寻妻不得，捶胸顿足，仰望月亮千呼万唤地呼唤嫦娥名字。月母被羿的真情所打动，允许嫦娥在月圆之日与羿在月桂树下相会。 | AL24: 单体 追击 爆发 | AM24: <color=#2C8B1C>六星：</color>技能对灼烧目标伤害额外增加50%|<color=#2C8B1C>九星：</color>直接伤害击杀目标回1点怒气|<color=#2C8B1C>法宝+25：</color>普攻对灼烧目标伤害额外+80% | AN24: 12 | AO24: 1
B25: 10018 | C25: 10518 | D25: 九命猫 | E25: 1018 | F25: 2018 | G25: 3018 | H25: 11018 | I25: 50 | J25: 5 | K25: 5 | L25: 5 | M25: 4 | N25: 0.2 | O25: 30#300 | P25: 30#200 | Q25: 3 | R25: 10 | S25: 4000 | T25: 600 | U25: 200 | V25: 200 | W25: 264 | X25: 53#10000|57#10000|58#10000 | Y25: 30 | Z25: 6#1#3#1|6#2#32#1|6#3#17#3|7#1#17#4|8#1#18#1|8#2#17#3|9#1#3#1|9#2#18#1|9#3#17#2|10#1#3#2|10#2#18#1|10#3#14#1 | AA25: 5#1051|5#1052|6#1051|6#1052|7#1051|7#1052|8#1051|8#1052|9#1051|9#1052|10#1051|10#1052|11#1051|11#1052 | AB25: 1#1#105101|1#2#105102|1#3#105103|1#3#105104|1#4#105105|1#5#105106|2#7#105107|2#8#105108|2#9#105109|2#10#105110|2#11#105111 | AC25: 6#90005 | AD25: 1 | AE25: 永动队辅助 | AF25: 64 | AG25: 72 | AH25: 82 | AI25: 传说世间的一切生灵皆可修炼成仙，而猫自然在其中。每修炼一百年，猫就会多长出一条尾巴，等到有九条尾巴的时候，就算功德圆满了，连天上的神仙都要敬让三分。/n可是，这第九条尾巴却是极难修到的，当猫修炼到第八条尾巴时，会得到一个提示，帮助它的主人实现一个愿望，心愿完成后，会长出一条新的尾巴，但是从前的尾巴也会脱落一条，仍是八尾。这看起来是个奇怪的死循环，无论怎样都不可能修炼到九条尾巴。/n但是这只猫因为独特的机缘，而修成了九尾，被称为九命猫。 | AL25: 治疗 | AM25: <color=#2C8B1C>六星：</color>受到直接伤害16%治疗己方三个生命最少单位|<color=#2C8B1C>九星：</color>释放技能后回1点怒气|<color=#2C8B1C>法宝+25：</color>技能治疗量+25% | AN25: 1#4#5 | AO25: 1
B26: 10019 | C26: 10519 | D26: 巨灵神 | E26: 1019 | F26: 2019 | G26: 3019 | H26: 11019 | I26: 50 | J26: 5 | K26: 5 | L26: 5 | M26: 1 | N26: 0.2 | O26: 0#250 | P26: 0#150 | Q26: 4 | R26: 10 | S26: 4000 | T26: 600 | U26: 200 | V26: 200 | W26: 350 | X26: 53#10000|57#10000|58#10000 | Y26: 30 | Z26: 6#1#3#1|6#2#40#1|6#3#17#3|7#1#17#4|8#1#18#1|8#2#17#3|9#1#3#1|9#2#18#1|9#3#17#2|10#1#3#2|10#2#18#1|10#3#14#1 | AA26: 5#1431|5#1432|6#1431|6#1432|7#1431|7#1432|8#1431|8#1432|9#1431|9#1432|10#1431|10#1432|11#1431|11#1432 | AB26: 1#1#143101|1#2#143102|1#3#143103|1#3#143104|1#4#143105|1#5#143106|2#7#143107|2#8#143108|2#9#143109|2#10#143110|2#11#143111 | AC26: 6#90043 | AD26: 4 | AE26: 减怒队肉盾 | AF26: 72 | AG26: 74 | AH26: 68 | AI26: 巨灵神，是托塔天王帐下的一员战将，使用的兵器是件宣花板斧，舞动起沉重的宣花板斧，就象凤凰穿花，灵巧无比。\n二华之山，本一山也，当河，河水过之，而曲行；河神巨灵，以手擘开其上，以足蹈离其下，中分为两。以利河流。今观手迹于华岳上，指掌之形具在；脚迹在首阳山下，至今犹存。\n——《搜神记》 | AL26: 减伤 减怒 | AM26: <color=#2C8B1C>六星：</color>受到普攻降低攻击自己的神将1点怒气|<color=#2C8B1C>九星：</color>受到治疗量+50%|<color=#2C8B1C>法宝+25：</color>减伤盾减伤比例提升至50% | AN26: 17#19 | AO26: 1
B27: 10020 | C27: 10520 | D27: 姑获鸟 | E27: 1020 | F27: 2020 | G27: 3020 | H27: 11020 | I27: 50 | J27: 5 | K27: 5 | L27: 5 | M27: 3 | N27: 0.65 | O27: 20#220 | P27: 20#120 | Q27: 3 | R27: 10 | S27: 4000 | T27: 600 | U27: 200 | V27: 200 | W27: 376 | X27: 53#10000|57#10000|58#10000 | Y27: 30 | Z27: 6#1#3#1|6#2#27#1|6#3#17#3|7#1#17#4|8#1#18#1|8#2#17#3|9#1#3#1|9#2#18#1|9#3#17#2|10#1#3#2|10#2#18#1|10#3#14#1 | AA27: 5#1081|5#1082|6#1081|6#1082|7#1081|7#1082|8#1081|8#1082|9#1081|9#1082|10#1081|10#1082|11#1081|11#1082 | AB27: 1#1#108101|1#2#108102|1#3#108103|1#3#108104|1#4#108105|1#5#108106|2#7#108107|2#8#108108|2#9#108109|2#10#108110|2#11#108111 | AC27: 6#90008 | AD27: 4 | AE27: 永动队控制 | AF27: 64 | AG27: 72 | AH27: 82 | AI27: 姑获鸟就是来自中国古代神话传说的妖怪，有时以九头的样子显形。\n明代《本草纲目》里提到了它的由来，说是死去的产妇的执念所化，抱着婴儿在夜里行走，怀抱里婴儿的哭声就化成了姑获鸟的叫声。\n晋代《玄中记》。姑获鸟有时会变成夏获鸟，姑获鸟抱走孩子，而夏获鸟收养孩子。 | AL27: 眩晕 减怒 | AM27: <color=#2C8B1C>六星：</color>释放技能后回1点怒气|<color=#2C8B1C>九星：</color>释放技能后降低目标1点怒气|<color=#2C8B1C>法宝+25：</color>直接伤害导致死亡时100%眩晕攻击自己的神将 | AN27: 4 | AO27: 1
B28: 10021 | C28: 10521 | D28: 东陵圣母 | E28: 1021 | F28: 2021 | G28: 3021 | H28: 11021 | I28: 50 | J28: 5 | K28: 5 | L28: 5 | M28: 3 | N28: 0.6 | O28: -26.79#328.55 | P28: -26.79#150 | Q28: 1 | R28: 10 | S28: 4000 | T28: 600 | U28: 200 | V28: 200 | W28: 326 | X28: 53#10000|57#10000|58#10000 | Y28: 30 | Z28: 6#1#3#1|6#2#35#1|6#3#17#3|7#1#17#4|8#1#18#1|8#2#17#3|9#1#3#1|9#2#18#1|9#3#17#2|10#1#3#2|10#2#18#1|10#3#14#1 | AA28: 5#1321|5#1322|6#1321|6#1322|7#1321|7#1322|8#1321|8#1322|9#1321|9#1322|10#1321|10#1322|11#1321|11#1322 | AB28: 1#1#132101|1#2#132102|1#3#132103|1#3#132104|1#4#132105|1#5#132106|2#7#132107|2#8#132108|2#9#132109|2#10#132110|2#11#132111 | AC28: 6#90032 | AD28: 3 | AE28: 灼烧队控制 | AF28: 70 | AG28: 71 | AH28: 67 | AI28: 东陵圣母，广陵府海陵县人，嫁于杜氏，拜刘纲为师学道，能够易形变化，时隐时现没有定准。她的丈夫杜氏不信道，常常因此生她的气。东陵圣母治病救人，有时前往有病的人家，她的丈夫气愤得更加厉害，把她告到官府，理由是：“东陵圣母是邪恶伪诈的妖人，不理家务。”官府就把东陵圣母抓起来投进监狱。不久，东陵圣母已经从监狱的天窗中飞出去，众人都望见她越来越高直入云中，只留下她所穿的一双鞋在窗下。\n于是远近的人盖庙宇祭祀她，老百姓求告的事，向她祷告立刻见效。经常有一只青色的鸟在祭祀的地方，有人丢失了东西，向她乞问在哪里，青鸟就飞去落在偷东西那个人的头上，因此，那里路不拾遗。岁月稍长，也就不再这样了。至今海陵县人不得做奸盗之事。如果做了，罪过大的，不是被风浪吞没淹死，就是被虎狼吃掉，罪过小的就一再生病。 | AL28: 群体 眩晕 终曲 | AM28: <color=#2C8B1C>六星：</color>释放技能时如目标处于灼烧状态眩晕概率提升至50%|<color=#2C8B1C>九星：</color>死亡时释放一次技能|<color=#2C8B1C>法宝+25：</color>释放技能时如目标处于灼烧状态眩晕率提升至80% | AN28: 13 | AO28: 1
B29: 10022 | C29: 10522 | D29: 达摩 | E29: 1022 | F29: 2022 | G29: 3022 | H29: 11022 | I29: 50 | J29: 5 | K29: 5 | L29: 5 | M29: 3 | N29: 0.7 | O29: -42.7#-439.8 | P29: -42.7#-300 | Q29: 2 | R29: 10 | S29: 4000 | T29: 600 | U29: 200 | V29: 200 | W29: 325 | X29: 53#10000|57#10000|58#10000 | Y29: 30 | Z29: 6#1#3#1|6#2#43#1|6#3#17#3|7#1#17#4|8#1#18#1|8#2#17#3|9#1#3#1|9#2#18#1|9#3#17#2|10#1#3#2|10#2#18#1|10#3#14#1 | AA29: 5#1151|5#1152|6#1151|6#1152|7#1151|7#1152|8#1151|8#1152|9#1151|9#1152|10#1151|10#1152|11#1151|11#1152 | AB29: 1#1#115101|1#2#115102|1#3#115103|1#3#115104|1#4#115105|1#5#115106|2#7#115107|2#8#115108|2#9#115109|2#10#115110|2#11#115111 | AC29: 6#90015 | AD29: 1 | AE29: 暴力队控制 | AF29: 81 | AG29: 61 | AH29: 65 | AI29: 文殊菩萨，音译作文殊师利、曼殊室利、满祖室哩，意译为妙德、妙吉祥、妙乐、法王子。又称文殊师利童真、孺童文殊菩萨。为佛教四大菩萨之一。与般若经典关系甚深，故称为大智文殊师利菩萨。\n文殊菩萨是佛陀怙恃之一。文殊菩萨又称法王子，为智慧之象征，身紫金色，形如童子，五髻冠其项，右手持金刚宝剑(表示智能之利)，能斩群魔，断一切烦恼，左手持青莲花，花上有金刚般若经卷宝，象征所具无上智慧，坐骑为一狮子(表示智能威猛)。\n一般称文殊师利菩萨，与普贤菩萨同为释迦佛之胁侍，分别表示佛智、佛慧之别德。所乘之狮子，象征其威猛。 | AL29: 眩晕 追技 减怒 | AM29: <color=#2C8B1C>六星：</color>释放技能后回2点怒气|<color=#2C8B1C>九星：</color>释放技能眩晕概率提升至70%|<color=#2C8B1C>法宝+25：</color>释放技能后降低目标1点怒气 | AN29: 6#9#10 | AO29: 1
B30: 10023 | C30: 10523 | D30: 孙悟空 | E30: 1023 | F30: 2023 | G30: 3023 | H30: 11023 | I30: 50 | J30: 5 | K30: 5 | L30: 5 | M30: 2 | N30: 0.8 | O30: -2.5#-590.7 | P30: -2.5#-450 | Q30: 2 | R30: 10 | S30: 4000 | T30: 600 | U30: 200 | V30: 200 | W30: 295 | X30: 53#10000|57#10000|58#10000 | Y30: 30 | Z30: 6#1#3#1|6#2#44#1|6#3#17#3|7#1#17#4|8#1#18#1|8#2#17#3|9#1#3#1|9#2#18#1|9#3#17#2|10#1#3#2|10#2#18#1|10#3#14#1 | AA30: 5#1141|5#1142|6#1141|6#1142|7#1141|7#1142|8#1141|8#1142|9#1141|9#1142|10#1141|10#1142|11#1141|11#1142 | AB30: 1#1#114101|1#2#114102|1#3#114103|1#3#114104|1#4#114105|1#5#114106|2#7#114107|2#8#114108|2#9#114109|2#10#114110|2#11#114111 | AC30: 6#90014 | AD30: 1 | AE30: 暴力队输出 | AF30: 81 | AG30: 58 | AH30: 64 | AI30: 孙悟空出生于娑婆世界东胜神洲傲来国花果山，自开辟以来的仙石孕育而生。仙石处于十洲三岛的祖脉上，其高围按二十四气，其上窍孔对应九宫八卦。一天仙石迸裂，产一石卵， 经风一吹，化作一石猴，石猴出世后，眼里冒出两道神光，射冲斗府，惊动的天上的玉皇大帝。之后因为成功闯入水帘洞，被花果山诸猴拜为“美猴王”。后自称“齐天大圣”，西天取经经历九九八十一难后被封为“斗战胜佛”。 | AL30: 增伤 爆发 追击 | AM30: <color=#2C8B1C>六星：</color>普攻后自身伤害+10%持续7回合效果可叠加|<color=#2C8B1C>九星：</color>释放技能后回2点怒气|<color=#2C8B1C>法宝+25：</color>直接伤害击杀目标追加一次普攻 （追加普攻不回怒气） | AN30: 6#7#8 | AO30: 1
B31: 10024 | C31: 10524 | D31: 姜子牙 | E31: 1024 | F31: 2024 | G31: 3024 | H31: 11024 | I31: 50 | J31: 5 | K31: 5 | L31: 5 | M31: 4 | N31: 0.75 | O31: 0#250 | P31: 0#100 | Q31: 4 | R31: 10 | S31: 4000 | T31: 600 | U31: 200 | V31: 200 | W31: 306 | X31: 53#10000|57#10000|58#10000 | Y31: 30 | Z31: 6#1#3#1|6#2#34#1|6#3#17#3|7#1#17#4|8#1#18#1|8#2#17#3|9#1#3#1|9#2#18#1|9#3#17#2|10#1#3#2|10#2#18#1|10#3#14#1 | AA31: 5#1421|5#1422|6#1421|6#1422|7#1421|7#1422|8#1421|8#1422|9#1421|9#1422|10#1421|10#1422|11#1421|11#1422 | AB31: 1#1#142101|1#2#142102|1#3#142103|1#3#142104|1#4#142105|1#5#142106|2#7#142107|2#8#142108|2#9#142109|2#10#142110|2#11#142111 | AC31: 6#90042 | AD31: 3 | AE31: 减怒队辅助 | AF31: 55 | AG31: 60 | AH31: 69 | AI31: 姜子牙是昆仑山玉虚宫元始天尊门下的阐教弟子之一，后被派下山辅佐明君周武王姬发反商伐纣，代理封神，推翻恶君商纣王后，奉法旨敕封三百六十五路正神，自己无福成正果，只能得享人间富贵。\n姜子牙代理封神榜、执掌打神鞭，有法宝杏黄旗护体，骑着神兽坐骑四不相。封神完毕之后，元始天尊赠予姜子牙打神鞭，并特许他可云游众神部，每去一处，该部正神暂时让位，就是所谓的“太公在此，诸神回避”。 | AL31: 治疗 群体 复活 | AM31: <color=#2C8B1C>六星：</color>技能治疗量+25%|<color=#2C8B1C>九星：</color>死亡时释放一次技能|<color=#2C8B1C>法宝+25：</color>目标血量每减少10%对其造成治疗量增加5% | AN31: 15#17 | AO31: 1
B32: 10025 | C32: 10525 | D32: 道德天尊 | E32: 1025 | F32: 2025 | G32: 3025 | H32: 11025 | I32: 50 | J32: 5 | K32: 5 | L32: 5 | M32: 2 | N32: 0.65 | O32: 0#278.43 | P32: 0#130 | Q32: 4 | R32: 9 | S32: 4000 | T32: 600 | U32: 200 | V32: 200 | W32: 288 | X32: 53#10000|57#10000|58#10000 | Y32: 30 | Z32: 6#1#3#1|6#2#46#1|6#3#17#3|7#1#17#4|8#1#18#1|8#2#17#3|9#1#3#1|9#2#18#1|9#3#17#2 | AA32: 5#1481|5#1482|6#1481|6#1482|7#1481|7#1482|8#1481|8#1482|9#1481|9#1482|10#1481|10#1482|11#1481|11#1482 | AB32: 1#1#148101|1#2#148102|1#3#148103|1#3#148104|1#4#148105|1#5#148106|2#7#148107|2#8#148108|2#9#148109|2#10#148110 | AC32: 6#90048 | AD32: 1 | AE32: 减怒队输出 | AF32: 69 | AG32: 54 | AH32: 55 | AI32: 太上老君尊号：一气化三清太清居大赤天仙登太清境玄气所成日神宝君道德天尊混元上帝，简称太上老君。太上老君为道教创始人，道祖，据《史记》记载，老君又称老子，姓“李” ，名“耳”，字“伯阳”，谥号“聃”。许多道教宗师都自称得到老君显灵的启示与教诲，如汉朝的张道陵、南北朝的寇谦之等。唐朝皇室更尊奉老君为其始祖。 | AL32: 追击 减怒 | AM32: <color=#2C8B1C>六星：</color>追加普攻必定暴击（追加普攻不回怒气）|<color=#2C8B1C>九星：</color>释放技能后降低目标1点怒气|<color=#2C8B1C>法宝+25：</color>直接伤害击杀目标回1点怒气
B33: 10026 | C33: 10526 | D33: 东华帝君 | E33: 1026 | F33: 2026 | G33: 3026 | H33: 11026 | I33: 50 | J33: 5 | K33: 5 | L33: 5 | M33: 2 | N33: 1 | O33: 0#-517 | P33: 0#-400 | Q33: 4 | R33: 10 | S33: 4000 | T33: 600 | U33: 200 | V33: 200 | W33: 356 | X33: 53#10000|57#10000|58#10000 | Y33: 30 | Z33: 6#1#3#1|6#2#47#1|6#3#17#3|7#1#17#4|8#1#18#1|8#2#17#3|9#1#3#1|9#2#18#1|9#3#17#2|10#1#3#2|10#2#18#1|10#3#14#1 | AA33: 5#1411|5#1412|6#1411|6#1412|7#1411|7#1412|8#1411|8#1412|9#1411|9#1412|10#1411|10#1412|11#1411|11#1412 | AB33: 1#1#141101|1#2#141102|1#3#141103|1#3#141104|1#4#141105|1#5#141106|2#7#141107|2#8#141108|2#9#141109|2#10#141110|2#11#141111 | AC33: 6#90041 | AD33: 3 | AE33: 减怒队输出 | AF33: 55 | AG33: 66 | AH33: 69 | AI33: 东华帝君管理一切登仙得道的男子，掌管仙籍。\n东荒山中有大石室，东王公居焉。长一丈，头发皓白，人形鸟面而虎尾，载一黑熊，左右顾望。恒与一玉女投壶，每投千二百矫，设有入不出者，天为之嘘；矫出而脱悟不接者，天为之笑。\n——《东荒经》 | AL33: 群体 减怒 追加 | AM33: <color=#2C8B1C>六星：</color>技能目标每减少一个技能伤害增加15%|<color=#2C8B1C>九星：</color>技能释放后降低目标1点怒气|<color=#2C8B1C>法宝+25：</color>直接伤害击杀目标回2点怒气 | AN33: 15#17 | AO33: 1
B34: 10027 | C34: 10527 | D34: 孟婆 | E34: 1027 | F34: 2027 | G34: 3027 | H34: 11027 | I34: 50 | J34: 5 | K34: 5 | L34: 5 | M34: 3 | N34: 0.3 | O34: 105#226 | P34: 105#126 | Q34: 4 | R34: 9 | S34: 4000 | T34: 600 | U34: 200 | V34: 200 | W34: 305 | X34: 53#10000|57#10000|58#10000 | Y34: 30 | Z34: 6#1#3#1|6#2#48#1|6#3#17#3|7#1#17#4|8#1#18#1|8#2#17#3|9#1#3#1|9#2#18#1|9#3#17#2 | AA34: 5#1501|5#1502|6#1501|6#1502|7#1501|7#1502|8#1501|8#1502|9#1501|9#1502|10#1501|10#1502|11#1501|11#1502 | AB34: 1#1#150101|1#2#150102|1#3#150103|1#3#150104|1#4#150105|1#5#150106|2#7#150107|2#8#150108|2#9#150109|2#10#150110 | AC34: 6#90050 | AD34: 4 | AE34: 减怒队控制 | AF34: 55 | AG34: 70 | AH34: 69 | AI34: 孟婆从三界分开时便已在世上，她本为天界的一个散官。后因看到世人恩怨情仇无数，即便死了也不肯放下，就来到了阴曹地府的忘川河边，在奈何桥的桥头立起一口大锅，将世人放不下的思绪炼化成了孟婆汤让阴魂喝下，便忘记了生前的爱恨情仇，卸下了生前的包袱，走入下一个轮回。 | AL34: 沉默 减怒 | AM34: <color=#2C8B1C>六星：</color>普通攻击降低目标1点怒气|<color=#2C8B1C>九星：</color>普攻后额外回1点怒气|<color=#2C8B1C>法宝+25：</color>释放技能后降低目标1点怒气
B35: 10028 | C35: 10528 | D35: 石矶娘娘 | E35: 1028 | F35: 2028 | G35: 3028 | H35: 11028 | I35: 50 | J35: 5 | K35: 5 | L35: 5 | M35: 2 | N35: 0.6 | O35: -60#360 | P35: -60#200 | Q35: 3 | R35: 9 | S35: 4000 | T35: 600 | U35: 200 | V35: 200 | W35: 284 | X35: 53#10000|57#10000|58#10000 | Y35: 30 | Z35: 6#1#3#1|6#2#49#1|6#3#17#3|7#1#17#4|8#1#18#1|8#2#17#3|9#1#3#1|9#2#18#1|9#3#17#2 | AA35: 5#1111|5#1112|6#1111|6#1112|7#1111|7#1112|8#1111|8#1112|9#1111|9#1112|10#1111|10#1112|11#1111|11#1112 | AB35: 1#1#111101|1#2#111102|1#3#111103|1#3#111104|1#4#111105|1#5#111106|2#7#111107|2#8#111108|2#9#111109|2#10#111110 | AC35: 6#90011 | AD35: 3 | AE35: 永动队输出 | AF35: 69 | AG35: 61 | AH35: 55 | AI35: 石矶娘娘住在骷髅山白骨洞，是得道数万年的妖仙，原形为石头，玄黄时期诞生，其为截教通天教主的徒弟，武器为太阿剑、八卦云光帕（可召唤黄巾力士）、八卦龙须帕，座骑是青鸾，座下弟子碧云童子和彩云童子。石矶娘娘为被哪吒射死的徒弟之一报仇，被太乙真人用九龙神火罩烧死。后被计入封神榜，被姜子牙封为“月游星”。 | AL35: 回血 增伤 回怒 | AM35: <color=#2C8B1C>六星：</color>战斗第一回合伤害+50%|<color=#2C8B1C>九星：</color>直接伤害击杀目标回复生命上限10%|<color=#2C8B1C>法宝+25：</color>技能目标每减少一个伤害+10%
B36: 10029 | C36: 10529 | D36: 月光菩萨 | E36: 1029 | F36: 2029 | G36: 3029 | H36: 11029 | I36: 50 | J36: 5 | K36: 5 | L36: 5 | M36: 3 | N36: 0.8 | O36: 0#185 | P36: 0#85 | Q36: 2 | R36: 9 | S36: 4000 | T36: 600 | U36: 200 | V36: 200 | W36: 312 | X36: 53#10000|57#10000|58#10000 | Y36: 30 | Z36: 6#1#3#1|6#2#50#1|6#3#17#3|7#1#17#4|8#1#18#1|8#2#17#3|9#1#3#1|9#2#18#1|9#3#17#2 | AA36: 5#1241|5#1242|6#1241|6#1242|7#1241|7#1242|8#1241|8#1242|9#1241|9#1242|10#1241|10#1242|11#1241|11#1242 | AB36: 1#1#124101|1#2#124102|1#3#124103|1#3#124104|1#4#124105|1#5#124106|2#7#124107|2#8#124108|2#9#124109|2#10#124110 | AC36: 6#90024 | AD36: 4 | AE36: 暴力队控制 | AF36: 60 | AG36: 65 | AH36: 57 | AI36: 《觉禅钞》曾引《药师经疏》卷一而言，过去世电光如来时，有一梵士医王，养育日照、月照二子，发心愿利乐众生，二子亦发愿供养。梵士医王即今之药师如来，二子即日光、月光二菩萨。依《药师仪轨布坛法》所载，月光菩萨身呈白色，手持月轮，坐鹅座上；但此像与历代相传者颇为不同，历来所造皆为立像，而月光菩萨即立于药师如来之右侧。如同日光菩萨一样，月光菩萨与观世音菩萨的大悲咒也有密切的关系。凡是至心持诵大悲咒的修行者，月光菩萨也会与无量神人来增益其持咒效验。修行者在持诵大悲咒过后，如果能再加诵月光菩萨陀罗尼，则月光菩萨当会来加庇护，使持咒者除去一切障难与病痛，并成就一切善法、远离各种怖畏。 | AL36: 眩晕 减怒 回怒 | AM36: <color=#2C8B1C>六星：</color>普攻后回1点怒气|<color=#2C8B1C>九星：</color>释放技能后降低目标1点怒气|<color=#2C8B1C>法宝+25：</color>眩晕率提升至65%
B37: 10030 | C37: 10530 | D37: 梵天 | E37: 1030 | F37: 2030 | G37: 3030 | H37: 11030 | I37: 50 | J37: 5 | K37: 5 | L37: 5 | M37: 3 | N37: 0.65 | O37: 35#300 | P37: 35#150 | Q37: 2 | R37: 9 | S37: 4000 | T37: 600 | U37: 200 | V37: 200 | W37: 289 | X37: 53#10000|57#10000|58#10000 | Y37: 30 | Z37: 6#1#3#1|6#2#51#1|6#3#17#3|7#1#17#4|8#1#18#1|8#2#17#3|9#1#3#1|9#2#18#1|9#3#17#2 | AA37: 5#1251|5#1252|6#1251|6#1252|7#1251|7#1252|8#1251|8#1252|9#1251|9#1252|10#1251|10#1252|11#1251|11#1252 | AB37: 1#1#125101|1#2#125102|1#3#125103|1#3#125104|1#4#125105|1#5#125106|2#7#125107|2#8#125108|2#9#125109|2#10#125110 | AC37: 6#90025 | AD37: 3 | AE37: 暴力队控制 | AF37: 54 | AG37: 68 | AH37: 69 | AI37: 梵天，是指印度教的创造之神。梵天亦称造书天、婆罗贺摩天、净天，华人地区俗称四面佛（印度佛教中的大梵天王诸神众，特指色界初禅天之主，又称大梵天王），是印度婆罗门教的创造之神，梵文字母的创制者。与毗湿奴、湿婆并称三主神。 | AL37: 眩晕 减怒 | AM37: <color=#2C8B1C>六星：</color>普攻后降低目标1点怒气|<color=#2C8B1C>九星：</color>释放技能后减低目标1点怒气|<color=#2C8B1C>法宝+25：</color>释放技能后额外回1点怒气
B38: 10031 | C38: 10531 | D38: 红孩儿 | E38: 1031 | F38: 2031 | G38: 3031 | H38: 11031 | I38: 50 | J38: 5 | K38: 5 | L38: 5 | M38: 2 | N38: 0.8 | O38: -54.62#300 | P38: -54.62#200 | Q38: 3 | R38: 9 | S38: 4000 | T38: 600 | U38: 200 | V38: 200 | W38: 300 | X38: 53#10000|57#10000|58#10000 | Y38: 30 | Z38: 6#1#3#1|6#2#52#1|6#3#17#3|7#1#17#4|8#1#18#1|8#2#17#3|9#1#3#1|9#2#18#1|9#3#17#2 | AA38: 5#1101|5#1102|6#1101|6#1102|7#1101|7#1102|8#1101|8#1102|9#1101|9#1102|10#1101|10#1102|11#1101|11#1102 | AB38: 1#1#110101|1#2#110102|1#3#110103|1#3#110104|1#4#110105|1#5#110106|2#7#110107|2#8#110108|2#9#110109|2#10#110110 | AC38: 6#90010 | AD38: 1 | AE38: 永动队输出 | AF38: 55 | AG38: 59 | AH38: 69 | AI38: 红孩儿出生于魔道，自幼起就上山学道，在火焰山修炼后得道，得到了三昧真火的法力，具有三百年的道行和功力，同时也有三百多岁的岁数，但他的外形依旧是个婴孩般的模样，心性亦如孩童一般，喜欢赤身赤脚。\n他听说吃了唐僧的肉就能长生不老，便变作一个赤条条的男孩儿吊在树上引唐僧师徒搭救，趁机兴风抓走唐僧。孙悟空鏖战不敌，请来观音后收伏红孩儿为门下弟子，封为善财童子。 | AL38: 追击 必暴 | AM38: <color=#2C8B1C>六星：</color>追加普攻必定暴击 （追加普攻不回怒气）|<color=#2C8B1C>九星：</color>直接伤害击杀目标追加一次普攻 （追加普攻不回怒气）|<color=#2C8B1C>法宝+25：</color>直接伤害击杀目标回1点怒气
B39: 10032 | C39: 10513 | D39: 吴刚 | E39: 1032 | F39: 2032 | G39: 3032 | H39: 11032 | I39: 50 | J39: 5 | K39: 5 | L39: 5 | M39: 2 | N39: 0.8 | O39: -50#180 | P39: -31#160 | Q39: 1 | R39: 9 | S39: 4000 | T39: 600 | U39: 200 | V39: 200 | W39: 355 | X39: 53#10000|57#10000|58#10000 | Y39: 30 | Z39: 6#1#3#1|6#2#53#1|6#3#17#3|7#1#17#4|8#1#18#1|8#2#17#3|9#1#3#1|9#2#18#1|9#3#17#2 | AA39: 5#1361|5#1362|6#1361|6#1362|7#1361|7#1362|8#1361|8#1362|9#1361|9#1362|10#1361|10#1362|11#1361|11#1362 | AB39: 1#1#136101|1#2#136102|1#3#136103|1#3#136104|1#4#136105|1#5#136106|2#7#136107|2#8#136108|2#9#136109|2#10#136110 | AC39: 6#90036 | AD39: 3 | AE39: 灼烧队输出 | AF39: 69 | AG39: 61 | AH39: 55 | AI39: 传说月亮里有一棵高五百丈的桂树。汉朝时有个叫吴刚的人，学仙过程中有过错，因此天帝龙颜大怒，把他拘留在月宫，令他在月宫伐桂树，并说：“如果你砍倒桂树，就可获仙术。”但吴刚每砍一斧，斧起而树创伤就马上愈合。日复一日，吴刚伐桂的愿望仍未达成。因此吴刚在月宫常年伐桂，始终砍不倒这棵树。 | AL39: 增伤 回怒 | AM39: <color=#2C8B1C>六星：</color>普攻对灼烧目标伤害额外增加80%|<color=#2C8B1C>九星：</color>释放技能后回1点怒气|<color=#2C8B1C>法宝+25：</color>直接伤害击杀灼烧目标回50%生命
B40: 10033 | C40: 10533 | D40: 净光天女 | E40: 1033 | F40: 2033 | G40: 3033 | H40: 11033 | I40: 50 | J40: 5 | K40: 5 | L40: 5 | M40: 4 | N40: 0.75 | O40: -30#340 | P40: -30#200 | Q40: 2 | R40: 10 | S40: 4000 | T40: 600 | U40: 200 | V40: 200 | W40: 308 | X40: 53#10000|57#10000|58#10000 | Y40: 30 | Z40: 6#1#3#1|6#2#43#1|6#3#17#3|7#1#17#4|8#1#18#1|8#2#17#3|9#1#3#1|9#2#18#1|9#3#17#2|10#1#3#2|10#2#18#1|10#3#14#1 | AA40: 5#1191|5#1192|6#1191|6#1192|7#1191|7#1192|8#1191|8#1192|9#1191|9#1192|10#1191|10#1192|11#1191|11#1192 | AB40: 1#1#119101|1#2#119102|1#3#119103|1#3#119104|1#4#119105|1#5#119106|2#7#119107|2#8#119108|2#9#119109|2#10#119110|2#11#119111 | AC40: 6#90019 | AD40: 4 | AE40: 暴力队辅助 | AF40: 60 | AG40: 64 | AH40: 58 | AI40: 净光天女曾在灯佛那里听过大涅盘经，由此因缘释迦佛在世时生为净光天女，再次听闻佛法深义。/n后世舍天身生为女人成为国王，得到转轮王统领疆土的四分之一，得大自在，受持五戒，成为优婆夷，教化所属的城乡男女老少受持五戒、守护正法，摧伏外道的各种邪见异见，作菩萨事业。 | AL40: 治疗 光环 回怒 | AM40: <color=#2C8B1C>六星：</color>全体免伤+20%|<color=#2C8B1C>九星：</color>技能伤害50%治疗己方生命最低队友|<color=#2C8B1C>法宝+25：</color>释放技能后全体回1点怒气 | AN40: 8#9#10 | AO40: 1
B41: 10034 | C41: 10534 | D41: 帝释天 | E41: 1034 | F41: 2034 | G41: 3034 | H41: 11034 | I41: 50 | J41: 5 | K41: 5 | L41: 5 | M41: 2 | N41: 0.25 | O41: 0#400 | P41: 0#300 | Q41: 2 | R41: 9 | S41: 4000 | T41: 600 | U41: 200 | V41: 200 | W41: 321 | X41: 53#10000|57#10000|58#10000 | Y41: 30 | Z41: 6#1#3#1|6#2#55#1|6#3#17#3|7#1#17#4|8#1#18#1|8#2#17#3|9#1#3#1|9#2#18#1|9#3#17#2 | AA41: 5#1221|5#1222|6#1221|6#1222|7#1221|7#1222|8#1221|8#1222|9#1221|9#1222|10#1221|10#1222|11#1221|11#1222 | AB41: 1#1#122101|1#2#122102|1#3#122103|1#3#122104|1#4#122105|1#5#122106|2#7#122107|2#8#122108|2#9#122109|2#10#122110 | AC41: 6#90022 | AD41: 3 | AE41: 暴力队输出 | AF41: 60 | AG41: 66 | AH41: 58 | AI41: 佛经上说，释尊下生时，他化现七宝金阶，让释尊从忉利天一级一级地下来。下来时，帝释天在释尊的左前方，手执宝盖，和右前方的大梵天，一起侍候着释尊，为释尊引路。释尊成道后佛教产生，因陀罗成为释尊之守护神，称为帝释天。佛陀升于忉利天为母说法时，帝释天手持宝盖，任佛陀之侍从。 | AL41: 回怒 追击 | AM41: <color=#2C8B1C>六星：</color>释放技能后追加一次普攻 （追加普攻不回怒气）|<color=#2C8B1C>九星：</color>普攻伤害+50%|<color=#2C8B1C>法宝+25：</color>直接伤害击杀目标追加一次普攻 （追加普攻不回怒气）
B42: 10035 | C42: 10535 | D42: 妈祖 | E42: 1035 | F42: 2035 | G42: 3035 | H42: 11035 | I42: 50 | J42: 5 | K42: 5 | L42: 5 | M42: 2 | N42: 0.55 | O42: 0#150 | P42: 0#120 | Q42: 1 | R42: 9 | S42: 4000 | T42: 600 | U42: 200 | V42: 200 | W42: 283 | X42: 53#10000|57#10000|58#10000 | Y42: 30 | Z42: 6#1#3#1|6#2#56#1|6#3#17#3|7#1#17#4|8#1#18#1|8#2#17#3|9#1#3#1|9#2#18#1|9#3#17#2 | AA42: 5#1371|5#1372|6#1371|6#1372|7#1371|7#1372|8#1371|8#1372|9#1371|9#1372|10#1371|10#1372|11#1371|11#1372 | AB42: 1#1#137101|1#2#137102|1#3#137103|1#3#137104|1#4#137105|1#5#137106|2#7#137107|2#8#137108|2#9#137109|2#10#137110 | AC42: 6#90037 | AD42: 1 | AE42: 灼烧队输出 | AF42: 69 | AG42: 61 | AH42: 55 | AI42: 妈祖，以中国东南沿海为中心的海神信仰，又称天妃、天后、天上圣母、娘妈等等，是历、现代船工、海员、旅客、商人和渔民共同信奉的神祗。妈祖，原名林默，宋建隆元年（960年）农历三月二十三日诞生于莆田湄洲岛 ，因救助海难于宋太宗雍熙四年（987年）九月初九逝世。 | AL42: 回怒 增伤 暴击 | AM42: <color=#2C8B1C>六星：</color>技能对灼烧目标造成伤害额外增加50%|<color=#2C8B1C>九星：</color>释放技能后回1点怒气|<color=#2C8B1C>法宝+25：</color>释放技能后追加1次普攻 （追加普攻不回怒气）
B43: 10036 | C43: 10536 | D43: 赵公明 | E43: 1036 | F43: 2036 | G43: 3036 | H43: 11036 | I43: 50 | J43: 5 | K43: 5 | L43: 5 | M43: 3 | N43: 0.9 | O43: 50#300 | P43: 50#150 | Q43: 1 | R43: 9 | S43: 4000 | T43: 600 | U43: 200 | V43: 200 | W43: 271 | X43: 53#10000|57#10000|58#10000 | Y43: 30 | Z43: 6#1#3#1|6#2#57#1|6#3#17#3|7#1#17#4|8#1#18#1|8#2#17#3|9#1#3#1|9#2#18#1|9#3#17#2 | AA43: 5#1381|5#1382|6#1381|6#1382|7#1381|7#1382|8#1381|8#1382|9#1381|9#1382|10#1381|10#1382|11#1381|11#1382 | AB43: 1#1#138101|1#2#138102|1#3#138103|1#3#138104|1#4#138105|1#5#138106|2#7#138107|2#8#138108|2#9#138109|2#10#138110 | AC43: 6#90038 | AD43: 3 | AE43: 灼烧队控制 | AF43: 69 | AG43: 60 | AH43: 55 | AI43: 赵公明修道有成，还有三个妹妹，她们分别是云霄、琼霄与碧霄。主要法宝二十四颗定海神珠。武王克殷时，赵公明原是居于峨嵋山罗浮洞的截教高人，受殷商太师闻仲礼请，辅佐殷纣王，艺高术强，周朝阐教的仙人及将领们都不是对手，接连败阵，姜子牙只好请陆压以法术将之暗杀。\n殷商灭亡后，赵公明被封为“金龙如意正一龙虎玄坛真君”。因赵公明部下为四名与负责财富的神，其分别是“招宝”、“纳珍”、“招财”和“利市”，而成为正财神。 | AL43: 眩晕 减怒 回怒 | AM43: <color=#2C8B1C>六星：</color>释放普攻后降低对方1点怒气|<color=#2C8B1C>九星：</color>释放技能后回1点怒气|<color=#2C8B1C>法宝+25：</color>普攻后额外降低目标1点怒气
B44: 10037 | C44: 10537 | D44: 罗刹 | E44: 1037 | F44: 2037 | G44: 3037 | H44: 11037 | I44: 50 | J44: 5 | K44: 5 | L44: 5 | M44: 3 | N44: 0.5 | O44: 0#275 | P44: 0#125 | Q44: 4 | R44: 9 | S44: 4000 | T44: 600 | U44: 200 | V44: 200 | W44: 276 | X44: 53#10000|57#10000|58#10000 | Y44: 30 | Z44: 6#1#3#1|6#2#58#1|6#3#17#3|7#1#17#4|8#1#18#1|8#2#17#3|9#1#3#1|9#2#18#1|9#3#17#2 | AA44: 5#1491|5#1492|6#1491|6#1492|7#1491|7#1492|8#1491|8#1492|9#1491|9#1492|10#1491|10#1492|11#1491|11#1492 | AB44: 1#1#149101|1#2#149102|1#3#149103|1#3#149104|1#4#149105|1#5#149106|2#7#149107|2#8#149108|2#9#149109|2#10#149110 | AC44: 6#90049 | AD44: 1 | AE44: 减怒队控制 | AF44: 69 | AG44: 52 | AH44: 55 | AI44: 罗刹为恶鬼之名。男罗刹黑身、朱发、绿眼，女罗刹则如绝美妇人，富有魅人之力，专食人之血肉。相传在楞伽岛中，即有罗刹女国。罗刹具神通力，可于空际疾飞，或速行地面，为暴恶可畏之鬼。\n罗刹誓愿守护佛法及正法行人，往往成为佛教的守护神，而常常参与法会，随佛闻法欢喜奉行。罗刹亦为地狱之狱卒，职司呵责罪人。 | AL44: 眩晕 减怒 | AM44: <color=#2C8B1C>六星：</color>释放技能有80%概率附加眩晕1回合|<color=#2C8B1C>九星：</color>释放技能后降低目标2点怒气|<color=#2C8B1C>法宝+25：</color>释放技能后回1点怒气
B45: 10038 | C45: 10538 | D45: 夜叉 | E45: 1038 | F45: 2038 | G45: 3038 | H45: 11038 | I45: 50 | J45: 5 | K45: 5 | L45: 5 | M45: 2 | N45: 0.6 | O45: 0#245 | P45: 0#145 | Q45: 4 | R45: 9 | S45: 4000 | T45: 600 | U45: 200 | V45: 200 | W45: 325 | X45: 53#10000|57#10000|58#10000 | Y45: 30 | Z45: 6#1#3#1|6#2#59#1|6#3#17#3|7#1#17#4|8#1#18#1|8#2#17#3|9#1#3#1|9#2#18#1|9#3#17#2 | AA45: 5#1511|5#1512|6#1511|6#1512|7#1511|7#1512|8#1511|8#1512|9#1511|9#1512|10#1511|10#1512|11#1511|11#1512 | AB45: 1#1#151101|1#2#151102|1#3#151103|1#3#151104|1#4#151105|1#5#151106|2#7#151107|2#8#151108|2#9#151109|2#10#151110 | AC45: 6#90051 | AD45: 3 | AE45: 减怒队输出 | AF45: 60 | AG45: 66 | AH45: 58 | AI45: 东海龙王敖光手下的巡海夜叉是天庭钦点的水府正神，名叫“李艮”.因哪吒在九湾河边洗澡，而用法宝混天绫搅动东海海水。龙宫闹地震，老龙王派出海夜叉上岸巡视，上前查看情况时，与哪吒发生口角，二者大战，哪吒用乾坤圈把夜叉砸死，脑浆迸流而亡，夜叉被杀后魂归封神台；最终武王伐纣成功，封神大战结束后，姜子牙归国封神，将夜叉李艮册封为“大祸星”的神位后入职天宫。 | AL45: 中毒 回怒 | AM45: <color=#2C8B1C>六星：</color>释放技能后回1点怒气|<color=#2C8B1C>九星：</color>重度伤害由80%提升至125%|<color=#2C8B1C>法宝+25：</color>释放技能后降低目标1点怒气
B46: 10039 | C46: 10539 | D46: 普贤菩萨 | E46: 1039 | F46: 2039 | G46: 3039 | H46: 11039 | I46: 50 | J46: 5 | K46: 5 | L46: 5 | M46: 2 | N46: 0.7 | O46: 0#240 | P46: 0#120 | Q46: 2 | R46: 9 | S46: 4000 | T46: 600 | U46: 200 | V46: 200 | W46: 285 | X46: 53#10000|57#10000|58#10000 | Y46: 30 | Z46: 6#1#3#1|6#2#60#1|6#3#17#3|7#1#17#4|8#1#18#1|8#2#17#3|9#1#3#1|9#2#18#1|9#3#17#2 | AA46: 5#1231|5#1232|6#1231|6#1232|7#1231|7#1232|8#1231|8#1232|9#1231|9#1232|10#1231|10#1232|11#1231|11#1232 | AB46: 1#1#123101|1#2#123102|1#3#123103|1#3#123104|1#4#123105|1#5#123106|2#7#123107|2#8#123108|2#9#123109|2#10#123110 | AC46: 6#90023 | AD46: 1 | AE46: 暴力队输出 | AF46: 69 | AG46: 53 | AH46: 55 | AI46: 普贤菩萨，世称为十大愿王，《法华经》指出：只要能虔诚信奉，普贤菩萨将与诸大菩萨一起出现守护此人，使他身心安稳，不受一切烦恼魔障之侵。《普贤延命经记》指出：普贤菩萨具有延命益寿之不可思议的力量。普贤菩萨是理德和大行愿的象征，象征真理。他以智导行，以行证智，解行并进，完成求佛者的志愿，所以又称“大行普贤菩萨”。 | AL46: 追击 增伤 | AM46: <color=#2C8B1C>六星：</color>技能伤害+25%|<color=#2C8B1C>九星：</color>战斗第一回合伤害+50%|<color=#2C8B1C>法宝+25：</color>行动后攻击+8%
B47: 10040 | C47: 10540 | D47: 杨戬 | E47: 1040 | F47: 2040 | G47: 3040 | H47: 11040 | I47: 50 | J47: 5 | K47: 5 | L47: 5 | M47: 2 | N47: 0.75 | O47: 0#350 | P47: 0#180 | Q47: 1 | R47: 10 | S47: 4000 | T47: 600 | U47: 200 | V47: 200 | W47: 323 | X47: 53#10000|57#10000|58#10000 | Y47: 30 | Z47: 6#1#3#1|6#2#25#1|6#3#17#3|7#1#17#4|8#1#18#1|8#2#17#3|9#1#3#1|9#2#18#1|9#3#17#2|10#1#3#2|10#2#18#1|10#3#14#1 | AA47: 5#1391|5#1392|6#1391|6#1392|7#1391|7#1392|8#1391|8#1392|9#1391|9#1392|10#1391|10#1392|11#1391|11#1392 | AB47: 1#1#139101|1#2#139102|1#3#139103|1#3#139104|1#4#139105|1#5#139106|2#7#139107|2#8#139108|2#9#139109|2#10#139110|2#11#139111 | AC47: 6#90039 | AD47: 1 | AE47: 灼烧队输出 | AF47: 54 | AG47: 62 | AH47: 70 | AI47: 杨戬是神与人通婚的后代，他的母亲被玉帝关在桃山之下。杨戬在人间长大，自幼拜在玉泉山金霞洞玉鼎真人门下，潜心修炼。在玉鼎真人的悉心教导下，杨戬习得了远超一般的神通。后来，杨戬寻来了开山斧力劈桃山救母，其母却被玉帝迫害而死。\n姜子牙伐纣时，二郎神随军立下了大量功劳，最后肉身成圣。 | AL47: 复仇 斩杀 | AM47: <color=#2C8B1C>六星：</color>技能对灼烧目标额外增加50%伤害|<color=#2C8B1C>九星：</color>技能攻击目标如在当前回合直接攻击过杨戬则本回合杨戬技能对其伤害增加30%，如目标灼烧则增加50%|<color=#2C8B1C>法宝+25：</color>释放普通攻击后如果该目标处于灼烧状态且血量低于20%将有50%概率直接秒杀目标 | AN47: 14 | AO47: 1
B48: 10041 | C48: 10541 | D48: 通天教主 | E48: 1041 | F48: 2041 | G48: 3041 | H48: 11041 | I48: 50 | J48: 5 | K48: 5 | L48: 5 | M48: 2 | N48: 0.7 | O48: 0#-460 | P48: 0#-435 | Q48: 4 | R48: 10 | S48: 4000 | T48: 600 | U48: 200 | V48: 200 | W48: 266 | X48: 53#10000|57#10000|58#10000 | Y48: 30 | Z48: 6#1#3#1|6#2#40#1|6#3#17#3|7#1#17#4|8#1#18#1|8#2#17#3|9#1#3#1|9#2#18#1|9#3#17#2|10#1#3#2|10#2#18#1|10#3#14#1 | AA48: 5#1471|5#1472|6#1471|6#1472|7#1471|7#1472|8#1471|8#1472|9#1471|9#1472|10#1471|10#1472|11#1471|11#1472 | AB48: 1#1#147101|1#2#147102|1#3#147103|1#3#147104|1#4#147105|1#5#147106|2#7#147107|2#8#147108|2#9#147109|2#10#147110|2#11#147111 | AC48: 6#90047 | AD48: 1 | AE48: 减怒队输出 | AF48: 54 | AG48: 55 | AH48: 69 | AI48: 通天教主，为截教教主，为鸿钧道人点化收为弟子，在三友中排行第三，大师兄太上老君，二师兄元始天尊。\n通天教主居于碧游宫，乃仙之极致，称混元大罗金仙，是为圣人。被鸿钧老祖赐下诛仙四剑及诛仙阵图，掌杀伐之事，又在分宝崖上得到混元金斗等先天灵宝。然于封神一战失势，被其师带回紫霄宫。 | AL48: 中毒 减怒 | AM48: <color=#2C8B1C>六星：</color>每回合中毒伤害提升至攻击力的160%|<color=#2C8B1C>九星：</color>受到普攻有50%概率使攻击者中毒|<color=#2C8B1C>法宝+25：</color>释放技能附加中毒效果提升至96% | AN48: 15#17#18 | AO48: 1
B49: 10042 | C49: 10542 | D49: 九天玄女 | E49: 1042 | F49: 2042 | G49: 3042 | H49: 11042 | I49: 50 | J49: 5 | K49: 5 | L49: 5 | M49: 4 | N49: 0.6 | O49: 45#245 | P49: 45#145 | Q49: 4 | R49: 10 | S49: 4000 | T49: 600 | U49: 200 | V49: 200 | W49: 388 | X49: 53#10000|57#10000|58#10000 | Y49: 30 | Z49: 6#1#3#1|6#2#63#1|6#3#17#3|7#1#17#4|8#1#18#1|8#2#17#3|9#1#3#1|9#2#18#1|9#3#17#2|10#1#3#2|10#2#18#1|10#3#14#1 | AA49: 5#1441|5#1442|6#1441|6#1442|7#1441|7#1442|8#1441|8#1442|9#1441|9#1442|10#1441|10#1442|11#1441|11#1442 | AB49: 1#1#144101|1#2#144102|1#3#144103|1#3#144104|1#4#144105|1#5#144106|2#7#144107|2#8#144108|2#9#144109|2#10#144110|2#11#144111 | AC49: 6#90044 | AD49: 4 | AE49: 减怒队辅助 | AF49: 55 | AG49: 69 | AH49: 70 | AI49: 九天玄女，简称玄女，俗称九天娘娘、玄牝氏、九天玄女娘娘、九天玄母天尊、九天玄阳元女圣母大帝玄牝氏。原是中国上古神话中的传授过兵法的女神，后经道教奉为高阶女仙与术数神。 \n恭行天律，部领雷兵。如有下界精邪，北阴午酉，出没岩穴，蟠踞山林，窥阚家庭，损伤人命，神威所到，一切扫除，福佑生人，肃清魔魅。 | AL49: 减怒 回怒 | AM49: <color=#2C8B1C>六星：</color>释放技能后降低目标1点怒气|<color=#2C8B1C>九星：</color>释放技能后回复全体1点怒气|<color=#2C8B1C>法宝+25：</color>释放技能后额外回复自身1点怒气 | AN49: 15#17#19 | AO49: 1
B50: 10043 | C50: 10543 | D50: 太阴星君 | E50: 1043 | F50: 2043 | G50: 3043 | H50: 11043 | I50: 50 | J50: 5 | K50: 5 | L50: 5 | M50: 4 | N50: 0.75 | O50: 54#-632 | P50: 54#-500 | Q50: 4 | R50: 10 | S50: 4000 | T50: 600 | U50: 200 | V50: 200 | W50: 354 | X50: 53#10000|57#10000|58#10000 | Y50: 30 | Z50: 6#1#3#1|6#2#47#1|6#3#17#3|7#1#17#4|8#1#18#1|8#2#17#3|9#1#3#1|9#2#18#1|9#3#17#2|10#1#3#2|10#2#18#1|10#3#14#1 | AA50: 5#1451|5#1452|6#1451|6#1452|7#1451|7#1452|8#1451|8#1452|9#1451|9#1452|10#1451|10#1452|11#1451|11#1452 | AB50: 1#1#145101|1#2#145102|1#3#145103|1#3#145104|1#4#145105|1#5#145106|2#7#145107|2#8#145108|2#9#145109|2#10#145110|2#11#145111 | AC50: 6#90045 | AD50: 3 | AE50: 减怒队辅助 | AF50: 60 | AG50: 69 | AH50: 57 | AI50: 骊山老母乃斗姥所化，为上八洞古仙女也。斗姥者，乃先天元始阴神，因其形相象征道体，故又称先天道姥天尊。斗姥上灵光圆大天宝月，号曰九灵太妙中天梵斗姥元君，因沐浴於九曲华池中，涌出白玉龟台、神獬宝座，斗姥登宝座之上，放无极光明，化生九苞金莲，应现九皇道体，为北斗众星之母，综领七元星君、功沾三界，德润群生，故又称无极大天尊。\n她在唐僧师徒的取经路上，伙同观音、文殊、普贤几位菩萨弄了个莫家庄出来，自己扮寡妇妈妈贾莫氏，三位菩萨则化作三个美貌的女儿真真、爱爱、怜怜，把猪八戒迷得七荤八素，把唐长老调戏得面红耳赤。 | AL50: 治疗 减怒 回怒 | AM50: <color=#2C8B1C>六星：</color>普攻后降低目标1点怒气|<color=#2C8B1C>九星：</color>全体神将攻击+20%|<color=#2C8B1C>法宝+25：</color>技能伤害50%治疗己方生命最少队友 | AN50: 15 | AO50: 1
B51: 10044 | C51: 10544 | D51: 混世魔王 | E51: 1044 | F51: 2044 | G51: 3044 | H51: 11044 | I51: 50 | J51: 5 | K51: 5 | L51: 5 | M51: 2 | N51: 0.6 | O51: -48.17#367.57 | P51: -48.17#180 | Q51: 3 | R51: 9 | S51: 4000 | T51: 600 | U51: 200 | V51: 200 | W51: 268 | X51: 53#10000|57#10000|58#10000 | Y51: 30 | Z51: 6#1#3#1|6#2#65#1|6#3#17#3|7#1#17#4|8#1#18#1|8#2#17#3|9#1#3#1|9#2#18#1|9#3#17#2 | AA51: 5#1091|5#1092|6#1091|6#1092|7#1091|7#1092|8#1091|8#1092|9#1091|9#1092|10#1091|10#1092|11#1091|11#1092 | AB51: 1#1#109101|1#2#109102|1#3#109103|1#3#109104|1#4#109105|1#5#109106|2#7#109107|2#8#109108|2#9#109109|2#10#109110 | AC51: 6#90009 | AD51: 1 | AE51: 永动队输出 | AF51: 69 | AG51: 51 | AH51: 55 | AI51: 混世魔王，《西游记》中的角色。长的“ 头戴乌金盔，映日光明；身挂皂罗袍，迎风飘荡。下穿着黑铁甲，紧勒皮条；足踏着花褶靴，雄如上将。腰广十围，身高三丈”，手持一把大刀。混世魔王原居坎源山水脏洞，趁孙悟空不在时抓走许多小猴子，险些霸占水帘洞，但后来被学艺归来的孙悟空用法术身外身法击败，然后孙悟空夺过他的大刀照顶门将他砍为两段。 | AL51: 回怒 必暴 | AM51: <color=#2C8B1C>六星：</color>战斗第一回合造成伤害必定暴击|<color=#2C8B1C>九星：</color>直接伤害每击杀一个目标暴击率+20%可叠加持续至战斗结束|<color=#2C8B1C>法宝+25：</color>技能伤害+25%
B52: 10045 | C52: 10505 | D52: 百花仙子 | E52: 1045 | F52: 2045 | G52: 3045 | H52: 11045 | I52: 50 | J52: 5 | K52: 5 | L52: 5 | M52: 4 | N52: 0.55 | O52: 40#200 | P52: 0#150 | Q52: 3 | R52: 9 | S52: 4000 | T52: 600 | U52: 200 | V52: 200 | W52: 276 | X52: 53#10000|57#10000|58#10000 | Y52: 30 | Z52: 6#1#3#1|6#2#66#1|6#3#17#3|7#1#17#4|8#1#18#1|8#2#17#3|9#1#3#1|9#2#18#1|9#3#17#2 | AA52: 5#1121|5#1122|6#1121|6#1122|7#1121|7#1122|8#1121|8#1122|9#1121|9#1122|10#1121|10#1122|11#1121|11#1122 | AB52: 1#1#112101|1#2#112102|1#3#112103|1#3#112104|1#4#112105|1#5#112106|2#7#112107|2#8#112108|2#9#112109|2#10#112110 | AC52: 6#90012 | AD52: 3 | AE52: 永动队辅助 | AF52: 55 | AG52: 67 | AH52: 69 | AI52: 百花仙子是古代中国神话传说中的一个神仙，她担任的是最美丽的任务，管理天上人间的花卉，并统领百花之主。负责百花的开放，衰败，颜色，香味，生长地点，各类百花相关事务。《镜花缘》里称她的名字是“唐闺臣”。后因人间帝王武则天之令，百花在寒冬齐放而被玉帝贬至凡间，经历数次劫难后，终重修正果，回返天庭。主要故事出现在小说《镜花缘》以及戏曲《天女散花》中。 | AL52: 治疗 回怒 | AM52: <color=#2C8B1C>六星：</color>释放技能后全体回1点怒气|<color=#2C8B1C>九星：</color>释放技能后回1点怒气|<color=#2C8B1C>法宝+25：</color>技能直接伤害50%治疗己方生命最低队友
B53: 10046 | C53: 10546 | D53: 女英 | E53: 1046 | F53: 2046 | G53: 3046 | H53: 11046 | I53: 50 | J53: 5 | K53: 5 | L53: 5 | M53: 4 | N53: 0.8 | O53: 55#280 | P53: 55#150 | Q53: 1 | R53: 9 | S53: 4000 | T53: 600 | U53: 200 | V53: 200 | W53: 378 | X53: 53#10000|57#10000|58#10000 | Y53: 30 | Z53: 6#1#3#1|6#2#67#1|6#3#17#3|7#1#17#4|8#1#18#1|8#2#17#3|9#1#3#1|9#2#18#1|9#3#17#2 | AA53: 5#1351|5#1352|6#1351|6#1352|7#1351|7#1352|8#1351|8#1352|9#1351|9#1352|10#1351|10#1352|11#1351|11#1352 | AB53: 1#1#135101|1#2#135102|1#3#135103|1#3#135104|1#4#135105|1#5#135106|2#7#135107|2#8#135108|2#9#135109|2#10#135110 | AC53: 6#90035 | AD53: 1 | AE53: 灼烧队辅助 | AF53: 69 | AG53: 64 | AH53: 55 | AI53: 女英是尧的女儿，和姐姐娥皇一同嫁给了舜。两人帮助舜多次躲过后母的迫害，并最终成为部落的首领。后来尧帝了解了舜的贤能，将王位禅让给舜。数十年后，舜禅让给禹，娥皇女英也随着尧避位南巡。最终舜死在了极南的苍梧之野，娥皇女英在湘江边落泪，化为了湘江竹。\n“舜陟方，死于苍梧，二妃死于江、湘之闲，俗谓之湘君、湘夫人也。”\n——《列女传》 | AL53: 前排 点火辅助 | AM53: <color=#2C8B1C>六星：</color>技能攻击目标灼烧概率提升至96%|<color=#2C8B1C>九星：</color>普攻80%概率给目标附加灼烧状态2回合|<color=#2C8B1C>法宝+25：</color>受到普通攻击有50%概率使攻击者灼烧2回合
B54: 10047 | C54: 10547 | D54: 大火妖 | E54: 1047 | F54: 2047 | G54: 3047 | H54: 11047 | I54: 20 | J54: 3 | K54: 3 | L54: 3 | M54: 2 | N54: 0.4 | O54: 0#200 | P54: 0#150 | Q54: 3 | R54: 3 | S54: 2400 | T54: 360 | U54: 120 | V54: 120 | W54: 280 | X54: 53#10000|57#10000|58#10000 | Y54: 30 | AA54: 3#100471|3#100472 | AD54: 4 | AE54: 输出 | AF54: 82 | AG54: 58 | AH54: 65 | AI54: 火焰山中土生土长的小妖，喜欢群聚而行。其中大火妖是这些小妖的头头。
B55: 10048 | C55: 10548 | D55: 雪女 | E55: 1048 | F55: 2048 | G55: 3048 | H55: 11048 | I55: 20 | J55: 3 | K55: 3 | L55: 3 | M55: 2 | N55: 0.5 | O55: 44.4#226.5 | P55: 44.4#100 | Q55: 3 | R55: 3 | S55: 2400 | T55: 360 | U55: 120 | V55: 120 | W55: 326 | X55: 53#10000|57#10000|58#10000 | Y55: 30 | AA55: 3#100481|3#100482 | AD55: 4 | AE55: 输出 | AF55: 54 | AG55: 59 | AH55: 47 | AI55: 雪女集天地灵气而复生，不死不灭，游荡在各处观察着人世。
B56: 10049 | C56: 10549 | D56: 娜迦王 | E56: 1049 | F56: 2049 | G56: 3049 | H56: 11049 | I56: 20 | J56: 3 | K56: 3 | L56: 3 | M56: 2 | N56: 0.35 | O56: 0#200 | P56: 0#150 | Q56: 2 | R56: 3 | S56: 2400 | T56: 360 | U56: 120 | V56: 120 | W56: 378 | X56: 53#10000|57#10000|58#10000 | Y56: 30 | AA56: 3#100491|3#100492 | AD56: 4 | AE56: 输出 | AF56: 35 | AG56: 57 | AH56: 36 | AI56: 娜迦是天龙八部之一， 其中娜迦王统领整个娜迦族。
B57: 10050 | C57: 10550 | D57: 摩呼 | E57: 1050 | F57: 2050 | G57: 3050 | H57: 11050 | I57: 20 | J57: 3 | K57: 3 | L57: 3 | M57: 2 | N57: 0.4 | O57: 0#200 | P57: 0#150 | Q57: 2 | R57: 3 | S57: 2400 | T57: 360 | U57: 120 | V57: 120 | W57: 264 | X57: 53#10000|57#10000|58#10000 | Y57: 30 | AA57: 3#100501|3#100502 | AD57: 4 | AE57: 输出 | AF57: 38 | AG57: 52 | AH57: 42 | AI57: 摩呼是天龙八部之一，全称为摩呼罗迦。
B58: 10051 | C58: 10551 | D58: 半仙 | E58: 1051 | F58: 2051 | G58: 3051 | H58: 11051 | I58: 20 | J58: 3 | K58: 3 | L58: 3 | M58: 2 | N58: 0.4 | O58: 0#200 | P58: 0#150 | Q58: 1 | R58: 3 | S58: 2400 | T58: 360 | U58: 120 | V58: 120 | W58: 343 | X58: 53#10000|57#10000|58#10000 | Y58: 30 | AA58: 3#100511|3#100512 | AD58: 4 | AE58: 输出 | AF58: 51 | AG58: 68 | AH58: 48 | AI58: 修道之人，因为道行深厚被尊称为半仙。
B59: 10052 | C59: 10552 | D59: 荷莲 | E59: 1052 | F59: 2052 | G59: 3052 | H59: 11052 | I59: 20 | J59: 3 | K59: 3 | L59: 3 | M59: 2 | N59: 0.45 | O59: 0#150 | P59: 0#80 | Q59: 1 | R59: 3 | S59: 2400 | T59: 360 | U59: 120 | V59: 120 | W59: 396 | X59: 53#10000|57#10000|58#10000 | Y59: 30 | AA59: 3#100521|3#100522 | AD59: 4 | AE59: 输出 | AF59: 47 | AG59: 72 | AH59: 46 | AI59: 被人使御用来给人下咒的稻草人。
B60: 10053 | C60: 10547 | D60: 鬼差头子 | E60: 1053 | F60: 2053 | G60: 3053 | H60: 11053 | I60: 20 | J60: 3 | K60: 3 | L60: 3 | M60: 2 | N60: 0.4 | O60: 0#200 | P60: 0#150 | Q60: 4 | R60: 3 | S60: 2400 | T60: 360 | U60: 120 | V60: 120 | W60: 280 | X60: 53#10000|57#10000|58#10000 | Y60: 30 | AA60: 3#100531|3#100532 | AD60: 4 | AE60: 输出 | AF60: 82 | AG60: 58 | AH60: 65 | AI60: 阴曹地府里鬼差的职责是抓捕恶鬼，其中鬼差头子是鬼差的首领。
B61: 10054 | C61: 10548 | D61: 仙灵 | E61: 1054 | F61: 2054 | G61: 3054 | H61: 11054 | I61: 20 | J61: 3 | K61: 3 | L61: 3 | M61: 2 | N61: 0.5 | O61: 0#200 | P61: 0#150 | Q61: 4 | R61: 3 | S61: 2400 | T61: 360 | U61: 120 | V61: 120 | W61: 326 | X61: 53#10000|57#10000|58#10000 | Y61: 30 | AA61: 3#100541|3#100542 | AD61: 4 | AE61: 输出 | AF61: 54 | AG61: 59 | AH61: 47 | AI61: 传达上天诏谕的使者。
B62: 10057 | C62: 10551 | D62: 聂小倩 | E62: 1057 | F62: 2057 | G62: 3057 | H62: 11057 | I62: 30 | J62: 4 | K62: 4 | L62: 4 | M62: 2 | N62: 0.75 | O62: 9.4#268 | P62: 9.4#120 | Q62: 3 | R62: 5 | S62: 3000 | T62: 450 | U62: 150 | V62: 150 | W62: 343 | X62: 53#10000|57#10000|58#10000 | Y62: 30 | Z62: 5#1#2#2|5#2#16#5|5#3#15#4 | AA62: 4#100571|4#100572|5#100571|5#100572 | AB62: 1#13#10057101|1#14#10057102|1#15#10057103|1#15#10057104|1#16#10057105|1#17#10057106 | AD62: 4 | AE62: 永动队输出 | AF62: 51 | AG62: 68 | AH62: 48 | AI62: 聂小倩是一个美貌的女鬼，生前只活到十八岁，死后葬在浙江金华城北的荒凉古寺旁，不幸被妖怪夜叉胁迫害人。后浙江人宁采臣暂居寺院，小倩受妖怪指使，前来谋害，却被采臣的正气打动，便以实相告，助采臣转危为安。 | AL62: 前排 回怒
B63: 10058 | C63: 10552 | D63: 九婴 | E63: 1058 | F63: 2058 | G63: 3058 | H63: 11058 | I63: 30 | J63: 4 | K63: 4 | L63: 4 | M63: 4 | N63: 0.65 | O63: 0#289 | P63: 0#130 | Q63: 3 | R63: 5 | S63: 3000 | T63: 450 | U63: 150 | V63: 150 | W63: 396 | X63: 53#10000|57#10000|58#10000 | Y63: 30 | Z63: 5#1#2#2|5#2#16#5|5#3#15#4 | AA63: 4#100581|4#100582|5#100581|5#100582 | AB63: 1#13#10058101|1#14#10058102|1#15#10058103|1#15#10058104|1#16#10058105|1#17#10058106 | AD63: 4 | AE63: 永动队辅助 | AF63: 47 | AG63: 72 | AH63: 46 | AI63: 九婴是古代中国神话传说中的凶兽之一。出自《淮南子·本经训》。它是水火之怪，能喷水吐火，它的叫声如婴儿啼哭，有九头，故称九婴。尧时出，作害人间，被羿射杀于北狄凶水之中。\n北方有一条大河，水深千丈，波浪汹涌，人称凶水。凶水中有一只九头怪物，名叫九婴，既能喷水，又能喷火。十日并出时，凶水也沸腾了，九婴嫌水中太热，就跳上岸来，见人就吃，吃的时候，必须有9样食品同时供它吃，因此成为大羿第3个斩杀目标。 | AL63: 纵排 输出
B64: 10059 | C64: 10547 | D64: 怨鬼灵 | E64: 1059 | F64: 2059 | G64: 3059 | H64: 11059 | I64: 30 | J64: 4 | K64: 4 | L64: 4 | M64: 4 | N64: 0.95 | O64: 34#267 | P64: 34#130 | Q64: 3 | R64: 5 | S64: 3000 | T64: 450 | U64: 150 | V64: 150 | W64: 280 | X64: 53#10000|57#10000|58#10000 | Y64: 30 | Z64: 5#1#2#2|5#2#16#5|5#3#15#4 | AA64: 4#100591|4#100592|5#100591|5#100592 | AB64: 1#13#10059101|1#14#10059102|1#15#10059103|1#15#10059104|1#16#10059105|1#17#10059106 | AD64: 4 | AE64: 永动队辅助 | AF64: 82 | AG64: 58 | AH64: 65 | AI64: 幽灵指的是人或其他生物离世之后，由灵魂所化的生物，是一种架空的生命存在形式。怨灵鬼生前带有怨恨，随后化为了怨灵鬼。 | AL64: 随机 输出
B65: 10060 | C65: 10548 | D65: 幽魂姬 | E65: 1060 | F65: 2060 | G65: 3060 | H65: 11060 | I65: 30 | J65: 4 | K65: 4 | L65: 4 | M65: 4 | N65: 0.9 | O65: 37.7#168.9 | P65: 37.7#50 | Q65: 3 | R65: 5 | S65: 3000 | T65: 450 | U65: 150 | V65: 150 | W65: 326 | X65: 53#10000|57#10000|58#10000 | Y65: 30 | Z65: 5#1#2#2|5#2#16#5|5#3#15#4 | AA65: 4#100601|4#100602|5#100601|5#100602 | AB65: 1#13#10060101|1#14#10060102|1#15#10060103|1#15#10060104|1#16#10060105|1#17#10060106 | AD65: 4 | AE65: 永动队辅助 | AF65: 54 | AG65: 59 | AH65: 47 | AI65: 因为意外而离世的某位公主，没有人知道她的具体身份，只有各种纷乱的传言。 | AL65: 单体 治疗
B66: 10061 | C66: 10549 | D66: 地藏 | E66: 1061 | F66: 2061 | G66: 3061 | H66: 11061 | I66: 30 | J66: 4 | K66: 4 | L66: 4 | M66: 2 | N66: 0.7 | O66: 40#297 | P66: 40#150 | Q66: 2 | R66: 5 | S66: 3000 | T66: 450 | U66: 150 | V66: 150 | W66: 378 | X66: 53#10000|57#10000|58#10000 | Y66: 30 | Z66: 5#1#2#2|5#2#16#5|5#3#15#4 | AA66: 4#100611|4#100612|5#100611|5#100612 | AB66: 1#13#10061101|1#14#10061102|1#15#10061103|1#15#10061104|1#16#10061105|1#17#10061106 | AD66: 4 | AE66: 暴力队输出 | AF66: 35 | AG66: 57 | AH66: 36 | AI66: 地藏菩萨，因其“安忍不动，犹如大地，静虑深密，犹如秘藏”，所以得名。佛典载，地藏菩萨在过去世中，曾经几度救出自己在地狱受苦的母亲；并在久远劫以来就不断发愿要救度一切罪苦众生尤其是地狱众生。所以这位菩萨同时以“大孝”和“大愿”的德业被佛教广为弘传。也因此被普遍尊称为“大愿地藏王菩萨”，并且成为了汉传佛教的四大菩萨之一。 | AL66: 单体 输出
B67: 10062 | C67: 10550 | D67: 迦楼罗 | E67: 1062 | F67: 2062 | G67: 3062 | H67: 11062 | I67: 30 | J67: 4 | K67: 4 | L67: 4 | M67: 2 | N67: 0.7 | O67: 0#262 | P67: 0#120 | Q67: 2 | R67: 5 | S67: 3000 | T67: 450 | U67: 150 | V67: 150 | W67: 264 | X67: 53#10000|57#10000|58#10000 | Y67: 30 | Z67: 5#1#2#2|5#2#16#5|5#3#15#4 | AA67: 4#100621|4#100622|5#100621|5#100622 | AB67: 1#13#10062101|1#14#10062102|1#15#10062103|1#15#10062104|1#16#10062105|1#17#10062106 | AD67: 4 | AE67: 暴力队输出 | AF67: 38 | AG67: 52 | AH67: 42 | AI67: 迦楼罗是护持佛的天龙八部之一，有种种庄严宝像，金身，头生如意珠，鸣声悲苦，每天吞食一条娜迦和五百条毒蛇，随着体内毒气聚集，迦楼罗最后无法进食，上下翻飞七次后，飞往金刚轮山，毒气发作，全身自焚，只剩一个纯青琉璃心。 | AL67: 纵排 眩晕
B68: 10063 | C68: 10551 | D68: 伽罗尊者 | E68: 1063 | F68: 2063 | G68: 3063 | H68: 11063 | I68: 30 | J68: 4 | K68: 4 | L68: 4 | M68: 2 | N68: 0.35 | O68: 48.64#271.8 | P68: 48.64#140 | Q68: 2 | R68: 5 | S68: 3000 | T68: 450 | U68: 150 | V68: 150 | W68: 343 | X68: 53#10000|57#10000|58#10000 | Y68: 30 | Z68: 5#1#2#2|5#2#16#5|5#3#15#4 | AA68: 4#100631|4#100632|5#100631|5#100632 | AB68: 1#13#10063101|1#14#10063102|1#15#10063103|1#15#10063104|1#16#10063105|1#17#10063106 | AD68: 4 | AE68: 暴力队输出 | AF68: 51 | AG68: 68 | AH68: 48 | AI68: 迦罗加伐蹉尊者的标志念珠串，据说是尊者到龙国化缘时，龙送给他的礼物。到了龙国后，尊者使众多的龙皈依了佛法。通过尊者的说法，很多的愿意为了所有的众生有情而进故佛籍成为僧人。龙送给尊者一串用宝石镶成的项链，用它可以满足各种愿望。尊者收下了项链，进行加持后作为自己的标志。 | AL68: 纵排 增伤
B69: 10064 | C69: 10552 | D69: 阿修罗 | E69: 1064 | F69: 2064 | G69: 3064 | H69: 11064 | I69: 30 | J69: 4 | K69: 4 | L69: 4 | M69: 3 | N69: 0.65 | O69: 19#194 | P69: 19#80 | Q69: 2 | R69: 5 | S69: 3000 | T69: 450 | U69: 150 | V69: 150 | W69: 396 | X69: 53#10000|57#10000|58#10000 | Y69: 30 | Z69: 5#1#2#2|5#2#16#5|5#3#15#4 | AA69: 4#100641|4#100642|5#100641|5#100642 | AB69: 1#13#10064101|1#14#10064102|1#15#10064103|1#15#10064104|1#16#10064105|1#17#10064106 | AD69: 4 | AE69: 暴力队控制 | AF69: 47 | AG69: 72 | AH69: 46 | AI69: 阿修罗原是印度远古诸神之一，被视为恶神，属于凶猛好斗的鬼神，经常与帝释天争斗不休。如同阿修罗的梵文翻译意指「非天」，他的果报殊胜，能生活得犹如天人般享福，但却没有天人的德性，性好争斗。阿修罗另被称为不饮酒神，则有段典故。据说居住在海底的阿修罗原本是很爱喝酒的，但是因为他喝的是由海水酿成的酒，总是味道咸苦，所以一气之下就发誓再也不喝酒。 | AL69: 单体 回怒
B70: 10065 | C70: 10552 | D70: 木吒 | E70: 1065 | F70: 2065 | G70: 3065 | H70: 11065 | I70: 30 | J70: 4 | K70: 4 | L70: 4 | M70: 4 | N70: 0.6 | O70: 17#168 | P70: 17#80 | Q70: 1 | R70: 5 | S70: 3000 | T70: 450 | U70: 150 | V70: 150 | W70: 396 | X70: 53#10000|57#10000|58#10000 | Y70: 30 | Z70: 5#1#2#2|5#2#16#5|5#3#15#4 | AA70: 4#100651|4#100652|5#100651|5#100652 | AB70: 1#13#10065101|1#14#10065102|1#15#10065103|1#15#10065104|1#16#10065105|1#17#10065106 | AD70: 4 | AE70: 灼烧队辅助 | AF70: 47 | AG70: 72 | AH70: 46 | AI70: 木吒拜昆仑阐教十二仙中的普贤真人为师，为玉虚仙派第三代传人之一，有师传的镇洞之宝“吴钩剑”，可在阵前斩人。也是辅佐姜子牙的武将之一，曾下山助武王伐纣，打仗杀敌有功，推翻了殷商王朝，封神榜上无名，最终肉身成圣。 | AL70: 单体 灼烧
B71: 10066 | C71: 10552 | D71: 孟姜女 | E71: 1066 | F71: 2066 | G71: 3066 | H71: 11066 | I71: 30 | J71: 4 | K71: 4 | L71: 4 | M71: 2 | N71: 0.7 | O71: 0#189 | P71: 0#89 | Q71: 1 | R71: 5 | S71: 3000 | T71: 450 | U71: 150 | V71: 150 | W71: 396 | X71: 53#10000|57#10000|58#10000 | Y71: 30 | Z71: 5#1#2#2|5#2#16#5|5#3#15#4 | AA71: 4#100661|4#100662|5#100661|5#100662 | AB71: 1#13#10066101|1#14#10066102|1#15#10066103|1#15#10066104|1#16#10066105|1#17#10066106 | AD71: 4 | AE71: 灼烧队输出 | AF71: 47 | AG71: 72 | AH71: 46 | AI71: 相传秦始皇建长城时，劳役繁重，青年男女（范喜良）、孟姜女新婚三天，新郎就被迫出发修筑长城，不久因饥寒劳累而死，尸骨被埋在长城墙下。孟姜女身背寒衣，历尽艰辛，万里寻夫来到长城边，得到的却是丈夫死亡的噩耗。她痛哭城下，七天七夜不止，这段长城就此坍塌，露出范喜良尸骸，孟姜女安葬范喜良后于绝望之中投海而亡。 | AL71: 单体 输出
B72: 10067 | C72: 10552 | D72: 梦蝶 | E72: 1067 | F72: 2067 | G72: 3067 | H72: 11067 | I72: 30 | J72: 4 | K72: 4 | L72: 4 | M72: 4 | N72: 0.6 | O72: 25.6#368 | P72: 25.6#200 | Q72: 1 | R72: 5 | S72: 3000 | T72: 450 | U72: 150 | V72: 150 | W72: 396 | X72: 53#10000|57#10000|58#10000 | Y72: 30 | Z72: 5#1#2#2|5#2#16#5|5#3#15#4 | AA72: 4#100671|4#100672|5#100671|5#100672 | AB72: 1#13#10067101|1#14#10067102|1#15#10067103|1#15#10067104|1#16#10067105|1#17#10067106 | AD72: 4 | AE72: 灼烧队辅助 | AF72: 47 | AG72: 72 | AH72: 46 | AI72: 庄周梦见自己变成一只蝴蝶，飘飘荡荡，十分轻松惬意。他这时完全忘记了自己原本是庄周。\n过一会儿，他醒来了，惊惶不定之间，对自己还是庄周感到十分惊奇疑惑。他认真地想了又想，不知道是庄周做梦变成蝴蝶呢，还是蝴蝶做梦变成了庄周。 | AL72: 随机 灼烧
B73: 10068 | C73: 10552 | D73: 金吒 | E73: 1068 | F73: 2068 | G73: 3068 | H73: 11068 | I73: 30 | J73: 4 | K73: 4 | L73: 4 | M73: 4 | N73: 1.2 | O73: 34.6#-270 | P73: 34.6#-270 | Q73: 1 | R73: 5 | S73: 3000 | T73: 450 | U73: 150 | V73: 150 | W73: 396 | X73: 53#10000|57#10000|58#10000 | Y73: 30 | Z73: 5#1#2#2|5#2#16#5|5#3#15#4 | AA73: 4#100681|4#100682|5#100681|5#100682 | AB73: 1#13#10068101|1#14#10068102|1#15#10068103|1#15#10068104|1#16#10068105|1#17#10068106 | AD73: 4 | AE73: 灼烧队辅助 | AF73: 47 | AG73: 72 | AH73: 46 | AI73: 金吒是玉虚仙派的三代传人，助周伐纣的阐教弟子之一，玉虚十二仙之中文殊广法天尊的爱徒，修行于五龙山云霄洞，有师传法宝“遁龙桩”，又叫七宝金莲，乃云霄洞的镇洞之宝，设有三个铁圈的金色柱子，可阵前锁人。与师父一起斩杀九龙岛四圣之一王魔，后独自斩杨森，还曾智取游魂关，擒杀守将窦荣，常随军征战，屡有表现，多次在一旁协助姜子牙打仗杀敌立功，之后成功推翻殷商，辅佐武王大军消灭了恶君纣王，最终成为肉身成圣的七人之一。 | AL73: 随机 麻痹
B74: 10069 | C74: 10552 | D74: 火德星君 | E74: 1069 | F74: 2069 | G74: 3069 | H74: 11069 | I74: 30 | J74: 4 | K74: 4 | L74: 4 | M74: 2 | N74: 0.75 | O74: 32.6#232 | P74: 32.6#100 | Q74: 4 | R74: 5 | S74: 3000 | T74: 450 | U74: 150 | V74: 150 | W74: 396 | X74: 53#10000|57#10000|58#10000 | Y74: 30 | Z74: 5#1#2#2|5#2#16#5|5#3#15#4 | AA74: 4#100691|4#100692|5#100691|5#100692 | AB74: 1#13#10069101|1#14#10069102|1#15#10069103|1#15#10069104|1#16#10069105|1#17#10069106 | AD74: 4 | AE74: 减怒队输出 | AF74: 47 | AG74: 72 | AH74: 46 | AI74: 火德星君，为炎帝神农氏之灵，祀之为火神，以禳火灾。\n南方火德星君，主长养万物，烛幽洞微，如世人运炁逢遇，多有灾厄疾病之尤，宜弘善以迎之。其真君，戴星冠，蹑朱履，衣朱霞寿鹤之衣，手执玉简，悬七星金剑，垂白玉环佩。宜图形供养，以异花珍果，浄水名香，灯烛清醴，虔心瞻敬，至心而咒曰：\n火星真君，主张诸恶。去邪护真，慎勿交错。 | AL74: 前排 增伤
B75: 10070 | C75: 10552 | D75: 水德星君 | E75: 1070 | F75: 2070 | G75: 3070 | H75: 11070 | I75: 30 | J75: 4 | K75: 4 | L75: 4 | M75: 2 | N75: 0.25 | O75: 0#286 | P75: 0#130 | Q75: 4 | R75: 5 | S75: 3000 | T75: 450 | U75: 150 | V75: 150 | W75: 396 | X75: 53#10000|57#10000|58#10000 | Y75: 30 | Z75: 5#1#2#2|5#2#16#5|5#3#15#4 | AA75: 4#100701|4#100702|5#100701|5#100702 | AB75: 1#13#10070101|1#14#10070102|1#15#10070103|1#15#10070104|1#16#10070105|1#17#10070106 | AD75: 4 | AE75: 减怒队输出 | AF75: 47 | AG75: 72 | AH75: 46 | AI75: 水德星君又称水神，中国民间信奉的神仙之一。《太上洞真五星秘授经》则径直以木、金、火、水、土称五星君，并对水德星君的服饰、职掌作了如下描述：“北方水德真君，通利万物，含真娠灵，如世人运气逢遇，多有种劾掠之苦。宜弘善以迎之。”在古代中国神话系统中，水神是传承最广影响最大的神祇。 | AL75: 单体 输出
B76: 10071 | C76: 10552 | D76: 九河神女 | E76: 1071 | F76: 2071 | G76: 3071 | H76: 11071 | I76: 30 | J76: 4 | K76: 4 | L76: 4 | M76: 2 | N76: 0.28 | O76: 31#326 | P76: 31#200 | Q76: 4 | R76: 5 | S76: 3000 | T76: 450 | U76: 150 | V76: 150 | W76: 396 | X76: 53#10000|57#10000|58#10000 | Y76: 30 | Z76: 5#1#2#2|5#2#16#5|5#3#15#4 | AA76: 4#100711|4#100712|5#100711|5#100712 | AB76: 1#13#10071101|1#14#10071102|1#15#10071103|1#15#10071104|1#16#10071105|1#17#10071106 | AD76: 4 | AE76: 减怒队输出 | AF76: 47 | AG76: 72 | AH76: 46 | AI76: 九河神女是中国上古时期母系氏族社会杰出的部落女首领，相传她踩雷神脚印，感应受孕，生伏羲和女娲 ，传嗣炎帝黄帝，从而成为中华民族的始祖母。 | AL76: 随机 增伤
B77: 10072 | C77: 10552 | D77: 灵扇仙 | E77: 1072 | F77: 2072 | G77: 3072 | H77: 11072 | I77: 30 | J77: 4 | K77: 4 | L77: 4 | M77: 4 | N77: 0.65 | O77: 0#326 | P77: 0#200 | Q77: 4 | R77: 5 | S77: 3000 | T77: 450 | U77: 150 | V77: 150 | W77: 396 | X77: 53#10000|57#10000|58#10000 | Y77: 30 | Z77: 5#1#2#2|5#2#16#5|5#3#15#4 | AA77: 4#100721|4#100722|5#100721|5#100722 | AB77: 1#13#10072101|1#14#10072102|1#15#10072103|1#15#10072104|1#16#10072105|1#17#10072106 | AD77: 4 | AE77: 减怒队辅助 | AF77: 47 | AG77: 72 | AH77: 46 | AI77: 经年累月被使用着的折扇，被寄予了主人的意志和灵魂，最终成仙。 | AL77: 单体 治疗
B78: 10073 | C78: 10552 | D78: 火妖 | E78: 1073 | F78: 2073 | G78: 3073 | I78: 0 | J78: 2 | K78: 2 | L78: 2 | M78: 2 | N78: 0.55 | O78: 0#123 | P78: 0#80 | Q78: 1 | R78: 2 | S78: 2000 | T78: 300 | U78: 100 | V78: 100 | W78: 396 | X78: 53#10000|57#10000|58#10000 | Y78: 30 | AA78: 2#100731|2#100732 | AD78: 4 | AE78: 输出 | AF78: 47 | AG78: 72 | AH78: 46 | AI78: 火焰山中土生土长的小妖，喜欢群聚而行。其中火妖是这些小妖的最常见的。
B79: 10074 | C79: 10552 | D79: 迦奴 | E79: 1074 | F79: 2074 | G79: 3074 | I79: 0 | J79: 2 | K79: 2 | L79: 2 | M79: 2 | N79: 0.48 | O79: 0#140 | P79: 0#60 | Q79: 2 | R79: 2 | S79: 2000 | T79: 300 | U79: 100 | V79: 100 | W79: 396 | X79: 53#10000|57#10000|58#10000 | Y79: 30 | AA79: 2#100741|2#100742 | AD79: 4 | AE79: 输出 | AF79: 47 | AG79: 72 | AH79: 46 | AI79: 娜迦是天龙八部之一， 娜迦族的主要成员。
B80: 10075 | C80: 10552 | D80: 方士 | E80: 1075 | F80: 2075 | G80: 3075 | I80: 0 | J80: 2 | K80: 2 | L80: 2 | M80: 2 | N80: 0.6 | O80: 0#160 | P80: 0#50 | Q80: 3 | R80: 2 | S80: 2000 | T80: 300 | U80: 100 | V80: 100 | W80: 396 | X80: 53#10000|57#10000|58#10000 | Y80: 30 | AA80: 2#100751|2#100752 | AD80: 4 | AE80: 输出 | AF80: 47 | AG80: 72 | AH80: 46 | AI80: 修道之人，被称为方士。
B81: 10076 | C81: 10552 | D81: 鬼差 | E81: 1076 | F81: 2076 | G81: 3076 | I81: 0 | J81: 2 | K81: 2 | L81: 2 | M81: 2 | N81: 0.55 | O81: -13#123 | P81: -13#80 | Q81: 4 | R81: 2 | S81: 2000 | T81: 300 | U81: 100 | V81: 100 | W81: 396 | X81: 53#10000|57#10000|58#10000 | Y81: 30 | AA81: 2#100761|2#100762 | AD81: 4 | AE81: 输出 | AF81: 47 | AG81: 72 | AH81: 46 | AI81: 阴曹地府里鬼差的职责是抓捕恶鬼，听从鬼差头子的命令。
B82: 10079 | C82: 10552 | D82: 小妖灵 | E82: 1079 | F82: 2079 | G82: 3079 | I82: 0 | J82: 1 | K82: 1 | L82: 1 | M82: 2 | N82: 0.5 | O82: 0#164 | P82: 0#80 | Q82: 1 | R82: 1 | S82: 1600 | T82: 240 | U82: 80 | V82: 80 | W82: 396 | X82: 53#10000|57#10000|58#10000 | Y82: 30 | AA82: 1#100791|1#100792 | AD82: 4 | AE82: 输出 | AF82: 47 | AG82: 72 | AH82: 46 | AI82: 火焰山中土生土长的小妖，喜欢群聚而行。其中小火妖是还未长大的火妖。
B83: 10080 | C83: 10552 | D83: 幼娜灵 | E83: 1080 | F83: 2080 | G83: 3080 | I83: 0 | J83: 1 | K83: 1 | L83: 1 | M83: 2 | N83: 0.5 | O83: 0#137.4 | P83: 0#80 | Q83: 2 | R83: 1 | S83: 1600 | T83: 240 | U83: 80 | V83: 80 | W83: 396 | X83: 53#10000|57#10000|58#10000 | Y83: 30 | AA83: 1#100801|1#100802 | AD83: 4 | AE83: 输出 | AF83: 47 | AG83: 72 | AH83: 46 | AI83: 娜迦是天龙八部之一， 幼小的娜迦。
B84: 10081 | C84: 10552 | D84: 方术灵 | E84: 1081 | F84: 2081 | G84: 3081 | I84: 0 | J84: 1 | K84: 1 | L84: 1 | M84: 2 | N84: 0.5 | O84: 0#120 | P84: 0#60 | Q84: 3 | R84: 1 | S84: 1600 | T84: 240 | U84: 80 | V84: 80 | W84: 396 | X84: 53#10000|57#10000|58#10000 | Y84: 30 | AA84: 1#100811|1#100812 | AD84: 4 | AE84: 输出 | AF84: 47 | AG84: 72 | AH84: 46 | AI84: 修道之人，刚开始跟随师父进行学习。
B85: 10082 | C85: 10552 | D85: 小道灵 | E85: 1082 | F85: 2082 | G85: 3082 | I85: 0 | J85: 1 | K85: 1 | L85: 1 | M85: 2 | N85: 0.5 | O85: 0#115 | P85: 0#50 | Q85: 4 | R85: 1 | S85: 1600 | T85: 240 | U85: 80 | V85: 80 | W85: 396 | X85: 53#10000|57#10000|58#10000 | Y85: 30 | AA85: 1#100821|1#100822 | AD85: 4 | AE85: 输出 | AF85: 47 | AG85: 72 | AH85: 46 | AI85: 阴曹地府里鬼差的职责是抓捕恶鬼，最低等的小喽啰。
B86: 10085 | C86: 10552 | D86: 敖丙 | E86: 1085 | F86: 2085 | G86: 3085 | H86: 11073 | I86: 50 | J86: 5 | K86: 5 | L86: 5 | M86: 2 | N86: 0.45 | O86: 0#340 | P86: 0#200 | Q86: 3 | R86: 10 | S86: 4000 | T86: 600 | U86: 200 | V86: 200 | W86: 396 | X86: 53#10000|57#10000|58#10000 | Y86: 30 | Z86: 6#1#3#1|6#2#27#1|6#3#17#3|7#1#17#4|8#1#18#1|8#2#17#3|9#1#3#1|9#2#18#1|9#3#17#2|10#1#3#2|10#2#18#1|10#3#14#1 | AA86: 5#1131|5#1132|6#1131|6#1132|7#1131|7#1132|8#1131|8#1132|9#1131|9#1132|10#1131|10#1132|11#1131|11#1132 | AB86: 1#1#113101|1#2#113102|1#3#113103|1#3#113104|1#4#113105|1#5#113106|2#7#113107|2#8#113108|2#9#113109|2#10#113110|2#11#113111 | AC86: 6#90013 | AD86: 4 | AE86: 永动队输出 | AF86: 47 | AG86: 72 | AH86: 46 | AI86: 敖丙，是明代神怪小说《封神演义》中的虚拟角色，即东海龙宫三太子。父亲为东海龙王敖光，兵器为一杆方天画戟，坐骑为逼水兽。\n因哪吒闹海一事，前去问罪，被哪吒打死并扒皮抽筋，同巡海夜叉（李艮）都是哪吒所杀；后魂归封神台。最终姜子牙归国封神，敖丙被封神为“华盖星”之职。是封神全文之中被封过两次神的角色之一，其次是他的手下巡海夜叉“李艮”。 | AL86: 爆发 追击 收割 | AM86: <color=#2C8B1C>六星：</color>战斗第一回合造成伤害必定暴击|<color=#2C8B1C>九星：</color>击杀目标后回2点怒气|<color=#2C8B1C>法宝+25：</color>击杀目标后追加一次技能对敌方血量最低的二人造成89%法术伤害（不触发特性） | AN86: 3#5 | AO86: 1
B87: 10086 | C87: 10552 | D87: 金翅大鹏 | E87: 1086 | F87: 2086 | G87: 3086 | H87: 11074 | I87: 50 | J87: 5 | K87: 5 | L87: 5 | M87: 2 | N87: 0.7 | O87: -112#294 | P87: -60#144 | Q87: 2 | R87: 10 | S87: 4000 | T87: 600 | U87: 200 | V87: 200 | W87: 396 | X87: 53#10000|57#10000|58#10000 | Y87: 30 | Z87: 6#1#3#1|6#2#44#1|6#3#17#3|7#1#17#4|8#1#18#1|8#2#17#3|9#1#3#1|9#2#18#1|9#3#17#2|10#1#3#2|10#2#18#1|10#3#14#1 | AA87: 5#1261|5#1262|6#1261|6#1262|7#1261|7#1262|8#1261|8#1262|9#1261|9#1262|10#1261|10#1262|11#1261|11#1262 | AB87: 1#1#126101|1#2#126102|1#3#126103|1#3#126104|1#4#126105|1#5#126106|2#7#126107|2#8#126108|2#9#126109|2#10#126110|2#11#126111 | AC87: 6#90026 | AD87: 4 | AE87: 暴力队输出 | AF87: 47 | AG87: 72 | AH87: 46 | AI87: 金翅大鹏雕，也称大鹏金翅鸟。在古典名著 《西游记》里面介绍了金翅大鹏雕的来历。据如来佛祖所说：“自那混沌分时，天开于子，地辟于丑，人生于寅，天地再交合，万物尽皆生。万物有走兽飞禽，走兽以麒麟为之长，飞禽以凤凰为之长。那凤凰又得交合之气，育生孔雀、大鹏。孔雀出世之时最恶，能吃人，四十五里路把人一口吸之。我在雪山顶上，修成丈六金身，早被他也把我吸下肚去。我欲从他便门而出，恐污真身；是我剖开他脊背，跨上灵山。欲伤他命，当被诸佛劝解，伤孔雀如伤我母，故此留他在灵山会上，封他做佛母孔雀大明王菩萨。大鹏与他是一母所生，故此有些亲处。” | AL87: 追击 濒死爆发 | AM87: <color=#2C8B1C>六星：</color>自身生命每降低10%造成伤害增加5%|<color=#2C8B1C>九星：</color>直接伤害击杀目标后回1点怒气|<color=#2C8B1C>法宝+25：</color>生命降低10%暴击伤害增加4% | AN87: 8 | AO87: 1
B88: 10087 | C88: 10552 | D88: 娥皇 | E88: 1087 | F88: 2087 | G88: 3087 | H88: 11075 | I88: 50 | J88: 5 | K88: 5 | L88: 5 | M88: 4 | N88: 0.5 | O88: 28.86#343.3 | P88: 28.86#200 | Q88: 1 | R88: 10 | S88: 4000 | T88: 600 | U88: 200 | V88: 200 | W88: 396 | X88: 53#10000|57#10000|58#10000 | Y88: 30 | Z88: 6#1#3#1|6#2#37#1|6#3#17#3|7#1#17#4|8#1#18#1|8#2#17#3|9#1#3#1|9#2#18#1|9#3#17#2|10#1#3#2|10#2#18#1|10#3#14#1 | AA88: 5#1341|5#1342|6#1341|6#1342|7#1341|7#1342|8#1341|8#1342|9#1341|9#1342|10#1341|10#1342|11#1341|11#1342 | AB88: 1#1#134101|1#2#134102|1#3#134103|1#3#134104|1#4#134105|1#5#134106|2#7#134107|2#8#134108|2#9#134109|2#10#134110|2#11#134111 | AC88: 6#90034 | AD88: 4 | AE88: 灼烧队辅助 | AF88: 47 | AG88: 72 | AH88: 46 | AI88: 娥皇又称娥肓、娥娙，姓伊祁氏，中国上古人物。因出生于伊祁山（今河北保定顺平），而姓伊祁氏，是五帝之一帝喾的孙女、唐尧伊祁放勋的长女，和妹妹女英同时嫁给了虞舜姚重华。她们有一个共同的亲生儿子商均。\n舜父顽，母嚣，弟劣，曾多次欲置舜于死地，因娥皇女英的帮助而脱险。后舜帝南巡苍梧而死，崩葬九嶷山。二妃千里寻夫，知舜已死，抱竹痛哭，竹上生斑，泪尽而死，因称“潇湘竹”或“湘妃竹”。 | AL88: 灼烧 | AM88: <color=#2C8B1C>六星：</color>释放技能回1点怒气|<color=#2C8B1C>九星：</color>受击35%概率使攻击者灼烧2回合|<color=#2C8B1C>法宝+25：</color>释放技能附加灼烧概率增加至96% | AN88: 12 | AO88: 1
B89: 10088 | C89: 10552 | D89: 申公豹 | E89: 1088 | F89: 2088 | G89: 3088 | H89: 11076 | I89: 50 | J89: 5 | K89: 5 | L89: 5 | M89: 3 | N89: 0.65 | O89: 0#145 | P89: 0#45 | Q89: 4 | R89: 10 | S89: 4000 | T89: 600 | U89: 200 | V89: 200 | W89: 396 | X89: 53#10000|57#10000|58#10000 | Y89: 30 | Z89: 6#1#3#1|6#2#63#1|6#3#17#3|7#1#17#4|8#1#18#1|8#2#17#3|9#1#3#1|9#2#18#1|9#3#17#2|10#1#3#2|10#2#18#1|10#3#14#1 | AA89: 5#1401|5#1402|6#1401|6#1402|7#1401|7#1402|8#1401|8#1402|9#1401|9#1402|10#1401|10#1402|11#1401|11#1402 | AB89: 1#1#140101|1#2#140102|1#3#140103|1#3#140104|1#4#140105|1#5#140106|2#7#140107|2#8#140108|2#9#140109|2#10#140110|2#11#140111 | AC89: 6#90040 | AD89: 4 | AE89: 减怒队控制 | AF89: 47 | AG89: 72 | AH89: 46 | AI89: 申公豹曾经是阐教弟子，因为感觉元始天尊偏袒姜子牙，嫉妒姜子牙手掌封神大权在西岐位居相位，故此也在殷商担任国师，全力维护商朝的统治与子牙作对。并挑动大批仙家高人对付姜子牙，给西岐方面造成巨大困难。其意图将无数同门修士送上封神榜。因计划屡被姜子牙破坏，后来为了报复追杀姜子牙时，被惧留孙以捆仙绳所擒，被黄巾力士压去麒麟崖，最后遭到元始天尊惩罚，命黄巾力士将申公豹的肉身填堵北海之眼。武王伐纣成功之后，申公豹在封神台上被姜子牙封为“东海分水将军”。 | AL89: 眩晕 减怒 | AM89: <color=#2C8B1C>六星：</color>释放技能有45%概率使目标眩晕1回合|<color=#2C8B1C>九星：</color>普攻后降低目标1点怒气|<color=#2C8B1C>法宝+25：</color>释放技能附带眩晕效果概率提升至70% | AN89: 15#16 | AO89: 1
B90: 10089 | C90: 10552 | D90: 燃灯 | E90: 1089 | F90: 2089 | G90: 3089 | H90: 11077 | I90: 50 | J90: 5 | K90: 5 | L90: 5 | M90: 4 | N90: 0.75 | O90: 24#254 | P90: 24#104 | Q90: 2 | R90: 10 | S90: 4000 | T90: 600 | U90: 200 | V90: 200 | W90: 396 | X90: 53#10000|57#10000|58#10000 | Y90: 30 | Z90: 6#1#3#1|6#2#44#1|6#3#17#3|7#1#17#4|8#1#18#1|8#2#17#3|9#1#3#1|9#2#18#1|9#3#17#2|10#1#3#2|10#2#18#1|10#3#14#1 | AA90: 5#1181|5#1182|6#1181|6#1182|7#1181|7#1182|8#1181|8#1182|9#1181|9#1182|10#1181|10#1182|11#1181|11#1182 | AB90: 1#1#118101|1#2#118102|1#3#118103|1#3#118104|1#4#118105|1#5#118106|2#7#118107|2#8#118108|2#9#118109|2#10#118110|2#11#118111 | AC90: 6#90018 | AD90: 4 | AE90: 暴力队辅助 | AF90: 47 | AG90: 72 | AH90: 46 | AI90: 燃灯佛义曰：锭光。为释迦牟尼佛之前的佛。因其出生时身边一切光明如灯，故称为燃灯佛。传说释迦牟尼过去世曾以五茎莲花供养燃灯佛，而被预言，将在九十一劫后的贤劫成佛。在佛经中所记载的许多佛、菩萨都曾是他座下的弟子。或称为锭光佛。\n三世佛指过去、现在、未来三世的一切佛。谓过去佛为迦叶诸佛，或特指燃灯佛，现在佛是释迦牟尼佛，未来佛为弥勒佛三者。在《封神》中燃灯被称做燃灯道人，后在《西游》中称燃灯上古佛。 | AL90: 光环 回怒 | AM90: <color=#2C8B1C>六星：</color>全体攻击+20%|<color=#2C8B1C>九星：</color>释放技能后回复己方后排1点怒气|<color=#2C8B1C>法宝+25：</color>全体暴击率+20% | AN90: 7#8#10 | AO90: 1
B91: 10090 | C91: 10552 | D91: 阎罗王 | E91: 1090 | F91: 2090 | G91: 3090 | H91: 11078 | I91: 50 | J91: 5 | K91: 5 | L91: 5 | M91: 2 | N91: 0.6 | O91: 0#150 | P91: 0#100 | Q91: 4 | R91: 10 | S91: 4000 | T91: 600 | U91: 200 | V91: 200 | W91: 396 | X91: 53#10000|57#10000|58#10000 | Y91: 30 | Z91: 6#1#3#1|6#2#63#1|6#3#17#3|7#1#17#4|8#1#18#1|8#2#17#3|9#1#3#1|9#2#18#1|9#3#17#2|10#1#3#2|10#2#18#1|10#3#14#1 | AA91: 5#1521|5#1522|6#1521|6#1522|7#1521|7#1522|8#1521|8#1522|9#1521|9#1522|10#1521|10#1522|11#1521|11#1522 | AB91: 1#1#152101|1#2#152102|1#3#152103|1#3#152104|1#4#152105|1#5#152106|2#7#152107|2#8#152108|2#9#152109|2#10#152110|2#11#152111 | AC91: 6#90052 | AD91: 4 | AE91: 减怒队输出 | AF91: 47 | AG91: 72 | AH91: 46 | AI91: 阎罗王，亦称“阎王”、“阎罗”、“阎王爷”、“阎魔王”、“阎罗大王”，为阴曹地府中第五殿的殿主冥王，是中国古代宗教神话信仰中的一尊阴间神祇，传说为掌管人间地狱众生灵寿命生死的鬼王，半神半鬼，为民间家喻户晓的著名冥神，在阴间常以“黑白无常”、“牛头马面”两对鬼使差为左膀右臂。《问地狱经》的记载称阎罗王生前是毗沙国的国王 | AL91: 输出 连锁伤害 减怒 | AM91: <color=#2C8B1C>六星：</color>技能伤害+18%|<color=#2C8B1C>九星：</color>阎罗王攻击时目标身上每种异常状态（麻痹、眩晕、灼烧、沉默、中毒）都会使直接伤害提升25%|<color=#2C8B1C>法宝+25：</color>每当敌方有链接效果目标死亡己方输出型神将技能伤害+10%（道阵营+20%） | AN91: 19 | AO91: 1

Sheet 角色技能
A1: 角色id | B1: 属性 | C1: 初始星级 | D1: 初始技能 | E1: 初始星级 | F1: 初始技能 | G1: 升星1 | H1: 技能1 | I1: 升星1 | J1: 技能1 | K1: 升星2 | L1: 技能2 | M1: 升星2 | N1: 技能2 | O1: 升星3 | P1: 技能3 | Q1: 升星3 | R1: 技能3 | S1: 升星4 | T1: 技能4 | U1: 升星4 | V1: 技能4 | W1: 升星5 | X1: 技能5 | Y1: 升星5 | Z1: 技能5
A2: 10001 | B2: 2 | C2: 5 | D2: 1000111 | E2: 5 | F2: 1000121 | G2: =E2+1 -> 6 | H2: =D2+1 -> 1000112 | I2: =G2 -> 6 | J2: 1000121 | K2: =I2+1 -> 7 | L2: =H2 -> 1000112 | M2: =K2 -> 7 | N2: =IF(M2=7,J2+1,J2) -> 1000122 | O2: =K2+1 -> 8 | P2: =IF(O2=8,L2+1,L2) -> 1000113 | Q2: =M2+1 -> 8 | R2: 1000122 | S2: =O2+1 -> 9 | T2: 1000113 | U2: =S2 -> 9 | V2: =R2+1 -> 1000123 | W2: =S2+1 -> 10 | X2: =T2+1 -> 1000114 | Y2: 10 | Z2: =V2+1 -> 1000124 | AA2: =[2]!SUMSTRING(C2:D2,"#") ->  | AC2: =[2]!SUMSTRING(E2:F2,"#") ->  | AE2: =[2]!SUMSTRING(G2:H2,"#") ->  | AG2: =[2]!SUMSTRING(I2:J2,"#") ->  | AI2: =[2]!SUMSTRING(K2:L2,"#") ->  | AK2: =[2]!SUMSTRING(M2:N2,"#") ->  | AM2: =[2]!SUMSTRING(O2:P2,"#") ->  | AO2: =[2]!SUMSTRING(Q2:R2,"#") ->  | AQ2: =[2]!SUMSTRING(S2:T2,"#") ->  | AS2: =[2]!SUMSTRING(U2:V2,"#") ->  | AU2: =[2]!SUMSTRING(W2:X2,"#") ->  | AW2: =[2]!SUMSTRING(Y2:Z2,"#") ->  | AY2: =[2]!SUMSTRING(AA2:AW2,"|") -> 
A3: 10002 | B3: 3 | C3: 5 | D3: =D2+100 -> 1000211 | E3: 5 | F3: 1000221 | G3: =E3+1 -> 6 | H3: =D3+1 -> 1000212 | I3: =G3 -> 6 | J3: 1000221 | K3: =I3+1 -> 7 | L3: =H3 -> 1000212 | M3: =K3 -> 7 | N3: =IF(M3=7,J3+1,J3) -> 1000222 | O3: =K3+1 -> 8 | P3: =IF(O3=8,L3+1,L3) -> 1000213 | Q3: 8 | R3: 1000222 | S3: =O3+1 -> 9 | T3: 1000213 | U3: =S3 -> 9 | V3: =R3+1 -> 1000223 | W3: =S3+1 -> 10 | X3: =T3+1 -> 1000214 | Y3: 10 | Z3: =V3+1 -> 1000224 | AA3: =[2]!SUMSTRING(C3:D3,"#") ->  | AC3: =[2]!SUMSTRING(E3:F3,"#") ->  | AE3: =[2]!SUMSTRING(G3:H3,"#") ->  | AG3: =[2]!SUMSTRING(I3:J3,"#") ->  | AI3: =[2]!SUMSTRING(K3:L3,"#") ->  | AK3: =[2]!SUMSTRING(M3:N3,"#") ->  | AM3: =[2]!SUMSTRING(O3:P3,"#") ->  | AO3: =[2]!SUMSTRING(Q3:R3,"#") ->  | AQ3: =[2]!SUMSTRING(S3:T3,"#") ->  | AS3: =[2]!SUMSTRING(U3:V3,"#") ->  | AU3: =[2]!SUMSTRING(W3:X3,"#") ->  | AW3: =[2]!SUMSTRING(Y3:Z3,"#") ->  | AY3: =[2]!SUMSTRING(AA3:AW3,"|") -> 
A4: 10003 | B4: 4 | C4: 5 | D4: =D3+100 -> 1000311 | E4: 5 | F4: 1000321 | G4: 6 | H4: 1000312 | I4: 6 | J4: 1000321 | K4: 7 | L4: 1000312 | M4: 7 | N4: 1000322 | O4: 8 | P4: 1000313 | Q4: 8 | R4: 1000322 | S4: 9 | T4: 1000313 | U4: 9 | V4: 1000323 | W4: 10 | X4: 1000314 | Y4: 10 | Z4: 1000324 | AA4: =[2]!SUMSTRING(C4:D4,"#") ->  | AC4: =[2]!SUMSTRING(E4:F4,"#") ->  | AE4: =[2]!SUMSTRING(G4:H4,"#") ->  | AG4: =[2]!SUMSTRING(I4:J4,"#") ->  | AI4: =[2]!SUMSTRING(K4:L4,"#") ->  | AK4: =[2]!SUMSTRING(M4:N4,"#") ->  | AM4: =[2]!SUMSTRING(O4:P4,"#") ->  | AO4: =[2]!SUMSTRING(Q4:R4,"#") ->  | AQ4: =[2]!SUMSTRING(S4:T4,"#") ->  | AS4: =[2]!SUMSTRING(U4:V4,"#") ->  | AU4: =[2]!SUMSTRING(W4:X4,"#") ->  | AW4: =[2]!SUMSTRING(Y4:Z4,"#") ->  | AY4: =[2]!SUMSTRING(AA4:AW4,"|") -> 
A5: 10004 | B5: 3 | C5: 5 | D5: 1000411 | E5: 5 | F5: 1000421 | G5: 6 | H5: 1000412 | I5: 6 | J5: 1000421 | K5: 7 | L5: 1000412 | M5: 7 | N5: 1000422 | O5: 8 | P5: 1000413 | Q5: 8 | R5: 1000422 | S5: 9 | T5: 1000413 | U5: 9 | V5: 1000423 | W5: 10 | X5: 1000414 | Y5: 10 | Z5: 1000424 | AA5: =[2]!SUMSTRING(C5:D5,"#") ->  | AC5: =[2]!SUMSTRING(E5:F5,"#") ->  | AE5: =[2]!SUMSTRING(G5:H5,"#") ->  | AG5: =[2]!SUMSTRING(I5:J5,"#") ->  | AI5: =[2]!SUMSTRING(K5:L5,"#") ->  | AK5: =[2]!SUMSTRING(M5:N5,"#") ->  | AM5: =[2]!SUMSTRING(O5:P5,"#") ->  | AO5: =[2]!SUMSTRING(Q5:R5,"#") ->  | AQ5: =[2]!SUMSTRING(S5:T5,"#") ->  | AS5: =[2]!SUMSTRING(U5:V5,"#") ->  | AU5: =[2]!SUMSTRING(W5:X5,"#") ->  | AW5: =[2]!SUMSTRING(Y5:Z5,"#") ->  | AY5: =[2]!SUMSTRING(AA5:AW5,"|") -> 
A6: 10005 | B6: 4 | C6: 5 | D6: 1000511 | E6: 5 | F6: 1000521 | G6: 6 | H6: 1000512 | I6: 6 | J6: 1000521 | K6: 7 | L6: 1000512 | M6: 7 | N6: 1000522 | O6: 8 | P6: 1000513 | Q6: 8 | R6: 1000522 | S6: 9 | T6: 1000513 | U6: 9 | V6: 1000523 | W6: 10 | X6: 1000514 | Y6: 10 | Z6: 1000524 | AA6: =[2]!SUMSTRING(C6:D6,"#") ->  | AC6: =[2]!SUMSTRING(E6:F6,"#") ->  | AE6: =[2]!SUMSTRING(G6:H6,"#") ->  | AG6: =[2]!SUMSTRING(I6:J6,"#") ->  | AI6: =[2]!SUMSTRING(K6:L6,"#") ->  | AK6: =[2]!SUMSTRING(M6:N6,"#") ->  | AM6: =[2]!SUMSTRING(O6:P6,"#") ->  | AO6: =[2]!SUMSTRING(Q6:R6,"#") ->  | AQ6: =[2]!SUMSTRING(S6:T6,"#") ->  | AS6: =[2]!SUMSTRING(U6:V6,"#") ->  | AU6: =[2]!SUMSTRING(W6:X6,"#") ->  | AW6: =[2]!SUMSTRING(Y6:Z6,"#") ->  | AY6: =[2]!SUMSTRING(AA6:AW6,"|") -> 
A7: 10006 | B7: 1 | C7: 5 | D7: 1000611 | E7: 5 | F7: 1000621 | G7: 6 | H7: 1000612 | I7: 6 | J7: 1000621 | K7: 7 | L7: 1000612 | M7: 7 | N7: 1000622 | O7: 8 | P7: 1000613 | Q7: 8 | R7: 1000622 | S7: 9 | T7: 1000613 | U7: 9 | V7: 1000623 | W7: 10 | X7: 1000614 | Y7: 10 | Z7: 1000624 | AA7: =[2]!SUMSTRING(C7:D7,"#") ->  | AC7: =[2]!SUMSTRING(E7:F7,"#") ->  | AE7: =[2]!SUMSTRING(G7:H7,"#") ->  | AG7: =[2]!SUMSTRING(I7:J7,"#") ->  | AI7: =[2]!SUMSTRING(K7:L7,"#") ->  | AK7: =[2]!SUMSTRING(M7:N7,"#") ->  | AM7: =[2]!SUMSTRING(O7:P7,"#") ->  | AO7: =[2]!SUMSTRING(Q7:R7,"#") ->  | AQ7: =[2]!SUMSTRING(S7:T7,"#") ->  | AS7: =[2]!SUMSTRING(U7:V7,"#") ->  | AU7: =[2]!SUMSTRING(W7:X7,"#") ->  | AW7: =[2]!SUMSTRING(Y7:Z7,"#") ->  | AY7: =[2]!SUMSTRING(AA7:AW7,"|") -> 
A8: 10007 | B8: 2 | C8: 5 | D8: 1000711 | E8: 5 | F8: 1000721 | G8: 6 | H8: 1000712 | I8: 6 | J8: 1000721 | K8: 7 | L8: 1000712 | M8: 7 | N8: 1000722 | O8: 8 | P8: 1000713 | Q8: 8 | R8: 1000722 | S8: 9 | T8: 1000713 | U8: 9 | V8: 1000723 | W8: 10 | X8: 1000714 | Y8: 10 | Z8: 1000724 | AA8: =[2]!SUMSTRING(C8:D8,"#") ->  | AC8: =[2]!SUMSTRING(E8:F8,"#") ->  | AE8: =[2]!SUMSTRING(G8:H8,"#") ->  | AG8: =[2]!SUMSTRING(I8:J8,"#") ->  | AI8: =[2]!SUMSTRING(K8:L8,"#") ->  | AK8: =[2]!SUMSTRING(M8:N8,"#") ->  | AM8: =[2]!SUMSTRING(O8:P8,"#") ->  | AO8: =[2]!SUMSTRING(Q8:R8,"#") ->  | AQ8: =[2]!SUMSTRING(S8:T8,"#") ->  | AS8: =[2]!SUMSTRING(U8:V8,"#") ->  | AU8: =[2]!SUMSTRING(W8:X8,"#") ->  | AW8: =[2]!SUMSTRING(Y8:Z8,"#") ->  | AY8: =[2]!SUMSTRING(AA8:AW8,"|") -> 
A9: 10008 | B9: 5 | C9: 5 | D9: 1000811 | E9: 5 | F9: 1000821 | G9: 6 | H9: 1000812 | I9: 6 | J9: 1000821 | K9: 7 | L9: 1000812 | M9: 7 | N9: 1000822 | O9: 8 | P9: 1000813 | Q9: 8 | R9: 1000822 | S9: 9 | T9: 1000813 | U9: 9 | V9: 1000823 | W9: 10 | X9: 1000814 | Y9: 10 | Z9: 1000824 | AA9: =[2]!SUMSTRING(C9:D9,"#") ->  | AC9: =[2]!SUMSTRING(E9:F9,"#") ->  | AE9: =[2]!SUMSTRING(G9:H9,"#") ->  | AG9: =[2]!SUMSTRING(I9:J9,"#") ->  | AI9: =[2]!SUMSTRING(K9:L9,"#") ->  | AK9: =[2]!SUMSTRING(M9:N9,"#") ->  | AM9: =[2]!SUMSTRING(O9:P9,"#") ->  | AO9: =[2]!SUMSTRING(Q9:R9,"#") ->  | AQ9: =[2]!SUMSTRING(S9:T9,"#") ->  | AS9: =[2]!SUMSTRING(U9:V9,"#") ->  | AU9: =[2]!SUMSTRING(W9:X9,"#") ->  | AW9: =[2]!SUMSTRING(Y9:Z9,"#") ->  | AY9: =[2]!SUMSTRING(AA9:AW9,"|") -> 
A10: 10009 | B10: 6 | C10: 5 | D10: 1000911 | E10: 5 | F10: 1000921 | G10: 6 | H10: 1000912 | I10: 6 | J10: 1000921 | K10: 7 | L10: 1000912 | M10: 7 | N10: 1000922 | O10: 8 | P10: 1000913 | Q10: 8 | R10: 1000922 | S10: 9 | T10: 1000913 | U10: 9 | V10: 1000923 | W10: 10 | X10: 1000914 | Y10: 10 | Z10: 1000924 | AA10: =[2]!SUMSTRING(C10:D10,"#") ->  | AC10: =[2]!SUMSTRING(E10:F10,"#") ->  | AE10: =[2]!SUMSTRING(G10:H10,"#") ->  | AG10: =[2]!SUMSTRING(I10:J10,"#") ->  | AI10: =[2]!SUMSTRING(K10:L10,"#") ->  | AK10: =[2]!SUMSTRING(M10:N10,"#") ->  | AM10: =[2]!SUMSTRING(O10:P10,"#") ->  | AO10: =[2]!SUMSTRING(Q10:R10,"#") ->  | AQ10: =[2]!SUMSTRING(S10:T10,"#") ->  | AS10: =[2]!SUMSTRING(U10:V10,"#") ->  | AU10: =[2]!SUMSTRING(W10:X10,"#") ->  | AW10: =[2]!SUMSTRING(Y10:Z10,"#") ->  | AY10: =[2]!SUMSTRING(AA10:AW10,"|") -> 
A11: 10010 | B11: 2 | C11: 5 | D11: 1001011 | E11: 5 | F11: 1001021 | G11: 6 | H11: 1001012 | I11: 6 | J11: 1001021 | K11: 7 | L11: 1001012 | M11: 7 | N11: 1001022 | O11: 8 | P11: 1001013 | Q11: 8 | R11: 1001022 | S11: 9 | T11: 1001013 | U11: 9 | V11: 1001023 | W11: 10 | X11: 1001014 | Y11: 10 | Z11: 1001024 | AA11: =[2]!SUMSTRING(C11:D11,"#") ->  | AC11: =[2]!SUMSTRING(E11:F11,"#") ->  | AE11: =[2]!SUMSTRING(G11:H11,"#") ->  | AG11: =[2]!SUMSTRING(I11:J11,"#") ->  | AI11: =[2]!SUMSTRING(K11:L11,"#") ->  | AK11: =[2]!SUMSTRING(M11:N11,"#") ->  | AM11: =[2]!SUMSTRING(O11:P11,"#") ->  | AO11: =[2]!SUMSTRING(Q11:R11,"#") ->  | AQ11: =[2]!SUMSTRING(S11:T11,"#") ->  | AS11: =[2]!SUMSTRING(U11:V11,"#") ->  | AU11: =[2]!SUMSTRING(W11:X11,"#") ->  | AW11: =[2]!SUMSTRING(Y11:Z11,"#") ->  | AY11: =[2]!SUMSTRING(AA11:AW11,"|") -> 
A12: 10011 | B12: 4 | C12: 5 | D12: 1001111 | E12: 5 | F12: 1001121 | G12: 6 | H12: 1001112 | I12: 6 | J12: 1001121 | K12: 7 | L12: 1001112 | M12: 7 | N12: 1001122 | O12: 8 | P12: 1001113 | Q12: 8 | R12: 1001122 | S12: 9 | T12: 1001113 | U12: 9 | V12: 1001123 | W12: 10 | X12: 1001114 | Y12: 10 | Z12: 1001124 | AA12: =[2]!SUMSTRING(C12:D12,"#") ->  | AC12: =[2]!SUMSTRING(E12:F12,"#") ->  | AE12: =[2]!SUMSTRING(G12:H12,"#") ->  | AG12: =[2]!SUMSTRING(I12:J12,"#") ->  | AI12: =[2]!SUMSTRING(K12:L12,"#") ->  | AK12: =[2]!SUMSTRING(M12:N12,"#") ->  | AM12: =[2]!SUMSTRING(O12:P12,"#") ->  | AO12: =[2]!SUMSTRING(Q12:R12,"#") ->  | AQ12: =[2]!SUMSTRING(S12:T12,"#") ->  | AS12: =[2]!SUMSTRING(U12:V12,"#") ->  | AU12: =[2]!SUMSTRING(W12:X12,"#") ->  | AW12: =[2]!SUMSTRING(Y12:Z12,"#") ->  | AY12: =[2]!SUMSTRING(AA12:AW12,"|") -> 
A13: 10012 | B13: 1 | C13: 5 | D13: 1001211 | E13: 5 | F13: 1001221 | G13: 6 | H13: 1001212 | I13: 6 | J13: 1001221 | K13: 7 | L13: 1001212 | M13: 7 | N13: 1001222 | O13: 8 | P13: 1001213 | Q13: 8 | R13: 1001222 | S13: 9 | T13: 1001213 | U13: 9 | V13: 1001223 | W13: 10 | X13: 1001214 | Y13: 10 | Z13: 1001224 | AA13: =[2]!SUMSTRING(C13:D13,"#") ->  | AC13: =[2]!SUMSTRING(E13:F13,"#") ->  | AE13: =[2]!SUMSTRING(G13:H13,"#") ->  | AG13: =[2]!SUMSTRING(I13:J13,"#") ->  | AI13: =[2]!SUMSTRING(K13:L13,"#") ->  | AK13: =[2]!SUMSTRING(M13:N13,"#") ->  | AM13: =[2]!SUMSTRING(O13:P13,"#") ->  | AO13: =[2]!SUMSTRING(Q13:R13,"#") ->  | AQ13: =[2]!SUMSTRING(S13:T13,"#") ->  | AS13: =[2]!SUMSTRING(U13:V13,"#") ->  | AU13: =[2]!SUMSTRING(W13:X13,"#") ->  | AW13: =[2]!SUMSTRING(Y13:Z13,"#") ->  | AY13: =[2]!SUMSTRING(AA13:AW13,"|") -> 
A14: 10013 | B14: 4 | C14: 5 | D14: 1001311 | E14: 5 | F14: 1001321 | G14: 6 | H14: 1001312 | I14: 6 | J14: 1001321 | K14: 7 | L14: 1001312 | M14: 7 | N14: 1001322 | O14: 8 | P14: 1001313 | Q14: 8 | R14: 1001322 | S14: 9 | T14: 1001313 | U14: 9 | V14: 1001323 | W14: 10 | X14: 1001314 | Y14: 10 | Z14: 1001324 | AA14: =[2]!SUMSTRING(C14:D14,"#") ->  | AC14: =[2]!SUMSTRING(E14:F14,"#") ->  | AE14: =[2]!SUMSTRING(G14:H14,"#") ->  | AG14: =[2]!SUMSTRING(I14:J14,"#") ->  | AI14: =[2]!SUMSTRING(K14:L14,"#") ->  | AK14: =[2]!SUMSTRING(M14:N14,"#") ->  | AM14: =[2]!SUMSTRING(O14:P14,"#") ->  | AO14: =[2]!SUMSTRING(Q14:R14,"#") ->  | AQ14: =[2]!SUMSTRING(S14:T14,"#") ->  | AS14: =[2]!SUMSTRING(U14:V14,"#") ->  | AU14: =[2]!SUMSTRING(W14:X14,"#") ->  | AW14: =[2]!SUMSTRING(Y14:Z14,"#") ->  | AY14: =[2]!SUMSTRING(AA14:AW14,"|") -> 
A15: 10014 | B15: 6 | C15: 5 | D15: 1001411 | E15: 5 | F15: 1001421 | G15: 6 | H15: 1001412 | I15: 6 | J15: 1001421 | K15: 7 | L15: 1001412 | M15: 7 | N15: 1001422 | O15: 8 | P15: 1001413 | Q15: 8 | R15: 1001422 | S15: 9 | T15: 1001413 | U15: 9 | V15: 1001423 | W15: 10 | X15: 1001414 | Y15: 10 | Z15: 1001424 | AA15: =[2]!SUMSTRING(C15:D15,"#") ->  | AC15: =[2]!SUMSTRING(E15:F15,"#") ->  | AE15: =[2]!SUMSTRING(G15:H15,"#") ->  | AG15: =[2]!SUMSTRING(I15:J15,"#") ->  | AI15: =[2]!SUMSTRING(K15:L15,"#") ->  | AK15: =[2]!SUMSTRING(M15:N15,"#") ->  | AM15: =[2]!SUMSTRING(O15:P15,"#") ->  | AO15: =[2]!SUMSTRING(Q15:R15,"#") ->  | AQ15: =[2]!SUMSTRING(S15:T15,"#") ->  | AS15: =[2]!SUMSTRING(U15:V15,"#") ->  | AU15: =[2]!SUMSTRING(W15:X15,"#") ->  | AW15: =[2]!SUMSTRING(Y15:Z15,"#") ->  | AY15: =[2]!SUMSTRING(AA15:AW15,"|") -> 
A16: 10015 | B16: 5 | C16: 5 | D16: 1001511 | E16: 5 | F16: 1001521 | G16: 6 | H16: 1001512 | I16: 6 | J16: 1001521 | K16: 7 | L16: 1001512 | M16: 7 | N16: 1001522 | O16: 8 | P16: 1001513 | Q16: 8 | R16: 1001522 | S16: 9 | T16: 1001513 | U16: 9 | V16: 1001523 | W16: 10 | X16: 1001514 | Y16: 10 | Z16: 1001524 | AA16: =[2]!SUMSTRING(C16:D16,"#") ->  | AC16: =[2]!SUMSTRING(E16:F16,"#") ->  | AE16: =[2]!SUMSTRING(G16:H16,"#") ->  | AG16: =[2]!SUMSTRING(I16:J16,"#") ->  | AI16: =[2]!SUMSTRING(K16:L16,"#") ->  | AK16: =[2]!SUMSTRING(M16:N16,"#") ->  | AM16: =[2]!SUMSTRING(O16:P16,"#") ->  | AO16: =[2]!SUMSTRING(Q16:R16,"#") ->  | AQ16: =[2]!SUMSTRING(S16:T16,"#") ->  | AS16: =[2]!SUMSTRING(U16:V16,"#") ->  | AU16: =[2]!SUMSTRING(W16:X16,"#") ->  | AW16: =[2]!SUMSTRING(Y16:Z16,"#") ->  | AY16: =[2]!SUMSTRING(AA16:AW16,"|") -> 
A17: 10016 | B17: 1 | C17: 5 | D17: 1001611 | E17: 5 | F17: 1001621 | G17: 6 | H17: 1001612 | I17: 6 | J17: 1001621 | K17: 7 | L17: 1001612 | M17: 7 | N17: 1001622 | O17: 8 | P17: 1001613 | Q17: 8 | R17: 1001622 | S17: 9 | T17: 1001613 | U17: 9 | V17: 1001623 | W17: 10 | X17: 1001614 | Y17: 10 | Z17: 1001624 | AA17: =[2]!SUMSTRING(C17:D17,"#") ->  | AC17: =[2]!SUMSTRING(E17:F17,"#") ->  | AE17: =[2]!SUMSTRING(G17:H17,"#") ->  | AG17: =[2]!SUMSTRING(I17:J17,"#") ->  | AI17: =[2]!SUMSTRING(K17:L17,"#") ->  | AK17: =[2]!SUMSTRING(M17:N17,"#") ->  | AM17: =[2]!SUMSTRING(O17:P17,"#") ->  | AO17: =[2]!SUMSTRING(Q17:R17,"#") ->  | AQ17: =[2]!SUMSTRING(S17:T17,"#") ->  | AS17: =[2]!SUMSTRING(U17:V17,"#") ->  | AU17: =[2]!SUMSTRING(W17:X17,"#") ->  | AW17: =[2]!SUMSTRING(Y17:Z17,"#") ->  | AY17: =[2]!SUMSTRING(AA17:AW17,"|") -> 
A18: 10017 | B18: 6 | C18: 5 | D18: 1001711 | E18: 5 | F18: 1001721 | G18: 6 | H18: 1001712 | I18: 6 | J18: 1001721 | K18: 7 | L18: 1001712 | M18: 7 | N18: 1001722 | O18: 8 | P18: 1001713 | Q18: 8 | R18: 1001722 | S18: 9 | T18: 1001713 | U18: 9 | V18: 1001723 | W18: 10 | X18: 1001714 | Y18: 10 | Z18: 1001724 | AA18: =[2]!SUMSTRING(C18:D18,"#") ->  | AC18: =[2]!SUMSTRING(E18:F18,"#") ->  | AE18: =[2]!SUMSTRING(G18:H18,"#") ->  | AG18: =[2]!SUMSTRING(I18:J18,"#") ->  | AI18: =[2]!SUMSTRING(K18:L18,"#") ->  | AK18: =[2]!SUMSTRING(M18:N18,"#") ->  | AM18: =[2]!SUMSTRING(O18:P18,"#") ->  | AO18: =[2]!SUMSTRING(Q18:R18,"#") ->  | AQ18: =[2]!SUMSTRING(S18:T18,"#") ->  | AS18: =[2]!SUMSTRING(U18:V18,"#") ->  | AU18: =[2]!SUMSTRING(W18:X18,"#") ->  | AW18: =[2]!SUMSTRING(Y18:Z18,"#") ->  | AY18: =[2]!SUMSTRING(AA18:AW18,"|") -> 
A19: 10018 | B19: 5 | C19: 5 | D19: 1001811 | E19: 5 | F19: 1001821 | G19: 6 | H19: 1001812 | I19: 6 | J19: 1001821 | K19: 7 | L19: 1001812 | M19: 7 | N19: 1001822 | O19: 8 | P19: 1001813 | Q19: 8 | R19: 1001822 | S19: 9 | T19: 1001813 | U19: 9 | V19: 1001823 | W19: 10 | X19: 1001814 | Y19: 10 | Z19: 1001824 | AA19: =[2]!SUMSTRING(C19:D19,"#") ->  | AC19: =[2]!SUMSTRING(E19:F19,"#") ->  | AE19: =[2]!SUMSTRING(G19:H19,"#") ->  | AG19: =[2]!SUMSTRING(I19:J19,"#") ->  | AI19: =[2]!SUMSTRING(K19:L19,"#") ->  | AK19: =[2]!SUMSTRING(M19:N19,"#") ->  | AM19: =[2]!SUMSTRING(O19:P19,"#") ->  | AO19: =[2]!SUMSTRING(Q19:R19,"#") ->  | AQ19: =[2]!SUMSTRING(S19:T19,"#") ->  | AS19: =[2]!SUMSTRING(U19:V19,"#") ->  | AU19: =[2]!SUMSTRING(W19:X19,"#") ->  | AW19: =[2]!SUMSTRING(Y19:Z19,"#") ->  | AY19: =[2]!SUMSTRING(AA19:AW19,"|") -> 
A20: 10019 | B20: 3 | C20: 5 | D20: 1001911 | E20: 5 | F20: 1001921 | G20: 6 | H20: 1001912 | I20: 6 | J20: 1001921 | K20: 7 | L20: 1001912 | M20: 7 | N20: 1001922 | O20: 8 | P20: 1001913 | Q20: 8 | R20: 1001922 | S20: 9 | T20: 1001913 | U20: 9 | V20: 1001923 | W20: 10 | X20: 1001914 | Y20: 10 | Z20: 1001924 | AA20: =[2]!SUMSTRING(C20:D20,"#") ->  | AC20: =[2]!SUMSTRING(E20:F20,"#") ->  | AE20: =[2]!SUMSTRING(G20:H20,"#") ->  | AG20: =[2]!SUMSTRING(I20:J20,"#") ->  | AI20: =[2]!SUMSTRING(K20:L20,"#") ->  | AK20: =[2]!SUMSTRING(M20:N20,"#") ->  | AM20: =[2]!SUMSTRING(O20:P20,"#") ->  | AO20: =[2]!SUMSTRING(Q20:R20,"#") ->  | AQ20: =[2]!SUMSTRING(S20:T20,"#") ->  | AS20: =[2]!SUMSTRING(U20:V20,"#") ->  | AU20: =[2]!SUMSTRING(W20:X20,"#") ->  | AW20: =[2]!SUMSTRING(Y20:Z20,"#") ->  | AY20: =[2]!SUMSTRING(AA20:AW20,"|") -> 
A21: 10020 | B21: 1 | C21: 5 | D21: 1002011 | E21: 5 | F21: 1002021 | G21: 6 | H21: 1002012 | I21: 6 | J21: 1002021 | K21: 7 | L21: 1002012 | M21: 7 | N21: 1002022 | O21: 8 | P21: 1002013 | Q21: 8 | R21: 1002022 | S21: 9 | T21: 1002013 | U21: 9 | V21: 1002023 | W21: 10 | X21: 1002014 | Y21: 10 | Z21: 1002024 | AA21: =[2]!SUMSTRING(C21:D21,"#") ->  | AC21: =[2]!SUMSTRING(E21:F21,"#") ->  | AE21: =[2]!SUMSTRING(G21:H21,"#") ->  | AG21: =[2]!SUMSTRING(I21:J21,"#") ->  | AI21: =[2]!SUMSTRING(K21:L21,"#") ->  | AK21: =[2]!SUMSTRING(M21:N21,"#") ->  | AM21: =[2]!SUMSTRING(O21:P21,"#") ->  | AO21: =[2]!SUMSTRING(Q21:R21,"#") ->  | AQ21: =[2]!SUMSTRING(S21:T21,"#") ->  | AS21: =[2]!SUMSTRING(U21:V21,"#") ->  | AU21: =[2]!SUMSTRING(W21:X21,"#") ->  | AW21: =[2]!SUMSTRING(Y21:Z21,"#") ->  | AY21: =[2]!SUMSTRING(AA21:AW21,"|") -> 
A22: 10021 | B22: 2 | C22: 5 | D22: 1002111 | E22: 5 | F22: 1002121 | G22: 6 | H22: 1002112 | I22: 6 | J22: 1002121 | K22: 7 | L22: 1002112 | M22: 7 | N22: 1002122 | O22: 8 | P22: 1002113 | Q22: 8 | R22: 1002122 | S22: 9 | T22: 1002113 | U22: 9 | V22: 1002123 | W22: 10 | X22: 1002114 | Y22: 10 | Z22: 1002124 | AA22: =[2]!SUMSTRING(C22:D22,"#") ->  | AC22: =[2]!SUMSTRING(E22:F22,"#") ->  | AE22: =[2]!SUMSTRING(G22:H22,"#") ->  | AG22: =[2]!SUMSTRING(I22:J22,"#") ->  | AI22: =[2]!SUMSTRING(K22:L22,"#") ->  | AK22: =[2]!SUMSTRING(M22:N22,"#") ->  | AM22: =[2]!SUMSTRING(O22:P22,"#") ->  | AO22: =[2]!SUMSTRING(Q22:R22,"#") ->  | AQ22: =[2]!SUMSTRING(S22:T22,"#") ->  | AS22: =[2]!SUMSTRING(U22:V22,"#") ->  | AU22: =[2]!SUMSTRING(W22:X22,"#") ->  | AW22: =[2]!SUMSTRING(Y22:Z22,"#") ->  | AY22: =[2]!SUMSTRING(AA22:AW22,"|") -> 
A23: 10022 | B23: 3 | C23: 5 | D23: 1002211 | E23: 5 | F23: 1002221 | G23: 6 | H23: 1002212 | I23: 6 | J23: 1002221 | K23: 7 | L23: 1002212 | M23: 7 | N23: 1002222 | O23: 8 | P23: 1002213 | Q23: 8 | R23: 1002222 | S23: 9 | T23: 1002213 | U23: 9 | V23: 1002223 | W23: 10 | X23: 1002214 | Y23: 10 | Z23: 1002224 | AA23: =[2]!SUMSTRING(C23:D23,"#") ->  | AC23: =[2]!SUMSTRING(E23:F23,"#") ->  | AE23: =[2]!SUMSTRING(G23:H23,"#") ->  | AG23: =[2]!SUMSTRING(I23:J23,"#") ->  | AI23: =[2]!SUMSTRING(K23:L23,"#") ->  | AK23: =[2]!SUMSTRING(M23:N23,"#") ->  | AM23: =[2]!SUMSTRING(O23:P23,"#") ->  | AO23: =[2]!SUMSTRING(Q23:R23,"#") ->  | AQ23: =[2]!SUMSTRING(S23:T23,"#") ->  | AS23: =[2]!SUMSTRING(U23:V23,"#") ->  | AU23: =[2]!SUMSTRING(W23:X23,"#") ->  | AW23: =[2]!SUMSTRING(Y23:Z23,"#") ->  | AY23: =[2]!SUMSTRING(AA23:AW23,"|") -> 
A24: 10023 | B24: 5 | C24: 5 | D24: 1002311 | E24: 5 | F24: 1002321 | G24: 6 | H24: 1002312 | I24: 6 | J24: 1002321 | K24: 7 | L24: 1002312 | M24: 7 | N24: 1002322 | O24: 8 | P24: 1002313 | Q24: 8 | R24: 1002322 | S24: 9 | T24: 1002313 | U24: 9 | V24: 1002323 | W24: 10 | X24: 1002314 | Y24: 10 | Z24: 1002324 | AA24: =[2]!SUMSTRING(C24:D24,"#") ->  | AC24: =[2]!SUMSTRING(E24:F24,"#") ->  | AE24: =[2]!SUMSTRING(G24:H24,"#") ->  | AG24: =[2]!SUMSTRING(I24:J24,"#") ->  | AI24: =[2]!SUMSTRING(K24:L24,"#") ->  | AK24: =[2]!SUMSTRING(M24:N24,"#") ->  | AM24: =[2]!SUMSTRING(O24:P24,"#") ->  | AO24: =[2]!SUMSTRING(Q24:R24,"#") ->  | AQ24: =[2]!SUMSTRING(S24:T24,"#") ->  | AS24: =[2]!SUMSTRING(U24:V24,"#") ->  | AU24: =[2]!SUMSTRING(W24:X24,"#") ->  | AW24: =[2]!SUMSTRING(Y24:Z24,"#") ->  | AY24: =[2]!SUMSTRING(AA24:AW24,"|") -> 
A25: 10024 | B25: 3 | C25: 4 | D25: 1002411 | G25: 5 | H25: 1002411 | I25: 5 | J25: 1002421 | K25: 6 | L25: =H25+1 -> 1002412 | M25: 6 | N25: 1002421 | AA25: =[2]!SUMSTRING(C25:D25,"#") ->  | AC25: =[2]!SUMSTRING(E25:F25,"#") ->  | AE25: =[2]!SUMSTRING(G25:H25,"#") ->  | AG25: =[2]!SUMSTRING(I25:J25,"#") ->  | AI25: =[2]!SUMSTRING(K25:L25,"#") ->  | AK25: =[2]!SUMSTRING(M25:N25,"#") ->  | AM25: =[2]!SUMSTRING(O25:P25,"#") ->  | AO25: =[2]!SUMSTRING(Q25:R25,"#") ->  | AQ25: =[2]!SUMSTRING(S25:T25,"#") ->  | AS25: =[2]!SUMSTRING(U25:V25,"#") ->  | AU25: =[2]!SUMSTRING(W25:X25,"#") ->  | AW25: =[2]!SUMSTRING(Y25:Z25,"#") ->  | AY25: =[2]!SUMSTRING(AA25:AW25,"|") -> 
A26: 10025 | B26: 1 | C26: 4 | D26: 1002511 | G26: 5 | H26: 1002511 | I26: 5 | J26: 1002521 | K26: 6 | L26: =H26+1 -> 1002512 | M26: 6 | N26: 1002521 | AA26: =[2]!SUMSTRING(C26:D26,"#") ->  | AC26: =[2]!SUMSTRING(E26:F26,"#") ->  | AE26: =[2]!SUMSTRING(G26:H26,"#") ->  | AG26: =[2]!SUMSTRING(I26:J26,"#") ->  | AI26: =[2]!SUMSTRING(K26:L26,"#") ->  | AK26: =[2]!SUMSTRING(M26:N26,"#") ->  | AM26: =[2]!SUMSTRING(O26:P26,"#") ->  | AO26: =[2]!SUMSTRING(Q26:R26,"#") ->  | AQ26: =[2]!SUMSTRING(S26:T26,"#") ->  | AS26: =[2]!SUMSTRING(U26:V26,"#") ->  | AU26: =[2]!SUMSTRING(W26:X26,"#") ->  | AW26: =[2]!SUMSTRING(Y26:Z26,"#") ->  | AY26: =[2]!SUMSTRING(AA26:AW26,"|") -> 
A27: 10026 | B27: 5 | C27: 4 | D27: 1002611 | G27: 5 | H27: 1002611 | I27: 5 | J27: 1002621 | K27: 6 | L27: 1002612 | M27: 6 | N27: 1002621 | O27: 7 | P27: =L27 -> 1002612 | Q27: 7 | R27: =N27+1 -> 1002622 | S27: 8 | T27: =P27+1 -> 1002613 | U27: 8 | V27: =R27 -> 1002622 | W27: 9 | X27: =T27 -> 1002613 | Y27: 9 | Z27: =V27+1 -> 1002623 | AA27: =[2]!SUMSTRING(C27:D27,"#") ->  | AC27: =[2]!SUMSTRING(E27:F27,"#") ->  | AE27: =[2]!SUMSTRING(G27:H27,"#") ->  | AG27: =[2]!SUMSTRING(I27:J27,"#") ->  | AI27: =[2]!SUMSTRING(K27:L27,"#") ->  | AK27: =[2]!SUMSTRING(M27:N27,"#") ->  | AM27: =[2]!SUMSTRING(O27:P27,"#") ->  | AO27: =[2]!SUMSTRING(Q27:R27,"#") ->  | AQ27: =[2]!SUMSTRING(S27:T27,"#") ->  | AS27: =[2]!SUMSTRING(U27:V27,"#") ->  | AU27: =[2]!SUMSTRING(W27:X27,"#") ->  | AW27: =[2]!SUMSTRING(Y27:Z27,"#") ->  | AY27: =[2]!SUMSTRING(AA27:AW27,"|") -> 
A28: 10027 | B28: 5 | C28: 4 | D28: 1002711 | G28: 5 | H28: 1002711 | I28: 5 | J28: 1002721 | K28: 6 | L28: 1002712 | M28: 6 | N28: 1002721 | O28: =K28+1 -> 7 | P28: =L28 -> 1002712 | Q28: =M28+1 -> 7 | R28: =N28+1 -> 1002722 | S28: =O28+1 -> 8 | T28: =P28+1 -> 1002713 | U28: =S28 -> 8 | V28: =R28 -> 1002722 | W28: =S28+1 -> 9 | X28: =T28 -> 1002713 | Y28: 9 | Z28: =V28+1 -> 1002723 | AA28: =[2]!SUMSTRING(C28:D28,"#") ->  | AC28: =[2]!SUMSTRING(E28:F28,"#") ->  | AE28: =[2]!SUMSTRING(G28:H28,"#") ->  | AG28: =[2]!SUMSTRING(I28:J28,"#") ->  | AI28: =[2]!SUMSTRING(K28:L28,"#") ->  | AK28: =[2]!SUMSTRING(M28:N28,"#") ->  | AM28: =[2]!SUMSTRING(O28:P28,"#") ->  | AO28: =[2]!SUMSTRING(Q28:R28,"#") ->  | AQ28: =[2]!SUMSTRING(S28:T28,"#") ->  | AS28: =[2]!SUMSTRING(U28:V28,"#") ->  | AU28: =[2]!SUMSTRING(W28:X28,"#") ->  | AW28: =[2]!SUMSTRING(Y28:Z28,"#") ->  | AY28: =[2]!SUMSTRING(AA28:AW28,"|") -> 
A29: 10028 | B29: 5 | C29: 4 | D29: 1002811 | G29: 5 | H29: 1002811 | I29: 5 | J29: 1002821 | K29: 6 | L29: 1002812 | M29: 6 | N29: 1002821 | O29: =K29+1 -> 7 | P29: =L29 -> 1002812 | Q29: =M29+1 -> 7 | R29: =N29+1 -> 1002822 | S29: 8 | T29: 1002813 | U29: 8 | V29: 1002822 | W29: 9 | X29: 1002813 | Y29: 9 | Z29: 1002823 | AA29: =[2]!SUMSTRING(C29:D29,"#") ->  | AC29: =[2]!SUMSTRING(E29:F29,"#") ->  | AE29: =[2]!SUMSTRING(G29:H29,"#") ->  | AG29: =[2]!SUMSTRING(I29:J29,"#") ->  | AI29: =[2]!SUMSTRING(K29:L29,"#") ->  | AK29: =[2]!SUMSTRING(M29:N29,"#") ->  | AM29: =[2]!SUMSTRING(O29:P29,"#") ->  | AO29: =[2]!SUMSTRING(Q29:R29,"#") ->  | AQ29: =[2]!SUMSTRING(S29:T29,"#") ->  | AS29: =[2]!SUMSTRING(U29:V29,"#") ->  | AU29: =[2]!SUMSTRING(W29:X29,"#") ->  | AW29: =[2]!SUMSTRING(Y29:Z29,"#") ->  | AY29: =[2]!SUMSTRING(AA29:AW29,"|") -> 
A30: 10029 | B30: 4 | C30: 4 | D30: 1002911 | G30: 5 | H30: 1002911 | I30: 5 | J30: 1002921 | K30: 6 | L30: 1002912 | M30: 6 | N30: 1002921 | AA30: =[2]!SUMSTRING(C30:D30,"#") ->  | AC30: =[2]!SUMSTRING(E30:F30,"#") ->  | AE30: =[2]!SUMSTRING(G30:H30,"#") ->  | AG30: =[2]!SUMSTRING(I30:J30,"#") ->  | AI30: =[2]!SUMSTRING(K30:L30,"#") ->  | AK30: =[2]!SUMSTRING(M30:N30,"#") ->  | AM30: =[2]!SUMSTRING(O30:P30,"#") ->  | AO30: =[2]!SUMSTRING(Q30:R30,"#") ->  | AQ30: =[2]!SUMSTRING(S30:T30,"#") ->  | AS30: =[2]!SUMSTRING(U30:V30,"#") ->  | AU30: =[2]!SUMSTRING(W30:X30,"#") ->  | AW30: =[2]!SUMSTRING(Y30:Z30,"#") ->  | AY30: =[2]!SUMSTRING(AA30:AW30,"|") -> 
A31: 10030 | B31: 3 | C31: 4 | D31: 1003011 | G31: 5 | H31: 1003011 | I31: 5 | J31: 1003021 | K31: 6 | L31: 1003012 | M31: 6 | N31: 1003021 | AA31: =[2]!SUMSTRING(C31:D31,"#") ->  | AC31: =[2]!SUMSTRING(E31:F31,"#") ->  | AE31: =[2]!SUMSTRING(G31:H31,"#") ->  | AG31: =[2]!SUMSTRING(I31:J31,"#") ->  | AI31: =[2]!SUMSTRING(K31:L31,"#") ->  | AK31: =[2]!SUMSTRING(M31:N31,"#") ->  | AM31: =[2]!SUMSTRING(O31:P31,"#") ->  | AO31: =[2]!SUMSTRING(Q31:R31,"#") ->  | AQ31: =[2]!SUMSTRING(S31:T31,"#") ->  | AS31: =[2]!SUMSTRING(U31:V31,"#") ->  | AU31: =[2]!SUMSTRING(W31:X31,"#") ->  | AW31: =[2]!SUMSTRING(Y31:Z31,"#") ->  | AY31: =[2]!SUMSTRING(AA31:AW31,"|") -> 
A32: 10031 | B32: 4 | C32: 4 | D32: 1003111 | G32: 5 | H32: 1003111 | I32: 5 | J32: 1003121 | K32: 6 | L32: 1003112 | M32: 6 | N32: 1003121 | AA32: =[2]!SUMSTRING(C32:D32,"#") ->  | AC32: =[2]!SUMSTRING(E32:F32,"#") ->  | AE32: =[2]!SUMSTRING(G32:H32,"#") ->  | AG32: =[2]!SUMSTRING(I32:J32,"#") ->  | AI32: =[2]!SUMSTRING(K32:L32,"#") ->  | AK32: =[2]!SUMSTRING(M32:N32,"#") ->  | AM32: =[2]!SUMSTRING(O32:P32,"#") ->  | AO32: =[2]!SUMSTRING(Q32:R32,"#") ->  | AQ32: =[2]!SUMSTRING(S32:T32,"#") ->  | AS32: =[2]!SUMSTRING(U32:V32,"#") ->  | AU32: =[2]!SUMSTRING(W32:X32,"#") ->  | AW32: =[2]!SUMSTRING(Y32:Z32,"#") ->  | AY32: =[2]!SUMSTRING(AA32:AW32,"|") -> 
A33: 10032 | B33: 4 | C33: 4 | D33: 1003211 | G33: 5 | H33: 1003211 | I33: 5 | J33: 1003221 | K33: 6 | L33: 1003212 | M33: 6 | N33: 1003221 | AA33: =[2]!SUMSTRING(C33:D33,"#") ->  | AC33: =[2]!SUMSTRING(E33:F33,"#") ->  | AE33: =[2]!SUMSTRING(G33:H33,"#") ->  | AG33: =[2]!SUMSTRING(I33:J33,"#") ->  | AI33: =[2]!SUMSTRING(K33:L33,"#") ->  | AK33: =[2]!SUMSTRING(M33:N33,"#") ->  | AM33: =[2]!SUMSTRING(O33:P33,"#") ->  | AO33: =[2]!SUMSTRING(Q33:R33,"#") ->  | AQ33: =[2]!SUMSTRING(S33:T33,"#") ->  | AS33: =[2]!SUMSTRING(U33:V33,"#") ->  | AU33: =[2]!SUMSTRING(W33:X33,"#") ->  | AW33: =[2]!SUMSTRING(Y33:Z33,"#") ->  | AY33: =[2]!SUMSTRING(AA33:AW33,"|") -> 
A34: 10033 | B34: 4 | C34: 4 | D34: 1003311 | G34: 5 | H34: 1003311 | I34: 5 | J34: 1003321 | K34: 6 | L34: 1003312 | M34: 6 | N34: 1003321 | AA34: =[2]!SUMSTRING(C34:D34,"#") ->  | AC34: =[2]!SUMSTRING(E34:F34,"#") ->  | AE34: =[2]!SUMSTRING(G34:H34,"#") ->  | AG34: =[2]!SUMSTRING(I34:J34,"#") ->  | AI34: =[2]!SUMSTRING(K34:L34,"#") ->  | AK34: =[2]!SUMSTRING(M34:N34,"#") ->  | AM34: =[2]!SUMSTRING(O34:P34,"#") ->  | AO34: =[2]!SUMSTRING(Q34:R34,"#") ->  | AQ34: =[2]!SUMSTRING(S34:T34,"#") ->  | AS34: =[2]!SUMSTRING(U34:V34,"#") ->  | AU34: =[2]!SUMSTRING(W34:X34,"#") ->  | AW34: =[2]!SUMSTRING(Y34:Z34,"#") ->  | AY34: =[2]!SUMSTRING(AA34:AW34,"|") -> 
A35: 10034 | B35: 6 | C35: 4 | D35: 1003411 | G35: 5 | H35: 1003411 | I35: 5 | J35: 1003421 | K35: 6 | L35: 1003412 | M35: 6 | N35: 1003421 | O35: =K35+1 -> 7 | P35: =L35 -> 1003412 | Q35: =M35+1 -> 7 | R35: =N35+1 -> 1003422 | S35: =O35+1 -> 8 | T35: =P35+1 -> 1003413 | U35: =S35 -> 8 | V35: =R35 -> 1003422 | W35: =S35+1 -> 9 | X35: =T35 -> 1003413 | Y35: 9 | Z35: =V35+1 -> 1003423 | AA35: =[2]!SUMSTRING(C35:D35,"#") ->  | AC35: =[2]!SUMSTRING(E35:F35,"#") ->  | AE35: =[2]!SUMSTRING(G35:H35,"#") ->  | AG35: =[2]!SUMSTRING(I35:J35,"#") ->  | AI35: =[2]!SUMSTRING(K35:L35,"#") ->  | AK35: =[2]!SUMSTRING(M35:N35,"#") ->  | AM35: =[2]!SUMSTRING(O35:P35,"#") ->  | AO35: =[2]!SUMSTRING(Q35:R35,"#") ->  | AQ35: =[2]!SUMSTRING(S35:T35,"#") ->  | AS35: =[2]!SUMSTRING(U35:V35,"#") ->  | AU35: =[2]!SUMSTRING(W35:X35,"#") ->  | AW35: =[2]!SUMSTRING(Y35:Z35,"#") ->  | AY35: =[2]!SUMSTRING(AA35:AW35,"|") -> 
A36: 10035 | B36: 6 | C36: 4 | D36: 1003511 | G36: 5 | H36: 1003511 | I36: 5 | J36: 1003521 | K36: 6 | L36: 1003512 | M36: 6 | N36: 1003521 | O36: =K36+1 -> 7 | P36: =L36 -> 1003512 | Q36: =M36+1 -> 7 | R36: =N36+1 -> 1003522 | S36: =O36+1 -> 8 | T36: =P36+1 -> 1003513 | U36: =S36 -> 8 | V36: =R36 -> 1003522 | W36: =S36+1 -> 9 | X36: =T36 -> 1003513 | Y36: 9 | Z36: =V36+1 -> 1003523 | AA36: =[2]!SUMSTRING(C36:D36,"#") ->  | AC36: =[2]!SUMSTRING(E36:F36,"#") ->  | AE36: =[2]!SUMSTRING(G36:H36,"#") ->  | AG36: =[2]!SUMSTRING(I36:J36,"#") ->  | AI36: =[2]!SUMSTRING(K36:L36,"#") ->  | AK36: =[2]!SUMSTRING(M36:N36,"#") ->  | AM36: =[2]!SUMSTRING(O36:P36,"#") ->  | AO36: =[2]!SUMSTRING(Q36:R36,"#") ->  | AQ36: =[2]!SUMSTRING(S36:T36,"#") ->  | AS36: =[2]!SUMSTRING(U36:V36,"#") ->  | AU36: =[2]!SUMSTRING(W36:X36,"#") ->  | AW36: =[2]!SUMSTRING(Y36:Z36,"#") ->  | AY36: =[2]!SUMSTRING(AA36:AW36,"|") -> 
A37: 10036 | B37: 2 | C37: 4 | D37: 1003611 | G37: 5 | H37: 1003611 | I37: 5 | J37: 1003621 | K37: 6 | L37: 1003612 | M37: 6 | N37: 1003621 | AA37: =[2]!SUMSTRING(C37:D37,"#") ->  | AC37: =[2]!SUMSTRING(E37:F37,"#") ->  | AE37: =[2]!SUMSTRING(G37:H37,"#") ->  | AG37: =[2]!SUMSTRING(I37:J37,"#") ->  | AI37: =[2]!SUMSTRING(K37:L37,"#") ->  | AK37: =[2]!SUMSTRING(M37:N37,"#") ->  | AM37: =[2]!SUMSTRING(O37:P37,"#") ->  | AO37: =[2]!SUMSTRING(Q37:R37,"#") ->  | AQ37: =[2]!SUMSTRING(S37:T37,"#") ->  | AS37: =[2]!SUMSTRING(U37:V37,"#") ->  | AU37: =[2]!SUMSTRING(W37:X37,"#") ->  | AW37: =[2]!SUMSTRING(Y37:Z37,"#") ->  | AY37: =[2]!SUMSTRING(AA37:AW37,"|") -> 
A38: 10037 | B38: 2 | C38: 4 | D38: 1003711 | G38: 5 | H38: 1003711 | I38: 5 | J38: 1003721 | K38: 6 | L38: 1003712 | M38: 6 | N38: 1003721 | AA38: =[2]!SUMSTRING(C38:D38,"#") ->  | AC38: =[2]!SUMSTRING(E38:F38,"#") ->  | AE38: =[2]!SUMSTRING(G38:H38,"#") ->  | AG38: =[2]!SUMSTRING(I38:J38,"#") ->  | AI38: =[2]!SUMSTRING(K38:L38,"#") ->  | AK38: =[2]!SUMSTRING(M38:N38,"#") ->  | AM38: =[2]!SUMSTRING(O38:P38,"#") ->  | AO38: =[2]!SUMSTRING(Q38:R38,"#") ->  | AQ38: =[2]!SUMSTRING(S38:T38,"#") ->  | AS38: =[2]!SUMSTRING(U38:V38,"#") ->  | AU38: =[2]!SUMSTRING(W38:X38,"#") ->  | AW38: =[2]!SUMSTRING(Y38:Z38,"#") ->  | AY38: =[2]!SUMSTRING(AA38:AW38,"|") -> 
A39: 10038 | B39: 1 | C39: 4 | D39: 1003811 | G39: 5 | H39: 1003811 | I39: 5 | J39: 1003821 | K39: 6 | L39: 1003812 | M39: 6 | N39: 1003821 | AA39: =[2]!SUMSTRING(C39:D39,"#") ->  | AC39: =[2]!SUMSTRING(E39:F39,"#") ->  | AE39: =[2]!SUMSTRING(G39:H39,"#") ->  | AG39: =[2]!SUMSTRING(I39:J39,"#") ->  | AI39: =[2]!SUMSTRING(K39:L39,"#") ->  | AK39: =[2]!SUMSTRING(M39:N39,"#") ->  | AM39: =[2]!SUMSTRING(O39:P39,"#") ->  | AO39: =[2]!SUMSTRING(Q39:R39,"#") ->  | AQ39: =[2]!SUMSTRING(S39:T39,"#") ->  | AS39: =[2]!SUMSTRING(U39:V39,"#") ->  | AU39: =[2]!SUMSTRING(W39:X39,"#") ->  | AW39: =[2]!SUMSTRING(Y39:Z39,"#") ->  | AY39: =[2]!SUMSTRING(AA39:AW39,"|") -> 
A40: 10039 | B40: 2 | C40: 4 | D40: 1003911 | G40: 5 | H40: 1003911 | I40: 5 | J40: 1003921 | K40: 6 | L40: 1003912 | M40: 6 | N40: 1003921 | AA40: =[2]!SUMSTRING(C40:D40,"#") ->  | AC40: =[2]!SUMSTRING(E40:F40,"#") ->  | AE40: =[2]!SUMSTRING(G40:H40,"#") ->  | AG40: =[2]!SUMSTRING(I40:J40,"#") ->  | AI40: =[2]!SUMSTRING(K40:L40,"#") ->  | AK40: =[2]!SUMSTRING(M40:N40,"#") ->  | AM40: =[2]!SUMSTRING(O40:P40,"#") ->  | AO40: =[2]!SUMSTRING(Q40:R40,"#") ->  | AQ40: =[2]!SUMSTRING(S40:T40,"#") ->  | AS40: =[2]!SUMSTRING(U40:V40,"#") ->  | AU40: =[2]!SUMSTRING(W40:X40,"#") ->  | AW40: =[2]!SUMSTRING(Y40:Z40,"#") ->  | AY40: =[2]!SUMSTRING(AA40:AW40,"|") -> 
A41: 10040 | B41: 1 | C41: 4 | D41: 1004011 | G41: 5 | H41: 1004011 | I41: 5 | J41: 1004021 | K41: 6 | L41: 1004012 | M41: 6 | N41: 1004021 | AA41: =[2]!SUMSTRING(C41:D41,"#") ->  | AC41: =[2]!SUMSTRING(E41:F41,"#") ->  | AE41: =[2]!SUMSTRING(G41:H41,"#") ->  | AG41: =[2]!SUMSTRING(I41:J41,"#") ->  | AI41: =[2]!SUMSTRING(K41:L41,"#") ->  | AK41: =[2]!SUMSTRING(M41:N41,"#") ->  | AM41: =[2]!SUMSTRING(O41:P41,"#") ->  | AO41: =[2]!SUMSTRING(Q41:R41,"#") ->  | AQ41: =[2]!SUMSTRING(S41:T41,"#") ->  | AS41: =[2]!SUMSTRING(U41:V41,"#") ->  | AU41: =[2]!SUMSTRING(W41:X41,"#") ->  | AW41: =[2]!SUMSTRING(Y41:Z41,"#") ->  | AY41: =[2]!SUMSTRING(AA41:AW41,"|") -> 
A42: 10041 | B42: 1 | C42: 4 | D42: 1004111 | G42: 5 | H42: =D42 -> 1004111 | I42: 5 | J42: =H42+10 -> 1004121 | K42: =I42+1 -> 6 | L42: =H42+1 -> 1004112 | M42: =K42 -> 6 | N42: =IF(M42=7,J42+1,J42) -> 1004121 | AA42: =[2]!SUMSTRING(C42:D42,"#") ->  | AC42: =[2]!SUMSTRING(E42:F42,"#") ->  | AE42: =[2]!SUMSTRING(G42:H42,"#") ->  | AG42: =[2]!SUMSTRING(I42:J42,"#") ->  | AI42: =[2]!SUMSTRING(K42:L42,"#") ->  | AK42: =[2]!SUMSTRING(M42:N42,"#") ->  | AM42: =[2]!SUMSTRING(O42:P42,"#") ->  | AO42: =[2]!SUMSTRING(Q42:R42,"#") ->  | AQ42: =[2]!SUMSTRING(S42:T42,"#") ->  | AS42: =[2]!SUMSTRING(U42:V42,"#") ->  | AU42: =[2]!SUMSTRING(W42:X42,"#") ->  | AW42: =[2]!SUMSTRING(Y42:Z42,"#") ->  | AY42: =[2]!SUMSTRING(AA42:AW42,"|") -> 
A43: 10042 | B43: 3 | C43: 4 | D43: 1004211 | G43: 5 | H43: 1004211 | I43: 5 | J43: 1004221 | K43: 6 | L43: 1004212 | M43: 6 | N43: 1004221 | AA43: =[2]!SUMSTRING(C43:D43,"#") ->  | AC43: =[2]!SUMSTRING(E43:F43,"#") ->  | AE43: =[2]!SUMSTRING(G43:H43,"#") ->  | AG43: =[2]!SUMSTRING(I43:J43,"#") ->  | AI43: =[2]!SUMSTRING(K43:L43,"#") ->  | AK43: =[2]!SUMSTRING(M43:N43,"#") ->  | AM43: =[2]!SUMSTRING(O43:P43,"#") ->  | AO43: =[2]!SUMSTRING(Q43:R43,"#") ->  | AQ43: =[2]!SUMSTRING(S43:T43,"#") ->  | AS43: =[2]!SUMSTRING(U43:V43,"#") ->  | AU43: =[2]!SUMSTRING(W43:X43,"#") ->  | AW43: =[2]!SUMSTRING(Y43:Z43,"#") ->  | AY43: =[2]!SUMSTRING(AA43:AW43,"|") -> 
A44: 10043 | B44: 2 | C44: 4 | D44: 1004311 | G44: 5 | H44: =D44 -> 1004311 | I44: 5 | J44: =H44+10 -> 1004321 | K44: =I44+1 -> 6 | L44: =H44+1 -> 1004312 | M44: =K44 -> 6 | N44: =IF(M44=7,J44+1,J44) -> 1004321 | AA44: =[2]!SUMSTRING(C44:D44,"#") ->  | AC44: =[2]!SUMSTRING(E44:F44,"#") ->  | AE44: =[2]!SUMSTRING(G44:H44,"#") ->  | AG44: =[2]!SUMSTRING(I44:J44,"#") ->  | AI44: =[2]!SUMSTRING(K44:L44,"#") ->  | AK44: =[2]!SUMSTRING(M44:N44,"#") ->  | AM44: =[2]!SUMSTRING(O44:P44,"#") ->  | AO44: =[2]!SUMSTRING(Q44:R44,"#") ->  | AQ44: =[2]!SUMSTRING(S44:T44,"#") ->  | AS44: =[2]!SUMSTRING(U44:V44,"#") ->  | AU44: =[2]!SUMSTRING(W44:X44,"#") ->  | AW44: =[2]!SUMSTRING(Y44:Z44,"#") ->  | AY44: =[2]!SUMSTRING(AA44:AW44,"|") -> 
A45: 10044 | B45: 6 | C45: 4 | D45: 1004411 | G45: 5 | H45: =D45 -> 1004411 | I45: 5 | J45: =H45+10 -> 1004421 | K45: 6 | L45: 1004412 | M45: 6 | N45: 1004421 | O45: =K45+1 -> 7 | P45: =L45 -> 1004412 | Q45: =M45+1 -> 7 | R45: =N45+1 -> 1004422 | S45: =O45+1 -> 8 | T45: =P45+1 -> 1004413 | U45: =S45 -> 8 | V45: =R45 -> 1004422 | W45: =S45+1 -> 9 | X45: =T45 -> 1004413 | Y45: 9 | Z45: =V45+1 -> 1004423 | AA45: =[2]!SUMSTRING(C45:D45,"#") ->  | AC45: =[2]!SUMSTRING(E45:F45,"#") ->  | AE45: =[2]!SUMSTRING(G45:H45,"#") ->  | AG45: =[2]!SUMSTRING(I45:J45,"#") ->  | AI45: =[2]!SUMSTRING(K45:L45,"#") ->  | AK45: =[2]!SUMSTRING(M45:N45,"#") ->  | AM45: =[2]!SUMSTRING(O45:P45,"#") ->  | AO45: =[2]!SUMSTRING(Q45:R45,"#") ->  | AQ45: =[2]!SUMSTRING(S45:T45,"#") ->  | AS45: =[2]!SUMSTRING(U45:V45,"#") ->  | AU45: =[2]!SUMSTRING(W45:X45,"#") ->  | AW45: =[2]!SUMSTRING(Y45:Z45,"#") ->  | AY45: =[2]!SUMSTRING(AA45:AW45,"|") -> 
A46: 10045 | B46: 3 | C46: 4 | D46: 1004511 | G46: 5 | H46: 1004511 | I46: 5 | J46: =H46+10 -> 1004521 | K46: 6 | L46: 1004512 | M46: 6 | N46: 1004521 | AA46: =[2]!SUMSTRING(C46:D46,"#") ->  | AC46: =[2]!SUMSTRING(E46:F46,"#") ->  | AE46: =[2]!SUMSTRING(G46:H46,"#") ->  | AG46: =[2]!SUMSTRING(I46:J46,"#") ->  | AI46: =[2]!SUMSTRING(K46:L46,"#") ->  | AK46: =[2]!SUMSTRING(M46:N46,"#") ->  | AM46: =[2]!SUMSTRING(O46:P46,"#") ->  | AO46: =[2]!SUMSTRING(Q46:R46,"#") ->  | AQ46: =[2]!SUMSTRING(S46:T46,"#") ->  | AS46: =[2]!SUMSTRING(U46:V46,"#") ->  | AU46: =[2]!SUMSTRING(W46:X46,"#") ->  | AW46: =[2]!SUMSTRING(Y46:Z46,"#") ->  | AY46: =[2]!SUMSTRING(AA46:AW46,"|") -> 
A47: 10046 | B47: 5 | C47: 4 | D47: 1004611 | G47: 5 | H47: 1004611 | I47: 5 | J47: =H47+10 -> 1004621 | K47: 6 | L47: 1004612 | M47: 6 | N47: 1004621 | O47: =K47+1 -> 7 | P47: =L47 -> 1004612 | Q47: =M47+1 -> 7 | R47: =N47+1 -> 1004622 | S47: =O47+1 -> 8 | T47: =P47+1 -> 1004613 | U47: =S47 -> 8 | V47: =R47 -> 1004622 | W47: =S47+1 -> 9 | X47: =T47 -> 1004613 | Y47: 9 | Z47: =V47+1 -> 1004623 | AA47: =[2]!SUMSTRING(C47:D47,"#") ->  | AC47: =[2]!SUMSTRING(E47:F47,"#") ->  | AE47: =[2]!SUMSTRING(G47:H47,"#") ->  | AG47: =[2]!SUMSTRING(I47:J47,"#") ->  | AI47: =[2]!SUMSTRING(K47:L47,"#") ->  | AK47: =[2]!SUMSTRING(M47:N47,"#") ->  | AM47: =[2]!SUMSTRING(O47:P47,"#") ->  | AO47: =[2]!SUMSTRING(Q47:R47,"#") ->  | AQ47: =[2]!SUMSTRING(S47:T47,"#") ->  | AS47: =[2]!SUMSTRING(U47:V47,"#") ->  | AU47: =[2]!SUMSTRING(W47:X47,"#") ->  | AW47: =[2]!SUMSTRING(Y47:Z47,"#") ->  | AY47: =[2]!SUMSTRING(AA47:AW47,"|") -> 
A48: 10047 | B48: 1 | C48: 3 | D48: 1004711 | AA48: =[2]!SUMSTRING(C48:D48,"#") ->  | AC48: =[2]!SUMSTRING(E48:F48,"#") ->  | AE48: =[2]!SUMSTRING(G48:H48,"#") ->  | AG48: =[2]!SUMSTRING(I48:J48,"#") ->  | AI48: =[2]!SUMSTRING(K48:L48,"#") ->  | AK48: =[2]!SUMSTRING(M48:N48,"#") ->  | AM48: =[2]!SUMSTRING(O48:P48,"#") ->  | AO48: =[2]!SUMSTRING(Q48:R48,"#") ->  | AQ48: =[2]!SUMSTRING(S48:T48,"#") ->  | AS48: =[2]!SUMSTRING(U48:V48,"#") ->  | AU48: =[2]!SUMSTRING(W48:X48,"#") ->  | AW48: =[2]!SUMSTRING(Y48:Z48,"#") ->  | AY48: =[2]!SUMSTRING(AA48:AW48,"|") -> 
A49: 10048 | B49: 3 | C49: 3 | D49: 1004811 | AA49: =[2]!SUMSTRING(C49:D49,"#") ->  | AC49: =[2]!SUMSTRING(E49:F49,"#") ->  | AE49: =[2]!SUMSTRING(G49:H49,"#") ->  | AG49: =[2]!SUMSTRING(I49:J49,"#") ->  | AI49: =[2]!SUMSTRING(K49:L49,"#") ->  | AK49: =[2]!SUMSTRING(M49:N49,"#") ->  | AM49: =[2]!SUMSTRING(O49:P49,"#") ->  | AO49: =[2]!SUMSTRING(Q49:R49,"#") ->  | AQ49: =[2]!SUMSTRING(S49:T49,"#") ->  | AS49: =[2]!SUMSTRING(U49:V49,"#") ->  | AU49: =[2]!SUMSTRING(W49:X49,"#") ->  | AW49: =[2]!SUMSTRING(Y49:Z49,"#") ->  | AY49: =[2]!SUMSTRING(AA49:AW49,"|") -> 
A50: 10049 | B50: 2 | C50: 3 | D50: 1004911 | AA50: =[2]!SUMSTRING(C50:D50,"#") ->  | AC50: =[2]!SUMSTRING(E50:F50,"#") ->  | AE50: =[2]!SUMSTRING(G50:H50,"#") ->  | AG50: =[2]!SUMSTRING(I50:J50,"#") ->  | AI50: =[2]!SUMSTRING(K50:L50,"#") ->  | AK50: =[2]!SUMSTRING(M50:N50,"#") ->  | AM50: =[2]!SUMSTRING(O50:P50,"#") ->  | AO50: =[2]!SUMSTRING(Q50:R50,"#") ->  | AQ50: =[2]!SUMSTRING(S50:T50,"#") ->  | AS50: =[2]!SUMSTRING(U50:V50,"#") ->  | AU50: =[2]!SUMSTRING(W50:X50,"#") ->  | AW50: =[2]!SUMSTRING(Y50:Z50,"#") ->  | AY50: =[2]!SUMSTRING(AA50:AW50,"|") -> 
A51: 10050 | B51: 4 | C51: 3 | D51: 1005011 | AA51: =[2]!SUMSTRING(C51:D51,"#") ->  | AC51: =[2]!SUMSTRING(E51:F51,"#") ->  | AE51: =[2]!SUMSTRING(G51:H51,"#") ->  | AG51: =[2]!SUMSTRING(I51:J51,"#") ->  | AI51: =[2]!SUMSTRING(K51:L51,"#") ->  | AK51: =[2]!SUMSTRING(M51:N51,"#") ->  | AM51: =[2]!SUMSTRING(O51:P51,"#") ->  | AO51: =[2]!SUMSTRING(Q51:R51,"#") ->  | AQ51: =[2]!SUMSTRING(S51:T51,"#") ->  | AS51: =[2]!SUMSTRING(U51:V51,"#") ->  | AU51: =[2]!SUMSTRING(W51:X51,"#") ->  | AW51: =[2]!SUMSTRING(Y51:Z51,"#") ->  | AY51: =[2]!SUMSTRING(AA51:AW51,"|") -> 
A52: 10051 | B52: 5 | C52: 3 | D52: 1005111 | AA52: =[2]!SUMSTRING(C52:D52,"#") ->  | AC52: =[2]!SUMSTRING(E52:F52,"#") ->  | AE52: =[2]!SUMSTRING(G52:H52,"#") ->  | AG52: =[2]!SUMSTRING(I52:J52,"#") ->  | AI52: =[2]!SUMSTRING(K52:L52,"#") ->  | AK52: =[2]!SUMSTRING(M52:N52,"#") ->  | AM52: =[2]!SUMSTRING(O52:P52,"#") ->  | AO52: =[2]!SUMSTRING(Q52:R52,"#") ->  | AQ52: =[2]!SUMSTRING(S52:T52,"#") ->  | AS52: =[2]!SUMSTRING(U52:V52,"#") ->  | AU52: =[2]!SUMSTRING(W52:X52,"#") ->  | AW52: =[2]!SUMSTRING(Y52:Z52,"#") ->  | AY52: =[2]!SUMSTRING(AA52:AW52,"|") -> 
A53: 10052 | B53: 6 | C53: 3 | D53: 1005211 | AA53: =[2]!SUMSTRING(C53:D53,"#") ->  | AC53: =[2]!SUMSTRING(E53:F53,"#") ->  | AE53: =[2]!SUMSTRING(G53:H53,"#") ->  | AG53: =[2]!SUMSTRING(I53:J53,"#") ->  | AI53: =[2]!SUMSTRING(K53:L53,"#") ->  | AK53: =[2]!SUMSTRING(M53:N53,"#") ->  | AM53: =[2]!SUMSTRING(O53:P53,"#") ->  | AO53: =[2]!SUMSTRING(Q53:R53,"#") ->  | AQ53: =[2]!SUMSTRING(S53:T53,"#") ->  | AS53: =[2]!SUMSTRING(U53:V53,"#") ->  | AU53: =[2]!SUMSTRING(W53:X53,"#") ->  | AW53: =[2]!SUMSTRING(Y53:Z53,"#") ->  | AY53: =[2]!SUMSTRING(AA53:AW53,"|") -> 
AC58: 5#1411|5#1412|6#1411|6#1412|7#1411|7#1412|8#1411|8#1412|9#1411|9#1412|10#1411|10#1412|11#1411|11#1412
AC60: 0.7 | AD60: 0#200 | AE60: 25#37

Sheet 角色升星配方
B1: 角色id | C1: 角色属性 | D1: 角色星级 | E1: 升星 | F1: 槽位1 | G1: 消耗1 | H1: num | I1: 升星 | J1: 槽位2 | K1: 消耗2 | L1: num | M1: 升星 | N1: 槽位 | O1: 消耗3 | P1: num | Q1: 升星 | R1: 槽位1 | S1: 消耗1 | T1: num | U1: 升星 | V1: 槽位1 | W1: 消耗1 | X1: num | Y1: 升星 | Z1: 槽位2 | AA1: 消耗2 | AB1: num | AC1: 升星 | AD1: 槽位 | AE1: 消耗1 | AF1: num | AG1: 升星 | AH1: 槽位 | AI1: 消耗2 | AJ1: num | AK1: 升星 | AL1: 槽位3 | AM1: 消耗3 | AN1: num | AO1: 升星 | AP1: 槽位 | AQ1: 消耗1 | AR1: num | AS1: 升星 | AT1: 槽位 | AU1: 消耗2 | AV1: num | AW1: 升星 | AX1: 槽位 | AY1: 消耗3 | AZ1: num
A2: 3 | B2: 10001 | C2: 3 | D2: 5 | E2: 6 | F2: 1 | G2: 5星同名 | H2: 1 | I2: 6 | J2: 2 | K2: 5星10036 | L2: 1 | M2: 6 | N2: 3 | O2: 5星同系 | P2: 3 | Q2: 7 | R2: 1 | S2: 5星同系 | T2: 4 | U2: 8 | V2: 1 | W2: 5星同系 | X2: 3 | Y2: 8 | Z2: 2 | AA2: 6星同系 | AB2: 1 | AC2: 9 | AD2: 1 | AE2: 5星同名 | AF2: 1 | AG2: 9 | AH2: 2 | AI2: 6星同系 | AJ2: 1 | AK2: 9 | AL2: 3 | AM2: 5星同系 | AN2: 2 | AO2: 10 | AP2: 1 | AQ2: 5星同名 | AR2: 2 | AS2: 10 | AT2: 2 | AU2: 6星同系 | AV2: 1 | AW2: 10 | AX2: 3 | AY2: 9星任意 | AZ2: 1 | BM2: =_xlfn.IFNA(E2&"#"&F2&"#"&VLOOKUP(G2,数组!$B:$C,2,0)&"#"&角色升星配方!H2,"") -> 6#1#3#1 | BN2: =_xlfn.IFNA(F2&"#"&G2&"#"&VLOOKUP(H2,数组!$B:$C,2,0)&"#"&角色升星配方!I2,"") ->  | BO2: =_xlfn.IFNA(G2&"#"&H2&"#"&VLOOKUP(I2,数组!$B:$C,2,0)&"#"&角色升星配方!J2,"") ->  | BP2: =_xlfn.IFNA(H2&"#"&I2&"#"&VLOOKUP(J2,数组!$B:$C,2,0)&"#"&角色升星配方!K2,"") ->  | BQ2: =_xlfn.IFNA(I2&"#"&J2&"#"&VLOOKUP(K2,数组!$B:$C,2,0)&"#"&角色升星配方!L2,"") -> 6#2#34#1 | BR2: =_xlfn.IFNA(J2&"#"&K2&"#"&VLOOKUP(L2,数组!$B:$C,2,0)&"#"&角色升星配方!M2,"") ->  | BS2: =_xlfn.IFNA(K2&"#"&L2&"#"&VLOOKUP(M2,数组!$B:$C,2,0)&"#"&角色升星配方!N2,"") ->  | BT2: =_xlfn.IFNA(L2&"#"&M2&"#"&VLOOKUP(N2,数组!$B:$C,2,0)&"#"&角色升星配方!O2,"") ->  | BU2: =_xlfn.IFNA(M2&"#"&N2&"#"&VLOOKUP(O2,数组!$B:$C,2,0)&"#"&角色升星配方!P2,"") -> 6#3#17#3 | BV2: =_xlfn.IFNA(N2&"#"&O2&"#"&VLOOKUP(P2,数组!$B:$C,2,0)&"#"&角色升星配方!Q2,"") ->  | BW2: =_xlfn.IFNA(O2&"#"&P2&"#"&VLOOKUP(Q2,数组!$B:$C,2,0)&"#"&角色升星配方!R2,"") ->  | BX2: =_xlfn.IFNA(P2&"#"&Q2&"#"&VLOOKUP(R2,数组!$B:$C,2,0)&"#"&角色升星配方!S2,"") ->  | BY2: =_xlfn.IFNA(Q2&"#"&R2&"#"&VLOOKUP(S2,数组!$B:$C,2,0)&"#"&角色升星配方!T2,"") -> 7#1#17#4 | BZ2: =_xlfn.IFNA(R2&"#"&S2&"#"&VLOOKUP(T2,数组!$B:$C,2,0)&"#"&角色升星配方!U2,"") ->  | CA2: =_xlfn.IFNA(S2&"#"&T2&"#"&VLOOKUP(U2,数组!$B:$C,2,0)&"#"&角色升星配方!V2,"") ->  | CB2: =_xlfn.IFNA(T2&"#"&U2&"#"&VLOOKUP(V2,数组!$B:$C,2,0)&"#"&角色升星配方!W2,"") ->  | CC2: =_xlfn.IFNA(U2&"#"&V2&"#"&VLOOKUP(W2,数组!$B:$C,2,0)&"#"&角色升星配方!X2,"") -> 8#1#17#3 | CD2: =_xlfn.IFNA(V2&"#"&W2&"#"&VLOOKUP(X2,数组!$B:$C,2,0)&"#"&角色升星配方!AC2,"") ->  | CE2: =_xlfn.IFNA(W2&"#"&X2&"#"&VLOOKUP(AC2,数组!$B:$C,2,0)&"#"&角色升星配方!AD2,"") ->  | CF2: =_xlfn.IFNA(X2&"#"&AC2&"#"&VLOOKUP(AD2,数组!$B:$C,2,0)&"#"&角色升星配方!AE2,"") ->  | CG2: =_xlfn.IFNA(Y2&"#"&Z2&"#"&VLOOKUP(AA2,数组!$B:$C,2,0)&"#"&角色升星配方!AB2,"") -> 8#2#18#1 | CH2: =_xlfn.IFNA(AD2&"#"&AE2&"#"&VLOOKUP(AF2,数组!$B:$C,2,0)&"#"&角色升星配方!AG2,"") ->  | CI2: =_xlfn.IFNA(AE2&"#"&AF2&"#"&VLOOKUP(AG2,数组!$B:$C,2,0)&"#"&角色升星配方!AH2,"") ->  | CJ2: =_xlfn.IFNA(AF2&"#"&AG2&"#"&VLOOKUP(AH2,数组!$B:$C,2,0)&"#"&角色升星配方!AI2,"") ->  | CK2: =_xlfn.IFNA(AC2&"#"&AD2&"#"&VLOOKUP(AE2,数组!$B:$C,2,0)&"#"&角色升星配方!AF2,"") -> 9#1#3#1 | CL2: =_xlfn.IFNA(AH2&"#"&AI2&"#"&VLOOKUP(AJ2,数组!$B:$C,2,0)&"#"&角色升星配方!AK2,"") ->  | CM2: =_xlfn.IFNA(AI2&"#"&AJ2&"#"&VLOOKUP(AK2,数组!$B:$C,2,0)&"#"&角色升星配方!AL2,"") ->  | CN2: =_xlfn.IFNA(AJ2&"#"&AK2&"#"&VLOOKUP(AL2,数组!$B:$C,2,0)&"#"&角色升星配方!AM2,"") ->  | CO2: =_xlfn.IFNA(AG2&"#"&AH2&"#"&VLOOKUP(AI2,数组!$B:$C,2,0)&"#"&角色升星配方!AJ2,"") -> 9#2#18#1 | CP2: =_xlfn.IFNA(AL2&"#"&AM2&"#"&VLOOKUP(AN2,数组!$B:$C,2,0)&"#"&角色升星配方!AO2,"") ->  | CQ2: =_xlfn.IFNA(AM2&"#"&AN2&"#"&VLOOKUP(AO2,数组!$B:$C,2,0)&"#"&角色升星配方!AP2,"") ->  | CR2: =_xlfn.IFNA(AN2&"#"&AO2&"#"&VLOOKUP(AP2,数组!$B:$C,2,0)&"#"&角色升星配方!AQ2,"") ->  | CS2: =_xlfn.IFNA(AK2&"#"&AL2&"#"&VLOOKUP(AM2,数组!$B:$C,2,0)&"#"&角色升星配方!AN2,"") -> 9#3#17#2 | CT2: =_xlfn.IFNA(AP2&"#"&AQ2&"#"&VLOOKUP(AR2,数组!$B:$C,2,0)&"#"&角色升星配方!AS2,"") ->  | CU2: =_xlfn.IFNA(AQ2&"#"&AR2&"#"&VLOOKUP(AS2,数组!$B:$C,2,0)&"#"&角色升星配方!AT2,"") ->  | CV2: =_xlfn.IFNA(AR2&"#"&AS2&"#"&VLOOKUP(AT2,数组!$B:$C,2,0)&"#"&角色升星配方!AU2,"") ->  | CW2: =_xlfn.IFNA(AO2&"#"&AP2&"#"&VLOOKUP(AQ2,数组!$B:$C,2,0)&"#"&角色升星配方!AR2,"") -> 10#1#3#2 | CX2: =_xlfn.IFNA(AT2&"#"&AU2&"#"&VLOOKUP(AV2,数组!$B:$C,2,0)&"#"&角色升星配方!AW2,"") ->  | CY2: =_xlfn.IFNA(AU2&"#"&AV2&"#"&VLOOKUP(AW2,数组!$B:$C,2,0)&"#"&角色升星配方!AX2,"") ->  | CZ2: =_xlfn.IFNA(AV2&"#"&AW2&"#"&VLOOKUP(AX2,数组!$B:$C,2,0)&"#"&角色升星配方!AY2,"") ->  | DA2: =_xlfn.IFNA(AS2&"#"&AT2&"#"&VLOOKUP(AU2,数组!$B:$C,2,0)&"#"&角色升星配方!AV2,"") -> 10#2#18#1 | DB2: =_xlfn.IFNA(AX2&"#"&AY2&"#"&VLOOKUP(AZ2,数组!$B:$C,2,0)&"#"&角色升星配方!BM2,"") ->  | DC2: =_xlfn.IFNA(AY2&"#"&AZ2&"#"&VLOOKUP(BM2,数组!$B:$C,2,0)&"#"&角色升星配方!BN2,"") ->  | DE2: =_xlfn.IFNA(AW2&"#"&AX2&"#"&VLOOKUP(AY2,数组!$B:$C,2,0)&"#"&角色升星配方!AZ2,"") -> 10#3#14#1 | DI2: =_xlfn.IFNA(BE2&"#"&BF2&"#"&VLOOKUP(BG2,数组!$B:$C,2,0)&"#"&角色升星配方!BH2,"") ->  | DM2: =_xlfn.IFNA(BI2&"#"&BJ2&"#"&VLOOKUP(BK2,数组!$B:$C,2,0)&"#"&角色升星配方!BL2,"") ->  | DN2: =[2]!SUMSTRING(BM2:DM2,"|") -> 
A3: 2 | B3: 10002 | C3: 2 | D3: 5 | E3: 6 | F3: 1 | G3: 5星同名 | H3: 1 | I3: 6 | J3: 2 | K3: 5星10024 | L3: 1 | M3: 6 | N3: 3 | O3: 5星同系 | P3: 3 | Q3: 7 | R3: 1 | S3: 5星同系 | T3: 4 | U3: 8 | V3: 1 | W3: 5星同系 | X3: 3 | Y3: 8 | Z3: 2 | AA3: 6星同系 | AB3: 1 | AC3: 9 | AD3: 1 | AE3: 5星同名 | AF3: 1 | AG3: 9 | AH3: 2 | AI3: 6星同系 | AJ3: 1 | AK3: 9 | AL3: 3 | AM3: 5星同系 | AN3: 2 | AO3: 10 | AP3: 1 | AQ3: 5星同名 | AR3: 2 | AS3: 10 | AT3: 2 | AU3: 6星同系 | AV3: 1 | AW3: 10 | AX3: 3 | AY3: 9星任意 | AZ3: 1 | BM3: =_xlfn.IFNA(E3&"#"&F3&"#"&VLOOKUP(G3,数组!$B:$C,2,0)&"#"&角色升星配方!H3,"") -> 6#1#3#1 | BN3: =_xlfn.IFNA(F3&"#"&G3&"#"&VLOOKUP(H3,数组!$B:$C,2,0)&"#"&角色升星配方!I3,"") ->  | BO3: =_xlfn.IFNA(G3&"#"&H3&"#"&VLOOKUP(I3,数组!$B:$C,2,0)&"#"&角色升星配方!J3,"") ->  | BP3: =_xlfn.IFNA(H3&"#"&I3&"#"&VLOOKUP(J3,数组!$B:$C,2,0)&"#"&角色升星配方!K3,"") ->  | BQ3: =_xlfn.IFNA(I3&"#"&J3&"#"&VLOOKUP(K3,数组!$B:$C,2,0)&"#"&角色升星配方!L3,"") -> 6#2#22#1 | BR3: =_xlfn.IFNA(J3&"#"&K3&"#"&VLOOKUP(L3,数组!$B:$C,2,0)&"#"&角色升星配方!M3,"") ->  | BS3: =_xlfn.IFNA(K3&"#"&L3&"#"&VLOOKUP(M3,数组!$B:$C,2,0)&"#"&角色升星配方!N3,"") ->  | BT3: =_xlfn.IFNA(L3&"#"&M3&"#"&VLOOKUP(N3,数组!$B:$C,2,0)&"#"&角色升星配方!O3,"") ->  | BU3: =_xlfn.IFNA(M3&"#"&N3&"#"&VLOOKUP(O3,数组!$B:$C,2,0)&"#"&角色升星配方!P3,"") -> 6#3#17#3 | BV3: =_xlfn.IFNA(N3&"#"&O3&"#"&VLOOKUP(P3,数组!$B:$C,2,0)&"#"&角色升星配方!Q3,"") ->  | BW3: =_xlfn.IFNA(O3&"#"&P3&"#"&VLOOKUP(Q3,数组!$B:$C,2,0)&"#"&角色升星配方!R3,"") ->  | BX3: =_xlfn.IFNA(P3&"#"&Q3&"#"&VLOOKUP(R3,数组!$B:$C,2,0)&"#"&角色升星配方!S3,"") ->  | BY3: =_xlfn.IFNA(Q3&"#"&R3&"#"&VLOOKUP(S3,数组!$B:$C,2,0)&"#"&角色升星配方!T3,"") -> 7#1#17#4 | BZ3: =_xlfn.IFNA(R3&"#"&S3&"#"&VLOOKUP(T3,数组!$B:$C,2,0)&"#"&角色升星配方!U3,"") ->  | CA3: =_xlfn.IFNA(S3&"#"&T3&"#"&VLOOKUP(U3,数组!$B:$C,2,0)&"#"&角色升星配方!V3,"") ->  | CB3: =_xlfn.IFNA(T3&"#"&U3&"#"&VLOOKUP(V3,数组!$B:$C,2,0)&"#"&角色升星配方!W3,"") ->  | CC3: =_xlfn.IFNA(U3&"#"&V3&"#"&VLOOKUP(W3,数组!$B:$C,2,0)&"#"&角色升星配方!X3,"") -> 8#1#17#3 | CD3: =_xlfn.IFNA(V3&"#"&W3&"#"&VLOOKUP(X3,数组!$B:$C,2,0)&"#"&角色升星配方!AC3,"") ->  | CE3: =_xlfn.IFNA(W3&"#"&X3&"#"&VLOOKUP(AC3,数组!$B:$C,2,0)&"#"&角色升星配方!AD3,"") ->  | CF3: =_xlfn.IFNA(X3&"#"&AC3&"#"&VLOOKUP(AD3,数组!$B:$C,2,0)&"#"&角色升星配方!AE3,"") ->  | CG3: =_xlfn.IFNA(Y3&"#"&Z3&"#"&VLOOKUP(AA3,数组!$B:$C,2,0)&"#"&角色升星配方!AB3,"") -> 8#2#18#1 | CH3: =_xlfn.IFNA(AD3&"#"&AE3&"#"&VLOOKUP(AF3,数组!$B:$C,2,0)&"#"&角色升星配方!AG3,"") ->  | CI3: =_xlfn.IFNA(AE3&"#"&AF3&"#"&VLOOKUP(AG3,数组!$B:$C,2,0)&"#"&角色升星配方!AH3,"") ->  | CJ3: =_xlfn.IFNA(AF3&"#"&AG3&"#"&VLOOKUP(AH3,数组!$B:$C,2,0)&"#"&角色升星配方!AI3,"") ->  | CK3: =_xlfn.IFNA(AC3&"#"&AD3&"#"&VLOOKUP(AE3,数组!$B:$C,2,0)&"#"&角色升星配方!AF3,"") -> 9#1#3#1 | CL3: =_xlfn.IFNA(AH3&"#"&AI3&"#"&VLOOKUP(AJ3,数组!$B:$C,2,0)&"#"&角色升星配方!AK3,"") ->  | CM3: =_xlfn.IFNA(AI3&"#"&AJ3&"#"&VLOOKUP(AK3,数组!$B:$C,2,0)&"#"&角色升星配方!AL3,"") ->  | CN3: =_xlfn.IFNA(AJ3&"#"&AK3&"#"&VLOOKUP(AL3,数组!$B:$C,2,0)&"#"&角色升星配方!AM3,"") ->  | CO3: =_xlfn.IFNA(AG3&"#"&AH3&"#"&VLOOKUP(AI3,数组!$B:$C,2,0)&"#"&角色升星配方!AJ3,"") -> 9#2#18#1 | CP3: =_xlfn.IFNA(AL3&"#"&AM3&"#"&VLOOKUP(AN3,数组!$B:$C,2,0)&"#"&角色升星配方!AO3,"") ->  | CQ3: =_xlfn.IFNA(AM3&"#"&AN3&"#"&VLOOKUP(AO3,数组!$B:$C,2,0)&"#"&角色升星配方!AP3,"") ->  | CR3: =_xlfn.IFNA(AN3&"#"&AO3&"#"&VLOOKUP(AP3,数组!$B:$C,2,0)&"#"&角色升星配方!AQ3,"") ->  | CS3: =_xlfn.IFNA(AK3&"#"&AL3&"#"&VLOOKUP(AM3,数组!$B:$C,2,0)&"#"&角色升星配方!AN3,"") -> 9#3#17#2 | CT3: =_xlfn.IFNA(AP3&"#"&AQ3&"#"&VLOOKUP(AR3,数组!$B:$C,2,0)&"#"&角色升星配方!AS3,"") ->  | CU3: =_xlfn.IFNA(AQ3&"#"&AR3&"#"&VLOOKUP(AS3,数组!$B:$C,2,0)&"#"&角色升星配方!AT3,"") ->  | CV3: =_xlfn.IFNA(AR3&"#"&AS3&"#"&VLOOKUP(AT3,数组!$B:$C,2,0)&"#"&角色升星配方!AU3,"") ->  | CW3: =_xlfn.IFNA(AO3&"#"&AP3&"#"&VLOOKUP(AQ3,数组!$B:$C,2,0)&"#"&角色升星配方!AR3,"") -> 10#1#3#2 | CX3: =_xlfn.IFNA(AT3&"#"&AU3&"#"&VLOOKUP(AV3,数组!$B:$C,2,0)&"#"&角色升星配方!AW3,"") ->  | CY3: =_xlfn.IFNA(AU3&"#"&AV3&"#"&VLOOKUP(AW3,数组!$B:$C,2,0)&"#"&角色升星配方!AX3,"") ->  | CZ3: =_xlfn.IFNA(AV3&"#"&AW3&"#"&VLOOKUP(AX3,数组!$B:$C,2,0)&"#"&角色升星配方!AY3,"") ->  | DA3: =_xlfn.IFNA(AS3&"#"&AT3&"#"&VLOOKUP(AU3,数组!$B:$C,2,0)&"#"&角色升星配方!AV3,"") -> 10#2#18#1 | DB3: =_xlfn.IFNA(AX3&"#"&AY3&"#"&VLOOKUP(AZ3,数组!$B:$C,2,0)&"#"&角色升星配方!BM3,"") ->  | DE3: =_xlfn.IFNA(AW3&"#"&AX3&"#"&VLOOKUP(AY3,数组!$B:$C,2,0)&"#"&角色升星配方!AZ3,"") -> 10#3#14#1 | DI3: =_xlfn.IFNA(BE3&"#"&BF3&"#"&VLOOKUP(BG3,数组!$B:$C,2,0)&"#"&角色升星配方!BH3,"") ->  | DM3: =_xlfn.IFNA(BI3&"#"&BJ3&"#"&VLOOKUP(BK3,数组!$B:$C,2,0)&"#"&角色升星配方!BL3,"") ->  | DN3: =[2]!SUMSTRING(BM3:DM3,"|") -> 
A4: 4 | B4: 10003 | C4: 4 | D4: 5 | E4: 6 | F4: 1 | G4: 5星同名 | H4: 1 | I4: 6 | J4: 2 | K4: 5星10029 | L4: 1 | M4: 6 | N4: 3 | O4: 5星同系 | P4: 3 | Q4: 7 | R4: 1 | S4: 5星同系 | T4: 4 | U4: 8 | V4: 1 | W4: 5星同系 | X4: 3 | Y4: 8 | Z4: 2 | AA4: 6星同系 | AB4: 1 | AC4: 9 | AD4: 1 | AE4: 5星同名 | AF4: 1 | AG4: 9 | AH4: 2 | AI4: 6星同系 | AJ4: 1 | AK4: 9 | AL4: 3 | AM4: 5星同系 | AN4: 2 | AO4: 10 | AP4: 1 | AQ4: 5星同名 | AR4: 2 | AS4: 10 | AT4: 2 | AU4: 6星同系 | AV4: 1 | AW4: 10 | AX4: 3 | AY4: 9星任意 | AZ4: 1 | BM4: =_xlfn.IFNA(E4&"#"&F4&"#"&VLOOKUP(G4,数组!$B:$C,2,0)&"#"&角色升星配方!H4,"") -> 6#1#3#1 | BN4: =_xlfn.IFNA(F4&"#"&G4&"#"&VLOOKUP(H4,数组!$B:$C,2,0)&"#"&角色升星配方!I4,"") ->  | BO4: =_xlfn.IFNA(G4&"#"&H4&"#"&VLOOKUP(I4,数组!$B:$C,2,0)&"#"&角色升星配方!J4,"") ->  | BP4: =_xlfn.IFNA(H4&"#"&I4&"#"&VLOOKUP(J4,数组!$B:$C,2,0)&"#"&角色升星配方!K4,"") ->  | BQ4: =_xlfn.IFNA(I4&"#"&J4&"#"&VLOOKUP(K4,数组!$B:$C,2,0)&"#"&角色升星配方!L4,"") -> 6#2#27#1 | BR4: =_xlfn.IFNA(J4&"#"&K4&"#"&VLOOKUP(L4,数组!$B:$C,2,0)&"#"&角色升星配方!M4,"") ->  | BS4: =_xlfn.IFNA(K4&"#"&L4&"#"&VLOOKUP(M4,数组!$B:$C,2,0)&"#"&角色升星配方!N4,"") ->  | BT4: =_xlfn.IFNA(L4&"#"&M4&"#"&VLOOKUP(N4,数组!$B:$C,2,0)&"#"&角色升星配方!O4,"") ->  | BU4: =_xlfn.IFNA(M4&"#"&N4&"#"&VLOOKUP(O4,数组!$B:$C,2,0)&"#"&角色升星配方!P4,"") -> 6#3#17#3 | BV4: =_xlfn.IFNA(N4&"#"&O4&"#"&VLOOKUP(P4,数组!$B:$C,2,0)&"#"&角色升星配方!Q4,"") ->  | BW4: =_xlfn.IFNA(O4&"#"&P4&"#"&VLOOKUP(Q4,数组!$B:$C,2,0)&"#"&角色升星配方!R4,"") ->  | BX4: =_xlfn.IFNA(P4&"#"&Q4&"#"&VLOOKUP(R4,数组!$B:$C,2,0)&"#"&角色升星配方!S4,"") ->  | BY4: =_xlfn.IFNA(Q4&"#"&R4&"#"&VLOOKUP(S4,数组!$B:$C,2,0)&"#"&角色升星配方!T4,"") -> 7#1#17#4 | BZ4: =_xlfn.IFNA(R4&"#"&S4&"#"&VLOOKUP(T4,数组!$B:$C,2,0)&"#"&角色升星配方!U4,"") ->  | CA4: =_xlfn.IFNA(S4&"#"&T4&"#"&VLOOKUP(U4,数组!$B:$C,2,0)&"#"&角色升星配方!V4,"") ->  | CB4: =_xlfn.IFNA(T4&"#"&U4&"#"&VLOOKUP(V4,数组!$B:$C,2,0)&"#"&角色升星配方!W4,"") ->  | CC4: =_xlfn.IFNA(U4&"#"&V4&"#"&VLOOKUP(W4,数组!$B:$C,2,0)&"#"&角色升星配方!X4,"") -> 8#1#17#3 | CD4: =_xlfn.IFNA(V4&"#"&W4&"#"&VLOOKUP(X4,数组!$B:$C,2,0)&"#"&角色升星配方!AC4,"") ->  | CE4: =_xlfn.IFNA(W4&"#"&X4&"#"&VLOOKUP(AC4,数组!$B:$C,2,0)&"#"&角色升星配方!AD4,"") ->  | CF4: =_xlfn.IFNA(X4&"#"&AC4&"#"&VLOOKUP(AD4,数组!$B:$C,2,0)&"#"&角色升星配方!AE4,"") ->  | CG4: =_xlfn.IFNA(Y4&"#"&Z4&"#"&VLOOKUP(AA4,数组!$B:$C,2,0)&"#"&角色升星配方!AB4,"") -> 8#2#18#1 | CH4: =_xlfn.IFNA(AD4&"#"&AE4&"#"&VLOOKUP(AF4,数组!$B:$C,2,0)&"#"&角色升星配方!AG4,"") ->  | CI4: =_xlfn.IFNA(AE4&"#"&AF4&"#"&VLOOKUP(AG4,数组!$B:$C,2,0)&"#"&角色升星配方!AH4,"") ->  | CJ4: =_xlfn.IFNA(AF4&"#"&AG4&"#"&VLOOKUP(AH4,数组!$B:$C,2,0)&"#"&角色升星配方!AI4,"") ->  | CK4: =_xlfn.IFNA(AC4&"#"&AD4&"#"&VLOOKUP(AE4,数组!$B:$C,2,0)&"#"&角色升星配方!AF4,"") -> 9#1#3#1 | CL4: =_xlfn.IFNA(AH4&"#"&AI4&"#"&VLOOKUP(AJ4,数组!$B:$C,2,0)&"#"&角色升星配方!AK4,"") ->  | CM4: =_xlfn.IFNA(AI4&"#"&AJ4&"#"&VLOOKUP(AK4,数组!$B:$C,2,0)&"#"&角色升星配方!AL4,"") ->  | CN4: =_xlfn.IFNA(AJ4&"#"&AK4&"#"&VLOOKUP(AL4,数组!$B:$C,2,0)&"#"&角色升星配方!AM4,"") ->  | CO4: =_xlfn.IFNA(AG4&"#"&AH4&"#"&VLOOKUP(AI4,数组!$B:$C,2,0)&"#"&角色升星配方!AJ4,"") -> 9#2#18#1 | CP4: =_xlfn.IFNA(AL4&"#"&AM4&"#"&VLOOKUP(AN4,数组!$B:$C,2,0)&"#"&角色升星配方!AO4,"") ->  | CQ4: =_xlfn.IFNA(AM4&"#"&AN4&"#"&VLOOKUP(AO4,数组!$B:$C,2,0)&"#"&角色升星配方!AP4,"") ->  | CR4: =_xlfn.IFNA(AN4&"#"&AO4&"#"&VLOOKUP(AP4,数组!$B:$C,2,0)&"#"&角色升星配方!AQ4,"") ->  | CS4: =_xlfn.IFNA(AK4&"#"&AL4&"#"&VLOOKUP(AM4,数组!$B:$C,2,0)&"#"&角色升星配方!AN4,"") -> 9#3#17#2 | CT4: =_xlfn.IFNA(AP4&"#"&AQ4&"#"&VLOOKUP(AR4,数组!$B:$C,2,0)&"#"&角色升星配方!AS4,"") ->  | CU4: =_xlfn.IFNA(AQ4&"#"&AR4&"#"&VLOOKUP(AS4,数组!$B:$C,2,0)&"#"&角色升星配方!AT4,"") ->  | CV4: =_xlfn.IFNA(AR4&"#"&AS4&"#"&VLOOKUP(AT4,数组!$B:$C,2,0)&"#"&角色升星配方!AU4,"") ->  | CW4: =_xlfn.IFNA(AO4&"#"&AP4&"#"&VLOOKUP(AQ4,数组!$B:$C,2,0)&"#"&角色升星配方!AR4,"") -> 10#1#3#2 | CX4: =_xlfn.IFNA(AT4&"#"&AU4&"#"&VLOOKUP(AV4,数组!$B:$C,2,0)&"#"&角色升星配方!AW4,"") ->  | CY4: =_xlfn.IFNA(AU4&"#"&AV4&"#"&VLOOKUP(AW4,数组!$B:$C,2,0)&"#"&角色升星配方!AX4,"") ->  | CZ4: =_xlfn.IFNA(AV4&"#"&AW4&"#"&VLOOKUP(AX4,数组!$B:$C,2,0)&"#"&角色升星配方!AY4,"") ->  | DA4: =_xlfn.IFNA(AS4&"#"&AT4&"#"&VLOOKUP(AU4,数组!$B:$C,2,0)&"#"&角色升星配方!AV4,"") -> 10#2#18#1 | DB4: =_xlfn.IFNA(AX4&"#"&AY4&"#"&VLOOKUP(AZ4,数组!$B:$C,2,0)&"#"&角色升星配方!BM4,"") ->  | DE4: =_xlfn.IFNA(AW4&"#"&AX4&"#"&VLOOKUP(AY4,数组!$B:$C,2,0)&"#"&角色升星配方!AZ4,"") -> 10#3#14#1 | DI4: =_xlfn.IFNA(BE4&"#"&BF4&"#"&VLOOKUP(BG4,数组!$B:$C,2,0)&"#"&角色升星配方!BH4,"") ->  | DM4: =_xlfn.IFNA(BI4&"#"&BJ4&"#"&VLOOKUP(BK4,数组!$B:$C,2,0)&"#"&角色升星配方!BL4,"") ->  | DN4: =[2]!SUMSTRING(BM4:DM4,"|") -> 
A5: 2 | B5: 10004 | C5: 2 | D5: 5 | E5: 6 | F5: 1 | G5: 5星同名 | H5: 1 | I5: 6 | J5: 2 | K5: 5星10030 | L5: 1 | M5: 6 | N5: 3 | O5: 5星同系 | P5: 3 | Q5: 7 | R5: 1 | S5: 5星同系 | T5: 4 | U5: 8 | V5: 1 | W5: 5星同系 | X5: 3 | Y5: 8 | Z5: 2 | AA5: 6星同系 | AB5: 1 | AC5: 9 | AD5: 1 | AE5: 5星同名 | AF5: 1 | AG5: 9 | AH5: 2 | AI5: 6星同系 | AJ5: 1 | AK5: 9 | AL5: 3 | AM5: 5星同系 | AN5: 2 | AO5: 10 | AP5: 1 | AQ5: 5星同名 | AR5: 2 | AS5: 10 | AT5: 2 | AU5: 6星同系 | AV5: 1 | AW5: 10 | AX5: 3 | AY5: 9星任意 | AZ5: 1 | BM5: =_xlfn.IFNA(E5&"#"&F5&"#"&VLOOKUP(G5,数组!$B:$C,2,0)&"#"&角色升星配方!H5,"") -> 6#1#3#1 | BN5: =_xlfn.IFNA(F5&"#"&G5&"#"&VLOOKUP(H5,数组!$B:$C,2,0)&"#"&角色升星配方!I5,"") ->  | BO5: =_xlfn.IFNA(G5&"#"&H5&"#"&VLOOKUP(I5,数组!$B:$C,2,0)&"#"&角色升星配方!J5,"") ->  | BP5: =_xlfn.IFNA(H5&"#"&I5&"#"&VLOOKUP(J5,数组!$B:$C,2,0)&"#"&角色升星配方!K5,"") ->  | BQ5: =_xlfn.IFNA(I5&"#"&J5&"#"&VLOOKUP(K5,数组!$B:$C,2,0)&"#"&角色升星配方!L5,"") -> 6#2#28#1 | BR5: =_xlfn.IFNA(J5&"#"&K5&"#"&VLOOKUP(L5,数组!$B:$C,2,0)&"#"&角色升星配方!M5,"") ->  | BS5: =_xlfn.IFNA(K5&"#"&L5&"#"&VLOOKUP(M5,数组!$B:$C,2,0)&"#"&角色升星配方!N5,"") ->  | BT5: =_xlfn.IFNA(L5&"#"&M5&"#"&VLOOKUP(N5,数组!$B:$C,2,0)&"#"&角色升星配方!O5,"") ->  | BU5: =_xlfn.IFNA(M5&"#"&N5&"#"&VLOOKUP(O5,数组!$B:$C,2,0)&"#"&角色升星配方!P5,"") -> 6#3#17#3 | BV5: =_xlfn.IFNA(N5&"#"&O5&"#"&VLOOKUP(P5,数组!$B:$C,2,0)&"#"&角色升星配方!Q5,"") ->  | BW5: =_xlfn.IFNA(O5&"#"&P5&"#"&VLOOKUP(Q5,数组!$B:$C,2,0)&"#"&角色升星配方!R5,"") ->  | BX5: =_xlfn.IFNA(P5&"#"&Q5&"#"&VLOOKUP(R5,数组!$B:$C,2,0)&"#"&角色升星配方!S5,"") ->  | BY5: =_xlfn.IFNA(Q5&"#"&R5&"#"&VLOOKUP(S5,数组!$B:$C,2,0)&"#"&角色升星配方!T5,"") -> 7#1#17#4 | BZ5: =_xlfn.IFNA(R5&"#"&S5&"#"&VLOOKUP(T5,数组!$B:$C,2,0)&"#"&角色升星配方!U5,"") ->  | CA5: =_xlfn.IFNA(S5&"#"&T5&"#"&VLOOKUP(U5,数组!$B:$C,2,0)&"#"&角色升星配方!V5,"") ->  | CB5: =_xlfn.IFNA(T5&"#"&U5&"#"&VLOOKUP(V5,数组!$B:$C,2,0)&"#"&角色升星配方!W5,"") ->  | CC5: =_xlfn.IFNA(U5&"#"&V5&"#"&VLOOKUP(W5,数组!$B:$C,2,0)&"#"&角色升星配方!X5,"") -> 8#1#17#3 | CD5: =_xlfn.IFNA(V5&"#"&W5&"#"&VLOOKUP(X5,数组!$B:$C,2,0)&"#"&角色升星配方!AC5,"") ->  | CE5: =_xlfn.IFNA(W5&"#"&X5&"#"&VLOOKUP(AC5,数组!$B:$C,2,0)&"#"&角色升星配方!AD5,"") ->  | CF5: =_xlfn.IFNA(X5&"#"&AC5&"#"&VLOOKUP(AD5,数组!$B:$C,2,0)&"#"&角色升星配方!AE5,"") ->  | CG5: =_xlfn.IFNA(Y5&"#"&Z5&"#"&VLOOKUP(AA5,数组!$B:$C,2,0)&"#"&角色升星配方!AB5,"") -> 8#2#18#1 | CH5: =_xlfn.IFNA(AD5&"#"&AE5&"#"&VLOOKUP(AF5,数组!$B:$C,2,0)&"#"&角色升星配方!AG5,"") ->  | CI5: =_xlfn.IFNA(AE5&"#"&AF5&"#"&VLOOKUP(AG5,数组!$B:$C,2,0)&"#"&角色升星配方!AH5,"") ->  | CJ5: =_xlfn.IFNA(AF5&"#"&AG5&"#"&VLOOKUP(AH5,数组!$B:$C,2,0)&"#"&角色升星配方!AI5,"") ->  | CK5: =_xlfn.IFNA(AC5&"#"&AD5&"#"&VLOOKUP(AE5,数组!$B:$C,2,0)&"#"&角色升星配方!AF5,"") -> 9#1#3#1 | CL5: =_xlfn.IFNA(AH5&"#"&AI5&"#"&VLOOKUP(AJ5,数组!$B:$C,2,0)&"#"&角色升星配方!AK5,"") ->  | CM5: =_xlfn.IFNA(AI5&"#"&AJ5&"#"&VLOOKUP(AK5,数组!$B:$C,2,0)&"#"&角色升星配方!AL5,"") ->  | CN5: =_xlfn.IFNA(AJ5&"#"&AK5&"#"&VLOOKUP(AL5,数组!$B:$C,2,0)&"#"&角色升星配方!AM5,"") ->  | CO5: =_xlfn.IFNA(AG5&"#"&AH5&"#"&VLOOKUP(AI5,数组!$B:$C,2,0)&"#"&角色升星配方!AJ5,"") -> 9#2#18#1 | CP5: =_xlfn.IFNA(AL5&"#"&AM5&"#"&VLOOKUP(AN5,数组!$B:$C,2,0)&"#"&角色升星配方!AO5,"") ->  | CQ5: =_xlfn.IFNA(AM5&"#"&AN5&"#"&VLOOKUP(AO5,数组!$B:$C,2,0)&"#"&角色升星配方!AP5,"") ->  | CR5: =_xlfn.IFNA(AN5&"#"&AO5&"#"&VLOOKUP(AP5,数组!$B:$C,2,0)&"#"&角色升星配方!AQ5,"") ->  | CS5: =_xlfn.IFNA(AK5&"#"&AL5&"#"&VLOOKUP(AM5,数组!$B:$C,2,0)&"#"&角色升星配方!AN5,"") -> 9#3#17#2 | CT5: =_xlfn.IFNA(AP5&"#"&AQ5&"#"&VLOOKUP(AR5,数组!$B:$C,2,0)&"#"&角色升星配方!AS5,"") ->  | CU5: =_xlfn.IFNA(AQ5&"#"&AR5&"#"&VLOOKUP(AS5,数组!$B:$C,2,0)&"#"&角色升星配方!AT5,"") ->  | CV5: =_xlfn.IFNA(AR5&"#"&AS5&"#"&VLOOKUP(AT5,数组!$B:$C,2,0)&"#"&角色升星配方!AU5,"") ->  | CW5: =_xlfn.IFNA(AO5&"#"&AP5&"#"&VLOOKUP(AQ5,数组!$B:$C,2,0)&"#"&角色升星配方!AR5,"") -> 10#1#3#2 | CX5: =_xlfn.IFNA(AT5&"#"&AU5&"#"&VLOOKUP(AV5,数组!$B:$C,2,0)&"#"&角色升星配方!AW5,"") ->  | CY5: =_xlfn.IFNA(AU5&"#"&AV5&"#"&VLOOKUP(AW5,数组!$B:$C,2,0)&"#"&角色升星配方!AX5,"") ->  | CZ5: =_xlfn.IFNA(AV5&"#"&AW5&"#"&VLOOKUP(AX5,数组!$B:$C,2,0)&"#"&角色升星配方!AY5,"") ->  | DA5: =_xlfn.IFNA(AS5&"#"&AT5&"#"&VLOOKUP(AU5,数组!$B:$C,2,0)&"#"&角色升星配方!AV5,"") -> 10#2#18#1 | DB5: =_xlfn.IFNA(AX5&"#"&AY5&"#"&VLOOKUP(AZ5,数组!$B:$C,2,0)&"#"&角色升星配方!BM5,"") ->  | DE5: =_xlfn.IFNA(AW5&"#"&AX5&"#"&VLOOKUP(AY5,数组!$B:$C,2,0)&"#"&角色升星配方!AZ5,"") -> 10#3#14#1 | DI5: =_xlfn.IFNA(BE5&"#"&BF5&"#"&VLOOKUP(BG5,数组!$B:$C,2,0)&"#"&角色升星配方!BH5,"") ->  | DM5: =_xlfn.IFNA(BI5&"#"&BJ5&"#"&VLOOKUP(BK5,数组!$B:$C,2,0)&"#"&角色升星配方!BL5,"") ->  | DN5: =[2]!SUMSTRING(BM5:DM5,"|") -> 
A6: 4 | B6: 10005 | C6: 4 | D6: 5 | E6: 6 | F6: 1 | G6: 5星同名 | H6: 1 | I6: 6 | J6: 2 | K6: 5星10031 | L6: 1 | M6: 6 | N6: 3 | O6: 5星同系 | P6: 3 | Q6: 7 | R6: 1 | S6: 5星同系 | T6: 4 | U6: 8 | V6: 1 | W6: 5星同系 | X6: 3 | Y6: 8 | Z6: 2 | AA6: 6星同系 | AB6: 1 | AC6: 9 | AD6: 1 | AE6: 5星同名 | AF6: 1 | AG6: 9 | AH6: 2 | AI6: 6星同系 | AJ6: 1 | AK6: 9 | AL6: 3 | AM6: 5星同系 | AN6: 2 | AO6: 10 | AP6: 1 | AQ6: 5星同名 | AR6: 2 | AS6: 10 | AT6: 2 | AU6: 6星同系 | AV6: 1 | AW6: 10 | AX6: 3 | AY6: 9星任意 | AZ6: 1 | BM6: =_xlfn.IFNA(E6&"#"&F6&"#"&VLOOKUP(G6,数组!$B:$C,2,0)&"#"&角色升星配方!H6,"") -> 6#1#3#1 | BN6: =_xlfn.IFNA(F6&"#"&G6&"#"&VLOOKUP(H6,数组!$B:$C,2,0)&"#"&角色升星配方!I6,"") ->  | BO6: =_xlfn.IFNA(G6&"#"&H6&"#"&VLOOKUP(I6,数组!$B:$C,2,0)&"#"&角色升星配方!J6,"") ->  | BP6: =_xlfn.IFNA(H6&"#"&I6&"#"&VLOOKUP(J6,数组!$B:$C,2,0)&"#"&角色升星配方!K6,"") ->  | BQ6: =_xlfn.IFNA(I6&"#"&J6&"#"&VLOOKUP(K6,数组!$B:$C,2,0)&"#"&角色升星配方!L6,"") -> 6#2#29#1 | BR6: =_xlfn.IFNA(J6&"#"&K6&"#"&VLOOKUP(L6,数组!$B:$C,2,0)&"#"&角色升星配方!M6,"") ->  | BS6: =_xlfn.IFNA(K6&"#"&L6&"#"&VLOOKUP(M6,数组!$B:$C,2,0)&"#"&角色升星配方!N6,"") ->  | BT6: =_xlfn.IFNA(L6&"#"&M6&"#"&VLOOKUP(N6,数组!$B:$C,2,0)&"#"&角色升星配方!O6,"") ->  | BU6: =_xlfn.IFNA(M6&"#"&N6&"#"&VLOOKUP(O6,数组!$B:$C,2,0)&"#"&角色升星配方!P6,"") -> 6#3#17#3 | BV6: =_xlfn.IFNA(N6&"#"&O6&"#"&VLOOKUP(P6,数组!$B:$C,2,0)&"#"&角色升星配方!Q6,"") ->  | BW6: =_xlfn.IFNA(O6&"#"&P6&"#"&VLOOKUP(Q6,数组!$B:$C,2,0)&"#"&角色升星配方!R6,"") ->  | BX6: =_xlfn.IFNA(P6&"#"&Q6&"#"&VLOOKUP(R6,数组!$B:$C,2,0)&"#"&角色升星配方!S6,"") ->  | BY6: =_xlfn.IFNA(Q6&"#"&R6&"#"&VLOOKUP(S6,数组!$B:$C,2,0)&"#"&角色升星配方!T6,"") -> 7#1#17#4 | BZ6: =_xlfn.IFNA(R6&"#"&S6&"#"&VLOOKUP(T6,数组!$B:$C,2,0)&"#"&角色升星配方!U6,"") ->  | CA6: =_xlfn.IFNA(S6&"#"&T6&"#"&VLOOKUP(U6,数组!$B:$C,2,0)&"#"&角色升星配方!V6,"") ->  | CB6: =_xlfn.IFNA(T6&"#"&U6&"#"&VLOOKUP(V6,数组!$B:$C,2,0)&"#"&角色升星配方!W6,"") ->  | CC6: =_xlfn.IFNA(U6&"#"&V6&"#"&VLOOKUP(W6,数组!$B:$C,2,0)&"#"&角色升星配方!X6,"") -> 8#1#17#3 | CD6: =_xlfn.IFNA(V6&"#"&W6&"#"&VLOOKUP(X6,数组!$B:$C,2,0)&"#"&角色升星配方!AC6,"") ->  | CE6: =_xlfn.IFNA(W6&"#"&X6&"#"&VLOOKUP(AC6,数组!$B:$C,2,0)&"#"&角色升星配方!AD6,"") ->  | CF6: =_xlfn.IFNA(X6&"#"&AC6&"#"&VLOOKUP(AD6,数组!$B:$C,2,0)&"#"&角色升星配方!AE6,"") ->  | CG6: =_xlfn.IFNA(Y6&"#"&Z6&"#"&VLOOKUP(AA6,数组!$B:$C,2,0)&"#"&角色升星配方!AB6,"") -> 8#2#18#1 | CH6: =_xlfn.IFNA(AD6&"#"&AE6&"#"&VLOOKUP(AF6,数组!$B:$C,2,0)&"#"&角色升星配方!AG6,"") ->  | CI6: =_xlfn.IFNA(AE6&"#"&AF6&"#"&VLOOKUP(AG6,数组!$B:$C,2,0)&"#"&角色升星配方!AH6,"") ->  | CJ6: =_xlfn.IFNA(AF6&"#"&AG6&"#"&VLOOKUP(AH6,数组!$B:$C,2,0)&"#"&角色升星配方!AI6,"") ->  | CK6: =_xlfn.IFNA(AC6&"#"&AD6&"#"&VLOOKUP(AE6,数组!$B:$C,2,0)&"#"&角色升星配方!AF6,"") -> 9#1#3#1 | CL6: =_xlfn.IFNA(AH6&"#"&AI6&"#"&VLOOKUP(AJ6,数组!$B:$C,2,0)&"#"&角色升星配方!AK6,"") ->  | CM6: =_xlfn.IFNA(AI6&"#"&AJ6&"#"&VLOOKUP(AK6,数组!$B:$C,2,0)&"#"&角色升星配方!AL6,"") ->  | CN6: =_xlfn.IFNA(AJ6&"#"&AK6&"#"&VLOOKUP(AL6,数组!$B:$C,2,0)&"#"&角色升星配方!AM6,"") ->  | CO6: =_xlfn.IFNA(AG6&"#"&AH6&"#"&VLOOKUP(AI6,数组!$B:$C,2,0)&"#"&角色升星配方!AJ6,"") -> 9#2#18#1 | CP6: =_xlfn.IFNA(AL6&"#"&AM6&"#"&VLOOKUP(AN6,数组!$B:$C,2,0)&"#"&角色升星配方!AO6,"") ->  | CQ6: =_xlfn.IFNA(AM6&"#"&AN6&"#"&VLOOKUP(AO6,数组!$B:$C,2,0)&"#"&角色升星配方!AP6,"") ->  | CR6: =_xlfn.IFNA(AN6&"#"&AO6&"#"&VLOOKUP(AP6,数组!$B:$C,2,0)&"#"&角色升星配方!AQ6,"") ->  | CS6: =_xlfn.IFNA(AK6&"#"&AL6&"#"&VLOOKUP(AM6,数组!$B:$C,2,0)&"#"&角色升星配方!AN6,"") -> 9#3#17#2 | CT6: =_xlfn.IFNA(AP6&"#"&AQ6&"#"&VLOOKUP(AR6,数组!$B:$C,2,0)&"#"&角色升星配方!AS6,"") ->  | CU6: =_xlfn.IFNA(AQ6&"#"&AR6&"#"&VLOOKUP(AS6,数组!$B:$C,2,0)&"#"&角色升星配方!AT6,"") ->  | CV6: =_xlfn.IFNA(AR6&"#"&AS6&"#"&VLOOKUP(AT6,数组!$B:$C,2,0)&"#"&角色升星配方!AU6,"") ->  | CW6: =_xlfn.IFNA(AO6&"#"&AP6&"#"&VLOOKUP(AQ6,数组!$B:$C,2,0)&"#"&角色升星配方!AR6,"") -> 10#1#3#2 | CX6: =_xlfn.IFNA(AT6&"#"&AU6&"#"&VLOOKUP(AV6,数组!$B:$C,2,0)&"#"&角色升星配方!AW6,"") ->  | CY6: =_xlfn.IFNA(AU6&"#"&AV6&"#"&VLOOKUP(AW6,数组!$B:$C,2,0)&"#"&角色升星配方!AX6,"") ->  | CZ6: =_xlfn.IFNA(AV6&"#"&AW6&"#"&VLOOKUP(AX6,数组!$B:$C,2,0)&"#"&角色升星配方!AY6,"") ->  | DA6: =_xlfn.IFNA(AS6&"#"&AT6&"#"&VLOOKUP(AU6,数组!$B:$C,2,0)&"#"&角色升星配方!AV6,"") -> 10#2#18#1 | DB6: =_xlfn.IFNA(AX6&"#"&AY6&"#"&VLOOKUP(AZ6,数组!$B:$C,2,0)&"#"&角色升星配方!BM6,"") ->  | DE6: =_xlfn.IFNA(AW6&"#"&AX6&"#"&VLOOKUP(AY6,数组!$B:$C,2,0)&"#"&角色升星配方!AZ6,"") -> 10#3#14#1 | DI6: =_xlfn.IFNA(BE6&"#"&BF6&"#"&VLOOKUP(BG6,数组!$B:$C,2,0)&"#"&角色升星配方!BH6,"") ->  | DM6: =_xlfn.IFNA(BI6&"#"&BJ6&"#"&VLOOKUP(BK6,数组!$B:$C,2,0)&"#"&角色升星配方!BL6,"") ->  | DN6: =[2]!SUMSTRING(BM6:DM6,"|") -> 
A7: 1 | B7: 10006 | C7: 1 | D7: 5 | E7: 6 | F7: 1 | G7: 5星同名 | H7: 1 | I7: 6 | J7: 2 | K7: 5星10025 | L7: 1 | M7: 6 | N7: 3 | O7: 5星同系 | P7: 3 | Q7: 7 | R7: 1 | S7: 5星同系 | T7: 4 | U7: 8 | V7: 1 | W7: 5星同系 | X7: 3 | Y7: 8 | Z7: 2 | AA7: 6星同系 | AB7: 1 | AC7: 9 | AD7: 1 | AE7: 5星同名 | AF7: 1 | AG7: 9 | AH7: 2 | AI7: 6星同系 | AJ7: 1 | AK7: 9 | AL7: 3 | AM7: 5星同系 | AN7: 2 | AO7: 10 | AP7: 1 | AQ7: 5星同名 | AR7: 2 | AS7: 10 | AT7: 2 | AU7: 6星同系 | AV7: 1 | AW7: 10 | AX7: 3 | AY7: 9星任意 | AZ7: 1 | BM7: =_xlfn.IFNA(E7&"#"&F7&"#"&VLOOKUP(G7,数组!$B:$C,2,0)&"#"&角色升星配方!H7,"") -> 6#1#3#1 | BN7: =_xlfn.IFNA(F7&"#"&G7&"#"&VLOOKUP(H7,数组!$B:$C,2,0)&"#"&角色升星配方!I7,"") ->  | BO7: =_xlfn.IFNA(G7&"#"&H7&"#"&VLOOKUP(I7,数组!$B:$C,2,0)&"#"&角色升星配方!J7,"") ->  | BP7: =_xlfn.IFNA(H7&"#"&I7&"#"&VLOOKUP(J7,数组!$B:$C,2,0)&"#"&角色升星配方!K7,"") ->  | BQ7: =_xlfn.IFNA(I7&"#"&J7&"#"&VLOOKUP(K7,数组!$B:$C,2,0)&"#"&角色升星配方!L7,"") -> 6#2#23#1 | BR7: =_xlfn.IFNA(J7&"#"&K7&"#"&VLOOKUP(L7,数组!$B:$C,2,0)&"#"&角色升星配方!M7,"") ->  | BS7: =_xlfn.IFNA(K7&"#"&L7&"#"&VLOOKUP(M7,数组!$B:$C,2,0)&"#"&角色升星配方!N7,"") ->  | BT7: =_xlfn.IFNA(L7&"#"&M7&"#"&VLOOKUP(N7,数组!$B:$C,2,0)&"#"&角色升星配方!O7,"") ->  | BU7: =_xlfn.IFNA(M7&"#"&N7&"#"&VLOOKUP(O7,数组!$B:$C,2,0)&"#"&角色升星配方!P7,"") -> 6#3#17#3 | BV7: =_xlfn.IFNA(N7&"#"&O7&"#"&VLOOKUP(P7,数组!$B:$C,2,0)&"#"&角色升星配方!Q7,"") ->  | BW7: =_xlfn.IFNA(O7&"#"&P7&"#"&VLOOKUP(Q7,数组!$B:$C,2,0)&"#"&角色升星配方!R7,"") ->  | BX7: =_xlfn.IFNA(P7&"#"&Q7&"#"&VLOOKUP(R7,数组!$B:$C,2,0)&"#"&角色升星配方!S7,"") ->  | BY7: =_xlfn.IFNA(Q7&"#"&R7&"#"&VLOOKUP(S7,数组!$B:$C,2,0)&"#"&角色升星配方!T7,"") -> 7#1#17#4 | BZ7: =_xlfn.IFNA(R7&"#"&S7&"#"&VLOOKUP(T7,数组!$B:$C,2,0)&"#"&角色升星配方!U7,"") ->  | CA7: =_xlfn.IFNA(S7&"#"&T7&"#"&VLOOKUP(U7,数组!$B:$C,2,0)&"#"&角色升星配方!V7,"") ->  | CB7: =_xlfn.IFNA(T7&"#"&U7&"#"&VLOOKUP(V7,数组!$B:$C,2,0)&"#"&角色升星配方!W7,"") ->  | CC7: =_xlfn.IFNA(U7&"#"&V7&"#"&VLOOKUP(W7,数组!$B:$C,2,0)&"#"&角色升星配方!X7,"") -> 8#1#17#3 | CD7: =_xlfn.IFNA(V7&"#"&W7&"#"&VLOOKUP(X7,数组!$B:$C,2,0)&"#"&角色升星配方!AC7,"") ->  | CE7: =_xlfn.IFNA(W7&"#"&X7&"#"&VLOOKUP(AC7,数组!$B:$C,2,0)&"#"&角色升星配方!AD7,"") ->  | CF7: =_xlfn.IFNA(X7&"#"&AC7&"#"&VLOOKUP(AD7,数组!$B:$C,2,0)&"#"&角色升星配方!AE7,"") ->  | CG7: =_xlfn.IFNA(Y7&"#"&Z7&"#"&VLOOKUP(AA7,数组!$B:$C,2,0)&"#"&角色升星配方!AB7,"") -> 8#2#18#1 | CH7: =_xlfn.IFNA(AD7&"#"&AE7&"#"&VLOOKUP(AF7,数组!$B:$C,2,0)&"#"&角色升星配方!AG7,"") ->  | CI7: =_xlfn.IFNA(AE7&"#"&AF7&"#"&VLOOKUP(AG7,数组!$B:$C,2,0)&"#"&角色升星配方!AH7,"") ->  | CJ7: =_xlfn.IFNA(AF7&"#"&AG7&"#"&VLOOKUP(AH7,数组!$B:$C,2,0)&"#"&角色升星配方!AI7,"") ->  | CK7: =_xlfn.IFNA(AC7&"#"&AD7&"#"&VLOOKUP(AE7,数组!$B:$C,2,0)&"#"&角色升星配方!AF7,"") -> 9#1#3#1 | CL7: =_xlfn.IFNA(AH7&"#"&AI7&"#"&VLOOKUP(AJ7,数组!$B:$C,2,0)&"#"&角色升星配方!AK7,"") ->  | CM7: =_xlfn.IFNA(AI7&"#"&AJ7&"#"&VLOOKUP(AK7,数组!$B:$C,2,0)&"#"&角色升星配方!AL7,"") ->  | CN7: =_xlfn.IFNA(AJ7&"#"&AK7&"#"&VLOOKUP(AL7,数组!$B:$C,2,0)&"#"&角色升星配方!AM7,"") ->  | CO7: =_xlfn.IFNA(AG7&"#"&AH7&"#"&VLOOKUP(AI7,数组!$B:$C,2,0)&"#"&角色升星配方!AJ7,"") -> 9#2#18#1 | CP7: =_xlfn.IFNA(AL7&"#"&AM7&"#"&VLOOKUP(AN7,数组!$B:$C,2,0)&"#"&角色升星配方!AO7,"") ->  | CQ7: =_xlfn.IFNA(AM7&"#"&AN7&"#"&VLOOKUP(AO7,数组!$B:$C,2,0)&"#"&角色升星配方!AP7,"") ->  | CR7: =_xlfn.IFNA(AN7&"#"&AO7&"#"&VLOOKUP(AP7,数组!$B:$C,2,0)&"#"&角色升星配方!AQ7,"") ->  | CS7: =_xlfn.IFNA(AK7&"#"&AL7&"#"&VLOOKUP(AM7,数组!$B:$C,2,0)&"#"&角色升星配方!AN7,"") -> 9#3#17#2 | CT7: =_xlfn.IFNA(AP7&"#"&AQ7&"#"&VLOOKUP(AR7,数组!$B:$C,2,0)&"#"&角色升星配方!AS7,"") ->  | CU7: =_xlfn.IFNA(AQ7&"#"&AR7&"#"&VLOOKUP(AS7,数组!$B:$C,2,0)&"#"&角色升星配方!AT7,"") ->  | CV7: =_xlfn.IFNA(AR7&"#"&AS7&"#"&VLOOKUP(AT7,数组!$B:$C,2,0)&"#"&角色升星配方!AU7,"") ->  | CW7: =_xlfn.IFNA(AO7&"#"&AP7&"#"&VLOOKUP(AQ7,数组!$B:$C,2,0)&"#"&角色升星配方!AR7,"") -> 10#1#3#2 | CX7: =_xlfn.IFNA(AT7&"#"&AU7&"#"&VLOOKUP(AV7,数组!$B:$C,2,0)&"#"&角色升星配方!AW7,"") ->  | CY7: =_xlfn.IFNA(AU7&"#"&AV7&"#"&VLOOKUP(AW7,数组!$B:$C,2,0)&"#"&角色升星配方!AX7,"") ->  | CZ7: =_xlfn.IFNA(AV7&"#"&AW7&"#"&VLOOKUP(AX7,数组!$B:$C,2,0)&"#"&角色升星配方!AY7,"") ->  | DA7: =_xlfn.IFNA(AS7&"#"&AT7&"#"&VLOOKUP(AU7,数组!$B:$C,2,0)&"#"&角色升星配方!AV7,"") -> 10#2#18#1 | DB7: =_xlfn.IFNA(AX7&"#"&AY7&"#"&VLOOKUP(AZ7,数组!$B:$C,2,0)&"#"&角色升星配方!BM7,"") ->  | DE7: =_xlfn.IFNA(AW7&"#"&AX7&"#"&VLOOKUP(AY7,数组!$B:$C,2,0)&"#"&角色升星配方!AZ7,"") -> 10#3#14#1 | DI7: =_xlfn.IFNA(BE7&"#"&BF7&"#"&VLOOKUP(BG7,数组!$B:$C,2,0)&"#"&角色升星配方!BH7,"") ->  | DM7: =_xlfn.IFNA(BI7&"#"&BJ7&"#"&VLOOKUP(BK7,数组!$B:$C,2,0)&"#"&角色升星配方!BL7,"") ->  | DN7: =[2]!SUMSTRING(BM7:DM7,"|") -> 
A8: 2 | B8: 10007 | C8: 3 | D8: 5 | E8: 6 | F8: 1 | G8: 5星同名 | H8: 1 | I8: 6 | J8: 2 | K8: 5星10037 | L8: 1 | M8: 6 | N8: 3 | O8: 5星同系 | P8: 3 | Q8: 7 | R8: 1 | S8: 5星同系 | T8: 4 | U8: 8 | V8: 1 | W8: 5星同系 | X8: 3 | Y8: 8 | Z8: 2 | AA8: 6星同系 | AB8: 1 | AC8: 9 | AD8: 1 | AE8: 5星同名 | AF8: 1 | AG8: 9 | AH8: 2 | AI8: 6星同系 | AJ8: 1 | AK8: 9 | AL8: 3 | AM8: 5星同系 | AN8: 2 | AO8: 10 | AP8: 1 | AQ8: 5星同名 | AR8: 2 | AS8: 10 | AT8: 2 | AU8: 6星同系 | AV8: 1 | AW8: 10 | AX8: 3 | AY8: 9星任意 | AZ8: 1 | BM8: =_xlfn.IFNA(E8&"#"&F8&"#"&VLOOKUP(G8,数组!$B:$C,2,0)&"#"&角色升星配方!H8,"") -> 6#1#3#1 | BN8: =_xlfn.IFNA(F8&"#"&G8&"#"&VLOOKUP(H8,数组!$B:$C,2,0)&"#"&角色升星配方!I8,"") ->  | BO8: =_xlfn.IFNA(G8&"#"&H8&"#"&VLOOKUP(I8,数组!$B:$C,2,0)&"#"&角色升星配方!J8,"") ->  | BP8: =_xlfn.IFNA(H8&"#"&I8&"#"&VLOOKUP(J8,数组!$B:$C,2,0)&"#"&角色升星配方!K8,"") ->  | BQ8: =_xlfn.IFNA(I8&"#"&J8&"#"&VLOOKUP(K8,数组!$B:$C,2,0)&"#"&角色升星配方!L8,"") -> 6#2#35#1 | BR8: =_xlfn.IFNA(J8&"#"&K8&"#"&VLOOKUP(L8,数组!$B:$C,2,0)&"#"&角色升星配方!M8,"") ->  | BS8: =_xlfn.IFNA(K8&"#"&L8&"#"&VLOOKUP(M8,数组!$B:$C,2,0)&"#"&角色升星配方!N8,"") ->  | BT8: =_xlfn.IFNA(L8&"#"&M8&"#"&VLOOKUP(N8,数组!$B:$C,2,0)&"#"&角色升星配方!O8,"") ->  | BU8: =_xlfn.IFNA(M8&"#"&N8&"#"&VLOOKUP(O8,数组!$B:$C,2,0)&"#"&角色升星配方!P8,"") -> 6#3#17#3 | BV8: =_xlfn.IFNA(N8&"#"&O8&"#"&VLOOKUP(P8,数组!$B:$C,2,0)&"#"&角色升星配方!Q8,"") ->  | BW8: =_xlfn.IFNA(O8&"#"&P8&"#"&VLOOKUP(Q8,数组!$B:$C,2,0)&"#"&角色升星配方!R8,"") ->  | BX8: =_xlfn.IFNA(P8&"#"&Q8&"#"&VLOOKUP(R8,数组!$B:$C,2,0)&"#"&角色升星配方!S8,"") ->  | BY8: =_xlfn.IFNA(Q8&"#"&R8&"#"&VLOOKUP(S8,数组!$B:$C,2,0)&"#"&角色升星配方!T8,"") -> 7#1#17#4 | BZ8: =_xlfn.IFNA(R8&"#"&S8&"#"&VLOOKUP(T8,数组!$B:$C,2,0)&"#"&角色升星配方!U8,"") ->  | CA8: =_xlfn.IFNA(S8&"#"&T8&"#"&VLOOKUP(U8,数组!$B:$C,2,0)&"#"&角色升星配方!V8,"") ->  | CB8: =_xlfn.IFNA(T8&"#"&U8&"#"&VLOOKUP(V8,数组!$B:$C,2,0)&"#"&角色升星配方!W8,"") ->  | CC8: =_xlfn.IFNA(U8&"#"&V8&"#"&VLOOKUP(W8,数组!$B:$C,2,0)&"#"&角色升星配方!X8,"") -> 8#1#17#3 | CD8: =_xlfn.IFNA(V8&"#"&W8&"#"&VLOOKUP(X8,数组!$B:$C,2,0)&"#"&角色升星配方!AC8,"") ->  | CE8: =_xlfn.IFNA(W8&"#"&X8&"#"&VLOOKUP(AC8,数组!$B:$C,2,0)&"#"&角色升星配方!AD8,"") ->  | CF8: =_xlfn.IFNA(X8&"#"&AC8&"#"&VLOOKUP(AD8,数组!$B:$C,2,0)&"#"&角色升星配方!AE8,"") ->  | CG8: =_xlfn.IFNA(Y8&"#"&Z8&"#"&VLOOKUP(AA8,数组!$B:$C,2,0)&"#"&角色升星配方!AB8,"") -> 8#2#18#1 | CH8: =_xlfn.IFNA(AD8&"#"&AE8&"#"&VLOOKUP(AF8,数组!$B:$C,2,0)&"#"&角色升星配方!AG8,"") ->  | CI8: =_xlfn.IFNA(AE8&"#"&AF8&"#"&VLOOKUP(AG8,数组!$B:$C,2,0)&"#"&角色升星配方!AH8,"") ->  | CJ8: =_xlfn.IFNA(AF8&"#"&AG8&"#"&VLOOKUP(AH8,数组!$B:$C,2,0)&"#"&角色升星配方!AI8,"") ->  | CK8: =_xlfn.IFNA(AC8&"#"&AD8&"#"&VLOOKUP(AE8,数组!$B:$C,2,0)&"#"&角色升星配方!AF8,"") -> 9#1#3#1 | CL8: =_xlfn.IFNA(AH8&"#"&AI8&"#"&VLOOKUP(AJ8,数组!$B:$C,2,0)&"#"&角色升星配方!AK8,"") ->  | CM8: =_xlfn.IFNA(AI8&"#"&AJ8&"#"&VLOOKUP(AK8,数组!$B:$C,2,0)&"#"&角色升星配方!AL8,"") ->  | CN8: =_xlfn.IFNA(AJ8&"#"&AK8&"#"&VLOOKUP(AL8,数组!$B:$C,2,0)&"#"&角色升星配方!AM8,"") ->  | CO8: =_xlfn.IFNA(AG8&"#"&AH8&"#"&VLOOKUP(AI8,数组!$B:$C,2,0)&"#"&角色升星配方!AJ8,"") -> 9#2#18#1 | CP8: =_xlfn.IFNA(AL8&"#"&AM8&"#"&VLOOKUP(AN8,数组!$B:$C,2,0)&"#"&角色升星配方!AO8,"") ->  | CQ8: =_xlfn.IFNA(AM8&"#"&AN8&"#"&VLOOKUP(AO8,数组!$B:$C,2,0)&"#"&角色升星配方!AP8,"") ->  | CR8: =_xlfn.IFNA(AN8&"#"&AO8&"#"&VLOOKUP(AP8,数组!$B:$C,2,0)&"#"&角色升星配方!AQ8,"") ->  | CS8: =_xlfn.IFNA(AK8&"#"&AL8&"#"&VLOOKUP(AM8,数组!$B:$C,2,0)&"#"&角色升星配方!AN8,"") -> 9#3#17#2 | CT8: =_xlfn.IFNA(AP8&"#"&AQ8&"#"&VLOOKUP(AR8,数组!$B:$C,2,0)&"#"&角色升星配方!AS8,"") ->  | CU8: =_xlfn.IFNA(AQ8&"#"&AR8&"#"&VLOOKUP(AS8,数组!$B:$C,2,0)&"#"&角色升星配方!AT8,"") ->  | CV8: =_xlfn.IFNA(AR8&"#"&AS8&"#"&VLOOKUP(AT8,数组!$B:$C,2,0)&"#"&角色升星配方!AU8,"") ->  | CW8: =_xlfn.IFNA(AO8&"#"&AP8&"#"&VLOOKUP(AQ8,数组!$B:$C,2,0)&"#"&角色升星配方!AR8,"") -> 10#1#3#2 | CX8: =_xlfn.IFNA(AT8&"#"&AU8&"#"&VLOOKUP(AV8,数组!$B:$C,2,0)&"#"&角色升星配方!AW8,"") ->  | CY8: =_xlfn.IFNA(AU8&"#"&AV8&"#"&VLOOKUP(AW8,数组!$B:$C,2,0)&"#"&角色升星配方!AX8,"") ->  | CZ8: =_xlfn.IFNA(AV8&"#"&AW8&"#"&VLOOKUP(AX8,数组!$B:$C,2,0)&"#"&角色升星配方!AY8,"") ->  | DA8: =_xlfn.IFNA(AS8&"#"&AT8&"#"&VLOOKUP(AU8,数组!$B:$C,2,0)&"#"&角色升星配方!AV8,"") -> 10#2#18#1 | DB8: =_xlfn.IFNA(AX8&"#"&AY8&"#"&VLOOKUP(AZ8,数组!$B:$C,2,0)&"#"&角色升星配方!BA8,"") ->  | DC8: =_xlfn.IFNA(AY8&"#"&AZ8&"#"&VLOOKUP(BA8,数组!$B:$C,2,0)&"#"&角色升星配方!BB8,"") ->  | DD8: =_xlfn.IFNA(AZ8&"#"&BA8&"#"&VLOOKUP(BB8,数组!$B:$C,2,0)&"#"&角色升星配方!BC8,"") ->  | DE8: =_xlfn.IFNA(AW8&"#"&AX8&"#"&VLOOKUP(AY8,数组!$B:$C,2,0)&"#"&角色升星配方!AZ8,"") -> 10#3#14#1 | DI8: =_xlfn.IFNA(BE8&"#"&BF8&"#"&VLOOKUP(BG8,数组!$B:$C,2,0)&"#"&角色升星配方!BH8,"") ->  | DM8: =_xlfn.IFNA(BI8&"#"&BJ8&"#"&VLOOKUP(BK8,数组!$B:$C,2,0)&"#"&角色升星配方!BL8,"") ->  | DN8: =[2]!SUMSTRING(BM8:DM8,"|") -> 
A9: 2 | B9: 10008 | C9: 2 | D9: 5 | E9: 6 | F9: 1 | G9: 5星同名 | H9: 1 | I9: 6 | J9: 2 | K9: 5星10024 | L9: 1 | M9: 6 | N9: 3 | O9: 5星同系 | P9: 3 | Q9: 7 | R9: 1 | S9: 5星同系 | T9: 4 | U9: 8 | V9: 1 | W9: 5星同系 | X9: 3 | Y9: 8 | Z9: 2 | AA9: 6星同系 | AB9: 1 | AC9: 9 | AD9: 1 | AE9: 5星同名 | AF9: 1 | AG9: 9 | AH9: 2 | AI9: 6星同系 | AJ9: 1 | AK9: 9 | AL9: 3 | AM9: 5星同系 | AN9: 2 | AO9: 10 | AP9: 1 | AQ9: 5星同名 | AR9: 2 | AS9: 10 | AT9: 2 | AU9: 6星同系 | AV9: 1 | AW9: 10 | AX9: 3 | AY9: 9星任意 | AZ9: 1 | BM9: =_xlfn.IFNA(E9&"#"&F9&"#"&VLOOKUP(G9,数组!$B:$C,2,0)&"#"&角色升星配方!H9,"") -> 6#1#3#1 | BN9: =_xlfn.IFNA(F9&"#"&G9&"#"&VLOOKUP(H9,数组!$B:$C,2,0)&"#"&角色升星配方!I9,"") ->  | BO9: =_xlfn.IFNA(G9&"#"&H9&"#"&VLOOKUP(I9,数组!$B:$C,2,0)&"#"&角色升星配方!J9,"") ->  | BP9: =_xlfn.IFNA(H9&"#"&I9&"#"&VLOOKUP(J9,数组!$B:$C,2,0)&"#"&角色升星配方!K9,"") ->  | BQ9: =_xlfn.IFNA(I9&"#"&J9&"#"&VLOOKUP(K9,数组!$B:$C,2,0)&"#"&角色升星配方!L9,"") -> 6#2#22#1 | BR9: =_xlfn.IFNA(J9&"#"&K9&"#"&VLOOKUP(L9,数组!$B:$C,2,0)&"#"&角色升星配方!M9,"") ->  | BS9: =_xlfn.IFNA(K9&"#"&L9&"#"&VLOOKUP(M9,数组!$B:$C,2,0)&"#"&角色升星配方!N9,"") ->  | BT9: =_xlfn.IFNA(L9&"#"&M9&"#"&VLOOKUP(N9,数组!$B:$C,2,0)&"#"&角色升星配方!O9,"") ->  | BU9: =_xlfn.IFNA(M9&"#"&N9&"#"&VLOOKUP(O9,数组!$B:$C,2,0)&"#"&角色升星配方!P9,"") -> 6#3#17#3 | BV9: =_xlfn.IFNA(N9&"#"&O9&"#"&VLOOKUP(P9,数组!$B:$C,2,0)&"#"&角色升星配方!Q9,"") ->  | BW9: =_xlfn.IFNA(O9&"#"&P9&"#"&VLOOKUP(Q9,数组!$B:$C,2,0)&"#"&角色升星配方!R9,"") ->  | BX9: =_xlfn.IFNA(P9&"#"&Q9&"#"&VLOOKUP(R9,数组!$B:$C,2,0)&"#"&角色升星配方!S9,"") ->  | BY9: =_xlfn.IFNA(Q9&"#"&R9&"#"&VLOOKUP(S9,数组!$B:$C,2,0)&"#"&角色升星配方!T9,"") -> 7#1#17#4 | BZ9: =_xlfn.IFNA(R9&"#"&S9&"#"&VLOOKUP(T9,数组!$B:$C,2,0)&"#"&角色升星配方!U9,"") ->  | CA9: =_xlfn.IFNA(S9&"#"&T9&"#"&VLOOKUP(U9,数组!$B:$C,2,0)&"#"&角色升星配方!V9,"") ->  | CB9: =_xlfn.IFNA(T9&"#"&U9&"#"&VLOOKUP(V9,数组!$B:$C,2,0)&"#"&角色升星配方!W9,"") ->  | CC9: =_xlfn.IFNA(U9&"#"&V9&"#"&VLOOKUP(W9,数组!$B:$C,2,0)&"#"&角色升星配方!X9,"") -> 8#1#17#3 | CD9: =_xlfn.IFNA(V9&"#"&W9&"#"&VLOOKUP(X9,数组!$B:$C,2,0)&"#"&角色升星配方!AC9,"") ->  | CE9: =_xlfn.IFNA(W9&"#"&X9&"#"&VLOOKUP(AC9,数组!$B:$C,2,0)&"#"&角色升星配方!AD9,"") ->  | CF9: =_xlfn.IFNA(X9&"#"&AC9&"#"&VLOOKUP(AD9,数组!$B:$C,2,0)&"#"&角色升星配方!AE9,"") ->  | CG9: =_xlfn.IFNA(Y9&"#"&Z9&"#"&VLOOKUP(AA9,数组!$B:$C,2,0)&"#"&角色升星配方!AB9,"") -> 8#2#18#1 | CH9: =_xlfn.IFNA(AD9&"#"&AE9&"#"&VLOOKUP(AF9,数组!$B:$C,2,0)&"#"&角色升星配方!AG9,"") ->  | CI9: =_xlfn.IFNA(AE9&"#"&AF9&"#"&VLOOKUP(AG9,数组!$B:$C,2,0)&"#"&角色升星配方!AH9,"") ->  | CJ9: =_xlfn.IFNA(AF9&"#"&AG9&"#"&VLOOKUP(AH9,数组!$B:$C,2,0)&"#"&角色升星配方!AI9,"") ->  | CK9: =_xlfn.IFNA(AC9&"#"&AD9&"#"&VLOOKUP(AE9,数组!$B:$C,2,0)&"#"&角色升星配方!AF9,"") -> 9#1#3#1 | CL9: =_xlfn.IFNA(AH9&"#"&AI9&"#"&VLOOKUP(AJ9,数组!$B:$C,2,0)&"#"&角色升星配方!AK9,"") ->  | CM9: =_xlfn.IFNA(AI9&"#"&AJ9&"#"&VLOOKUP(AK9,数组!$B:$C,2,0)&"#"&角色升星配方!AL9,"") ->  | CN9: =_xlfn.IFNA(AJ9&"#"&AK9&"#"&VLOOKUP(AL9,数组!$B:$C,2,0)&"#"&角色升星配方!AM9,"") ->  | CO9: =_xlfn.IFNA(AG9&"#"&AH9&"#"&VLOOKUP(AI9,数组!$B:$C,2,0)&"#"&角色升星配方!AJ9,"") -> 9#2#18#1 | CP9: =_xlfn.IFNA(AL9&"#"&AM9&"#"&VLOOKUP(AN9,数组!$B:$C,2,0)&"#"&角色升星配方!AO9,"") ->  | CQ9: =_xlfn.IFNA(AM9&"#"&AN9&"#"&VLOOKUP(AO9,数组!$B:$C,2,0)&"#"&角色升星配方!AP9,"") ->  | CR9: =_xlfn.IFNA(AN9&"#"&AO9&"#"&VLOOKUP(AP9,数组!$B:$C,2,0)&"#"&角色升星配方!AQ9,"") ->  | CS9: =_xlfn.IFNA(AK9&"#"&AL9&"#"&VLOOKUP(AM9,数组!$B:$C,2,0)&"#"&角色升星配方!AN9,"") -> 9#3#17#2 | CT9: =_xlfn.IFNA(AP9&"#"&AQ9&"#"&VLOOKUP(AR9,数组!$B:$C,2,0)&"#"&角色升星配方!AS9,"") ->  | CU9: =_xlfn.IFNA(AQ9&"#"&AR9&"#"&VLOOKUP(AS9,数组!$B:$C,2,0)&"#"&角色升星配方!AT9,"") ->  | CV9: =_xlfn.IFNA(AR9&"#"&AS9&"#"&VLOOKUP(AT9,数组!$B:$C,2,0)&"#"&角色升星配方!AU9,"") ->  | CW9: =_xlfn.IFNA(AO9&"#"&AP9&"#"&VLOOKUP(AQ9,数组!$B:$C,2,0)&"#"&角色升星配方!AR9,"") -> 10#1#3#2 | CX9: =_xlfn.IFNA(AT9&"#"&AU9&"#"&VLOOKUP(AV9,数组!$B:$C,2,0)&"#"&角色升星配方!AW9,"") ->  | CY9: =_xlfn.IFNA(AU9&"#"&AV9&"#"&VLOOKUP(AW9,数组!$B:$C,2,0)&"#"&角色升星配方!AX9,"") ->  | CZ9: =_xlfn.IFNA(AV9&"#"&AW9&"#"&VLOOKUP(AX9,数组!$B:$C,2,0)&"#"&角色升星配方!AY9,"") ->  | DA9: =_xlfn.IFNA(AS9&"#"&AT9&"#"&VLOOKUP(AU9,数组!$B:$C,2,0)&"#"&角色升星配方!AV9,"") -> 10#2#18#1 | DB9: =_xlfn.IFNA(AX9&"#"&AY9&"#"&VLOOKUP(AZ9,数组!$B:$C,2,0)&"#"&角色升星配方!BM9,"") ->  | DE9: =_xlfn.IFNA(AW9&"#"&AX9&"#"&VLOOKUP(AY9,数组!$B:$C,2,0)&"#"&角色升星配方!AZ9,"") -> 10#3#14#1 | DI9: =_xlfn.IFNA(BE9&"#"&BF9&"#"&VLOOKUP(BG9,数组!$B:$C,2,0)&"#"&角色升星配方!BH9,"") ->  | DM9: =_xlfn.IFNA(BI9&"#"&BJ9&"#"&VLOOKUP(BK9,数组!$B:$C,2,0)&"#"&角色升星配方!BL9,"") ->  | DN9: =[2]!SUMSTRING(BM9:DM9,"|") -> 
A10: 6 | B10: 10009 | C10: 6 | D10: 5 | E10: 6 | F10: 1 | G10: 5星同名 | H10: 1 | I10: 6 | J10: 2 | K10: 5星10034 | L10: 1 | M10: 6 | N10: 3 | O10: 5星同系 | P10: 3 | Q10: 7 | R10: 1 | S10: 5星同系 | T10: 4 | U10: 8 | V10: 1 | W10: 5星同系 | X10: 3 | Y10: 8 | Z10: 2 | AA10: 6星同系 | AB10: 1 | AC10: 9 | AD10: 1 | AE10: 5星同名 | AF10: 1 | AG10: 9 | AH10: 2 | AI10: 6星同系 | AJ10: 1 | AK10: 9 | AL10: 3 | AM10: 5星同系 | AN10: 2 | AO10: 10 | AP10: 1 | AQ10: 5星同名 | AR10: 2 | AS10: 10 | AT10: 2 | AU10: 6星同系 | AV10: 1 | AW10: 10 | AX10: 3 | AY10: 9星任意 | AZ10: 1 | BM10: =_xlfn.IFNA(E10&"#"&F10&"#"&VLOOKUP(G10,数组!$B:$C,2,0)&"#"&角色升星配方!H10,"") -> 6#1#3#1 | BN10: =_xlfn.IFNA(F10&"#"&G10&"#"&VLOOKUP(H10,数组!$B:$C,2,0)&"#"&角色升星配方!I10,"") ->  | BO10: =_xlfn.IFNA(G10&"#"&H10&"#"&VLOOKUP(I10,数组!$B:$C,2,0)&"#"&角色升星配方!J10,"") ->  | BP10: =_xlfn.IFNA(H10&"#"&I10&"#"&VLOOKUP(J10,数组!$B:$C,2,0)&"#"&角色升星配方!K10,"") ->  | BQ10: =_xlfn.IFNA(I10&"#"&J10&"#"&VLOOKUP(K10,数组!$B:$C,2,0)&"#"&角色升星配方!L10,"") -> 6#2#32#1 | BR10: =_xlfn.IFNA(J10&"#"&K10&"#"&VLOOKUP(L10,数组!$B:$C,2,0)&"#"&角色升星配方!M10,"") ->  | BS10: =_xlfn.IFNA(K10&"#"&L10&"#"&VLOOKUP(M10,数组!$B:$C,2,0)&"#"&角色升星配方!N10,"") ->  | BT10: =_xlfn.IFNA(L10&"#"&M10&"#"&VLOOKUP(N10,数组!$B:$C,2,0)&"#"&角色升星配方!O10,"") ->  | BU10: =_xlfn.IFNA(M10&"#"&N10&"#"&VLOOKUP(O10,数组!$B:$C,2,0)&"#"&角色升星配方!P10,"") -> 6#3#17#3 | BV10: =_xlfn.IFNA(N10&"#"&O10&"#"&VLOOKUP(P10,数组!$B:$C,2,0)&"#"&角色升星配方!Q10,"") ->  | BW10: =_xlfn.IFNA(O10&"#"&P10&"#"&VLOOKUP(Q10,数组!$B:$C,2,0)&"#"&角色升星配方!R10,"") ->  | BX10: =_xlfn.IFNA(P10&"#"&Q10&"#"&VLOOKUP(R10,数组!$B:$C,2,0)&"#"&角色升星配方!S10,"") ->  | BY10: =_xlfn.IFNA(Q10&"#"&R10&"#"&VLOOKUP(S10,数组!$B:$C,2,0)&"#"&角色升星配方!T10,"") -> 7#1#17#4 | BZ10: =_xlfn.IFNA(R10&"#"&S10&"#"&VLOOKUP(T10,数组!$B:$C,2,0)&"#"&角色升星配方!U10,"") ->  | CA10: =_xlfn.IFNA(S10&"#"&T10&"#"&VLOOKUP(U10,数组!$B:$C,2,0)&"#"&角色升星配方!V10,"") ->  | CB10: =_xlfn.IFNA(T10&"#"&U10&"#"&VLOOKUP(V10,数组!$B:$C,2,0)&"#"&角色升星配方!W10,"") ->  | CC10: =_xlfn.IFNA(U10&"#"&V10&"#"&VLOOKUP(W10,数组!$B:$C,2,0)&"#"&角色升星配方!X10,"") -> 8#1#17#3 | CD10: =_xlfn.IFNA(V10&"#"&W10&"#"&VLOOKUP(X10,数组!$B:$C,2,0)&"#"&角色升星配方!AC10,"") ->  | CE10: =_xlfn.IFNA(W10&"#"&X10&"#"&VLOOKUP(AC10,数组!$B:$C,2,0)&"#"&角色升星配方!AD10,"") ->  | CF10: =_xlfn.IFNA(X10&"#"&AC10&"#"&VLOOKUP(AD10,数组!$B:$C,2,0)&"#"&角色升星配方!AE10,"") ->  | CG10: =_xlfn.IFNA(Y10&"#"&Z10&"#"&VLOOKUP(AA10,数组!$B:$C,2,0)&"#"&角色升星配方!AB10,"") -> 8#2#18#1 | CH10: =_xlfn.IFNA(AD10&"#"&AE10&"#"&VLOOKUP(AF10,数组!$B:$C,2,0)&"#"&角色升星配方!AG10,"") ->  | CI10: =_xlfn.IFNA(AE10&"#"&AF10&"#"&VLOOKUP(AG10,数组!$B:$C,2,0)&"#"&角色升星配方!AH10,"") ->  | CJ10: =_xlfn.IFNA(AF10&"#"&AG10&"#"&VLOOKUP(AH10,数组!$B:$C,2,0)&"#"&角色升星配方!AI10,"") ->  | CK10: =_xlfn.IFNA(AC10&"#"&AD10&"#"&VLOOKUP(AE10,数组!$B:$C,2,0)&"#"&角色升星配方!AF10,"") -> 9#1#3#1 | CL10: =_xlfn.IFNA(AH10&"#"&AI10&"#"&VLOOKUP(AJ10,数组!$B:$C,2,0)&"#"&角色升星配方!AK10,"") ->  | CM10: =_xlfn.IFNA(AI10&"#"&AJ10&"#"&VLOOKUP(AK10,数组!$B:$C,2,0)&"#"&角色升星配方!AL10,"") ->  | CN10: =_xlfn.IFNA(AJ10&"#"&AK10&"#"&VLOOKUP(AL10,数组!$B:$C,2,0)&"#"&角色升星配方!AM10,"") ->  | CO10: =_xlfn.IFNA(AG10&"#"&AH10&"#"&VLOOKUP(AI10,数组!$B:$C,2,0)&"#"&角色升星配方!AJ10,"") -> 9#2#18#1 | CP10: =_xlfn.IFNA(AL10&"#"&AM10&"#"&VLOOKUP(AN10,数组!$B:$C,2,0)&"#"&角色升星配方!AO10,"") ->  | CQ10: =_xlfn.IFNA(AM10&"#"&AN10&"#"&VLOOKUP(AO10,数组!$B:$C,2,0)&"#"&角色升星配方!AP10,"") ->  | CR10: =_xlfn.IFNA(AN10&"#"&AO10&"#"&VLOOKUP(AP10,数组!$B:$C,2,0)&"#"&角色升星配方!AQ10,"") ->  | CS10: =_xlfn.IFNA(AK10&"#"&AL10&"#"&VLOOKUP(AM10,数组!$B:$C,2,0)&"#"&角色升星配方!AN10,"") -> 9#3#17#2 | CT10: =_xlfn.IFNA(AP10&"#"&AQ10&"#"&VLOOKUP(AR10,数组!$B:$C,2,0)&"#"&角色升星配方!AS10,"") ->  | CU10: =_xlfn.IFNA(AQ10&"#"&AR10&"#"&VLOOKUP(AS10,数组!$B:$C,2,0)&"#"&角色升星配方!AT10,"") ->  | CV10: =_xlfn.IFNA(AR10&"#"&AS10&"#"&VLOOKUP(AT10,数组!$B:$C,2,0)&"#"&角色升星配方!AU10,"") ->  | CW10: =_xlfn.IFNA(AO10&"#"&AP10&"#"&VLOOKUP(AQ10,数组!$B:$C,2,0)&"#"&角色升星配方!AR10,"") -> 10#1#3#2 | CX10: =_xlfn.IFNA(AT10&"#"&AU10&"#"&VLOOKUP(AV10,数组!$B:$C,2,0)&"#"&角色升星配方!AW10,"") ->  | CY10: =_xlfn.IFNA(AU10&"#"&AV10&"#"&VLOOKUP(AW10,数组!$B:$C,2,0)&"#"&角色升星配方!AX10,"") ->  | CZ10: =_xlfn.IFNA(AV10&"#"&AW10&"#"&VLOOKUP(AX10,数组!$B:$C,2,0)&"#"&角色升星配方!AY10,"") ->  | DA10: =_xlfn.IFNA(AS10&"#"&AT10&"#"&VLOOKUP(AU10,数组!$B:$C,2,0)&"#"&角色升星配方!AV10,"") -> 10#2#18#1 | DB10: =_xlfn.IFNA(AX10&"#"&AY10&"#"&VLOOKUP(AZ10,数组!$B:$C,2,0)&"#"&角色升星配方!BM10,"") ->  | DE10: =_xlfn.IFNA(AW10&"#"&AX10&"#"&VLOOKUP(AY10,数组!$B:$C,2,0)&"#"&角色升星配方!AZ10,"") -> 10#3#14#1 | DI10: =_xlfn.IFNA(BE10&"#"&BF10&"#"&VLOOKUP(BG10,数组!$B:$C,2,0)&"#"&角色升星配方!BH10,"") ->  | DM10: =_xlfn.IFNA(BI10&"#"&BJ10&"#"&VLOOKUP(BK10,数组!$B:$C,2,0)&"#"&角色升星配方!BL10,"") ->  | DN10: =[2]!SUMSTRING(BM10:DM10,"|") -> 
A11: 3 | B11: 10010 | C11: 3 | D11: 5 | E11: 6 | F11: 1 | G11: 5星同名 | H11: 1 | I11: 6 | J11: 2 | K11: 5星10039 | L11: 1 | M11: 6 | N11: 3 | O11: 5星同系 | P11: 3 | Q11: 7 | R11: 1 | S11: 5星同系 | T11: 4 | U11: 8 | V11: 1 | W11: 5星同系 | X11: 3 | Y11: 8 | Z11: 2 | AA11: 6星同系 | AB11: 1 | AC11: 9 | AD11: 1 | AE11: 5星同名 | AF11: 1 | AG11: 9 | AH11: 2 | AI11: 6星同系 | AJ11: 1 | AK11: 9 | AL11: 3 | AM11: 5星同系 | AN11: 2 | AO11: 10 | AP11: 1 | AQ11: 5星同名 | AR11: 2 | AS11: 10 | AT11: 2 | AU11: 6星同系 | AV11: 1 | AW11: 10 | AX11: 3 | AY11: 9星任意 | AZ11: 1 | BM11: =_xlfn.IFNA(E11&"#"&F11&"#"&VLOOKUP(G11,数组!$B:$C,2,0)&"#"&角色升星配方!H11,"") -> 6#1#3#1 | BN11: =_xlfn.IFNA(F11&"#"&G11&"#"&VLOOKUP(H11,数组!$B:$C,2,0)&"#"&角色升星配方!I11,"") ->  | BO11: =_xlfn.IFNA(G11&"#"&H11&"#"&VLOOKUP(I11,数组!$B:$C,2,0)&"#"&角色升星配方!J11,"") ->  | BP11: =_xlfn.IFNA(H11&"#"&I11&"#"&VLOOKUP(J11,数组!$B:$C,2,0)&"#"&角色升星配方!K11,"") ->  | BQ11: =_xlfn.IFNA(I11&"#"&J11&"#"&VLOOKUP(K11,数组!$B:$C,2,0)&"#"&角色升星配方!L11,"") -> 6#2#37#1 | BR11: =_xlfn.IFNA(J11&"#"&K11&"#"&VLOOKUP(L11,数组!$B:$C,2,0)&"#"&角色升星配方!M11,"") ->  | BS11: =_xlfn.IFNA(K11&"#"&L11&"#"&VLOOKUP(M11,数组!$B:$C,2,0)&"#"&角色升星配方!N11,"") ->  | BT11: =_xlfn.IFNA(L11&"#"&M11&"#"&VLOOKUP(N11,数组!$B:$C,2,0)&"#"&角色升星配方!O11,"") ->  | BU11: =_xlfn.IFNA(M11&"#"&N11&"#"&VLOOKUP(O11,数组!$B:$C,2,0)&"#"&角色升星配方!P11,"") -> 6#3#17#3 | BV11: =_xlfn.IFNA(N11&"#"&O11&"#"&VLOOKUP(P11,数组!$B:$C,2,0)&"#"&角色升星配方!Q11,"") ->  | BW11: =_xlfn.IFNA(O11&"#"&P11&"#"&VLOOKUP(Q11,数组!$B:$C,2,0)&"#"&角色升星配方!R11,"") ->  | BX11: =_xlfn.IFNA(P11&"#"&Q11&"#"&VLOOKUP(R11,数组!$B:$C,2,0)&"#"&角色升星配方!S11,"") ->  | BY11: =_xlfn.IFNA(Q11&"#"&R11&"#"&VLOOKUP(S11,数组!$B:$C,2,0)&"#"&角色升星配方!T11,"") -> 7#1#17#4 | BZ11: =_xlfn.IFNA(R11&"#"&S11&"#"&VLOOKUP(T11,数组!$B:$C,2,0)&"#"&角色升星配方!U11,"") ->  | CA11: =_xlfn.IFNA(S11&"#"&T11&"#"&VLOOKUP(U11,数组!$B:$C,2,0)&"#"&角色升星配方!V11,"") ->  | CB11: =_xlfn.IFNA(T11&"#"&U11&"#"&VLOOKUP(V11,数组!$B:$C,2,0)&"#"&角色升星配方!W11,"") ->  | CC11: =_xlfn.IFNA(U11&"#"&V11&"#"&VLOOKUP(W11,数组!$B:$C,2,0)&"#"&角色升星配方!X11,"") -> 8#1#17#3 | CD11: =_xlfn.IFNA(V11&"#"&W11&"#"&VLOOKUP(X11,数组!$B:$C,2,0)&"#"&角色升星配方!AC11,"") ->  | CE11: =_xlfn.IFNA(W11&"#"&X11&"#"&VLOOKUP(AC11,数组!$B:$C,2,0)&"#"&角色升星配方!AD11,"") ->  | CF11: =_xlfn.IFNA(X11&"#"&AC11&"#"&VLOOKUP(AD11,数组!$B:$C,2,0)&"#"&角色升星配方!AE11,"") ->  | CG11: =_xlfn.IFNA(Y11&"#"&Z11&"#"&VLOOKUP(AA11,数组!$B:$C,2,0)&"#"&角色升星配方!AB11,"") -> 8#2#18#1 | CH11: =_xlfn.IFNA(AD11&"#"&AE11&"#"&VLOOKUP(AF11,数组!$B:$C,2,0)&"#"&角色升星配方!AG11,"") ->  | CI11: =_xlfn.IFNA(AE11&"#"&AF11&"#"&VLOOKUP(AG11,数组!$B:$C,2,0)&"#"&角色升星配方!AH11,"") ->  | CJ11: =_xlfn.IFNA(AF11&"#"&AG11&"#"&VLOOKUP(AH11,数组!$B:$C,2,0)&"#"&角色升星配方!AI11,"") ->  | CK11: =_xlfn.IFNA(AC11&"#"&AD11&"#"&VLOOKUP(AE11,数组!$B:$C,2,0)&"#"&角色升星配方!AF11,"") -> 9#1#3#1 | CL11: =_xlfn.IFNA(AH11&"#"&AI11&"#"&VLOOKUP(AJ11,数组!$B:$C,2,0)&"#"&角色升星配方!AK11,"") ->  | CM11: =_xlfn.IFNA(AI11&"#"&AJ11&"#"&VLOOKUP(AK11,数组!$B:$C,2,0)&"#"&角色升星配方!AL11,"") ->  | CN11: =_xlfn.IFNA(AJ11&"#"&AK11&"#"&VLOOKUP(AL11,数组!$B:$C,2,0)&"#"&角色升星配方!AM11,"") ->  | CO11: =_xlfn.IFNA(AG11&"#"&AH11&"#"&VLOOKUP(AI11,数组!$B:$C,2,0)&"#"&角色升星配方!AJ11,"") -> 9#2#18#1 | CP11: =_xlfn.IFNA(AL11&"#"&AM11&"#"&VLOOKUP(AN11,数组!$B:$C,2,0)&"#"&角色升星配方!AO11,"") ->  | CQ11: =_xlfn.IFNA(AM11&"#"&AN11&"#"&VLOOKUP(AO11,数组!$B:$C,2,0)&"#"&角色升星配方!AP11,"") ->  | CR11: =_xlfn.IFNA(AN11&"#"&AO11&"#"&VLOOKUP(AP11,数组!$B:$C,2,0)&"#"&角色升星配方!AQ11,"") ->  | CS11: =_xlfn.IFNA(AK11&"#"&AL11&"#"&VLOOKUP(AM11,数组!$B:$C,2,0)&"#"&角色升星配方!AN11,"") -> 9#3#17#2 | CT11: =_xlfn.IFNA(AP11&"#"&AQ11&"#"&VLOOKUP(AR11,数组!$B:$C,2,0)&"#"&角色升星配方!AS11,"") ->  | CU11: =_xlfn.IFNA(AQ11&"#"&AR11&"#"&VLOOKUP(AS11,数组!$B:$C,2,0)&"#"&角色升星配方!AT11,"") ->  | CV11: =_xlfn.IFNA(AR11&"#"&AS11&"#"&VLOOKUP(AT11,数组!$B:$C,2,0)&"#"&角色升星配方!AU11,"") ->  | CW11: =_xlfn.IFNA(AO11&"#"&AP11&"#"&VLOOKUP(AQ11,数组!$B:$C,2,0)&"#"&角色升星配方!AR11,"") -> 10#1#3#2 | CX11: =_xlfn.IFNA(AT11&"#"&AU11&"#"&VLOOKUP(AV11,数组!$B:$C,2,0)&"#"&角色升星配方!AW11,"") ->  | CY11: =_xlfn.IFNA(AU11&"#"&AV11&"#"&VLOOKUP(AW11,数组!$B:$C,2,0)&"#"&角色升星配方!AX11,"") ->  | CZ11: =_xlfn.IFNA(AV11&"#"&AW11&"#"&VLOOKUP(AX11,数组!$B:$C,2,0)&"#"&角色升星配方!AY11,"") ->  | DA11: =_xlfn.IFNA(AS11&"#"&AT11&"#"&VLOOKUP(AU11,数组!$B:$C,2,0)&"#"&角色升星配方!AV11,"") -> 10#2#18#1 | DB11: =_xlfn.IFNA(AX11&"#"&AY11&"#"&VLOOKUP(AZ11,数组!$B:$C,2,0)&"#"&角色升星配方!BM11,"") ->  | DE11: =_xlfn.IFNA(AW11&"#"&AX11&"#"&VLOOKUP(AY11,数组!$B:$C,2,0)&"#"&角色升星配方!AZ11,"") -> 10#3#14#1 | DI11: =_xlfn.IFNA(BE11&"#"&BF11&"#"&VLOOKUP(BG11,数组!$B:$C,2,0)&"#"&角色升星配方!BH11,"") ->  | DM11: =_xlfn.IFNA(BI11&"#"&BJ11&"#"&VLOOKUP(BK11,数组!$B:$C,2,0)&"#"&角色升星配方!BL11,"") ->  | DN11: =[2]!SUMSTRING(BM11:DM11,"|") -> 
A12: 4 | B12: 10011 | C12: 4 | D12: 5 | E12: 6 | F12: 1 | G12: 5星同名 | H12: 1 | I12: 6 | J12: 2 | K12: 5星10032 | L12: 1 | M12: 6 | N12: 3 | O12: 5星同系 | P12: 3 | Q12: 7 | R12: 1 | S12: 5星同系 | T12: 4 | U12: 8 | V12: 1 | W12: 5星同系 | X12: 3 | Y12: 8 | Z12: 2 | AA12: 6星同系 | AB12: 1 | AC12: 9 | AD12: 1 | AE12: 5星同名 | AF12: 1 | AG12: 9 | AH12: 2 | AI12: 6星同系 | AJ12: 1 | AK12: 9 | AL12: 3 | AM12: 5星同系 | AN12: 2 | AO12: 10 | AP12: 1 | AQ12: 5星同名 | AR12: 2 | AS12: 10 | AT12: 2 | AU12: 6星同系 | AV12: 1 | AW12: 10 | AX12: 3 | AY12: 9星任意 | AZ12: 1 | BM12: =_xlfn.IFNA(E12&"#"&F12&"#"&VLOOKUP(G12,数组!$B:$C,2,0)&"#"&角色升星配方!H12,"") -> 6#1#3#1 | BN12: =_xlfn.IFNA(F12&"#"&G12&"#"&VLOOKUP(H12,数组!$B:$C,2,0)&"#"&角色升星配方!I12,"") ->  | BO12: =_xlfn.IFNA(G12&"#"&H12&"#"&VLOOKUP(I12,数组!$B:$C,2,0)&"#"&角色升星配方!J12,"") ->  | BP12: =_xlfn.IFNA(H12&"#"&I12&"#"&VLOOKUP(J12,数组!$B:$C,2,0)&"#"&角色升星配方!K12,"") ->  | BQ12: =_xlfn.IFNA(I12&"#"&J12&"#"&VLOOKUP(K12,数组!$B:$C,2,0)&"#"&角色升星配方!L12,"") -> 6#2#30#1 | BR12: =_xlfn.IFNA(J12&"#"&K12&"#"&VLOOKUP(L12,数组!$B:$C,2,0)&"#"&角色升星配方!M12,"") ->  | BS12: =_xlfn.IFNA(K12&"#"&L12&"#"&VLOOKUP(M12,数组!$B:$C,2,0)&"#"&角色升星配方!N12,"") ->  | BT12: =_xlfn.IFNA(L12&"#"&M12&"#"&VLOOKUP(N12,数组!$B:$C,2,0)&"#"&角色升星配方!O12,"") ->  | BU12: =_xlfn.IFNA(M12&"#"&N12&"#"&VLOOKUP(O12,数组!$B:$C,2,0)&"#"&角色升星配方!P12,"") -> 6#3#17#3 | BV12: =_xlfn.IFNA(N12&"#"&O12&"#"&VLOOKUP(P12,数组!$B:$C,2,0)&"#"&角色升星配方!Q12,"") ->  | BW12: =_xlfn.IFNA(O12&"#"&P12&"#"&VLOOKUP(Q12,数组!$B:$C,2,0)&"#"&角色升星配方!R12,"") ->  | BX12: =_xlfn.IFNA(P12&"#"&Q12&"#"&VLOOKUP(R12,数组!$B:$C,2,0)&"#"&角色升星配方!S12,"") ->  | BY12: =_xlfn.IFNA(Q12&"#"&R12&"#"&VLOOKUP(S12,数组!$B:$C,2,0)&"#"&角色升星配方!T12,"") -> 7#1#17#4 | BZ12: =_xlfn.IFNA(R12&"#"&S12&"#"&VLOOKUP(T12,数组!$B:$C,2,0)&"#"&角色升星配方!U12,"") ->  | CA12: =_xlfn.IFNA(S12&"#"&T12&"#"&VLOOKUP(U12,数组!$B:$C,2,0)&"#"&角色升星配方!V12,"") ->  | CB12: =_xlfn.IFNA(T12&"#"&U12&"#"&VLOOKUP(V12,数组!$B:$C,2,0)&"#"&角色升星配方!W12,"") ->  | CC12: =_xlfn.IFNA(U12&"#"&V12&"#"&VLOOKUP(W12,数组!$B:$C,2,0)&"#"&角色升星配方!X12,"") -> 8#1#17#3 | CD12: =_xlfn.IFNA(V12&"#"&W12&"#"&VLOOKUP(X12,数组!$B:$C,2,0)&"#"&角色升星配方!AC12,"") ->  | CE12: =_xlfn.IFNA(W12&"#"&X12&"#"&VLOOKUP(AC12,数组!$B:$C,2,0)&"#"&角色升星配方!AD12,"") ->  | CF12: =_xlfn.IFNA(X12&"#"&AC12&"#"&VLOOKUP(AD12,数组!$B:$C,2,0)&"#"&角色升星配方!AE12,"") ->  | CG12: =_xlfn.IFNA(Y12&"#"&Z12&"#"&VLOOKUP(AA12,数组!$B:$C,2,0)&"#"&角色升星配方!AB12,"") -> 8#2#18#1 | CH12: =_xlfn.IFNA(AD12&"#"&AE12&"#"&VLOOKUP(AF12,数组!$B:$C,2,0)&"#"&角色升星配方!AG12,"") ->  | CI12: =_xlfn.IFNA(AE12&"#"&AF12&"#"&VLOOKUP(AG12,数组!$B:$C,2,0)&"#"&角色升星配方!AH12,"") ->  | CJ12: =_xlfn.IFNA(AF12&"#"&AG12&"#"&VLOOKUP(AH12,数组!$B:$C,2,0)&"#"&角色升星配方!AI12,"") ->  | CK12: =_xlfn.IFNA(AC12&"#"&AD12&"#"&VLOOKUP(AE12,数组!$B:$C,2,0)&"#"&角色升星配方!AF12,"") -> 9#1#3#1 | CL12: =_xlfn.IFNA(AH12&"#"&AI12&"#"&VLOOKUP(AJ12,数组!$B:$C,2,0)&"#"&角色升星配方!AK12,"") ->  | CM12: =_xlfn.IFNA(AI12&"#"&AJ12&"#"&VLOOKUP(AK12,数组!$B:$C,2,0)&"#"&角色升星配方!AL12,"") ->  | CN12: =_xlfn.IFNA(AJ12&"#"&AK12&"#"&VLOOKUP(AL12,数组!$B:$C,2,0)&"#"&角色升星配方!AM12,"") ->  | CO12: =_xlfn.IFNA(AG12&"#"&AH12&"#"&VLOOKUP(AI12,数组!$B:$C,2,0)&"#"&角色升星配方!AJ12,"") -> 9#2#18#1 | CP12: =_xlfn.IFNA(AL12&"#"&AM12&"#"&VLOOKUP(AN12,数组!$B:$C,2,0)&"#"&角色升星配方!AO12,"") ->  | CQ12: =_xlfn.IFNA(AM12&"#"&AN12&"#"&VLOOKUP(AO12,数组!$B:$C,2,0)&"#"&角色升星配方!AP12,"") ->  | CR12: =_xlfn.IFNA(AN12&"#"&AO12&"#"&VLOOKUP(AP12,数组!$B:$C,2,0)&"#"&角色升星配方!AQ12,"") ->  | CS12: =_xlfn.IFNA(AK12&"#"&AL12&"#"&VLOOKUP(AM12,数组!$B:$C,2,0)&"#"&角色升星配方!AN12,"") -> 9#3#17#2 | CT12: =_xlfn.IFNA(AP12&"#"&AQ12&"#"&VLOOKUP(AR12,数组!$B:$C,2,0)&"#"&角色升星配方!AS12,"") ->  | CU12: =_xlfn.IFNA(AQ12&"#"&AR12&"#"&VLOOKUP(AS12,数组!$B:$C,2,0)&"#"&角色升星配方!AT12,"") ->  | CV12: =_xlfn.IFNA(AR12&"#"&AS12&"#"&VLOOKUP(AT12,数组!$B:$C,2,0)&"#"&角色升星配方!AU12,"") ->  | CW12: =_xlfn.IFNA(AO12&"#"&AP12&"#"&VLOOKUP(AQ12,数组!$B:$C,2,0)&"#"&角色升星配方!AR12,"") -> 10#1#3#2 | CX12: =_xlfn.IFNA(AT12&"#"&AU12&"#"&VLOOKUP(AV12,数组!$B:$C,2,0)&"#"&角色升星配方!AW12,"") ->  | CY12: =_xlfn.IFNA(AU12&"#"&AV12&"#"&VLOOKUP(AW12,数组!$B:$C,2,0)&"#"&角色升星配方!AX12,"") ->  | CZ12: =_xlfn.IFNA(AV12&"#"&AW12&"#"&VLOOKUP(AX12,数组!$B:$C,2,0)&"#"&角色升星配方!AY12,"") ->  | DA12: =_xlfn.IFNA(AS12&"#"&AT12&"#"&VLOOKUP(AU12,数组!$B:$C,2,0)&"#"&角色升星配方!AV12,"") -> 10#2#18#1 | DB12: =_xlfn.IFNA(AX12&"#"&AY12&"#"&VLOOKUP(AZ12,数组!$B:$C,2,0)&"#"&角色升星配方!BM12,"") ->  | DE12: =_xlfn.IFNA(AW12&"#"&AX12&"#"&VLOOKUP(AY12,数组!$B:$C,2,0)&"#"&角色升星配方!AZ12,"") -> 10#3#14#1 | DI12: =_xlfn.IFNA(BE12&"#"&BF12&"#"&VLOOKUP(BG12,数组!$B:$C,2,0)&"#"&角色升星配方!BH12,"") ->  | DM12: =_xlfn.IFNA(BI12&"#"&BJ12&"#"&VLOOKUP(BK12,数组!$B:$C,2,0)&"#"&角色升星配方!BL12,"") ->  | DN12: =[2]!SUMSTRING(BM12:DM12,"|") -> 
A13: 1 | B13: 10012 | C13: 1 | D13: 5 | E13: 6 | F13: 1 | G13: 5星同名 | H13: 1 | I13: 6 | J13: 2 | K13: 5星10038 | L13: 1 | M13: 6 | N13: 3 | O13: 5星同系 | P13: 3 | Q13: 7 | R13: 1 | S13: 5星同系 | T13: 4 | U13: 8 | V13: 1 | W13: 5星同系 | X13: 3 | Y13: 8 | Z13: 2 | AA13: 6星同系 | AB13: 1 | AC13: 9 | AD13: 1 | AE13: 5星同名 | AF13: 1 | AG13: 9 | AH13: 2 | AI13: 6星同系 | AJ13: 1 | AK13: 9 | AL13: 3 | AM13: 5星同系 | AN13: 2 | AO13: 10 | AP13: 1 | AQ13: 5星同名 | AR13: 2 | AS13: 10 | AT13: 2 | AU13: 6星同系 | AV13: 1 | AW13: 10 | AX13: 3 | AY13: 9星任意 | AZ13: 1 | BM13: =_xlfn.IFNA(E13&"#"&F13&"#"&VLOOKUP(G13,数组!$B:$C,2,0)&"#"&角色升星配方!H13,"") -> 6#1#3#1 | BN13: =_xlfn.IFNA(F13&"#"&G13&"#"&VLOOKUP(H13,数组!$B:$C,2,0)&"#"&角色升星配方!I13,"") ->  | BO13: =_xlfn.IFNA(G13&"#"&H13&"#"&VLOOKUP(I13,数组!$B:$C,2,0)&"#"&角色升星配方!J13,"") ->  | BP13: =_xlfn.IFNA(H13&"#"&I13&"#"&VLOOKUP(J13,数组!$B:$C,2,0)&"#"&角色升星配方!K13,"") ->  | BQ13: =_xlfn.IFNA(I13&"#"&J13&"#"&VLOOKUP(K13,数组!$B:$C,2,0)&"#"&角色升星配方!L13,"") -> 6#2#36#1 | BR13: =_xlfn.IFNA(J13&"#"&K13&"#"&VLOOKUP(L13,数组!$B:$C,2,0)&"#"&角色升星配方!M13,"") ->  | BS13: =_xlfn.IFNA(K13&"#"&L13&"#"&VLOOKUP(M13,数组!$B:$C,2,0)&"#"&角色升星配方!N13,"") ->  | BT13: =_xlfn.IFNA(L13&"#"&M13&"#"&VLOOKUP(N13,数组!$B:$C,2,0)&"#"&角色升星配方!O13,"") ->  | BU13: =_xlfn.IFNA(M13&"#"&N13&"#"&VLOOKUP(O13,数组!$B:$C,2,0)&"#"&角色升星配方!P13,"") -> 6#3#17#3 | BV13: =_xlfn.IFNA(N13&"#"&O13&"#"&VLOOKUP(P13,数组!$B:$C,2,0)&"#"&角色升星配方!Q13,"") ->  | BW13: =_xlfn.IFNA(O13&"#"&P13&"#"&VLOOKUP(Q13,数组!$B:$C,2,0)&"#"&角色升星配方!R13,"") ->  | BX13: =_xlfn.IFNA(P13&"#"&Q13&"#"&VLOOKUP(R13,数组!$B:$C,2,0)&"#"&角色升星配方!S13,"") ->  | BY13: =_xlfn.IFNA(Q13&"#"&R13&"#"&VLOOKUP(S13,数组!$B:$C,2,0)&"#"&角色升星配方!T13,"") -> 7#1#17#4 | BZ13: =_xlfn.IFNA(R13&"#"&S13&"#"&VLOOKUP(T13,数组!$B:$C,2,0)&"#"&角色升星配方!U13,"") ->  | CA13: =_xlfn.IFNA(S13&"#"&T13&"#"&VLOOKUP(U13,数组!$B:$C,2,0)&"#"&角色升星配方!V13,"") ->  | CB13: =_xlfn.IFNA(T13&"#"&U13&"#"&VLOOKUP(V13,数组!$B:$C,2,0)&"#"&角色升星配方!W13,"") ->  | CC13: =_xlfn.IFNA(U13&"#"&V13&"#"&VLOOKUP(W13,数组!$B:$C,2,0)&"#"&角色升星配方!X13,"") -> 8#1#17#3 | CD13: =_xlfn.IFNA(V13&"#"&W13&"#"&VLOOKUP(X13,数组!$B:$C,2,0)&"#"&角色升星配方!AC13,"") ->  | CE13: =_xlfn.IFNA(W13&"#"&X13&"#"&VLOOKUP(AC13,数组!$B:$C,2,0)&"#"&角色升星配方!AD13,"") ->  | CF13: =_xlfn.IFNA(X13&"#"&AC13&"#"&VLOOKUP(AD13,数组!$B:$C,2,0)&"#"&角色升星配方!AE13,"") ->  | CG13: =_xlfn.IFNA(Y13&"#"&Z13&"#"&VLOOKUP(AA13,数组!$B:$C,2,0)&"#"&角色升星配方!AB13,"") -> 8#2#18#1 | CH13: =_xlfn.IFNA(AD13&"#"&AE13&"#"&VLOOKUP(AF13,数组!$B:$C,2,0)&"#"&角色升星配方!AG13,"") ->  | CI13: =_xlfn.IFNA(AE13&"#"&AF13&"#"&VLOOKUP(AG13,数组!$B:$C,2,0)&"#"&角色升星配方!AH13,"") ->  | CJ13: =_xlfn.IFNA(AF13&"#"&AG13&"#"&VLOOKUP(AH13,数组!$B:$C,2,0)&"#"&角色升星配方!AI13,"") ->  | CK13: =_xlfn.IFNA(AC13&"#"&AD13&"#"&VLOOKUP(AE13,数组!$B:$C,2,0)&"#"&角色升星配方!AF13,"") -> 9#1#3#1 | CL13: =_xlfn.IFNA(AH13&"#"&AI13&"#"&VLOOKUP(AJ13,数组!$B:$C,2,0)&"#"&角色升星配方!AK13,"") ->  | CM13: =_xlfn.IFNA(AI13&"#"&AJ13&"#"&VLOOKUP(AK13,数组!$B:$C,2,0)&"#"&角色升星配方!AL13,"") ->  | CN13: =_xlfn.IFNA(AJ13&"#"&AK13&"#"&VLOOKUP(AL13,数组!$B:$C,2,0)&"#"&角色升星配方!AM13,"") ->  | CO13: =_xlfn.IFNA(AG13&"#"&AH13&"#"&VLOOKUP(AI13,数组!$B:$C,2,0)&"#"&角色升星配方!AJ13,"") -> 9#2#18#1 | CP13: =_xlfn.IFNA(AL13&"#"&AM13&"#"&VLOOKUP(AN13,数组!$B:$C,2,0)&"#"&角色升星配方!AO13,"") ->  | CQ13: =_xlfn.IFNA(AM13&"#"&AN13&"#"&VLOOKUP(AO13,数组!$B:$C,2,0)&"#"&角色升星配方!AP13,"") ->  | CR13: =_xlfn.IFNA(AN13&"#"&AO13&"#"&VLOOKUP(AP13,数组!$B:$C,2,0)&"#"&角色升星配方!AQ13,"") ->  | CS13: =_xlfn.IFNA(AK13&"#"&AL13&"#"&VLOOKUP(AM13,数组!$B:$C,2,0)&"#"&角色升星配方!AN13,"") -> 9#3#17#2 | CT13: =_xlfn.IFNA(AP13&"#"&AQ13&"#"&VLOOKUP(AR13,数组!$B:$C,2,0)&"#"&角色升星配方!AS13,"") ->  | CU13: =_xlfn.IFNA(AQ13&"#"&AR13&"#"&VLOOKUP(AS13,数组!$B:$C,2,0)&"#"&角色升星配方!AT13,"") ->  | CV13: =_xlfn.IFNA(AR13&"#"&AS13&"#"&VLOOKUP(AT13,数组!$B:$C,2,0)&"#"&角色升星配方!AU13,"") ->  | CW13: =_xlfn.IFNA(AO13&"#"&AP13&"#"&VLOOKUP(AQ13,数组!$B:$C,2,0)&"#"&角色升星配方!AR13,"") -> 10#1#3#2 | CX13: =_xlfn.IFNA(AT13&"#"&AU13&"#"&VLOOKUP(AV13,数组!$B:$C,2,0)&"#"&角色升星配方!AW13,"") ->  | CY13: =_xlfn.IFNA(AU13&"#"&AV13&"#"&VLOOKUP(AW13,数组!$B:$C,2,0)&"#"&角色升星配方!AX13,"") ->  | CZ13: =_xlfn.IFNA(AV13&"#"&AW13&"#"&VLOOKUP(AX13,数组!$B:$C,2,0)&"#"&角色升星配方!AY13,"") ->  | DA13: =_xlfn.IFNA(AS13&"#"&AT13&"#"&VLOOKUP(AU13,数组!$B:$C,2,0)&"#"&角色升星配方!AV13,"") -> 10#2#18#1 | DB13: =_xlfn.IFNA(AX13&"#"&AY13&"#"&VLOOKUP(AZ13,数组!$B:$C,2,0)&"#"&角色升星配方!BM13,"") ->  | DE13: =_xlfn.IFNA(AW13&"#"&AX13&"#"&VLOOKUP(AY13,数组!$B:$C,2,0)&"#"&角色升星配方!AZ13,"") -> 10#3#14#1 | DI13: =_xlfn.IFNA(BE13&"#"&BF13&"#"&VLOOKUP(BG13,数组!$B:$C,2,0)&"#"&角色升星配方!BH13,"") ->  | DM13: =_xlfn.IFNA(BI13&"#"&BJ13&"#"&VLOOKUP(BK13,数组!$B:$C,2,0)&"#"&角色升星配方!BL13,"") ->  | DN13: =[2]!SUMSTRING(BM13:DM13,"|") -> 
A14: 4 | B14: 10013 | C14: 4 | D14: 5 | E14: 6 | F14: 1 | G14: 5星同名 | H14: 1 | I14: 6 | J14: 2 | K14: 5星10033 | L14: 1 | M14: 6 | N14: 3 | O14: 5星同系 | P14: 3 | Q14: 7 | R14: 1 | S14: 5星同系 | T14: 4 | U14: 8 | V14: 1 | W14: 5星同系 | X14: 3 | Y14: 8 | Z14: 2 | AA14: 6星同系 | AB14: 1 | AC14: 9 | AD14: 1 | AE14: 5星同名 | AF14: 1 | AG14: 9 | AH14: 2 | AI14: 6星同系 | AJ14: 1 | AK14: 9 | AL14: 3 | AM14: 5星同系 | AN14: 2 | AO14: 10 | AP14: 1 | AQ14: 5星同名 | AR14: 2 | AS14: 10 | AT14: 2 | AU14: 6星同系 | AV14: 1 | AW14: 10 | AX14: 3 | AY14: 9星任意 | AZ14: 1 | BM14: =_xlfn.IFNA(E14&"#"&F14&"#"&VLOOKUP(G14,数组!$B:$C,2,0)&"#"&角色升星配方!H14,"") -> 6#1#3#1 | BN14: =_xlfn.IFNA(F14&"#"&G14&"#"&VLOOKUP(H14,数组!$B:$C,2,0)&"#"&角色升星配方!I14,"") ->  | BO14: =_xlfn.IFNA(G14&"#"&H14&"#"&VLOOKUP(I14,数组!$B:$C,2,0)&"#"&角色升星配方!J14,"") ->  | BP14: =_xlfn.IFNA(H14&"#"&I14&"#"&VLOOKUP(J14,数组!$B:$C,2,0)&"#"&角色升星配方!K14,"") ->  | BQ14: =_xlfn.IFNA(I14&"#"&J14&"#"&VLOOKUP(K14,数组!$B:$C,2,0)&"#"&角色升星配方!L14,"") -> 6#2#31#1 | BR14: =_xlfn.IFNA(J14&"#"&K14&"#"&VLOOKUP(L14,数组!$B:$C,2,0)&"#"&角色升星配方!M14,"") ->  | BS14: =_xlfn.IFNA(K14&"#"&L14&"#"&VLOOKUP(M14,数组!$B:$C,2,0)&"#"&角色升星配方!N14,"") ->  | BT14: =_xlfn.IFNA(L14&"#"&M14&"#"&VLOOKUP(N14,数组!$B:$C,2,0)&"#"&角色升星配方!O14,"") ->  | BU14: =_xlfn.IFNA(M14&"#"&N14&"#"&VLOOKUP(O14,数组!$B:$C,2,0)&"#"&角色升星配方!P14,"") -> 6#3#17#3 | BV14: =_xlfn.IFNA(N14&"#"&O14&"#"&VLOOKUP(P14,数组!$B:$C,2,0)&"#"&角色升星配方!Q14,"") ->  | BW14: =_xlfn.IFNA(O14&"#"&P14&"#"&VLOOKUP(Q14,数组!$B:$C,2,0)&"#"&角色升星配方!R14,"") ->  | BX14: =_xlfn.IFNA(P14&"#"&Q14&"#"&VLOOKUP(R14,数组!$B:$C,2,0)&"#"&角色升星配方!S14,"") ->  | BY14: =_xlfn.IFNA(Q14&"#"&R14&"#"&VLOOKUP(S14,数组!$B:$C,2,0)&"#"&角色升星配方!T14,"") -> 7#1#17#4 | BZ14: =_xlfn.IFNA(R14&"#"&S14&"#"&VLOOKUP(T14,数组!$B:$C,2,0)&"#"&角色升星配方!U14,"") ->  | CA14: =_xlfn.IFNA(S14&"#"&T14&"#"&VLOOKUP(U14,数组!$B:$C,2,0)&"#"&角色升星配方!V14,"") ->  | CB14: =_xlfn.IFNA(T14&"#"&U14&"#"&VLOOKUP(V14,数组!$B:$C,2,0)&"#"&角色升星配方!W14,"") ->  | CC14: =_xlfn.IFNA(U14&"#"&V14&"#"&VLOOKUP(W14,数组!$B:$C,2,0)&"#"&角色升星配方!X14,"") -> 8#1#17#3 | CD14: =_xlfn.IFNA(V14&"#"&W14&"#"&VLOOKUP(X14,数组!$B:$C,2,0)&"#"&角色升星配方!AC14,"") ->  | CE14: =_xlfn.IFNA(W14&"#"&X14&"#"&VLOOKUP(AC14,数组!$B:$C,2,0)&"#"&角色升星配方!AD14,"") ->  | CF14: =_xlfn.IFNA(X14&"#"&AC14&"#"&VLOOKUP(AD14,数组!$B:$C,2,0)&"#"&角色升星配方!AE14,"") ->  | CG14: =_xlfn.IFNA(Y14&"#"&Z14&"#"&VLOOKUP(AA14,数组!$B:$C,2,0)&"#"&角色升星配方!AB14,"") -> 8#2#18#1 | CH14: =_xlfn.IFNA(AD14&"#"&AE14&"#"&VLOOKUP(AF14,数组!$B:$C,2,0)&"#"&角色升星配方!AG14,"") ->  | CI14: =_xlfn.IFNA(AE14&"#"&AF14&"#"&VLOOKUP(AG14,数组!$B:$C,2,0)&"#"&角色升星配方!AH14,"") ->  | CJ14: =_xlfn.IFNA(AF14&"#"&AG14&"#"&VLOOKUP(AH14,数组!$B:$C,2,0)&"#"&角色升星配方!AI14,"") ->  | CK14: =_xlfn.IFNA(AC14&"#"&AD14&"#"&VLOOKUP(AE14,数组!$B:$C,2,0)&"#"&角色升星配方!AF14,"") -> 9#1#3#1 | CL14: =_xlfn.IFNA(AH14&"#"&AI14&"#"&VLOOKUP(AJ14,数组!$B:$C,2,0)&"#"&角色升星配方!AK14,"") ->  | CM14: =_xlfn.IFNA(AI14&"#"&AJ14&"#"&VLOOKUP(AK14,数组!$B:$C,2,0)&"#"&角色升星配方!AL14,"") ->  | CN14: =_xlfn.IFNA(AJ14&"#"&AK14&"#"&VLOOKUP(AL14,数组!$B:$C,2,0)&"#"&角色升星配方!AM14,"") ->  | CO14: =_xlfn.IFNA(AG14&"#"&AH14&"#"&VLOOKUP(AI14,数组!$B:$C,2,0)&"#"&角色升星配方!AJ14,"") -> 9#2#18#1 | CP14: =_xlfn.IFNA(AL14&"#"&AM14&"#"&VLOOKUP(AN14,数组!$B:$C,2,0)&"#"&角色升星配方!AO14,"") ->  | CQ14: =_xlfn.IFNA(AM14&"#"&AN14&"#"&VLOOKUP(AO14,数组!$B:$C,2,0)&"#"&角色升星配方!AP14,"") ->  | CR14: =_xlfn.IFNA(AN14&"#"&AO14&"#"&VLOOKUP(AP14,数组!$B:$C,2,0)&"#"&角色升星配方!AQ14,"") ->  | CS14: =_xlfn.IFNA(AK14&"#"&AL14&"#"&VLOOKUP(AM14,数组!$B:$C,2,0)&"#"&角色升星配方!AN14,"") -> 9#3#17#2 | CT14: =_xlfn.IFNA(AP14&"#"&AQ14&"#"&VLOOKUP(AR14,数组!$B:$C,2,0)&"#"&角色升星配方!AS14,"") ->  | CU14: =_xlfn.IFNA(AQ14&"#"&AR14&"#"&VLOOKUP(AS14,数组!$B:$C,2,0)&"#"&角色升星配方!AT14,"") ->  | CV14: =_xlfn.IFNA(AR14&"#"&AS14&"#"&VLOOKUP(AT14,数组!$B:$C,2,0)&"#"&角色升星配方!AU14,"") ->  | CW14: =_xlfn.IFNA(AO14&"#"&AP14&"#"&VLOOKUP(AQ14,数组!$B:$C,2,0)&"#"&角色升星配方!AR14,"") -> 10#1#3#2 | CX14: =_xlfn.IFNA(AT14&"#"&AU14&"#"&VLOOKUP(AV14,数组!$B:$C,2,0)&"#"&角色升星配方!AW14,"") ->  | CY14: =_xlfn.IFNA(AU14&"#"&AV14&"#"&VLOOKUP(AW14,数组!$B:$C,2,0)&"#"&角色升星配方!AX14,"") ->  | CZ14: =_xlfn.IFNA(AV14&"#"&AW14&"#"&VLOOKUP(AX14,数组!$B:$C,2,0)&"#"&角色升星配方!AY14,"") ->  | DA14: =_xlfn.IFNA(AS14&"#"&AT14&"#"&VLOOKUP(AU14,数组!$B:$C,2,0)&"#"&角色升星配方!AV14,"") -> 10#2#18#1 | DB14: =_xlfn.IFNA(AX14&"#"&AY14&"#"&VLOOKUP(AZ14,数组!$B:$C,2,0)&"#"&角色升星配方!BM14,"") ->  | DE14: =_xlfn.IFNA(AW14&"#"&AX14&"#"&VLOOKUP(AY14,数组!$B:$C,2,0)&"#"&角色升星配方!AZ14,"") -> 10#3#14#1 | DI14: =_xlfn.IFNA(BE14&"#"&BF14&"#"&VLOOKUP(BG14,数组!$B:$C,2,0)&"#"&角色升星配方!BH14,"") ->  | DM14: =_xlfn.IFNA(BI14&"#"&BJ14&"#"&VLOOKUP(BK14,数组!$B:$C,2,0)&"#"&角色升星配方!BL14,"") ->  | DN14: =[2]!SUMSTRING(BM14:DM14,"|") -> 
A15: 6 | B15: 10014 | C15: 6 | D15: 5 | E15: 6 | F15: 1 | G15: 5星同名 | H15: 1 | I15: 6 | J15: 2 | K15: 5星10035 | L15: 1 | M15: 6 | N15: 3 | O15: 5星同系 | P15: 3 | Q15: 7 | R15: 1 | S15: 5星同系 | T15: 4 | U15: 8 | V15: 1 | W15: 5星同系 | X15: 3 | Y15: 8 | Z15: 2 | AA15: 6星同系 | AB15: 1 | AC15: 9 | AD15: 1 | AE15: 5星同名 | AF15: 1 | AG15: 9 | AH15: 2 | AI15: 6星同系 | AJ15: 1 | AK15: 9 | AL15: 3 | AM15: 5星同系 | AN15: 2 | AO15: 10 | AP15: 1 | AQ15: 5星同名 | AR15: 2 | AS15: 10 | AT15: 2 | AU15: 6星同系 | AV15: 1 | AW15: 10 | AX15: 3 | AY15: 9星任意 | AZ15: 1 | BM15: =_xlfn.IFNA(E15&"#"&F15&"#"&VLOOKUP(G15,数组!$B:$C,2,0)&"#"&角色升星配方!H15,"") -> 6#1#3#1 | BN15: =_xlfn.IFNA(F15&"#"&G15&"#"&VLOOKUP(H15,数组!$B:$C,2,0)&"#"&角色升星配方!I15,"") ->  | BO15: =_xlfn.IFNA(G15&"#"&H15&"#"&VLOOKUP(I15,数组!$B:$C,2,0)&"#"&角色升星配方!J15,"") ->  | BP15: =_xlfn.IFNA(H15&"#"&I15&"#"&VLOOKUP(J15,数组!$B:$C,2,0)&"#"&角色升星配方!K15,"") ->  | BQ15: =_xlfn.IFNA(I15&"#"&J15&"#"&VLOOKUP(K15,数组!$B:$C,2,0)&"#"&角色升星配方!L15,"") -> 6#2#33#1 | BR15: =_xlfn.IFNA(J15&"#"&K15&"#"&VLOOKUP(L15,数组!$B:$C,2,0)&"#"&角色升星配方!M15,"") ->  | BS15: =_xlfn.IFNA(K15&"#"&L15&"#"&VLOOKUP(M15,数组!$B:$C,2,0)&"#"&角色升星配方!N15,"") ->  | BT15: =_xlfn.IFNA(L15&"#"&M15&"#"&VLOOKUP(N15,数组!$B:$C,2,0)&"#"&角色升星配方!O15,"") ->  | BU15: =_xlfn.IFNA(M15&"#"&N15&"#"&VLOOKUP(O15,数组!$B:$C,2,0)&"#"&角色升星配方!P15,"") -> 6#3#17#3 | BV15: =_xlfn.IFNA(N15&"#"&O15&"#"&VLOOKUP(P15,数组!$B:$C,2,0)&"#"&角色升星配方!Q15,"") ->  | BW15: =_xlfn.IFNA(O15&"#"&P15&"#"&VLOOKUP(Q15,数组!$B:$C,2,0)&"#"&角色升星配方!R15,"") ->  | BX15: =_xlfn.IFNA(P15&"#"&Q15&"#"&VLOOKUP(R15,数组!$B:$C,2,0)&"#"&角色升星配方!S15,"") ->  | BY15: =_xlfn.IFNA(Q15&"#"&R15&"#"&VLOOKUP(S15,数组!$B:$C,2,0)&"#"&角色升星配方!T15,"") -> 7#1#17#4 | BZ15: =_xlfn.IFNA(R15&"#"&S15&"#"&VLOOKUP(T15,数组!$B:$C,2,0)&"#"&角色升星配方!U15,"") ->  | CA15: =_xlfn.IFNA(S15&"#"&T15&"#"&VLOOKUP(U15,数组!$B:$C,2,0)&"#"&角色升星配方!V15,"") ->  | CB15: =_xlfn.IFNA(T15&"#"&U15&"#"&VLOOKUP(V15,数组!$B:$C,2,0)&"#"&角色升星配方!W15,"") ->  | CC15: =_xlfn.IFNA(U15&"#"&V15&"#"&VLOOKUP(W15,数组!$B:$C,2,0)&"#"&角色升星配方!X15,"") -> 8#1#17#3 | CD15: =_xlfn.IFNA(V15&"#"&W15&"#"&VLOOKUP(X15,数组!$B:$C,2,0)&"#"&角色升星配方!AC15,"") ->  | CE15: =_xlfn.IFNA(W15&"#"&X15&"#"&VLOOKUP(AC15,数组!$B:$C,2,0)&"#"&角色升星配方!AD15,"") ->  | CF15: =_xlfn.IFNA(X15&"#"&AC15&"#"&VLOOKUP(AD15,数组!$B:$C,2,0)&"#"&角色升星配方!AE15,"") ->  | CG15: =_xlfn.IFNA(Y15&"#"&Z15&"#"&VLOOKUP(AA15,数组!$B:$C,2,0)&"#"&角色升星配方!AB15,"") -> 8#2#18#1 | CH15: =_xlfn.IFNA(AD15&"#"&AE15&"#"&VLOOKUP(AF15,数组!$B:$C,2,0)&"#"&角色升星配方!AG15,"") ->  | CI15: =_xlfn.IFNA(AE15&"#"&AF15&"#"&VLOOKUP(AG15,数组!$B:$C,2,0)&"#"&角色升星配方!AH15,"") ->  | CJ15: =_xlfn.IFNA(AF15&"#"&AG15&"#"&VLOOKUP(AH15,数组!$B:$C,2,0)&"#"&角色升星配方!AI15,"") ->  | CK15: =_xlfn.IFNA(AC15&"#"&AD15&"#"&VLOOKUP(AE15,数组!$B:$C,2,0)&"#"&角色升星配方!AF15,"") -> 9#1#3#1 | CL15: =_xlfn.IFNA(AH15&"#"&AI15&"#"&VLOOKUP(AJ15,数组!$B:$C,2,0)&"#"&角色升星配方!AK15,"") ->  | CM15: =_xlfn.IFNA(AI15&"#"&AJ15&"#"&VLOOKUP(AK15,数组!$B:$C,2,0)&"#"&角色升星配方!AL15,"") ->  | CN15: =_xlfn.IFNA(AJ15&"#"&AK15&"#"&VLOOKUP(AL15,数组!$B:$C,2,0)&"#"&角色升星配方!AM15,"") ->  | CO15: =_xlfn.IFNA(AG15&"#"&AH15&"#"&VLOOKUP(AI15,数组!$B:$C,2,0)&"#"&角色升星配方!AJ15,"") -> 9#2#18#1 | CP15: =_xlfn.IFNA(AL15&"#"&AM15&"#"&VLOOKUP(AN15,数组!$B:$C,2,0)&"#"&角色升星配方!AO15,"") ->  | CQ15: =_xlfn.IFNA(AM15&"#"&AN15&"#"&VLOOKUP(AO15,数组!$B:$C,2,0)&"#"&角色升星配方!AP15,"") ->  | CR15: =_xlfn.IFNA(AN15&"#"&AO15&"#"&VLOOKUP(AP15,数组!$B:$C,2,0)&"#"&角色升星配方!AQ15,"") ->  | CS15: =_xlfn.IFNA(AK15&"#"&AL15&"#"&VLOOKUP(AM15,数组!$B:$C,2,0)&"#"&角色升星配方!AN15,"") -> 9#3#17#2 | CT15: =_xlfn.IFNA(AP15&"#"&AQ15&"#"&VLOOKUP(AR15,数组!$B:$C,2,0)&"#"&角色升星配方!AS15,"") ->  | CU15: =_xlfn.IFNA(AQ15&"#"&AR15&"#"&VLOOKUP(AS15,数组!$B:$C,2,0)&"#"&角色升星配方!AT15,"") ->  | CV15: =_xlfn.IFNA(AR15&"#"&AS15&"#"&VLOOKUP(AT15,数组!$B:$C,2,0)&"#"&角色升星配方!AU15,"") ->  | CW15: =_xlfn.IFNA(AO15&"#"&AP15&"#"&VLOOKUP(AQ15,数组!$B:$C,2,0)&"#"&角色升星配方!AR15,"") -> 10#1#3#2 | CX15: =_xlfn.IFNA(AT15&"#"&AU15&"#"&VLOOKUP(AV15,数组!$B:$C,2,0)&"#"&角色升星配方!AW15,"") ->  | CY15: =_xlfn.IFNA(AU15&"#"&AV15&"#"&VLOOKUP(AW15,数组!$B:$C,2,0)&"#"&角色升星配方!AX15,"") ->  | CZ15: =_xlfn.IFNA(AV15&"#"&AW15&"#"&VLOOKUP(AX15,数组!$B:$C,2,0)&"#"&角色升星配方!AY15,"") ->  | DA15: =_xlfn.IFNA(AS15&"#"&AT15&"#"&VLOOKUP(AU15,数组!$B:$C,2,0)&"#"&角色升星配方!AV15,"") -> 10#2#18#1 | DB15: =_xlfn.IFNA(AX15&"#"&AY15&"#"&VLOOKUP(AZ15,数组!$B:$C,2,0)&"#"&角色升星配方!BM15,"") ->  | DE15: =_xlfn.IFNA(AW15&"#"&AX15&"#"&VLOOKUP(AY15,数组!$B:$C,2,0)&"#"&角色升星配方!AZ15,"") -> 10#3#14#1 | DI15: =_xlfn.IFNA(BE15&"#"&BF15&"#"&VLOOKUP(BG15,数组!$B:$C,2,0)&"#"&角色升星配方!BH15,"") ->  | DM15: =_xlfn.IFNA(BI15&"#"&BJ15&"#"&VLOOKUP(BK15,数组!$B:$C,2,0)&"#"&角色升星配方!BL15,"") ->  | DN15: =[2]!SUMSTRING(BM15:DM15,"|") -> 
A16: 5 | B16: 10015 | C16: 5 | D16: 5 | E16: 6 | F16: 1 | G16: 5星同名 | H16: 1 | I16: 6 | J16: 2 | K16: 5星10027 | L16: 1 | M16: 6 | N16: 3 | O16: 5星同系 | P16: 3 | Q16: 7 | R16: 1 | S16: 5星同系 | T16: 4 | U16: 8 | V16: 1 | W16: 5星同系 | X16: 3 | Y16: 8 | Z16: 2 | AA16: 6星同系 | AB16: 1 | AC16: 9 | AD16: 1 | AE16: 5星同名 | AF16: 1 | AG16: 9 | AH16: 2 | AI16: 6星同系 | AJ16: 1 | AK16: 9 | AL16: 3 | AM16: 5星同系 | AN16: 2 | AO16: 10 | AP16: 1 | AQ16: 5星同名 | AR16: 2 | AS16: 10 | AT16: 2 | AU16: 6星同系 | AV16: 1 | AW16: 10 | AX16: 3 | AY16: 9星任意 | AZ16: 1 | BM16: =_xlfn.IFNA(E16&"#"&F16&"#"&VLOOKUP(G16,数组!$B:$C,2,0)&"#"&角色升星配方!H16,"") -> 6#1#3#1 | BN16: =_xlfn.IFNA(F16&"#"&G16&"#"&VLOOKUP(H16,数组!$B:$C,2,0)&"#"&角色升星配方!I16,"") ->  | BO16: =_xlfn.IFNA(G16&"#"&H16&"#"&VLOOKUP(I16,数组!$B:$C,2,0)&"#"&角色升星配方!J16,"") ->  | BP16: =_xlfn.IFNA(H16&"#"&I16&"#"&VLOOKUP(J16,数组!$B:$C,2,0)&"#"&角色升星配方!K16,"") ->  | BQ16: =_xlfn.IFNA(I16&"#"&J16&"#"&VLOOKUP(K16,数组!$B:$C,2,0)&"#"&角色升星配方!L16,"") -> 6#2#25#1 | BR16: =_xlfn.IFNA(J16&"#"&K16&"#"&VLOOKUP(L16,数组!$B:$C,2,0)&"#"&角色升星配方!M16,"") ->  | BS16: =_xlfn.IFNA(K16&"#"&L16&"#"&VLOOKUP(M16,数组!$B:$C,2,0)&"#"&角色升星配方!N16,"") ->  | BT16: =_xlfn.IFNA(L16&"#"&M16&"#"&VLOOKUP(N16,数组!$B:$C,2,0)&"#"&角色升星配方!O16,"") ->  | BU16: =_xlfn.IFNA(M16&"#"&N16&"#"&VLOOKUP(O16,数组!$B:$C,2,0)&"#"&角色升星配方!P16,"") -> 6#3#17#3 | BV16: =_xlfn.IFNA(N16&"#"&O16&"#"&VLOOKUP(P16,数组!$B:$C,2,0)&"#"&角色升星配方!Q16,"") ->  | BW16: =_xlfn.IFNA(O16&"#"&P16&"#"&VLOOKUP(Q16,数组!$B:$C,2,0)&"#"&角色升星配方!R16,"") ->  | BX16: =_xlfn.IFNA(P16&"#"&Q16&"#"&VLOOKUP(R16,数组!$B:$C,2,0)&"#"&角色升星配方!S16,"") ->  | BY16: =_xlfn.IFNA(Q16&"#"&R16&"#"&VLOOKUP(S16,数组!$B:$C,2,0)&"#"&角色升星配方!T16,"") -> 7#1#17#4 | BZ16: =_xlfn.IFNA(R16&"#"&S16&"#"&VLOOKUP(T16,数组!$B:$C,2,0)&"#"&角色升星配方!U16,"") ->  | CA16: =_xlfn.IFNA(S16&"#"&T16&"#"&VLOOKUP(U16,数组!$B:$C,2,0)&"#"&角色升星配方!V16,"") ->  | CB16: =_xlfn.IFNA(T16&"#"&U16&"#"&VLOOKUP(V16,数组!$B:$C,2,0)&"#"&角色升星配方!W16,"") ->  | CC16: =_xlfn.IFNA(U16&"#"&V16&"#"&VLOOKUP(W16,数组!$B:$C,2,0)&"#"&角色升星配方!X16,"") -> 8#1#17#3 | CD16: =_xlfn.IFNA(V16&"#"&W16&"#"&VLOOKUP(X16,数组!$B:$C,2,0)&"#"&角色升星配方!AC16,"") ->  | CE16: =_xlfn.IFNA(W16&"#"&X16&"#"&VLOOKUP(AC16,数组!$B:$C,2,0)&"#"&角色升星配方!AD16,"") ->  | CF16: =_xlfn.IFNA(X16&"#"&AC16&"#"&VLOOKUP(AD16,数组!$B:$C,2,0)&"#"&角色升星配方!AE16,"") ->  | CG16: =_xlfn.IFNA(Y16&"#"&Z16&"#"&VLOOKUP(AA16,数组!$B:$C,2,0)&"#"&角色升星配方!AB16,"") -> 8#2#18#1 | CH16: =_xlfn.IFNA(AD16&"#"&AE16&"#"&VLOOKUP(AF16,数组!$B:$C,2,0)&"#"&角色升星配方!AG16,"") ->  | CI16: =_xlfn.IFNA(AE16&"#"&AF16&"#"&VLOOKUP(AG16,数组!$B:$C,2,0)&"#"&角色升星配方!AH16,"") ->  | CJ16: =_xlfn.IFNA(AF16&"#"&AG16&"#"&VLOOKUP(AH16,数组!$B:$C,2,0)&"#"&角色升星配方!AI16,"") ->  | CK16: =_xlfn.IFNA(AC16&"#"&AD16&"#"&VLOOKUP(AE16,数组!$B:$C,2,0)&"#"&角色升星配方!AF16,"") -> 9#1#3#1 | CL16: =_xlfn.IFNA(AH16&"#"&AI16&"#"&VLOOKUP(AJ16,数组!$B:$C,2,0)&"#"&角色升星配方!AK16,"") ->  | CM16: =_xlfn.IFNA(AI16&"#"&AJ16&"#"&VLOOKUP(AK16,数组!$B:$C,2,0)&"#"&角色升星配方!AL16,"") ->  | CN16: =_xlfn.IFNA(AJ16&"#"&AK16&"#"&VLOOKUP(AL16,数组!$B:$C,2,0)&"#"&角色升星配方!AM16,"") ->  | CO16: =_xlfn.IFNA(AG16&"#"&AH16&"#"&VLOOKUP(AI16,数组!$B:$C,2,0)&"#"&角色升星配方!AJ16,"") -> 9#2#18#1 | CP16: =_xlfn.IFNA(AL16&"#"&AM16&"#"&VLOOKUP(AN16,数组!$B:$C,2,0)&"#"&角色升星配方!AO16,"") ->  | CQ16: =_xlfn.IFNA(AM16&"#"&AN16&"#"&VLOOKUP(AO16,数组!$B:$C,2,0)&"#"&角色升星配方!AP16,"") ->  | CR16: =_xlfn.IFNA(AN16&"#"&AO16&"#"&VLOOKUP(AP16,数组!$B:$C,2,0)&"#"&角色升星配方!AQ16,"") ->  | CS16: =_xlfn.IFNA(AK16&"#"&AL16&"#"&VLOOKUP(AM16,数组!$B:$C,2,0)&"#"&角色升星配方!AN16,"") -> 9#3#17#2 | CT16: =_xlfn.IFNA(AP16&"#"&AQ16&"#"&VLOOKUP(AR16,数组!$B:$C,2,0)&"#"&角色升星配方!AS16,"") ->  | CU16: =_xlfn.IFNA(AQ16&"#"&AR16&"#"&VLOOKUP(AS16,数组!$B:$C,2,0)&"#"&角色升星配方!AT16,"") ->  | CV16: =_xlfn.IFNA(AR16&"#"&AS16&"#"&VLOOKUP(AT16,数组!$B:$C,2,0)&"#"&角色升星配方!AU16,"") ->  | CW16: =_xlfn.IFNA(AO16&"#"&AP16&"#"&VLOOKUP(AQ16,数组!$B:$C,2,0)&"#"&角色升星配方!AR16,"") -> 10#1#3#2 | CX16: =_xlfn.IFNA(AT16&"#"&AU16&"#"&VLOOKUP(AV16,数组!$B:$C,2,0)&"#"&角色升星配方!AW16,"") ->  | CY16: =_xlfn.IFNA(AU16&"#"&AV16&"#"&VLOOKUP(AW16,数组!$B:$C,2,0)&"#"&角色升星配方!AX16,"") ->  | CZ16: =_xlfn.IFNA(AV16&"#"&AW16&"#"&VLOOKUP(AX16,数组!$B:$C,2,0)&"#"&角色升星配方!AY16,"") ->  | DA16: =_xlfn.IFNA(AS16&"#"&AT16&"#"&VLOOKUP(AU16,数组!$B:$C,2,0)&"#"&角色升星配方!AV16,"") -> 10#2#18#1 | DB16: =_xlfn.IFNA(AX16&"#"&AY16&"#"&VLOOKUP(AZ16,数组!$B:$C,2,0)&"#"&角色升星配方!BM16,"") ->  | DE16: =_xlfn.IFNA(AW16&"#"&AX16&"#"&VLOOKUP(AY16,数组!$B:$C,2,0)&"#"&角色升星配方!AZ16,"") -> 10#3#14#1 | DI16: =_xlfn.IFNA(BE16&"#"&BF16&"#"&VLOOKUP(BG16,数组!$B:$C,2,0)&"#"&角色升星配方!BH16,"") ->  | DM16: =_xlfn.IFNA(BI16&"#"&BJ16&"#"&VLOOKUP(BK16,数组!$B:$C,2,0)&"#"&角色升星配方!BL16,"") ->  | DN16: =[2]!SUMSTRING(BM16:DM16,"|") -> 
A17: 1 | B17: 10016 | C17: 1 | D17: 5 | E17: 6 | F17: 1 | G17: 5星同名 | H17: 1 | I17: 6 | J17: 2 | K17: 5星10040 | L17: 1 | M17: 6 | N17: 3 | O17: 5星同系 | P17: 3 | Q17: 7 | R17: 1 | S17: 5星同系 | T17: 4 | U17: 8 | V17: 1 | W17: 5星同系 | X17: 3 | Y17: 8 | Z17: 2 | AA17: 6星同系 | AB17: 1 | AC17: 9 | AD17: 1 | AE17: 5星同名 | AF17: 1 | AG17: 9 | AH17: 2 | AI17: 6星同系 | AJ17: 1 | AK17: 9 | AL17: 3 | AM17: 5星同系 | AN17: 2 | AO17: 10 | AP17: 1 | AQ17: 5星同名 | AR17: 2 | AS17: 10 | AT17: 2 | AU17: 6星同系 | AV17: 1 | AW17: 10 | AX17: 3 | AY17: 9星任意 | AZ17: 1 | BM17: =_xlfn.IFNA(E17&"#"&F17&"#"&VLOOKUP(G17,数组!$B:$C,2,0)&"#"&角色升星配方!H17,"") -> 6#1#3#1 | BN17: =_xlfn.IFNA(F17&"#"&G17&"#"&VLOOKUP(H17,数组!$B:$C,2,0)&"#"&角色升星配方!I17,"") ->  | BO17: =_xlfn.IFNA(G17&"#"&H17&"#"&VLOOKUP(I17,数组!$B:$C,2,0)&"#"&角色升星配方!J17,"") ->  | BP17: =_xlfn.IFNA(H17&"#"&I17&"#"&VLOOKUP(J17,数组!$B:$C,2,0)&"#"&角色升星配方!K17,"") ->  | BQ17: =_xlfn.IFNA(I17&"#"&J17&"#"&VLOOKUP(K17,数组!$B:$C,2,0)&"#"&角色升星配方!L17,"") -> 6#2#38#1 | BR17: =_xlfn.IFNA(J17&"#"&K17&"#"&VLOOKUP(L17,数组!$B:$C,2,0)&"#"&角色升星配方!M17,"") ->  | BS17: =_xlfn.IFNA(K17&"#"&L17&"#"&VLOOKUP(M17,数组!$B:$C,2,0)&"#"&角色升星配方!N17,"") ->  | BT17: =_xlfn.IFNA(L17&"#"&M17&"#"&VLOOKUP(N17,数组!$B:$C,2,0)&"#"&角色升星配方!O17,"") ->  | BU17: =_xlfn.IFNA(M17&"#"&N17&"#"&VLOOKUP(O17,数组!$B:$C,2,0)&"#"&角色升星配方!P17,"") -> 6#3#17#3 | BV17: =_xlfn.IFNA(N17&"#"&O17&"#"&VLOOKUP(P17,数组!$B:$C,2,0)&"#"&角色升星配方!Q17,"") ->  | BW17: =_xlfn.IFNA(O17&"#"&P17&"#"&VLOOKUP(Q17,数组!$B:$C,2,0)&"#"&角色升星配方!R17,"") ->  | BX17: =_xlfn.IFNA(P17&"#"&Q17&"#"&VLOOKUP(R17,数组!$B:$C,2,0)&"#"&角色升星配方!S17,"") ->  | BY17: =_xlfn.IFNA(Q17&"#"&R17&"#"&VLOOKUP(S17,数组!$B:$C,2,0)&"#"&角色升星配方!T17,"") -> 7#1#17#4 | BZ17: =_xlfn.IFNA(R17&"#"&S17&"#"&VLOOKUP(T17,数组!$B:$C,2,0)&"#"&角色升星配方!U17,"") ->  | CA17: =_xlfn.IFNA(S17&"#"&T17&"#"&VLOOKUP(U17,数组!$B:$C,2,0)&"#"&角色升星配方!V17,"") ->  | CB17: =_xlfn.IFNA(T17&"#"&U17&"#"&VLOOKUP(V17,数组!$B:$C,2,0)&"#"&角色升星配方!W17,"") ->  | CC17: =_xlfn.IFNA(U17&"#"&V17&"#"&VLOOKUP(W17,数组!$B:$C,2,0)&"#"&角色升星配方!X17,"") -> 8#1#17#3 | CD17: =_xlfn.IFNA(V17&"#"&W17&"#"&VLOOKUP(X17,数组!$B:$C,2,0)&"#"&角色升星配方!AC17,"") ->  | CE17: =_xlfn.IFNA(W17&"#"&X17&"#"&VLOOKUP(AC17,数组!$B:$C,2,0)&"#"&角色升星配方!AD17,"") ->  | CF17: =_xlfn.IFNA(X17&"#"&AC17&"#"&VLOOKUP(AD17,数组!$B:$C,2,0)&"#"&角色升星配方!AE17,"") ->  | CG17: =_xlfn.IFNA(Y17&"#"&Z17&"#"&VLOOKUP(AA17,数组!$B:$C,2,0)&"#"&角色升星配方!AB17,"") -> 8#2#18#1 | CH17: =_xlfn.IFNA(AD17&"#"&AE17&"#"&VLOOKUP(AF17,数组!$B:$C,2,0)&"#"&角色升星配方!AG17,"") ->  | CI17: =_xlfn.IFNA(AE17&"#"&AF17&"#"&VLOOKUP(AG17,数组!$B:$C,2,0)&"#"&角色升星配方!AH17,"") ->  | CJ17: =_xlfn.IFNA(AF17&"#"&AG17&"#"&VLOOKUP(AH17,数组!$B:$C,2,0)&"#"&角色升星配方!AI17,"") ->  | CK17: =_xlfn.IFNA(AC17&"#"&AD17&"#"&VLOOKUP(AE17,数组!$B:$C,2,0)&"#"&角色升星配方!AF17,"") -> 9#1#3#1 | CL17: =_xlfn.IFNA(AH17&"#"&AI17&"#"&VLOOKUP(AJ17,数组!$B:$C,2,0)&"#"&角色升星配方!AK17,"") ->  | CM17: =_xlfn.IFNA(AI17&"#"&AJ17&"#"&VLOOKUP(AK17,数组!$B:$C,2,0)&"#"&角色升星配方!AL17,"") ->  | CN17: =_xlfn.IFNA(AJ17&"#"&AK17&"#"&VLOOKUP(AL17,数组!$B:$C,2,0)&"#"&角色升星配方!AM17,"") ->  | CO17: =_xlfn.IFNA(AG17&"#"&AH17&"#"&VLOOKUP(AI17,数组!$B:$C,2,0)&"#"&角色升星配方!AJ17,"") -> 9#2#18#1 | CP17: =_xlfn.IFNA(AL17&"#"&AM17&"#"&VLOOKUP(AN17,数组!$B:$C,2,0)&"#"&角色升星配方!AO17,"") ->  | CQ17: =_xlfn.IFNA(AM17&"#"&AN17&"#"&VLOOKUP(AO17,数组!$B:$C,2,0)&"#"&角色升星配方!AP17,"") ->  | CR17: =_xlfn.IFNA(AN17&"#"&AO17&"#"&VLOOKUP(AP17,数组!$B:$C,2,0)&"#"&角色升星配方!AQ17,"") ->  | CS17: =_xlfn.IFNA(AK17&"#"&AL17&"#"&VLOOKUP(AM17,数组!$B:$C,2,0)&"#"&角色升星配方!AN17,"") -> 9#3#17#2 | CT17: =_xlfn.IFNA(AP17&"#"&AQ17&"#"&VLOOKUP(AR17,数组!$B:$C,2,0)&"#"&角色升星配方!AS17,"") ->  | CU17: =_xlfn.IFNA(AQ17&"#"&AR17&"#"&VLOOKUP(AS17,数组!$B:$C,2,0)&"#"&角色升星配方!AT17,"") ->  | CV17: =_xlfn.IFNA(AR17&"#"&AS17&"#"&VLOOKUP(AT17,数组!$B:$C,2,0)&"#"&角色升星配方!AU17,"") ->  | CW17: =_xlfn.IFNA(AO17&"#"&AP17&"#"&VLOOKUP(AQ17,数组!$B:$C,2,0)&"#"&角色升星配方!AR17,"") -> 10#1#3#2 | CX17: =_xlfn.IFNA(AT17&"#"&AU17&"#"&VLOOKUP(AV17,数组!$B:$C,2,0)&"#"&角色升星配方!AW17,"") ->  | CY17: =_xlfn.IFNA(AU17&"#"&AV17&"#"&VLOOKUP(AW17,数组!$B:$C,2,0)&"#"&角色升星配方!AX17,"") ->  | CZ17: =_xlfn.IFNA(AV17&"#"&AW17&"#"&VLOOKUP(AX17,数组!$B:$C,2,0)&"#"&角色升星配方!AY17,"") ->  | DA17: =_xlfn.IFNA(AS17&"#"&AT17&"#"&VLOOKUP(AU17,数组!$B:$C,2,0)&"#"&角色升星配方!AV17,"") -> 10#2#18#1 | DB17: =_xlfn.IFNA(AX17&"#"&AY17&"#"&VLOOKUP(AZ17,数组!$B:$C,2,0)&"#"&角色升星配方!BM17,"") ->  | DE17: =_xlfn.IFNA(AW17&"#"&AX17&"#"&VLOOKUP(AY17,数组!$B:$C,2,0)&"#"&角色升星配方!AZ17,"") -> 10#3#14#1 | DI17: =_xlfn.IFNA(BE17&"#"&BF17&"#"&VLOOKUP(BG17,数组!$B:$C,2,0)&"#"&角色升星配方!BH17,"") ->  | DM17: =_xlfn.IFNA(BI17&"#"&BJ17&"#"&VLOOKUP(BK17,数组!$B:$C,2,0)&"#"&角色升星配方!BL17,"") ->  | DN17: =[2]!SUMSTRING(BM17:DM17,"|") -> 
A18: 6 | B18: 10017 | C18: 6 | D18: 5 | E18: 6 | F18: 1 | G18: 5星同名 | H18: 1 | I18: 6 | J18: 2 | K18: 5星10044 | L18: 1 | M18: 6 | N18: 3 | O18: 5星同系 | P18: 3 | Q18: 7 | R18: 1 | S18: 5星同系 | T18: 4 | U18: 8 | V18: 1 | W18: 5星同系 | X18: 3 | Y18: 8 | Z18: 2 | AA18: 6星同系 | AB18: 1 | AC18: 9 | AD18: 1 | AE18: 5星同名 | AF18: 1 | AG18: 9 | AH18: 2 | AI18: 6星同系 | AJ18: 1 | AK18: 9 | AL18: 3 | AM18: 5星同系 | AN18: 2 | AO18: 10 | AP18: 1 | AQ18: 5星同名 | AR18: 2 | AS18: 10 | AT18: 2 | AU18: 6星同系 | AV18: 1 | AW18: 10 | AX18: 3 | AY18: 9星任意 | AZ18: 1 | BM18: =_xlfn.IFNA(E18&"#"&F18&"#"&VLOOKUP(G18,数组!$B:$C,2,0)&"#"&角色升星配方!H18,"") -> 6#1#3#1 | BN18: =_xlfn.IFNA(F18&"#"&G18&"#"&VLOOKUP(H18,数组!$B:$C,2,0)&"#"&角色升星配方!I18,"") ->  | BO18: =_xlfn.IFNA(G18&"#"&H18&"#"&VLOOKUP(I18,数组!$B:$C,2,0)&"#"&角色升星配方!J18,"") ->  | BP18: =_xlfn.IFNA(H18&"#"&I18&"#"&VLOOKUP(J18,数组!$B:$C,2,0)&"#"&角色升星配方!K18,"") ->  | BQ18: =_xlfn.IFNA(I18&"#"&J18&"#"&VLOOKUP(K18,数组!$B:$C,2,0)&"#"&角色升星配方!L18,"") -> 6#2#42#1 | BR18: =_xlfn.IFNA(J18&"#"&K18&"#"&VLOOKUP(L18,数组!$B:$C,2,0)&"#"&角色升星配方!M18,"") ->  | BS18: =_xlfn.IFNA(K18&"#"&L18&"#"&VLOOKUP(M18,数组!$B:$C,2,0)&"#"&角色升星配方!N18,"") ->  | BT18: =_xlfn.IFNA(L18&"#"&M18&"#"&VLOOKUP(N18,数组!$B:$C,2,0)&"#"&角色升星配方!O18,"") ->  | BU18: =_xlfn.IFNA(M18&"#"&N18&"#"&VLOOKUP(O18,数组!$B:$C,2,0)&"#"&角色升星配方!P18,"") -> 6#3#17#3 | BV18: =_xlfn.IFNA(N18&"#"&O18&"#"&VLOOKUP(P18,数组!$B:$C,2,0)&"#"&角色升星配方!Q18,"") ->  | BW18: =_xlfn.IFNA(O18&"#"&P18&"#"&VLOOKUP(Q18,数组!$B:$C,2,0)&"#"&角色升星配方!R18,"") ->  | BX18: =_xlfn.IFNA(P18&"#"&Q18&"#"&VLOOKUP(R18,数组!$B:$C,2,0)&"#"&角色升星配方!S18,"") ->  | BY18: =_xlfn.IFNA(Q18&"#"&R18&"#"&VLOOKUP(S18,数组!$B:$C,2,0)&"#"&角色升星配方!T18,"") -> 7#1#17#4 | BZ18: =_xlfn.IFNA(R18&"#"&S18&"#"&VLOOKUP(T18,数组!$B:$C,2,0)&"#"&角色升星配方!U18,"") ->  | CA18: =_xlfn.IFNA(S18&"#"&T18&"#"&VLOOKUP(U18,数组!$B:$C,2,0)&"#"&角色升星配方!V18,"") ->  | CB18: =_xlfn.IFNA(T18&"#"&U18&"#"&VLOOKUP(V18,数组!$B:$C,2,0)&"#"&角色升星配方!W18,"") ->  | CC18: =_xlfn.IFNA(U18&"#"&V18&"#"&VLOOKUP(W18,数组!$B:$C,2,0)&"#"&角色升星配方!X18,"") -> 8#1#17#3 | CD18: =_xlfn.IFNA(V18&"#"&W18&"#"&VLOOKUP(X18,数组!$B:$C,2,0)&"#"&角色升星配方!AC18,"") ->  | CE18: =_xlfn.IFNA(W18&"#"&X18&"#"&VLOOKUP(AC18,数组!$B:$C,2,0)&"#"&角色升星配方!AD18,"") ->  | CF18: =_xlfn.IFNA(X18&"#"&AC18&"#"&VLOOKUP(AD18,数组!$B:$C,2,0)&"#"&角色升星配方!AE18,"") ->  | CG18: =_xlfn.IFNA(Y18&"#"&Z18&"#"&VLOOKUP(AA18,数组!$B:$C,2,0)&"#"&角色升星配方!AB18,"") -> 8#2#18#1 | CH18: =_xlfn.IFNA(AD18&"#"&AE18&"#"&VLOOKUP(AF18,数组!$B:$C,2,0)&"#"&角色升星配方!AG18,"") ->  | CI18: =_xlfn.IFNA(AE18&"#"&AF18&"#"&VLOOKUP(AG18,数组!$B:$C,2,0)&"#"&角色升星配方!AH18,"") ->  | CJ18: =_xlfn.IFNA(AF18&"#"&AG18&"#"&VLOOKUP(AH18,数组!$B:$C,2,0)&"#"&角色升星配方!AI18,"") ->  | CK18: =_xlfn.IFNA(AC18&"#"&AD18&"#"&VLOOKUP(AE18,数组!$B:$C,2,0)&"#"&角色升星配方!AF18,"") -> 9#1#3#1 | CL18: =_xlfn.IFNA(AH18&"#"&AI18&"#"&VLOOKUP(AJ18,数组!$B:$C,2,0)&"#"&角色升星配方!AK18,"") ->  | CM18: =_xlfn.IFNA(AI18&"#"&AJ18&"#"&VLOOKUP(AK18,数组!$B:$C,2,0)&"#"&角色升星配方!AL18,"") ->  | CN18: =_xlfn.IFNA(AJ18&"#"&AK18&"#"&VLOOKUP(AL18,数组!$B:$C,2,0)&"#"&角色升星配方!AM18,"") ->  | CO18: =_xlfn.IFNA(AG18&"#"&AH18&"#"&VLOOKUP(AI18,数组!$B:$C,2,0)&"#"&角色升星配方!AJ18,"") -> 9#2#18#1 | CP18: =_xlfn.IFNA(AL18&"#"&AM18&"#"&VLOOKUP(AN18,数组!$B:$C,2,0)&"#"&角色升星配方!AO18,"") ->  | CQ18: =_xlfn.IFNA(AM18&"#"&AN18&"#"&VLOOKUP(AO18,数组!$B:$C,2,0)&"#"&角色升星配方!AP18,"") ->  | CR18: =_xlfn.IFNA(AN18&"#"&AO18&"#"&VLOOKUP(AP18,数组!$B:$C,2,0)&"#"&角色升星配方!AQ18,"") ->  | CS18: =_xlfn.IFNA(AK18&"#"&AL18&"#"&VLOOKUP(AM18,数组!$B:$C,2,0)&"#"&角色升星配方!AN18,"") -> 9#3#17#2 | CT18: =_xlfn.IFNA(AP18&"#"&AQ18&"#"&VLOOKUP(AR18,数组!$B:$C,2,0)&"#"&角色升星配方!AS18,"") ->  | CU18: =_xlfn.IFNA(AQ18&"#"&AR18&"#"&VLOOKUP(AS18,数组!$B:$C,2,0)&"#"&角色升星配方!AT18,"") ->  | CV18: =_xlfn.IFNA(AR18&"#"&AS18&"#"&VLOOKUP(AT18,数组!$B:$C,2,0)&"#"&角色升星配方!AU18,"") ->  | CW18: =_xlfn.IFNA(AO18&"#"&AP18&"#"&VLOOKUP(AQ18,数组!$B:$C,2,0)&"#"&角色升星配方!AR18,"") -> 10#1#3#2 | CX18: =_xlfn.IFNA(AT18&"#"&AU18&"#"&VLOOKUP(AV18,数组!$B:$C,2,0)&"#"&角色升星配方!AW18,"") ->  | CY18: =_xlfn.IFNA(AU18&"#"&AV18&"#"&VLOOKUP(AW18,数组!$B:$C,2,0)&"#"&角色升星配方!AX18,"") ->  | CZ18: =_xlfn.IFNA(AV18&"#"&AW18&"#"&VLOOKUP(AX18,数组!$B:$C,2,0)&"#"&角色升星配方!AY18,"") ->  | DA18: =_xlfn.IFNA(AS18&"#"&AT18&"#"&VLOOKUP(AU18,数组!$B:$C,2,0)&"#"&角色升星配方!AV18,"") -> 10#2#18#1 | DB18: =_xlfn.IFNA(AX18&"#"&AY18&"#"&VLOOKUP(AZ18,数组!$B:$C,2,0)&"#"&角色升星配方!BM18,"") ->  | DE18: =_xlfn.IFNA(AW18&"#"&AX18&"#"&VLOOKUP(AY18,数组!$B:$C,2,0)&"#"&角色升星配方!AZ18,"") -> 10#3#14#1 | DI18: =_xlfn.IFNA(BE18&"#"&BF18&"#"&VLOOKUP(BG18,数组!$B:$C,2,0)&"#"&角色升星配方!BH18,"") ->  | DM18: =_xlfn.IFNA(BI18&"#"&BJ18&"#"&VLOOKUP(BK18,数组!$B:$C,2,0)&"#"&角色升星配方!BL18,"") ->  | DN18: =[2]!SUMSTRING(BM18:DM18,"|") -> 
A19: 4 | B19: 10018 | C19: 4 | D19: 5 | E19: 6 | F19: 1 | G19: 5星同名 | H19: 1 | I19: 6 | J19: 2 | K19: 5星10029 | L19: 1 | M19: 6 | N19: 3 | O19: 5星同系 | P19: 3 | Q19: 7 | R19: 1 | S19: 5星同系 | T19: 4 | U19: 8 | V19: 1 | W19: 5星同系 | X19: 3 | Y19: 8 | Z19: 2 | AA19: 6星同系 | AB19: 1 | AC19: 9 | AD19: 1 | AE19: 5星同名 | AF19: 1 | AG19: 9 | AH19: 2 | AI19: 6星同系 | AJ19: 1 | AK19: 9 | AL19: 3 | AM19: 5星同系 | AN19: 2 | AO19: 10 | AP19: 1 | AQ19: 5星同名 | AR19: 2 | AS19: 10 | AT19: 2 | AU19: 6星同系 | AV19: 1 | AW19: 10 | AX19: 3 | AY19: 9星任意 | AZ19: 1 | BM19: =_xlfn.IFNA(E19&"#"&F19&"#"&VLOOKUP(G19,数组!$B:$C,2,0)&"#"&角色升星配方!H19,"") -> 6#1#3#1 | BN19: =_xlfn.IFNA(F19&"#"&G19&"#"&VLOOKUP(H19,数组!$B:$C,2,0)&"#"&角色升星配方!I19,"") ->  | BO19: =_xlfn.IFNA(G19&"#"&H19&"#"&VLOOKUP(I19,数组!$B:$C,2,0)&"#"&角色升星配方!J19,"") ->  | BP19: =_xlfn.IFNA(H19&"#"&I19&"#"&VLOOKUP(J19,数组!$B:$C,2,0)&"#"&角色升星配方!K19,"") ->  | BQ19: =_xlfn.IFNA(I19&"#"&J19&"#"&VLOOKUP(K19,数组!$B:$C,2,0)&"#"&角色升星配方!L19,"") -> 6#2#27#1 | BR19: =_xlfn.IFNA(J19&"#"&K19&"#"&VLOOKUP(L19,数组!$B:$C,2,0)&"#"&角色升星配方!M19,"") ->  | BS19: =_xlfn.IFNA(K19&"#"&L19&"#"&VLOOKUP(M19,数组!$B:$C,2,0)&"#"&角色升星配方!N19,"") ->  | BT19: =_xlfn.IFNA(L19&"#"&M19&"#"&VLOOKUP(N19,数组!$B:$C,2,0)&"#"&角色升星配方!O19,"") ->  | BU19: =_xlfn.IFNA(M19&"#"&N19&"#"&VLOOKUP(O19,数组!$B:$C,2,0)&"#"&角色升星配方!P19,"") -> 6#3#17#3 | BV19: =_xlfn.IFNA(N19&"#"&O19&"#"&VLOOKUP(P19,数组!$B:$C,2,0)&"#"&角色升星配方!Q19,"") ->  | BW19: =_xlfn.IFNA(O19&"#"&P19&"#"&VLOOKUP(Q19,数组!$B:$C,2,0)&"#"&角色升星配方!R19,"") ->  | BX19: =_xlfn.IFNA(P19&"#"&Q19&"#"&VLOOKUP(R19,数组!$B:$C,2,0)&"#"&角色升星配方!S19,"") ->  | BY19: =_xlfn.IFNA(Q19&"#"&R19&"#"&VLOOKUP(S19,数组!$B:$C,2,0)&"#"&角色升星配方!T19,"") -> 7#1#17#4 | BZ19: =_xlfn.IFNA(R19&"#"&S19&"#"&VLOOKUP(T19,数组!$B:$C,2,0)&"#"&角色升星配方!U19,"") ->  | CA19: =_xlfn.IFNA(S19&"#"&T19&"#"&VLOOKUP(U19,数组!$B:$C,2,0)&"#"&角色升星配方!V19,"") ->  | CB19: =_xlfn.IFNA(T19&"#"&U19&"#"&VLOOKUP(V19,数组!$B:$C,2,0)&"#"&角色升星配方!W19,"") ->  | CC19: =_xlfn.IFNA(U19&"#"&V19&"#"&VLOOKUP(W19,数组!$B:$C,2,0)&"#"&角色升星配方!X19,"") -> 8#1#17#3 | CD19: =_xlfn.IFNA(V19&"#"&W19&"#"&VLOOKUP(X19,数组!$B:$C,2,0)&"#"&角色升星配方!AC19,"") ->  | CE19: =_xlfn.IFNA(W19&"#"&X19&"#"&VLOOKUP(AC19,数组!$B:$C,2,0)&"#"&角色升星配方!AD19,"") ->  | CF19: =_xlfn.IFNA(X19&"#"&AC19&"#"&VLOOKUP(AD19,数组!$B:$C,2,0)&"#"&角色升星配方!AE19,"") ->  | CG19: =_xlfn.IFNA(Y19&"#"&Z19&"#"&VLOOKUP(AA19,数组!$B:$C,2,0)&"#"&角色升星配方!AB19,"") -> 8#2#18#1 | CH19: =_xlfn.IFNA(AD19&"#"&AE19&"#"&VLOOKUP(AF19,数组!$B:$C,2,0)&"#"&角色升星配方!AG19,"") ->  | CI19: =_xlfn.IFNA(AE19&"#"&AF19&"#"&VLOOKUP(AG19,数组!$B:$C,2,0)&"#"&角色升星配方!AH19,"") ->  | CJ19: =_xlfn.IFNA(AF19&"#"&AG19&"#"&VLOOKUP(AH19,数组!$B:$C,2,0)&"#"&角色升星配方!AI19,"") ->  | CK19: =_xlfn.IFNA(AC19&"#"&AD19&"#"&VLOOKUP(AE19,数组!$B:$C,2,0)&"#"&角色升星配方!AF19,"") -> 9#1#3#1 | CL19: =_xlfn.IFNA(AH19&"#"&AI19&"#"&VLOOKUP(AJ19,数组!$B:$C,2,0)&"#"&角色升星配方!AK19,"") ->  | CM19: =_xlfn.IFNA(AI19&"#"&AJ19&"#"&VLOOKUP(AK19,数组!$B:$C,2,0)&"#"&角色升星配方!AL19,"") ->  | CN19: =_xlfn.IFNA(AJ19&"#"&AK19&"#"&VLOOKUP(AL19,数组!$B:$C,2,0)&"#"&角色升星配方!AM19,"") ->  | CO19: =_xlfn.IFNA(AG19&"#"&AH19&"#"&VLOOKUP(AI19,数组!$B:$C,2,0)&"#"&角色升星配方!AJ19,"") -> 9#2#18#1 | CP19: =_xlfn.IFNA(AL19&"#"&AM19&"#"&VLOOKUP(AN19,数组!$B:$C,2,0)&"#"&角色升星配方!AO19,"") ->  | CQ19: =_xlfn.IFNA(AM19&"#"&AN19&"#"&VLOOKUP(AO19,数组!$B:$C,2,0)&"#"&角色升星配方!AP19,"") ->  | CR19: =_xlfn.IFNA(AN19&"#"&AO19&"#"&VLOOKUP(AP19,数组!$B:$C,2,0)&"#"&角色升星配方!AQ19,"") ->  | CS19: =_xlfn.IFNA(AK19&"#"&AL19&"#"&VLOOKUP(AM19,数组!$B:$C,2,0)&"#"&角色升星配方!AN19,"") -> 9#3#17#2 | CT19: =_xlfn.IFNA(AP19&"#"&AQ19&"#"&VLOOKUP(AR19,数组!$B:$C,2,0)&"#"&角色升星配方!AS19,"") ->  | CU19: =_xlfn.IFNA(AQ19&"#"&AR19&"#"&VLOOKUP(AS19,数组!$B:$C,2,0)&"#"&角色升星配方!AT19,"") ->  | CV19: =_xlfn.IFNA(AR19&"#"&AS19&"#"&VLOOKUP(AT19,数组!$B:$C,2,0)&"#"&角色升星配方!AU19,"") ->  | CW19: =_xlfn.IFNA(AO19&"#"&AP19&"#"&VLOOKUP(AQ19,数组!$B:$C,2,0)&"#"&角色升星配方!AR19,"") -> 10#1#3#2 | CX19: =_xlfn.IFNA(AT19&"#"&AU19&"#"&VLOOKUP(AV19,数组!$B:$C,2,0)&"#"&角色升星配方!AW19,"") ->  | CY19: =_xlfn.IFNA(AU19&"#"&AV19&"#"&VLOOKUP(AW19,数组!$B:$C,2,0)&"#"&角色升星配方!AX19,"") ->  | CZ19: =_xlfn.IFNA(AV19&"#"&AW19&"#"&VLOOKUP(AX19,数组!$B:$C,2,0)&"#"&角色升星配方!AY19,"") ->  | DA19: =_xlfn.IFNA(AS19&"#"&AT19&"#"&VLOOKUP(AU19,数组!$B:$C,2,0)&"#"&角色升星配方!AV19,"") -> 10#2#18#1 | DB19: =_xlfn.IFNA(AX19&"#"&AY19&"#"&VLOOKUP(AZ19,数组!$B:$C,2,0)&"#"&角色升星配方!BM19,"") ->  | DE19: =_xlfn.IFNA(AW19&"#"&AX19&"#"&VLOOKUP(AY19,数组!$B:$C,2,0)&"#"&角色升星配方!AZ19,"") -> 10#3#14#1 | DI19: =_xlfn.IFNA(BE19&"#"&BF19&"#"&VLOOKUP(BG19,数组!$B:$C,2,0)&"#"&角色升星配方!BH19,"") ->  | DM19: =_xlfn.IFNA(BI19&"#"&BJ19&"#"&VLOOKUP(BK19,数组!$B:$C,2,0)&"#"&角色升星配方!BL19,"") ->  | DN19: =[2]!SUMSTRING(BM19:DM19,"|") -> 
A20: 2 | B20: 10019 | C20: 2 | D20: 5 | E20: 6 | F20: 1 | G20: 5星同名 | H20: 1 | I20: 6 | J20: 2 | K20: 5星10042 | L20: 1 | M20: 6 | N20: 3 | O20: 5星同系 | P20: 3 | Q20: 7 | R20: 1 | S20: 5星同系 | T20: 4 | U20: 8 | V20: 1 | W20: 5星同系 | X20: 3 | Y20: 8 | Z20: 2 | AA20: 6星同系 | AB20: 1 | AC20: 9 | AD20: 1 | AE20: 5星同名 | AF20: 1 | AG20: 9 | AH20: 2 | AI20: 6星同系 | AJ20: 1 | AK20: 9 | AL20: 3 | AM20: 5星同系 | AN20: 2 | AO20: 10 | AP20: 1 | AQ20: 5星同名 | AR20: 2 | AS20: 10 | AT20: 2 | AU20: 6星同系 | AV20: 1 | AW20: 10 | AX20: 3 | AY20: 9星任意 | AZ20: 1 | BM20: =_xlfn.IFNA(E20&"#"&F20&"#"&VLOOKUP(G20,数组!$B:$C,2,0)&"#"&角色升星配方!H20,"") -> 6#1#3#1 | BN20: =_xlfn.IFNA(F20&"#"&G20&"#"&VLOOKUP(H20,数组!$B:$C,2,0)&"#"&角色升星配方!I20,"") ->  | BO20: =_xlfn.IFNA(G20&"#"&H20&"#"&VLOOKUP(I20,数组!$B:$C,2,0)&"#"&角色升星配方!J20,"") ->  | BP20: =_xlfn.IFNA(H20&"#"&I20&"#"&VLOOKUP(J20,数组!$B:$C,2,0)&"#"&角色升星配方!K20,"") ->  | BQ20: =_xlfn.IFNA(I20&"#"&J20&"#"&VLOOKUP(K20,数组!$B:$C,2,0)&"#"&角色升星配方!L20,"") -> 6#2#40#1 | BR20: =_xlfn.IFNA(J20&"#"&K20&"#"&VLOOKUP(L20,数组!$B:$C,2,0)&"#"&角色升星配方!M20,"") ->  | BS20: =_xlfn.IFNA(K20&"#"&L20&"#"&VLOOKUP(M20,数组!$B:$C,2,0)&"#"&角色升星配方!N20,"") ->  | BT20: =_xlfn.IFNA(L20&"#"&M20&"#"&VLOOKUP(N20,数组!$B:$C,2,0)&"#"&角色升星配方!O20,"") ->  | BU20: =_xlfn.IFNA(M20&"#"&N20&"#"&VLOOKUP(O20,数组!$B:$C,2,0)&"#"&角色升星配方!P20,"") -> 6#3#17#3 | BV20: =_xlfn.IFNA(N20&"#"&O20&"#"&VLOOKUP(P20,数组!$B:$C,2,0)&"#"&角色升星配方!Q20,"") ->  | BW20: =_xlfn.IFNA(O20&"#"&P20&"#"&VLOOKUP(Q20,数组!$B:$C,2,0)&"#"&角色升星配方!R20,"") ->  | BX20: =_xlfn.IFNA(P20&"#"&Q20&"#"&VLOOKUP(R20,数组!$B:$C,2,0)&"#"&角色升星配方!S20,"") ->  | BY20: =_xlfn.IFNA(Q20&"#"&R20&"#"&VLOOKUP(S20,数组!$B:$C,2,0)&"#"&角色升星配方!T20,"") -> 7#1#17#4 | BZ20: =_xlfn.IFNA(R20&"#"&S20&"#"&VLOOKUP(T20,数组!$B:$C,2,0)&"#"&角色升星配方!U20,"") ->  | CA20: =_xlfn.IFNA(S20&"#"&T20&"#"&VLOOKUP(U20,数组!$B:$C,2,0)&"#"&角色升星配方!V20,"") ->  | CB20: =_xlfn.IFNA(T20&"#"&U20&"#"&VLOOKUP(V20,数组!$B:$C,2,0)&"#"&角色升星配方!W20,"") ->  | CC20: =_xlfn.IFNA(U20&"#"&V20&"#"&VLOOKUP(W20,数组!$B:$C,2,0)&"#"&角色升星配方!X20,"") -> 8#1#17#3 | CD20: =_xlfn.IFNA(V20&"#"&W20&"#"&VLOOKUP(X20,数组!$B:$C,2,0)&"#"&角色升星配方!AC20,"") ->  | CE20: =_xlfn.IFNA(W20&"#"&X20&"#"&VLOOKUP(AC20,数组!$B:$C,2,0)&"#"&角色升星配方!AD20,"") ->  | CF20: =_xlfn.IFNA(X20&"#"&AC20&"#"&VLOOKUP(AD20,数组!$B:$C,2,0)&"#"&角色升星配方!AE20,"") ->  | CG20: =_xlfn.IFNA(Y20&"#"&Z20&"#"&VLOOKUP(AA20,数组!$B:$C,2,0)&"#"&角色升星配方!AB20,"") -> 8#2#18#1 | CH20: =_xlfn.IFNA(AD20&"#"&AE20&"#"&VLOOKUP(AF20,数组!$B:$C,2,0)&"#"&角色升星配方!AG20,"") ->  | CI20: =_xlfn.IFNA(AE20&"#"&AF20&"#"&VLOOKUP(AG20,数组!$B:$C,2,0)&"#"&角色升星配方!AH20,"") ->  | CJ20: =_xlfn.IFNA(AF20&"#"&AG20&"#"&VLOOKUP(AH20,数组!$B:$C,2,0)&"#"&角色升星配方!AI20,"") ->  | CK20: =_xlfn.IFNA(AC20&"#"&AD20&"#"&VLOOKUP(AE20,数组!$B:$C,2,0)&"#"&角色升星配方!AF20,"") -> 9#1#3#1 | CL20: =_xlfn.IFNA(AH20&"#"&AI20&"#"&VLOOKUP(AJ20,数组!$B:$C,2,0)&"#"&角色升星配方!AK20,"") ->  | CM20: =_xlfn.IFNA(AI20&"#"&AJ20&"#"&VLOOKUP(AK20,数组!$B:$C,2,0)&"#"&角色升星配方!AL20,"") ->  | CN20: =_xlfn.IFNA(AJ20&"#"&AK20&"#"&VLOOKUP(AL20,数组!$B:$C,2,0)&"#"&角色升星配方!AM20,"") ->  | CO20: =_xlfn.IFNA(AG20&"#"&AH20&"#"&VLOOKUP(AI20,数组!$B:$C,2,0)&"#"&角色升星配方!AJ20,"") -> 9#2#18#1 | CP20: =_xlfn.IFNA(AL20&"#"&AM20&"#"&VLOOKUP(AN20,数组!$B:$C,2,0)&"#"&角色升星配方!AO20,"") ->  | CQ20: =_xlfn.IFNA(AM20&"#"&AN20&"#"&VLOOKUP(AO20,数组!$B:$C,2,0)&"#"&角色升星配方!AP20,"") ->  | CR20: =_xlfn.IFNA(AN20&"#"&AO20&"#"&VLOOKUP(AP20,数组!$B:$C,2,0)&"#"&角色升星配方!AQ20,"") ->  | CS20: =_xlfn.IFNA(AK20&"#"&AL20&"#"&VLOOKUP(AM20,数组!$B:$C,2,0)&"#"&角色升星配方!AN20,"") -> 9#3#17#2 | CT20: =_xlfn.IFNA(AP20&"#"&AQ20&"#"&VLOOKUP(AR20,数组!$B:$C,2,0)&"#"&角色升星配方!AS20,"") ->  | CU20: =_xlfn.IFNA(AQ20&"#"&AR20&"#"&VLOOKUP(AS20,数组!$B:$C,2,0)&"#"&角色升星配方!AT20,"") ->  | CV20: =_xlfn.IFNA(AR20&"#"&AS20&"#"&VLOOKUP(AT20,数组!$B:$C,2,0)&"#"&角色升星配方!AU20,"") ->  | CW20: =_xlfn.IFNA(AO20&"#"&AP20&"#"&VLOOKUP(AQ20,数组!$B:$C,2,0)&"#"&角色升星配方!AR20,"") -> 10#1#3#2 | CX20: =_xlfn.IFNA(AT20&"#"&AU20&"#"&VLOOKUP(AV20,数组!$B:$C,2,0)&"#"&角色升星配方!AW20,"") ->  | CY20: =_xlfn.IFNA(AU20&"#"&AV20&"#"&VLOOKUP(AW20,数组!$B:$C,2,0)&"#"&角色升星配方!AX20,"") ->  | CZ20: =_xlfn.IFNA(AV20&"#"&AW20&"#"&VLOOKUP(AX20,数组!$B:$C,2,0)&"#"&角色升星配方!AY20,"") ->  | DA20: =_xlfn.IFNA(AS20&"#"&AT20&"#"&VLOOKUP(AU20,数组!$B:$C,2,0)&"#"&角色升星配方!AV20,"") -> 10#2#18#1 | DB20: =_xlfn.IFNA(AX20&"#"&AY20&"#"&VLOOKUP(AZ20,数组!$B:$C,2,0)&"#"&角色升星配方!BM20,"") ->  | DE20: =_xlfn.IFNA(AW20&"#"&AX20&"#"&VLOOKUP(AY20,数组!$B:$C,2,0)&"#"&角色升星配方!AZ20,"") -> 10#3#14#1 | DI20: =_xlfn.IFNA(BE20&"#"&BF20&"#"&VLOOKUP(BG20,数组!$B:$C,2,0)&"#"&角色升星配方!BH20,"") ->  | DM20: =_xlfn.IFNA(BI20&"#"&BJ20&"#"&VLOOKUP(BK20,数组!$B:$C,2,0)&"#"&角色升星配方!BL20,"") ->  | DN20: =[2]!SUMSTRING(BM20:DM20,"|") -> 
A21: 1 | B21: 10020 | C21: 1 | D21: 5 | E21: 6 | F21: 1 | G21: 5星同名 | H21: 1 | I21: 6 | J21: 2 | K21: 5星10041 | L21: 1 | M21: 6 | N21: 3 | O21: 5星同系 | P21: 3 | Q21: 7 | R21: 1 | S21: 5星同系 | T21: 4 | U21: 8 | V21: 1 | W21: 5星同系 | X21: 3 | Y21: 8 | Z21: 2 | AA21: 6星同系 | AB21: 1 | AC21: 9 | AD21: 1 | AE21: 5星同名 | AF21: 1 | AG21: 9 | AH21: 2 | AI21: 6星同系 | AJ21: 1 | AK21: 9 | AL21: 3 | AM21: 5星同系 | AN21: 2 | AO21: 10 | AP21: 1 | AQ21: 5星同名 | AR21: 2 | AS21: 10 | AT21: 2 | AU21: 6星同系 | AV21: 1 | AW21: 10 | AX21: 3 | AY21: 9星任意 | AZ21: 1 | BM21: =_xlfn.IFNA(E21&"#"&F21&"#"&VLOOKUP(G21,数组!$B:$C,2,0)&"#"&角色升星配方!H21,"") -> 6#1#3#1 | BN21: =_xlfn.IFNA(F21&"#"&G21&"#"&VLOOKUP(H21,数组!$B:$C,2,0)&"#"&角色升星配方!I21,"") ->  | BO21: =_xlfn.IFNA(G21&"#"&H21&"#"&VLOOKUP(I21,数组!$B:$C,2,0)&"#"&角色升星配方!J21,"") ->  | BP21: =_xlfn.IFNA(H21&"#"&I21&"#"&VLOOKUP(J21,数组!$B:$C,2,0)&"#"&角色升星配方!K21,"") ->  | BQ21: =_xlfn.IFNA(I21&"#"&J21&"#"&VLOOKUP(K21,数组!$B:$C,2,0)&"#"&角色升星配方!L21,"") -> 6#2#39#1 | BR21: =_xlfn.IFNA(J21&"#"&K21&"#"&VLOOKUP(L21,数组!$B:$C,2,0)&"#"&角色升星配方!M21,"") ->  | BS21: =_xlfn.IFNA(K21&"#"&L21&"#"&VLOOKUP(M21,数组!$B:$C,2,0)&"#"&角色升星配方!N21,"") ->  | BT21: =_xlfn.IFNA(L21&"#"&M21&"#"&VLOOKUP(N21,数组!$B:$C,2,0)&"#"&角色升星配方!O21,"") ->  | BU21: =_xlfn.IFNA(M21&"#"&N21&"#"&VLOOKUP(O21,数组!$B:$C,2,0)&"#"&角色升星配方!P21,"") -> 6#3#17#3 | BV21: =_xlfn.IFNA(N21&"#"&O21&"#"&VLOOKUP(P21,数组!$B:$C,2,0)&"#"&角色升星配方!Q21,"") ->  | BW21: =_xlfn.IFNA(O21&"#"&P21&"#"&VLOOKUP(Q21,数组!$B:$C,2,0)&"#"&角色升星配方!R21,"") ->  | BX21: =_xlfn.IFNA(P21&"#"&Q21&"#"&VLOOKUP(R21,数组!$B:$C,2,0)&"#"&角色升星配方!S21,"") ->  | BY21: =_xlfn.IFNA(Q21&"#"&R21&"#"&VLOOKUP(S21,数组!$B:$C,2,0)&"#"&角色升星配方!T21,"") -> 7#1#17#4 | BZ21: =_xlfn.IFNA(R21&"#"&S21&"#"&VLOOKUP(T21,数组!$B:$C,2,0)&"#"&角色升星配方!U21,"") ->  | CA21: =_xlfn.IFNA(S21&"#"&T21&"#"&VLOOKUP(U21,数组!$B:$C,2,0)&"#"&角色升星配方!V21,"") ->  | CB21: =_xlfn.IFNA(T21&"#"&U21&"#"&VLOOKUP(V21,数组!$B:$C,2,0)&"#"&角色升星配方!W21,"") ->  | CC21: =_xlfn.IFNA(U21&"#"&V21&"#"&VLOOKUP(W21,数组!$B:$C,2,0)&"#"&角色升星配方!X21,"") -> 8#1#17#3 | CD21: =_xlfn.IFNA(V21&"#"&W21&"#"&VLOOKUP(X21,数组!$B:$C,2,0)&"#"&角色升星配方!AC21,"") ->  | CE21: =_xlfn.IFNA(W21&"#"&X21&"#"&VLOOKUP(AC21,数组!$B:$C,2,0)&"#"&角色升星配方!AD21,"") ->  | CF21: =_xlfn.IFNA(X21&"#"&AC21&"#"&VLOOKUP(AD21,数组!$B:$C,2,0)&"#"&角色升星配方!AE21,"") ->  | CG21: =_xlfn.IFNA(Y21&"#"&Z21&"#"&VLOOKUP(AA21,数组!$B:$C,2,0)&"#"&角色升星配方!AB21,"") -> 8#2#18#1 | CH21: =_xlfn.IFNA(AD21&"#"&AE21&"#"&VLOOKUP(AF21,数组!$B:$C,2,0)&"#"&角色升星配方!AG21,"") ->  | CI21: =_xlfn.IFNA(AE21&"#"&AF21&"#"&VLOOKUP(AG21,数组!$B:$C,2,0)&"#"&角色升星配方!AH21,"") ->  | CJ21: =_xlfn.IFNA(AF21&"#"&AG21&"#"&VLOOKUP(AH21,数组!$B:$C,2,0)&"#"&角色升星配方!AI21,"") ->  | CK21: =_xlfn.IFNA(AC21&"#"&AD21&"#"&VLOOKUP(AE21,数组!$B:$C,2,0)&"#"&角色升星配方!AF21,"") -> 9#1#3#1 | CL21: =_xlfn.IFNA(AH21&"#"&AI21&"#"&VLOOKUP(AJ21,数组!$B:$C,2,0)&"#"&角色升星配方!AK21,"") ->  | CM21: =_xlfn.IFNA(AI21&"#"&AJ21&"#"&VLOOKUP(AK21,数组!$B:$C,2,0)&"#"&角色升星配方!AL21,"") ->  | CN21: =_xlfn.IFNA(AJ21&"#"&AK21&"#"&VLOOKUP(AL21,数组!$B:$C,2,0)&"#"&角色升星配方!AM21,"") ->  | CO21: =_xlfn.IFNA(AG21&"#"&AH21&"#"&VLOOKUP(AI21,数组!$B:$C,2,0)&"#"&角色升星配方!AJ21,"") -> 9#2#18#1 | CP21: =_xlfn.IFNA(AL21&"#"&AM21&"#"&VLOOKUP(AN21,数组!$B:$C,2,0)&"#"&角色升星配方!AO21,"") ->  | CQ21: =_xlfn.IFNA(AM21&"#"&AN21&"#"&VLOOKUP(AO21,数组!$B:$C,2,0)&"#"&角色升星配方!AP21,"") ->  | CR21: =_xlfn.IFNA(AN21&"#"&AO21&"#"&VLOOKUP(AP21,数组!$B:$C,2,0)&"#"&角色升星配方!AQ21,"") ->  | CS21: =_xlfn.IFNA(AK21&"#"&AL21&"#"&VLOOKUP(AM21,数组!$B:$C,2,0)&"#"&角色升星配方!AN21,"") -> 9#3#17#2 | CT21: =_xlfn.IFNA(AP21&"#"&AQ21&"#"&VLOOKUP(AR21,数组!$B:$C,2,0)&"#"&角色升星配方!AS21,"") ->  | CU21: =_xlfn.IFNA(AQ21&"#"&AR21&"#"&VLOOKUP(AS21,数组!$B:$C,2,0)&"#"&角色升星配方!AT21,"") ->  | CV21: =_xlfn.IFNA(AR21&"#"&AS21&"#"&VLOOKUP(AT21,数组!$B:$C,2,0)&"#"&角色升星配方!AU21,"") ->  | CW21: =_xlfn.IFNA(AO21&"#"&AP21&"#"&VLOOKUP(AQ21,数组!$B:$C,2,0)&"#"&角色升星配方!AR21,"") -> 10#1#3#2 | CX21: =_xlfn.IFNA(AT21&"#"&AU21&"#"&VLOOKUP(AV21,数组!$B:$C,2,0)&"#"&角色升星配方!AW21,"") ->  | CY21: =_xlfn.IFNA(AU21&"#"&AV21&"#"&VLOOKUP(AW21,数组!$B:$C,2,0)&"#"&角色升星配方!AX21,"") ->  | CZ21: =_xlfn.IFNA(AV21&"#"&AW21&"#"&VLOOKUP(AX21,数组!$B:$C,2,0)&"#"&角色升星配方!AY21,"") ->  | DA21: =_xlfn.IFNA(AS21&"#"&AT21&"#"&VLOOKUP(AU21,数组!$B:$C,2,0)&"#"&角色升星配方!AV21,"") -> 10#2#18#1 | DB21: =_xlfn.IFNA(AX21&"#"&AY21&"#"&VLOOKUP(AZ21,数组!$B:$C,2,0)&"#"&角色升星配方!BM21,"") ->  | DE21: =_xlfn.IFNA(AW21&"#"&AX21&"#"&VLOOKUP(AY21,数组!$B:$C,2,0)&"#"&角色升星配方!AZ21,"") -> 10#3#14#1 | DI21: =_xlfn.IFNA(BE21&"#"&BF21&"#"&VLOOKUP(BG21,数组!$B:$C,2,0)&"#"&角色升星配方!BH21,"") ->  | DM21: =_xlfn.IFNA(BI21&"#"&BJ21&"#"&VLOOKUP(BK21,数组!$B:$C,2,0)&"#"&角色升星配方!BL21,"") ->  | DN21: =[2]!SUMSTRING(BM21:DM21,"|") -> 
A22: 3 | B22: 10021 | C22: 3 | D22: 5 | E22: 6 | F22: 1 | G22: 5星同名 | H22: 1 | I22: 6 | J22: 2 | K22: 5星10043 | L22: 1 | M22: 6 | N22: 3 | O22: 5星同系 | P22: 3 | Q22: 7 | R22: 1 | S22: 5星同系 | T22: 4 | U22: 8 | V22: 1 | W22: 5星同系 | X22: 3 | Y22: 8 | Z22: 2 | AA22: 6星同系 | AB22: 1 | AC22: 9 | AD22: 1 | AE22: 5星同名 | AF22: 1 | AG22: 9 | AH22: 2 | AI22: 6星同系 | AJ22: 1 | AK22: 9 | AL22: 3 | AM22: 5星同系 | AN22: 2 | AO22: 10 | AP22: 1 | AQ22: 5星同名 | AR22: 2 | AS22: 10 | AT22: 2 | AU22: 6星同系 | AV22: 1 | AW22: 10 | AX22: 3 | AY22: 9星任意 | AZ22: 1 | BM22: =_xlfn.IFNA(E22&"#"&F22&"#"&VLOOKUP(G22,数组!$B:$C,2,0)&"#"&角色升星配方!H22,"") -> 6#1#3#1 | BN22: =_xlfn.IFNA(F22&"#"&G22&"#"&VLOOKUP(H22,数组!$B:$C,2,0)&"#"&角色升星配方!I22,"") ->  | BO22: =_xlfn.IFNA(G22&"#"&H22&"#"&VLOOKUP(I22,数组!$B:$C,2,0)&"#"&角色升星配方!J22,"") ->  | BP22: =_xlfn.IFNA(H22&"#"&I22&"#"&VLOOKUP(J22,数组!$B:$C,2,0)&"#"&角色升星配方!K22,"") ->  | BQ22: =_xlfn.IFNA(I22&"#"&J22&"#"&VLOOKUP(K22,数组!$B:$C,2,0)&"#"&角色升星配方!L22,"") -> 6#2#41#1 | BR22: =_xlfn.IFNA(J22&"#"&K22&"#"&VLOOKUP(L22,数组!$B:$C,2,0)&"#"&角色升星配方!M22,"") ->  | BS22: =_xlfn.IFNA(K22&"#"&L22&"#"&VLOOKUP(M22,数组!$B:$C,2,0)&"#"&角色升星配方!N22,"") ->  | BT22: =_xlfn.IFNA(L22&"#"&M22&"#"&VLOOKUP(N22,数组!$B:$C,2,0)&"#"&角色升星配方!O22,"") ->  | BU22: =_xlfn.IFNA(M22&"#"&N22&"#"&VLOOKUP(O22,数组!$B:$C,2,0)&"#"&角色升星配方!P22,"") -> 6#3#17#3 | BV22: =_xlfn.IFNA(N22&"#"&O22&"#"&VLOOKUP(P22,数组!$B:$C,2,0)&"#"&角色升星配方!Q22,"") ->  | BW22: =_xlfn.IFNA(O22&"#"&P22&"#"&VLOOKUP(Q22,数组!$B:$C,2,0)&"#"&角色升星配方!R22,"") ->  | BX22: =_xlfn.IFNA(P22&"#"&Q22&"#"&VLOOKUP(R22,数组!$B:$C,2,0)&"#"&角色升星配方!S22,"") ->  | BY22: =_xlfn.IFNA(Q22&"#"&R22&"#"&VLOOKUP(S22,数组!$B:$C,2,0)&"#"&角色升星配方!T22,"") -> 7#1#17#4 | BZ22: =_xlfn.IFNA(R22&"#"&S22&"#"&VLOOKUP(T22,数组!$B:$C,2,0)&"#"&角色升星配方!U22,"") ->  | CA22: =_xlfn.IFNA(S22&"#"&T22&"#"&VLOOKUP(U22,数组!$B:$C,2,0)&"#"&角色升星配方!V22,"") ->  | CB22: =_xlfn.IFNA(T22&"#"&U22&"#"&VLOOKUP(V22,数组!$B:$C,2,0)&"#"&角色升星配方!W22,"") ->  | CC22: =_xlfn.IFNA(U22&"#"&V22&"#"&VLOOKUP(W22,数组!$B:$C,2,0)&"#"&角色升星配方!X22,"") -> 8#1#17#3 | CD22: =_xlfn.IFNA(V22&"#"&W22&"#"&VLOOKUP(X22,数组!$B:$C,2,0)&"#"&角色升星配方!AC22,"") ->  | CE22: =_xlfn.IFNA(W22&"#"&X22&"#"&VLOOKUP(AC22,数组!$B:$C,2,0)&"#"&角色升星配方!AD22,"") ->  | CF22: =_xlfn.IFNA(X22&"#"&AC22&"#"&VLOOKUP(AD22,数组!$B:$C,2,0)&"#"&角色升星配方!AE22,"") ->  | CG22: =_xlfn.IFNA(Y22&"#"&Z22&"#"&VLOOKUP(AA22,数组!$B:$C,2,0)&"#"&角色升星配方!AB22,"") -> 8#2#18#1 | CH22: =_xlfn.IFNA(AD22&"#"&AE22&"#"&VLOOKUP(AF22,数组!$B:$C,2,0)&"#"&角色升星配方!AG22,"") ->  | CI22: =_xlfn.IFNA(AE22&"#"&AF22&"#"&VLOOKUP(AG22,数组!$B:$C,2,0)&"#"&角色升星配方!AH22,"") ->  | CJ22: =_xlfn.IFNA(AF22&"#"&AG22&"#"&VLOOKUP(AH22,数组!$B:$C,2,0)&"#"&角色升星配方!AI22,"") ->  | CK22: =_xlfn.IFNA(AC22&"#"&AD22&"#"&VLOOKUP(AE22,数组!$B:$C,2,0)&"#"&角色升星配方!AF22,"") -> 9#1#3#1 | CL22: =_xlfn.IFNA(AH22&"#"&AI22&"#"&VLOOKUP(AJ22,数组!$B:$C,2,0)&"#"&角色升星配方!AK22,"") ->  | CM22: =_xlfn.IFNA(AI22&"#"&AJ22&"#"&VLOOKUP(AK22,数组!$B:$C,2,0)&"#"&角色升星配方!AL22,"") ->  | CN22: =_xlfn.IFNA(AJ22&"#"&AK22&"#"&VLOOKUP(AL22,数组!$B:$C,2,0)&"#"&角色升星配方!AM22,"") ->  | CO22: =_xlfn.IFNA(AG22&"#"&AH22&"#"&VLOOKUP(AI22,数组!$B:$C,2,0)&"#"&角色升星配方!AJ22,"") -> 9#2#18#1 | CP22: =_xlfn.IFNA(AL22&"#"&AM22&"#"&VLOOKUP(AN22,数组!$B:$C,2,0)&"#"&角色升星配方!AO22,"") ->  | CQ22: =_xlfn.IFNA(AM22&"#"&AN22&"#"&VLOOKUP(AO22,数组!$B:$C,2,0)&"#"&角色升星配方!AP22,"") ->  | CR22: =_xlfn.IFNA(AN22&"#"&AO22&"#"&VLOOKUP(AP22,数组!$B:$C,2,0)&"#"&角色升星配方!AQ22,"") ->  | CS22: =_xlfn.IFNA(AK22&"#"&AL22&"#"&VLOOKUP(AM22,数组!$B:$C,2,0)&"#"&角色升星配方!AN22,"") -> 9#3#17#2 | CT22: =_xlfn.IFNA(AP22&"#"&AQ22&"#"&VLOOKUP(AR22,数组!$B:$C,2,0)&"#"&角色升星配方!AS22,"") ->  | CU22: =_xlfn.IFNA(AQ22&"#"&AR22&"#"&VLOOKUP(AS22,数组!$B:$C,2,0)&"#"&角色升星配方!AT22,"") ->  | CV22: =_xlfn.IFNA(AR22&"#"&AS22&"#"&VLOOKUP(AT22,数组!$B:$C,2,0)&"#"&角色升星配方!AU22,"") ->  | CW22: =_xlfn.IFNA(AO22&"#"&AP22&"#"&VLOOKUP(AQ22,数组!$B:$C,2,0)&"#"&角色升星配方!AR22,"") -> 10#1#3#2 | CX22: =_xlfn.IFNA(AT22&"#"&AU22&"#"&VLOOKUP(AV22,数组!$B:$C,2,0)&"#"&角色升星配方!AW22,"") ->  | CY22: =_xlfn.IFNA(AU22&"#"&AV22&"#"&VLOOKUP(AW22,数组!$B:$C,2,0)&"#"&角色升星配方!AX22,"") ->  | CZ22: =_xlfn.IFNA(AV22&"#"&AW22&"#"&VLOOKUP(AX22,数组!$B:$C,2,0)&"#"&角色升星配方!AY22,"") ->  | DA22: =_xlfn.IFNA(AS22&"#"&AT22&"#"&VLOOKUP(AU22,数组!$B:$C,2,0)&"#"&角色升星配方!AV22,"") -> 10#2#18#1 | DB22: =_xlfn.IFNA(AX22&"#"&AY22&"#"&VLOOKUP(AZ22,数组!$B:$C,2,0)&"#"&角色升星配方!BM22,"") ->  | DE22: =_xlfn.IFNA(AW22&"#"&AX22&"#"&VLOOKUP(AY22,数组!$B:$C,2,0)&"#"&角色升星配方!AZ22,"") -> 10#3#14#1 | DI22: =_xlfn.IFNA(BE22&"#"&BF22&"#"&VLOOKUP(BG22,数组!$B:$C,2,0)&"#"&角色升星配方!BH22,"") ->  | DM22: =_xlfn.IFNA(BI22&"#"&BJ22&"#"&VLOOKUP(BK22,数组!$B:$C,2,0)&"#"&角色升星配方!BL22,"") ->  | DN22: =[2]!SUMSTRING(BM22:DM22,"|") -> 
A23: 2 | B23: 10022 | C23: 2 | D23: 5 | E23: 6 | F23: 1 | G23: 5星同名 | H23: 1 | I23: 6 | J23: 2 | K23: 5星10045 | L23: 1 | M23: 6 | N23: 3 | O23: 5星同系 | P23: 3 | Q23: 7 | R23: 1 | S23: 5星同系 | T23: 4 | U23: 8 | V23: 1 | W23: 5星同系 | X23: 3 | Y23: 8 | Z23: 2 | AA23: 6星同系 | AB23: 1 | AC23: 9 | AD23: 1 | AE23: 5星同名 | AF23: 1 | AG23: 9 | AH23: 2 | AI23: 6星同系 | AJ23: 1 | AK23: 9 | AL23: 3 | AM23: 5星同系 | AN23: 2 | AO23: 10 | AP23: 1 | AQ23: 5星同名 | AR23: 2 | AS23: 10 | AT23: 2 | AU23: 6星同系 | AV23: 1 | AW23: 10 | AX23: 3 | AY23: 9星任意 | AZ23: 1 | BM23: =_xlfn.IFNA(E23&"#"&F23&"#"&VLOOKUP(G23,数组!$B:$C,2,0)&"#"&角色升星配方!H23,"") -> 6#1#3#1 | BN23: =_xlfn.IFNA(F23&"#"&G23&"#"&VLOOKUP(H23,数组!$B:$C,2,0)&"#"&角色升星配方!I23,"") ->  | BO23: =_xlfn.IFNA(G23&"#"&H23&"#"&VLOOKUP(I23,数组!$B:$C,2,0)&"#"&角色升星配方!J23,"") ->  | BP23: =_xlfn.IFNA(H23&"#"&I23&"#"&VLOOKUP(J23,数组!$B:$C,2,0)&"#"&角色升星配方!K23,"") ->  | BQ23: =_xlfn.IFNA(I23&"#"&J23&"#"&VLOOKUP(K23,数组!$B:$C,2,0)&"#"&角色升星配方!L23,"") -> 6#2#43#1 | BR23: =_xlfn.IFNA(J23&"#"&K23&"#"&VLOOKUP(L23,数组!$B:$C,2,0)&"#"&角色升星配方!M23,"") ->  | BS23: =_xlfn.IFNA(K23&"#"&L23&"#"&VLOOKUP(M23,数组!$B:$C,2,0)&"#"&角色升星配方!N23,"") ->  | BT23: =_xlfn.IFNA(L23&"#"&M23&"#"&VLOOKUP(N23,数组!$B:$C,2,0)&"#"&角色升星配方!O23,"") ->  | BU23: =_xlfn.IFNA(M23&"#"&N23&"#"&VLOOKUP(O23,数组!$B:$C,2,0)&"#"&角色升星配方!P23,"") -> 6#3#17#3 | BV23: =_xlfn.IFNA(N23&"#"&O23&"#"&VLOOKUP(P23,数组!$B:$C,2,0)&"#"&角色升星配方!Q23,"") ->  | BW23: =_xlfn.IFNA(O23&"#"&P23&"#"&VLOOKUP(Q23,数组!$B:$C,2,0)&"#"&角色升星配方!R23,"") ->  | BX23: =_xlfn.IFNA(P23&"#"&Q23&"#"&VLOOKUP(R23,数组!$B:$C,2,0)&"#"&角色升星配方!S23,"") ->  | BY23: =_xlfn.IFNA(Q23&"#"&R23&"#"&VLOOKUP(S23,数组!$B:$C,2,0)&"#"&角色升星配方!T23,"") -> 7#1#17#4 | BZ23: =_xlfn.IFNA(R23&"#"&S23&"#"&VLOOKUP(T23,数组!$B:$C,2,0)&"#"&角色升星配方!U23,"") ->  | CA23: =_xlfn.IFNA(S23&"#"&T23&"#"&VLOOKUP(U23,数组!$B:$C,2,0)&"#"&角色升星配方!V23,"") ->  | CB23: =_xlfn.IFNA(T23&"#"&U23&"#"&VLOOKUP(V23,数组!$B:$C,2,0)&"#"&角色升星配方!W23,"") ->  | CC23: =_xlfn.IFNA(U23&"#"&V23&"#"&VLOOKUP(W23,数组!$B:$C,2,0)&"#"&角色升星配方!X23,"") -> 8#1#17#3 | CD23: =_xlfn.IFNA(V23&"#"&W23&"#"&VLOOKUP(X23,数组!$B:$C,2,0)&"#"&角色升星配方!AC23,"") ->  | CE23: =_xlfn.IFNA(W23&"#"&X23&"#"&VLOOKUP(AC23,数组!$B:$C,2,0)&"#"&角色升星配方!AD23,"") ->  | CF23: =_xlfn.IFNA(X23&"#"&AC23&"#"&VLOOKUP(AD23,数组!$B:$C,2,0)&"#"&角色升星配方!AE23,"") ->  | CG23: =_xlfn.IFNA(Y23&"#"&Z23&"#"&VLOOKUP(AA23,数组!$B:$C,2,0)&"#"&角色升星配方!AB23,"") -> 8#2#18#1 | CH23: =_xlfn.IFNA(AD23&"#"&AE23&"#"&VLOOKUP(AF23,数组!$B:$C,2,0)&"#"&角色升星配方!AG23,"") ->  | CI23: =_xlfn.IFNA(AE23&"#"&AF23&"#"&VLOOKUP(AG23,数组!$B:$C,2,0)&"#"&角色升星配方!AH23,"") ->  | CJ23: =_xlfn.IFNA(AF23&"#"&AG23&"#"&VLOOKUP(AH23,数组!$B:$C,2,0)&"#"&角色升星配方!AI23,"") ->  | CK23: =_xlfn.IFNA(AC23&"#"&AD23&"#"&VLOOKUP(AE23,数组!$B:$C,2,0)&"#"&角色升星配方!AF23,"") -> 9#1#3#1 | CL23: =_xlfn.IFNA(AH23&"#"&AI23&"#"&VLOOKUP(AJ23,数组!$B:$C,2,0)&"#"&角色升星配方!AK23,"") ->  | CM23: =_xlfn.IFNA(AI23&"#"&AJ23&"#"&VLOOKUP(AK23,数组!$B:$C,2,0)&"#"&角色升星配方!AL23,"") ->  | CN23: =_xlfn.IFNA(AJ23&"#"&AK23&"#"&VLOOKUP(AL23,数组!$B:$C,2,0)&"#"&角色升星配方!AM23,"") ->  | CO23: =_xlfn.IFNA(AG23&"#"&AH23&"#"&VLOOKUP(AI23,数组!$B:$C,2,0)&"#"&角色升星配方!AJ23,"") -> 9#2#18#1 | CP23: =_xlfn.IFNA(AL23&"#"&AM23&"#"&VLOOKUP(AN23,数组!$B:$C,2,0)&"#"&角色升星配方!AO23,"") ->  | CQ23: =_xlfn.IFNA(AM23&"#"&AN23&"#"&VLOOKUP(AO23,数组!$B:$C,2,0)&"#"&角色升星配方!AP23,"") ->  | CR23: =_xlfn.IFNA(AN23&"#"&AO23&"#"&VLOOKUP(AP23,数组!$B:$C,2,0)&"#"&角色升星配方!AQ23,"") ->  | CS23: =_xlfn.IFNA(AK23&"#"&AL23&"#"&VLOOKUP(AM23,数组!$B:$C,2,0)&"#"&角色升星配方!AN23,"") -> 9#3#17#2 | CT23: =_xlfn.IFNA(AP23&"#"&AQ23&"#"&VLOOKUP(AR23,数组!$B:$C,2,0)&"#"&角色升星配方!AS23,"") ->  | CU23: =_xlfn.IFNA(AQ23&"#"&AR23&"#"&VLOOKUP(AS23,数组!$B:$C,2,0)&"#"&角色升星配方!AT23,"") ->  | CV23: =_xlfn.IFNA(AR23&"#"&AS23&"#"&VLOOKUP(AT23,数组!$B:$C,2,0)&"#"&角色升星配方!AU23,"") ->  | CW23: =_xlfn.IFNA(AO23&"#"&AP23&"#"&VLOOKUP(AQ23,数组!$B:$C,2,0)&"#"&角色升星配方!AR23,"") -> 10#1#3#2 | CX23: =_xlfn.IFNA(AT23&"#"&AU23&"#"&VLOOKUP(AV23,数组!$B:$C,2,0)&"#"&角色升星配方!AW23,"") ->  | CY23: =_xlfn.IFNA(AU23&"#"&AV23&"#"&VLOOKUP(AW23,数组!$B:$C,2,0)&"#"&角色升星配方!AX23,"") ->  | CZ23: =_xlfn.IFNA(AV23&"#"&AW23&"#"&VLOOKUP(AX23,数组!$B:$C,2,0)&"#"&角色升星配方!AY23,"") ->  | DA23: =_xlfn.IFNA(AS23&"#"&AT23&"#"&VLOOKUP(AU23,数组!$B:$C,2,0)&"#"&角色升星配方!AV23,"") -> 10#2#18#1 | DB23: =_xlfn.IFNA(AX23&"#"&AY23&"#"&VLOOKUP(AZ23,数组!$B:$C,2,0)&"#"&角色升星配方!BM23,"") ->  | DE23: =_xlfn.IFNA(AW23&"#"&AX23&"#"&VLOOKUP(AY23,数组!$B:$C,2,0)&"#"&角色升星配方!AZ23,"") -> 10#3#14#1 | DI23: =_xlfn.IFNA(BE23&"#"&BF23&"#"&VLOOKUP(BG23,数组!$B:$C,2,0)&"#"&角色升星配方!BH23,"") ->  | DM23: =_xlfn.IFNA(BI23&"#"&BJ23&"#"&VLOOKUP(BK23,数组!$B:$C,2,0)&"#"&角色升星配方!BL23,"") ->  | DN23: =[2]!SUMSTRING(BM23:DM23,"|") -> 
A24: 5 | B24: 10023 | C24: 5 | D24: 5 | E24: 6 | F24: 1 | G24: 5星同名 | H24: 1 | I24: 6 | J24: 2 | K24: 5星10046 | L24: 1 | M24: 6 | N24: 3 | O24: 5星同系 | P24: 3 | Q24: 7 | R24: 1 | S24: 5星同系 | T24: 4 | U24: 8 | V24: 1 | W24: 5星同系 | X24: 3 | Y24: 8 | Z24: 2 | AA24: 6星同系 | AB24: 1 | AC24: 9 | AD24: 1 | AE24: 5星同名 | AF24: 1 | AG24: 9 | AH24: 2 | AI24: 6星同系 | AJ24: 1 | AK24: 9 | AL24: 3 | AM24: 5星同系 | AN24: 2 | AO24: 10 | AP24: 1 | AQ24: 5星同名 | AR24: 2 | AS24: 10 | AT24: 2 | AU24: 6星同系 | AV24: 1 | AW24: 10 | AX24: 3 | AY24: 9星任意 | AZ24: 1 | BM24: =_xlfn.IFNA(E24&"#"&F24&"#"&VLOOKUP(G24,数组!$B:$C,2,0)&"#"&角色升星配方!H24,"") -> 6#1#3#1 | BN24: =_xlfn.IFNA(F24&"#"&G24&"#"&VLOOKUP(H24,数组!$B:$C,2,0)&"#"&角色升星配方!I24,"") ->  | BO24: =_xlfn.IFNA(G24&"#"&H24&"#"&VLOOKUP(I24,数组!$B:$C,2,0)&"#"&角色升星配方!J24,"") ->  | BP24: =_xlfn.IFNA(H24&"#"&I24&"#"&VLOOKUP(J24,数组!$B:$C,2,0)&"#"&角色升星配方!K24,"") ->  | BQ24: =_xlfn.IFNA(I24&"#"&J24&"#"&VLOOKUP(K24,数组!$B:$C,2,0)&"#"&角色升星配方!L24,"") -> 6#2#44#1 | BR24: =_xlfn.IFNA(J24&"#"&K24&"#"&VLOOKUP(L24,数组!$B:$C,2,0)&"#"&角色升星配方!M24,"") ->  | BS24: =_xlfn.IFNA(K24&"#"&L24&"#"&VLOOKUP(M24,数组!$B:$C,2,0)&"#"&角色升星配方!N24,"") ->  | BT24: =_xlfn.IFNA(L24&"#"&M24&"#"&VLOOKUP(N24,数组!$B:$C,2,0)&"#"&角色升星配方!O24,"") ->  | BU24: =_xlfn.IFNA(M24&"#"&N24&"#"&VLOOKUP(O24,数组!$B:$C,2,0)&"#"&角色升星配方!P24,"") -> 6#3#17#3 | BV24: =_xlfn.IFNA(N24&"#"&O24&"#"&VLOOKUP(P24,数组!$B:$C,2,0)&"#"&角色升星配方!Q24,"") ->  | BW24: =_xlfn.IFNA(O24&"#"&P24&"#"&VLOOKUP(Q24,数组!$B:$C,2,0)&"#"&角色升星配方!R24,"") ->  | BX24: =_xlfn.IFNA(P24&"#"&Q24&"#"&VLOOKUP(R24,数组!$B:$C,2,0)&"#"&角色升星配方!S24,"") ->  | BY24: =_xlfn.IFNA(Q24&"#"&R24&"#"&VLOOKUP(S24,数组!$B:$C,2,0)&"#"&角色升星配方!T24,"") -> 7#1#17#4 | BZ24: =_xlfn.IFNA(R24&"#"&S24&"#"&VLOOKUP(T24,数组!$B:$C,2,0)&"#"&角色升星配方!U24,"") ->  | CA24: =_xlfn.IFNA(S24&"#"&T24&"#"&VLOOKUP(U24,数组!$B:$C,2,0)&"#"&角色升星配方!V24,"") ->  | CB24: =_xlfn.IFNA(T24&"#"&U24&"#"&VLOOKUP(V24,数组!$B:$C,2,0)&"#"&角色升星配方!W24,"") ->  | CC24: =_xlfn.IFNA(U24&"#"&V24&"#"&VLOOKUP(W24,数组!$B:$C,2,0)&"#"&角色升星配方!X24,"") -> 8#1#17#3 | CD24: =_xlfn.IFNA(V24&"#"&W24&"#"&VLOOKUP(X24,数组!$B:$C,2,0)&"#"&角色升星配方!AC24,"") ->  | CE24: =_xlfn.IFNA(W24&"#"&X24&"#"&VLOOKUP(AC24,数组!$B:$C,2,0)&"#"&角色升星配方!AD24,"") ->  | CF24: =_xlfn.IFNA(X24&"#"&AC24&"#"&VLOOKUP(AD24,数组!$B:$C,2,0)&"#"&角色升星配方!AE24,"") ->  | CG24: =_xlfn.IFNA(Y24&"#"&Z24&"#"&VLOOKUP(AA24,数组!$B:$C,2,0)&"#"&角色升星配方!AB24,"") -> 8#2#18#1 | CH24: =_xlfn.IFNA(AD24&"#"&AE24&"#"&VLOOKUP(AF24,数组!$B:$C,2,0)&"#"&角色升星配方!AG24,"") ->  | CI24: =_xlfn.IFNA(AE24&"#"&AF24&"#"&VLOOKUP(AG24,数组!$B:$C,2,0)&"#"&角色升星配方!AH24,"") ->  | CJ24: =_xlfn.IFNA(AF24&"#"&AG24&"#"&VLOOKUP(AH24,数组!$B:$C,2,0)&"#"&角色升星配方!AI24,"") ->  | CK24: =_xlfn.IFNA(AC24&"#"&AD24&"#"&VLOOKUP(AE24,数组!$B:$C,2,0)&"#"&角色升星配方!AF24,"") -> 9#1#3#1 | CL24: =_xlfn.IFNA(AH24&"#"&AI24&"#"&VLOOKUP(AJ24,数组!$B:$C,2,0)&"#"&角色升星配方!AK24,"") ->  | CM24: =_xlfn.IFNA(AI24&"#"&AJ24&"#"&VLOOKUP(AK24,数组!$B:$C,2,0)&"#"&角色升星配方!AL24,"") ->  | CN24: =_xlfn.IFNA(AJ24&"#"&AK24&"#"&VLOOKUP(AL24,数组!$B:$C,2,0)&"#"&角色升星配方!AM24,"") ->  | CO24: =_xlfn.IFNA(AG24&"#"&AH24&"#"&VLOOKUP(AI24,数组!$B:$C,2,0)&"#"&角色升星配方!AJ24,"") -> 9#2#18#1 | CP24: =_xlfn.IFNA(AL24&"#"&AM24&"#"&VLOOKUP(AN24,数组!$B:$C,2,0)&"#"&角色升星配方!AO24,"") ->  | CQ24: =_xlfn.IFNA(AM24&"#"&AN24&"#"&VLOOKUP(AO24,数组!$B:$C,2,0)&"#"&角色升星配方!AP24,"") ->  | CR24: =_xlfn.IFNA(AN24&"#"&AO24&"#"&VLOOKUP(AP24,数组!$B:$C,2,0)&"#"&角色升星配方!AQ24,"") ->  | CS24: =_xlfn.IFNA(AK24&"#"&AL24&"#"&VLOOKUP(AM24,数组!$B:$C,2,0)&"#"&角色升星配方!AN24,"") -> 9#3#17#2 | CT24: =_xlfn.IFNA(AP24&"#"&AQ24&"#"&VLOOKUP(AR24,数组!$B:$C,2,0)&"#"&角色升星配方!AS24,"") ->  | CU24: =_xlfn.IFNA(AQ24&"#"&AR24&"#"&VLOOKUP(AS24,数组!$B:$C,2,0)&"#"&角色升星配方!AT24,"") ->  | CV24: =_xlfn.IFNA(AR24&"#"&AS24&"#"&VLOOKUP(AT24,数组!$B:$C,2,0)&"#"&角色升星配方!AU24,"") ->  | CW24: =_xlfn.IFNA(AO24&"#"&AP24&"#"&VLOOKUP(AQ24,数组!$B:$C,2,0)&"#"&角色升星配方!AR24,"") -> 10#1#3#2 | CX24: =_xlfn.IFNA(AT24&"#"&AU24&"#"&VLOOKUP(AV24,数组!$B:$C,2,0)&"#"&角色升星配方!AW24,"") ->  | CY24: =_xlfn.IFNA(AU24&"#"&AV24&"#"&VLOOKUP(AW24,数组!$B:$C,2,0)&"#"&角色升星配方!AX24,"") ->  | CZ24: =_xlfn.IFNA(AV24&"#"&AW24&"#"&VLOOKUP(AX24,数组!$B:$C,2,0)&"#"&角色升星配方!AY24,"") ->  | DA24: =_xlfn.IFNA(AS24&"#"&AT24&"#"&VLOOKUP(AU24,数组!$B:$C,2,0)&"#"&角色升星配方!AV24,"") -> 10#2#18#1 | DB24: =_xlfn.IFNA(AX24&"#"&AY24&"#"&VLOOKUP(AZ24,数组!$B:$C,2,0)&"#"&角色升星配方!BM24,"") ->  | DE24: =_xlfn.IFNA(AW24&"#"&AX24&"#"&VLOOKUP(AY24,数组!$B:$C,2,0)&"#"&角色升星配方!AZ24,"") -> 10#3#14#1 | DI24: =_xlfn.IFNA(BE24&"#"&BF24&"#"&VLOOKUP(BG24,数组!$B:$C,2,0)&"#"&角色升星配方!BH24,"") ->  | DM24: =_xlfn.IFNA(BI24&"#"&BJ24&"#"&VLOOKUP(BK24,数组!$B:$C,2,0)&"#"&角色升星配方!BL24,"") ->  | DN24: =[2]!SUMSTRING(BM24:DM24,"|") -> 
A25: 2 | B25: 10024 | C25: 2 | D25: 4 | E25: 5 | F25: 1 | G25: 4星同名 | H25: 3 | I25: 5 | J25: 2 | K25: 3星同系 | L25: 4 | M25: 5 | N25: 3 | O25: 4星同系 | P25: 4 | AC25: 6 | AD25: 1 | AE25: 5星同名 | AF25: 1 | AG25: 6 | AH25: 2 | AI25: 5星10045 | AJ25: 1 | AK25: 6 | AL25: 3 | AM25: 5星同系 | AN25: 3 | BM25: =_xlfn.IFNA(E25&"#"&F25&"#"&VLOOKUP(G25,数组!$B:$C,2,0)&"#"&角色升星配方!H25,"") -> 5#1#2#3 | BN25: =_xlfn.IFNA(F25&"#"&G25&"#"&VLOOKUP(H25,数组!$B:$C,2,0)&"#"&角色升星配方!I25,"") ->  | BO25: =_xlfn.IFNA(G25&"#"&H25&"#"&VLOOKUP(I25,数组!$B:$C,2,0)&"#"&角色升星配方!J25,"") ->  | BP25: =_xlfn.IFNA(H25&"#"&I25&"#"&VLOOKUP(J25,数组!$B:$C,2,0)&"#"&角色升星配方!K25,"") ->  | BQ25: =_xlfn.IFNA(I25&"#"&J25&"#"&VLOOKUP(K25,数组!$B:$C,2,0)&"#"&角色升星配方!L25,"") -> 5#2#15#4 | BR25: =_xlfn.IFNA(J25&"#"&K25&"#"&VLOOKUP(L25,数组!$B:$C,2,0)&"#"&角色升星配方!M25,"") ->  | BS25: =_xlfn.IFNA(K25&"#"&L25&"#"&VLOOKUP(M25,数组!$B:$C,2,0)&"#"&角色升星配方!N25,"") ->  | BT25: =_xlfn.IFNA(L25&"#"&M25&"#"&VLOOKUP(N25,数组!$B:$C,2,0)&"#"&角色升星配方!O25,"") ->  | BU25: =_xlfn.IFNA(M25&"#"&N25&"#"&VLOOKUP(O25,数组!$B:$C,2,0)&"#"&角色升星配方!P25,"") -> 5#3#16#4 | BV25: =_xlfn.IFNA(N25&"#"&O25&"#"&VLOOKUP(P25,数组!$B:$C,2,0)&"#"&角色升星配方!Q25,"") ->  | BW25: =_xlfn.IFNA(O25&"#"&P25&"#"&VLOOKUP(Q25,数组!$B:$C,2,0)&"#"&角色升星配方!R25,"") ->  | BX25: =_xlfn.IFNA(P25&"#"&Q25&"#"&VLOOKUP(R25,数组!$B:$C,2,0)&"#"&角色升星配方!S25,"") ->  | BY25: =_xlfn.IFNA(Q25&"#"&R25&"#"&VLOOKUP(S25,数组!$B:$C,2,0)&"#"&角色升星配方!T25,"") ->  | BZ25: =_xlfn.IFNA(R25&"#"&S25&"#"&VLOOKUP(T25,数组!$B:$C,2,0)&"#"&角色升星配方!U25,"") ->  | CA25: =_xlfn.IFNA(S25&"#"&T25&"#"&VLOOKUP(U25,数组!$B:$C,2,0)&"#"&角色升星配方!V25,"") ->  | CB25: =_xlfn.IFNA(T25&"#"&U25&"#"&VLOOKUP(V25,数组!$B:$C,2,0)&"#"&角色升星配方!W25,"") ->  | CC25: =_xlfn.IFNA(U25&"#"&V25&"#"&VLOOKUP(W25,数组!$B:$C,2,0)&"#"&角色升星配方!X25,"") ->  | CD25: =_xlfn.IFNA(V25&"#"&W25&"#"&VLOOKUP(X25,数组!$B:$C,2,0)&"#"&角色升星配方!AC25,"") ->  | CE25: =_xlfn.IFNA(W25&"#"&X25&"#"&VLOOKUP(AC25,数组!$B:$C,2,0)&"#"&角色升星配方!AD25,"") ->  | CF25: =_xlfn.IFNA(X25&"#"&AC25&"#"&VLOOKUP(AD25,数组!$B:$C,2,0)&"#"&角色升星配方!AE25,"") ->  | CG25: =_xlfn.IFNA(AC25&"#"&AD25&"#"&VLOOKUP(AE25,数组!$B:$C,2,0)&"#"&角色升星配方!AF25,"") -> 6#1#3#1 | CH25: =_xlfn.IFNA(AD25&"#"&AE25&"#"&VLOOKUP(AF25,数组!$B:$C,2,0)&"#"&角色升星配方!AG25,"") ->  | CI25: =_xlfn.IFNA(AE25&"#"&AF25&"#"&VLOOKUP(AG25,数组!$B:$C,2,0)&"#"&角色升星配方!AH25,"") ->  | CJ25: =_xlfn.IFNA(AF25&"#"&AG25&"#"&VLOOKUP(AH25,数组!$B:$C,2,0)&"#"&角色升星配方!AI25,"") ->  | CK25: =_xlfn.IFNA(AG25&"#"&AH25&"#"&VLOOKUP(AI25,数组!$B:$C,2,0)&"#"&角色升星配方!AJ25,"") -> 6#2#43#1 | CL25: =_xlfn.IFNA(AH25&"#"&AI25&"#"&VLOOKUP(AJ25,数组!$B:$C,2,0)&"#"&角色升星配方!AK25,"") ->  | CM25: =_xlfn.IFNA(AI25&"#"&AJ25&"#"&VLOOKUP(AK25,数组!$B:$C,2,0)&"#"&角色升星配方!AL25,"") ->  | CN25: =_xlfn.IFNA(AJ25&"#"&AK25&"#"&VLOOKUP(AL25,数组!$B:$C,2,0)&"#"&角色升星配方!AM25,"") ->  | CO25: =_xlfn.IFNA(AK25&"#"&AL25&"#"&VLOOKUP(AM25,数组!$B:$C,2,0)&"#"&角色升星配方!AN25,"") -> 6#3#17#3 | CP25: =_xlfn.IFNA(AL25&"#"&AM25&"#"&VLOOKUP(AN25,数组!$B:$C,2,0)&"#"&角色升星配方!AO25,"") ->  | CQ25: =_xlfn.IFNA(AM25&"#"&AN25&"#"&VLOOKUP(AO25,数组!$B:$C,2,0)&"#"&角色升星配方!AP25,"") ->  | CR25: =_xlfn.IFNA(AN25&"#"&AO25&"#"&VLOOKUP(AP25,数组!$B:$C,2,0)&"#"&角色升星配方!AQ25,"") ->  | CS25: =_xlfn.IFNA(AO25&"#"&AP25&"#"&VLOOKUP(AQ25,数组!$B:$C,2,0)&"#"&角色升星配方!AR25,"") ->  | CT25: =_xlfn.IFNA(AP25&"#"&AQ25&"#"&VLOOKUP(AR25,数组!$B:$C,2,0)&"#"&角色升星配方!AS25,"") ->  | CU25: =_xlfn.IFNA(AQ25&"#"&AR25&"#"&VLOOKUP(AS25,数组!$B:$C,2,0)&"#"&角色升星配方!AT25,"") ->  | CV25: =_xlfn.IFNA(AR25&"#"&AS25&"#"&VLOOKUP(AT25,数组!$B:$C,2,0)&"#"&角色升星配方!AU25,"") ->  | CW25: =_xlfn.IFNA(AS25&"#"&AT25&"#"&VLOOKUP(AU25,数组!$B:$C,2,0)&"#"&角色升星配方!AV25,"") ->  | CX25: =_xlfn.IFNA(AT25&"#"&AU25&"#"&VLOOKUP(AV25,数组!$B:$C,2,0)&"#"&角色升星配方!AW25,"") ->  | CY25: =_xlfn.IFNA(AU25&"#"&AV25&"#"&VLOOKUP(AW25,数组!$B:$C,2,0)&"#"&角色升星配方!AX25,"") ->  | CZ25: =_xlfn.IFNA(AV25&"#"&AW25&"#"&VLOOKUP(AX25,数组!$B:$C,2,0)&"#"&角色升星配方!AY25,"") ->  | DA25: =_xlfn.IFNA(AW25&"#"&AX25&"#"&VLOOKUP(AY25,数组!$B:$C,2,0)&"#"&角色升星配方!AZ25,"") ->  | DB25: =_xlfn.IFNA(AX25&"#"&AY25&"#"&VLOOKUP(AZ25,数组!$B:$C,2,0)&"#"&角色升星配方!BM25,"") ->  | DE25: =_xlfn.IFNA(BA25&"#"&BB25&"#"&VLOOKUP(BC25,数组!$B:$C,2,0)&"#"&角色升星配方!BD25,"") ->  | DI25: =_xlfn.IFNA(BE25&"#"&BF25&"#"&VLOOKUP(BG25,数组!$B:$C,2,0)&"#"&角色升星配方!BH25,"") ->  | DM25: =_xlfn.IFNA(BI25&"#"&BJ25&"#"&VLOOKUP(BK25,数组!$B:$C,2,0)&"#"&角色升星配方!BL25,"") ->  | DN25: =[2]!SUMSTRING(BM25:DM25,"|") -> 
A26: 1 | B26: 10025 | C26: 1 | D26: 4 | E26: 5 | F26: 1 | G26: 4星同名 | H26: 3 | I26: 5 | J26: 2 | K26: 3星同系 | L26: 4 | M26: 5 | N26: 3 | O26: 4星同系 | P26: 4 | AC26: 6 | AD26: 1 | AE26: 5星同名 | AF26: 1 | AG26: 6 | AH26: 2 | AI26: 5星10041 | AJ26: 1 | AK26: 6 | AL26: 3 | AM26: 5星同系 | AN26: 3 | BM26: =_xlfn.IFNA(E26&"#"&F26&"#"&VLOOKUP(G26,数组!$B:$C,2,0)&"#"&角色升星配方!H26,"") -> 5#1#2#3 | BN26: =_xlfn.IFNA(F26&"#"&G26&"#"&VLOOKUP(H26,数组!$B:$C,2,0)&"#"&角色升星配方!I26,"") ->  | BO26: =_xlfn.IFNA(G26&"#"&H26&"#"&VLOOKUP(I26,数组!$B:$C,2,0)&"#"&角色升星配方!J26,"") ->  | BP26: =_xlfn.IFNA(H26&"#"&I26&"#"&VLOOKUP(J26,数组!$B:$C,2,0)&"#"&角色升星配方!K26,"") ->  | BQ26: =_xlfn.IFNA(I26&"#"&J26&"#"&VLOOKUP(K26,数组!$B:$C,2,0)&"#"&角色升星配方!L26,"") -> 5#2#15#4 | BR26: =_xlfn.IFNA(J26&"#"&K26&"#"&VLOOKUP(L26,数组!$B:$C,2,0)&"#"&角色升星配方!M26,"") ->  | BS26: =_xlfn.IFNA(K26&"#"&L26&"#"&VLOOKUP(M26,数组!$B:$C,2,0)&"#"&角色升星配方!N26,"") ->  | BT26: =_xlfn.IFNA(L26&"#"&M26&"#"&VLOOKUP(N26,数组!$B:$C,2,0)&"#"&角色升星配方!O26,"") ->  | BU26: =_xlfn.IFNA(M26&"#"&N26&"#"&VLOOKUP(O26,数组!$B:$C,2,0)&"#"&角色升星配方!P26,"") -> 5#3#16#4 | BV26: =_xlfn.IFNA(N26&"#"&O26&"#"&VLOOKUP(P26,数组!$B:$C,2,0)&"#"&角色升星配方!Q26,"") ->  | BW26: =_xlfn.IFNA(O26&"#"&P26&"#"&VLOOKUP(Q26,数组!$B:$C,2,0)&"#"&角色升星配方!R26,"") ->  | BX26: =_xlfn.IFNA(P26&"#"&Q26&"#"&VLOOKUP(R26,数组!$B:$C,2,0)&"#"&角色升星配方!S26,"") ->  | BY26: =_xlfn.IFNA(Q26&"#"&R26&"#"&VLOOKUP(S26,数组!$B:$C,2,0)&"#"&角色升星配方!T26,"") ->  | BZ26: =_xlfn.IFNA(R26&"#"&S26&"#"&VLOOKUP(T26,数组!$B:$C,2,0)&"#"&角色升星配方!U26,"") ->  | CA26: =_xlfn.IFNA(S26&"#"&T26&"#"&VLOOKUP(U26,数组!$B:$C,2,0)&"#"&角色升星配方!V26,"") ->  | CB26: =_xlfn.IFNA(T26&"#"&U26&"#"&VLOOKUP(V26,数组!$B:$C,2,0)&"#"&角色升星配方!W26,"") ->  | CC26: =_xlfn.IFNA(U26&"#"&V26&"#"&VLOOKUP(W26,数组!$B:$C,2,0)&"#"&角色升星配方!X26,"") ->  | CD26: =_xlfn.IFNA(V26&"#"&W26&"#"&VLOOKUP(X26,数组!$B:$C,2,0)&"#"&角色升星配方!AC26,"") ->  | CE26: =_xlfn.IFNA(W26&"#"&X26&"#"&VLOOKUP(AC26,数组!$B:$C,2,0)&"#"&角色升星配方!AD26,"") ->  | CF26: =_xlfn.IFNA(X26&"#"&AC26&"#"&VLOOKUP(AD26,数组!$B:$C,2,0)&"#"&角色升星配方!AE26,"") ->  | CG26: =_xlfn.IFNA(AC26&"#"&AD26&"#"&VLOOKUP(AE26,数组!$B:$C,2,0)&"#"&角色升星配方!AF26,"") -> 6#1#3#1 | CH26: =_xlfn.IFNA(AD26&"#"&AE26&"#"&VLOOKUP(AF26,数组!$B:$C,2,0)&"#"&角色升星配方!AG26,"") ->  | CI26: =_xlfn.IFNA(AE26&"#"&AF26&"#"&VLOOKUP(AG26,数组!$B:$C,2,0)&"#"&角色升星配方!AH26,"") ->  | CJ26: =_xlfn.IFNA(AF26&"#"&AG26&"#"&VLOOKUP(AH26,数组!$B:$C,2,0)&"#"&角色升星配方!AI26,"") ->  | CK26: =_xlfn.IFNA(AG26&"#"&AH26&"#"&VLOOKUP(AI26,数组!$B:$C,2,0)&"#"&角色升星配方!AJ26,"") -> 6#2#39#1 | CL26: =_xlfn.IFNA(AH26&"#"&AI26&"#"&VLOOKUP(AJ26,数组!$B:$C,2,0)&"#"&角色升星配方!AK26,"") ->  | CM26: =_xlfn.IFNA(AI26&"#"&AJ26&"#"&VLOOKUP(AK26,数组!$B:$C,2,0)&"#"&角色升星配方!AL26,"") ->  | CN26: =_xlfn.IFNA(AJ26&"#"&AK26&"#"&VLOOKUP(AL26,数组!$B:$C,2,0)&"#"&角色升星配方!AM26,"") ->  | CO26: =_xlfn.IFNA(AK26&"#"&AL26&"#"&VLOOKUP(AM26,数组!$B:$C,2,0)&"#"&角色升星配方!AN26,"") -> 6#3#17#3 | CP26: =_xlfn.IFNA(AL26&"#"&AM26&"#"&VLOOKUP(AN26,数组!$B:$C,2,0)&"#"&角色升星配方!AO26,"") ->  | CQ26: =_xlfn.IFNA(AM26&"#"&AN26&"#"&VLOOKUP(AO26,数组!$B:$C,2,0)&"#"&角色升星配方!AP26,"") ->  | CR26: =_xlfn.IFNA(AN26&"#"&AO26&"#"&VLOOKUP(AP26,数组!$B:$C,2,0)&"#"&角色升星配方!AQ26,"") ->  | CS26: =_xlfn.IFNA(AO26&"#"&AP26&"#"&VLOOKUP(AQ26,数组!$B:$C,2,0)&"#"&角色升星配方!AR26,"") ->  | CT26: =_xlfn.IFNA(AP26&"#"&AQ26&"#"&VLOOKUP(AR26,数组!$B:$C,2,0)&"#"&角色升星配方!AS26,"") ->  | CU26: =_xlfn.IFNA(AQ26&"#"&AR26&"#"&VLOOKUP(AS26,数组!$B:$C,2,0)&"#"&角色升星配方!AT26,"") ->  | CV26: =_xlfn.IFNA(AR26&"#"&AS26&"#"&VLOOKUP(AT26,数组!$B:$C,2,0)&"#"&角色升星配方!AU26,"") ->  | CW26: =_xlfn.IFNA(AS26&"#"&AT26&"#"&VLOOKUP(AU26,数组!$B:$C,2,0)&"#"&角色升星配方!AV26,"") ->  | CX26: =_xlfn.IFNA(AT26&"#"&AU26&"#"&VLOOKUP(AV26,数组!$B:$C,2,0)&"#"&角色升星配方!AW26,"") ->  | CY26: =_xlfn.IFNA(AU26&"#"&AV26&"#"&VLOOKUP(AW26,数组!$B:$C,2,0)&"#"&角色升星配方!AX26,"") ->  | CZ26: =_xlfn.IFNA(AV26&"#"&AW26&"#"&VLOOKUP(AX26,数组!$B:$C,2,0)&"#"&角色升星配方!AY26,"") ->  | DA26: =_xlfn.IFNA(AW26&"#"&AX26&"#"&VLOOKUP(AY26,数组!$B:$C,2,0)&"#"&角色升星配方!AZ26,"") ->  | DB26: =_xlfn.IFNA(AX26&"#"&AY26&"#"&VLOOKUP(AZ26,数组!$B:$C,2,0)&"#"&角色升星配方!BM26,"") ->  | DE26: =_xlfn.IFNA(BA26&"#"&BB26&"#"&VLOOKUP(BC26,数组!$B:$C,2,0)&"#"&角色升星配方!BD26,"") ->  | DI26: =_xlfn.IFNA(BE26&"#"&BF26&"#"&VLOOKUP(BG26,数组!$B:$C,2,0)&"#"&角色升星配方!BH26,"") ->  | DM26: =_xlfn.IFNA(BI26&"#"&BJ26&"#"&VLOOKUP(BK26,数组!$B:$C,2,0)&"#"&角色升星配方!BL26,"") ->  | DN26: =[2]!SUMSTRING(BM26:DM26,"|") -> 
A27: 5 | B27: 10026 | C27: 5 | D27: 4 | E27: 5 | F27: 1 | G27: 4星同名 | H27: 3 | I27: 5 | J27: 2 | K27: 3星同系 | L27: 4 | M27: 5 | N27: 3 | O27: 4星同系 | P27: 4 | AC27: 6 | AD27: 1 | AE27: 5星同名 | AF27: 1 | AG27: 6 | AH27: 2 | AI27: 5星10046 | AJ27: 1 | AK27: 6 | AL27: 3 | AM27: 5星同系 | AN27: 3 | AO27: 7 | AP27: 1 | AQ27: 5星同系 | AR27: 4 | AS27: 8 | AT27: 1 | AU27: 5星同系 | AV27: 3 | AW27: 8 | AX27: 2 | AY27: 6星同系 | AZ27: 1 | BA27: 9 | BB27: 1 | BC27: 5星同名 | BD27: 1 | BE27: 9 | BF27: 2 | BG27: 6星同系 | BH27: 1 | BI27: 9 | BJ27: 3 | BK27: 5星同系 | BL27: 2 | BM27: =_xlfn.IFNA(E27&"#"&F27&"#"&VLOOKUP(G27,数组!$B:$C,2,0)&"#"&角色升星配方!H27,"") -> 5#1#2#3 | BN27: =_xlfn.IFNA(F27&"#"&G27&"#"&VLOOKUP(H27,数组!$B:$C,2,0)&"#"&角色升星配方!I27,"") ->  | BO27: =_xlfn.IFNA(G27&"#"&H27&"#"&VLOOKUP(I27,数组!$B:$C,2,0)&"#"&角色升星配方!J27,"") ->  | BP27: =_xlfn.IFNA(H27&"#"&I27&"#"&VLOOKUP(J27,数组!$B:$C,2,0)&"#"&角色升星配方!K27,"") ->  | BQ27: =_xlfn.IFNA(I27&"#"&J27&"#"&VLOOKUP(K27,数组!$B:$C,2,0)&"#"&角色升星配方!L27,"") -> 5#2#15#4 | BR27: =_xlfn.IFNA(J27&"#"&K27&"#"&VLOOKUP(L27,数组!$B:$C,2,0)&"#"&角色升星配方!M27,"") ->  | BS27: =_xlfn.IFNA(K27&"#"&L27&"#"&VLOOKUP(M27,数组!$B:$C,2,0)&"#"&角色升星配方!N27,"") ->  | BT27: =_xlfn.IFNA(L27&"#"&M27&"#"&VLOOKUP(N27,数组!$B:$C,2,0)&"#"&角色升星配方!O27,"") ->  | BU27: =_xlfn.IFNA(M27&"#"&N27&"#"&VLOOKUP(O27,数组!$B:$C,2,0)&"#"&角色升星配方!P27,"") -> 5#3#16#4 | BV27: =_xlfn.IFNA(N27&"#"&O27&"#"&VLOOKUP(P27,数组!$B:$C,2,0)&"#"&角色升星配方!Q27,"") ->  | BW27: =_xlfn.IFNA(O27&"#"&P27&"#"&VLOOKUP(Q27,数组!$B:$C,2,0)&"#"&角色升星配方!R27,"") ->  | BX27: =_xlfn.IFNA(P27&"#"&Q27&"#"&VLOOKUP(R27,数组!$B:$C,2,0)&"#"&角色升星配方!S27,"") ->  | BY27: =_xlfn.IFNA(Q27&"#"&R27&"#"&VLOOKUP(S27,数组!$B:$C,2,0)&"#"&角色升星配方!T27,"") ->  | BZ27: =_xlfn.IFNA(R27&"#"&S27&"#"&VLOOKUP(T27,数组!$B:$C,2,0)&"#"&角色升星配方!U27,"") ->  | CA27: =_xlfn.IFNA(S27&"#"&T27&"#"&VLOOKUP(U27,数组!$B:$C,2,0)&"#"&角色升星配方!V27,"") ->  | CB27: =_xlfn.IFNA(T27&"#"&U27&"#"&VLOOKUP(V27,数组!$B:$C,2,0)&"#"&角色升星配方!W27,"") ->  | CC27: =_xlfn.IFNA(U27&"#"&V27&"#"&VLOOKUP(W27,数组!$B:$C,2,0)&"#"&角色升星配方!X27,"") ->  | CD27: =_xlfn.IFNA(V27&"#"&W27&"#"&VLOOKUP(X27,数组!$B:$C,2,0)&"#"&角色升星配方!AC27,"") ->  | CE27: =_xlfn.IFNA(W27&"#"&X27&"#"&VLOOKUP(AC27,数组!$B:$C,2,0)&"#"&角色升星配方!AD27,"") ->  | CF27: =_xlfn.IFNA(X27&"#"&AC27&"#"&VLOOKUP(AD27,数组!$B:$C,2,0)&"#"&角色升星配方!AE27,"") ->  | CG27: =_xlfn.IFNA(AC27&"#"&AD27&"#"&VLOOKUP(AE27,数组!$B:$C,2,0)&"#"&角色升星配方!AF27,"") -> 6#1#3#1 | CH27: =_xlfn.IFNA(AD27&"#"&AE27&"#"&VLOOKUP(AF27,数组!$B:$C,2,0)&"#"&角色升星配方!AG27,"") ->  | CI27: =_xlfn.IFNA(AE27&"#"&AF27&"#"&VLOOKUP(AG27,数组!$B:$C,2,0)&"#"&角色升星配方!AH27,"") ->  | CJ27: =_xlfn.IFNA(AF27&"#"&AG27&"#"&VLOOKUP(AH27,数组!$B:$C,2,0)&"#"&角色升星配方!AI27,"") ->  | CK27: =_xlfn.IFNA(AG27&"#"&AH27&"#"&VLOOKUP(AI27,数组!$B:$C,2,0)&"#"&角色升星配方!AJ27,"") -> 6#2#44#1 | CL27: =_xlfn.IFNA(AH27&"#"&AI27&"#"&VLOOKUP(AJ27,数组!$B:$C,2,0)&"#"&角色升星配方!AK27,"") ->  | CM27: =_xlfn.IFNA(AI27&"#"&AJ27&"#"&VLOOKUP(AK27,数组!$B:$C,2,0)&"#"&角色升星配方!AL27,"") ->  | CN27: =_xlfn.IFNA(AJ27&"#"&AK27&"#"&VLOOKUP(AL27,数组!$B:$C,2,0)&"#"&角色升星配方!AM27,"") ->  | CO27: =_xlfn.IFNA(AK27&"#"&AL27&"#"&VLOOKUP(AM27,数组!$B:$C,2,0)&"#"&角色升星配方!AN27,"") -> 6#3#17#3 | CP27: =_xlfn.IFNA(AL27&"#"&AM27&"#"&VLOOKUP(AN27,数组!$B:$C,2,0)&"#"&角色升星配方!AO27,"") ->  | CQ27: =_xlfn.IFNA(AM27&"#"&AN27&"#"&VLOOKUP(AO27,数组!$B:$C,2,0)&"#"&角色升星配方!AP27,"") ->  | CR27: =_xlfn.IFNA(AN27&"#"&AO27&"#"&VLOOKUP(AP27,数组!$B:$C,2,0)&"#"&角色升星配方!AQ27,"") ->  | CS27: =_xlfn.IFNA(AO27&"#"&AP27&"#"&VLOOKUP(AQ27,数组!$B:$C,2,0)&"#"&角色升星配方!AR27,"") -> 7#1#17#4 | CT27: =_xlfn.IFNA(AP27&"#"&AQ27&"#"&VLOOKUP(AR27,数组!$B:$C,2,0)&"#"&角色升星配方!AS27,"") ->  | CU27: =_xlfn.IFNA(AQ27&"#"&AR27&"#"&VLOOKUP(AS27,数组!$B:$C,2,0)&"#"&角色升星配方!AT27,"") ->  | CV27: =_xlfn.IFNA(AR27&"#"&AS27&"#"&VLOOKUP(AT27,数组!$B:$C,2,0)&"#"&角色升星配方!AU27,"") ->  | CW27: =_xlfn.IFNA(AS27&"#"&AT27&"#"&VLOOKUP(AU27,数组!$B:$C,2,0)&"#"&角色升星配方!AV27,"") -> 8#1#17#3 | CX27: =_xlfn.IFNA(AT27&"#"&AU27&"#"&VLOOKUP(AV27,数组!$B:$C,2,0)&"#"&角色升星配方!AW27,"") ->  | CY27: =_xlfn.IFNA(AU27&"#"&AV27&"#"&VLOOKUP(AW27,数组!$B:$C,2,0)&"#"&角色升星配方!AX27,"") ->  | CZ27: =_xlfn.IFNA(AV27&"#"&AW27&"#"&VLOOKUP(AX27,数组!$B:$C,2,0)&"#"&角色升星配方!AY27,"") ->  | DA27: =_xlfn.IFNA(AW27&"#"&AX27&"#"&VLOOKUP(AY27,数组!$B:$C,2,0)&"#"&角色升星配方!AZ27,"") -> 8#2#18#1 | DB27: =_xlfn.IFNA(AX27&"#"&AY27&"#"&VLOOKUP(AZ27,数组!$B:$C,2,0)&"#"&角色升星配方!BM27,"") ->  | DE27: =_xlfn.IFNA(BA27&"#"&BB27&"#"&VLOOKUP(BC27,数组!$B:$C,2,0)&"#"&角色升星配方!BD27,"") -> 9#1#3#1 | DI27: =_xlfn.IFNA(BE27&"#"&BF27&"#"&VLOOKUP(BG27,数组!$B:$C,2,0)&"#"&角色升星配方!BH27,"") -> 9#2#18#1 | DM27: =_xlfn.IFNA(BI27&"#"&BJ27&"#"&VLOOKUP(BK27,数组!$B:$C,2,0)&"#"&角色升星配方!BL27,"") -> 9#3#17#2 | DN27: =[2]!SUMSTRING(BM27:DM27,"|") -> 
A28: 5 | B28: 10027 | C28: 5 | D28: 4 | E28: 5 | F28: 1 | G28: 4星同名 | H28: 3 | I28: 5 | J28: 2 | K28: 3星同系 | L28: 4 | M28: 5 | N28: 3 | O28: 4星同系 | P28: 4 | AC28: 6 | AD28: 1 | AE28: 5星同名 | AF28: 1 | AG28: 6 | AH28: 2 | AI28: 5星10026 | AJ28: 1 | AK28: 6 | AL28: 3 | AM28: 5星同系 | AN28: 3 | AO28: 7 | AP28: 1 | AQ28: 5星同系 | AR28: 4 | AS28: 8 | AT28: 1 | AU28: 5星同系 | AV28: 3 | AW28: 8 | AX28: 2 | AY28: 6星同系 | AZ28: 1 | BA28: 9 | BB28: 1 | BC28: 5星同名 | BD28: 1 | BE28: 9 | BF28: 2 | BG28: 6星同系 | BH28: 1 | BI28: 9 | BJ28: 3 | BK28: 5星同系 | BL28: 2 | BM28: =_xlfn.IFNA(E28&"#"&F28&"#"&VLOOKUP(G28,数组!$B:$C,2,0)&"#"&角色升星配方!H28,"") -> 5#1#2#3 | BN28: =_xlfn.IFNA(F28&"#"&G28&"#"&VLOOKUP(H28,数组!$B:$C,2,0)&"#"&角色升星配方!I28,"") ->  | BO28: =_xlfn.IFNA(G28&"#"&H28&"#"&VLOOKUP(I28,数组!$B:$C,2,0)&"#"&角色升星配方!J28,"") ->  | BP28: =_xlfn.IFNA(H28&"#"&I28&"#"&VLOOKUP(J28,数组!$B:$C,2,0)&"#"&角色升星配方!K28,"") ->  | BQ28: =_xlfn.IFNA(I28&"#"&J28&"#"&VLOOKUP(K28,数组!$B:$C,2,0)&"#"&角色升星配方!L28,"") -> 5#2#15#4 | BR28: =_xlfn.IFNA(J28&"#"&K28&"#"&VLOOKUP(L28,数组!$B:$C,2,0)&"#"&角色升星配方!M28,"") ->  | BS28: =_xlfn.IFNA(K28&"#"&L28&"#"&VLOOKUP(M28,数组!$B:$C,2,0)&"#"&角色升星配方!N28,"") ->  | BT28: =_xlfn.IFNA(L28&"#"&M28&"#"&VLOOKUP(N28,数组!$B:$C,2,0)&"#"&角色升星配方!O28,"") ->  | BU28: =_xlfn.IFNA(M28&"#"&N28&"#"&VLOOKUP(O28,数组!$B:$C,2,0)&"#"&角色升星配方!P28,"") -> 5#3#16#4 | BV28: =_xlfn.IFNA(N28&"#"&O28&"#"&VLOOKUP(P28,数组!$B:$C,2,0)&"#"&角色升星配方!Q28,"") ->  | BW28: =_xlfn.IFNA(O28&"#"&P28&"#"&VLOOKUP(Q28,数组!$B:$C,2,0)&"#"&角色升星配方!R28,"") ->  | BX28: =_xlfn.IFNA(P28&"#"&Q28&"#"&VLOOKUP(R28,数组!$B:$C,2,0)&"#"&角色升星配方!S28,"") ->  | BY28: =_xlfn.IFNA(Q28&"#"&R28&"#"&VLOOKUP(S28,数组!$B:$C,2,0)&"#"&角色升星配方!T28,"") ->  | BZ28: =_xlfn.IFNA(R28&"#"&S28&"#"&VLOOKUP(T28,数组!$B:$C,2,0)&"#"&角色升星配方!U28,"") ->  | CA28: =_xlfn.IFNA(S28&"#"&T28&"#"&VLOOKUP(U28,数组!$B:$C,2,0)&"#"&角色升星配方!V28,"") ->  | CB28: =_xlfn.IFNA(T28&"#"&U28&"#"&VLOOKUP(V28,数组!$B:$C,2,0)&"#"&角色升星配方!W28,"") ->  | CC28: =_xlfn.IFNA(U28&"#"&V28&"#"&VLOOKUP(W28,数组!$B:$C,2,0)&"#"&角色升星配方!X28,"") ->  | CD28: =_xlfn.IFNA(V28&"#"&W28&"#"&VLOOKUP(X28,数组!$B:$C,2,0)&"#"&角色升星配方!AC28,"") ->  | CE28: =_xlfn.IFNA(W28&"#"&X28&"#"&VLOOKUP(AC28,数组!$B:$C,2,0)&"#"&角色升星配方!AD28,"") ->  | CF28: =_xlfn.IFNA(X28&"#"&AC28&"#"&VLOOKUP(AD28,数组!$B:$C,2,0)&"#"&角色升星配方!AE28,"") ->  | CG28: =_xlfn.IFNA(AC28&"#"&AD28&"#"&VLOOKUP(AE28,数组!$B:$C,2,0)&"#"&角色升星配方!AF28,"") -> 6#1#3#1 | CH28: =_xlfn.IFNA(AD28&"#"&AE28&"#"&VLOOKUP(AF28,数组!$B:$C,2,0)&"#"&角色升星配方!AG28,"") ->  | CI28: =_xlfn.IFNA(AE28&"#"&AF28&"#"&VLOOKUP(AG28,数组!$B:$C,2,0)&"#"&角色升星配方!AH28,"") ->  | CJ28: =_xlfn.IFNA(AF28&"#"&AG28&"#"&VLOOKUP(AH28,数组!$B:$C,2,0)&"#"&角色升星配方!AI28,"") ->  | CK28: =_xlfn.IFNA(AG28&"#"&AH28&"#"&VLOOKUP(AI28,数组!$B:$C,2,0)&"#"&角色升星配方!AJ28,"") -> 6#2#24#1 | CL28: =_xlfn.IFNA(AH28&"#"&AI28&"#"&VLOOKUP(AJ28,数组!$B:$C,2,0)&"#"&角色升星配方!AK28,"") ->  | CM28: =_xlfn.IFNA(AI28&"#"&AJ28&"#"&VLOOKUP(AK28,数组!$B:$C,2,0)&"#"&角色升星配方!AL28,"") ->  | CN28: =_xlfn.IFNA(AJ28&"#"&AK28&"#"&VLOOKUP(AL28,数组!$B:$C,2,0)&"#"&角色升星配方!AM28,"") ->  | CO28: =_xlfn.IFNA(AK28&"#"&AL28&"#"&VLOOKUP(AM28,数组!$B:$C,2,0)&"#"&角色升星配方!AN28,"") -> 6#3#17#3 | CP28: =_xlfn.IFNA(AL28&"#"&AM28&"#"&VLOOKUP(AN28,数组!$B:$C,2,0)&"#"&角色升星配方!AO28,"") ->  | CQ28: =_xlfn.IFNA(AM28&"#"&AN28&"#"&VLOOKUP(AO28,数组!$B:$C,2,0)&"#"&角色升星配方!AP28,"") ->  | CR28: =_xlfn.IFNA(AN28&"#"&AO28&"#"&VLOOKUP(AP28,数组!$B:$C,2,0)&"#"&角色升星配方!AQ28,"") ->  | CS28: =_xlfn.IFNA(AO28&"#"&AP28&"#"&VLOOKUP(AQ28,数组!$B:$C,2,0)&"#"&角色升星配方!AR28,"") -> 7#1#17#4 | CT28: =_xlfn.IFNA(AP28&"#"&AQ28&"#"&VLOOKUP(AR28,数组!$B:$C,2,0)&"#"&角色升星配方!AS28,"") ->  | CU28: =_xlfn.IFNA(AQ28&"#"&AR28&"#"&VLOOKUP(AS28,数组!$B:$C,2,0)&"#"&角色升星配方!AT28,"") ->  | CV28: =_xlfn.IFNA(AR28&"#"&AS28&"#"&VLOOKUP(AT28,数组!$B:$C,2,0)&"#"&角色升星配方!AU28,"") ->  | CW28: =_xlfn.IFNA(AS28&"#"&AT28&"#"&VLOOKUP(AU28,数组!$B:$C,2,0)&"#"&角色升星配方!AV28,"") -> 8#1#17#3 | CX28: =_xlfn.IFNA(AT28&"#"&AU28&"#"&VLOOKUP(AV28,数组!$B:$C,2,0)&"#"&角色升星配方!AW28,"") ->  | CY28: =_xlfn.IFNA(AU28&"#"&AV28&"#"&VLOOKUP(AW28,数组!$B:$C,2,0)&"#"&角色升星配方!AX28,"") ->  | CZ28: =_xlfn.IFNA(AV28&"#"&AW28&"#"&VLOOKUP(AX28,数组!$B:$C,2,0)&"#"&角色升星配方!AY28,"") ->  | DA28: =_xlfn.IFNA(AW28&"#"&AX28&"#"&VLOOKUP(AY28,数组!$B:$C,2,0)&"#"&角色升星配方!AZ28,"") -> 8#2#18#1 | DB28: =_xlfn.IFNA(AX28&"#"&AY28&"#"&VLOOKUP(AZ28,数组!$B:$C,2,0)&"#"&角色升星配方!BM28,"") ->  | DE28: =_xlfn.IFNA(BA28&"#"&BB28&"#"&VLOOKUP(BC28,数组!$B:$C,2,0)&"#"&角色升星配方!BD28,"") -> 9#1#3#1 | DI28: =_xlfn.IFNA(BE28&"#"&BF28&"#"&VLOOKUP(BG28,数组!$B:$C,2,0)&"#"&角色升星配方!BH28,"") -> 9#2#18#1 | DM28: =_xlfn.IFNA(BI28&"#"&BJ28&"#"&VLOOKUP(BK28,数组!$B:$C,2,0)&"#"&角色升星配方!BL28,"") -> 9#3#17#2 | DN28: =[2]!SUMSTRING(BM28:DM28,"|") -> 
A29: 5 | B29: 10028 | C29: 5 | D29: 4 | E29: 5 | F29: 1 | G29: 4星同名 | H29: 3 | I29: 5 | J29: 2 | K29: 3星同系 | L29: 4 | M29: 5 | N29: 3 | O29: 4星同系 | P29: 4 | AC29: 6 | AD29: 1 | AE29: 5星同名 | AF29: 1 | AG29: 6 | AH29: 2 | AI29: 5星10027 | AJ29: 1 | AK29: 6 | AL29: 3 | AM29: 5星同系 | AN29: 3 | AO29: 7 | AP29: 1 | AQ29: 5星同系 | AR29: 4 | AS29: 8 | AT29: 1 | AU29: 5星同系 | AV29: 3 | AW29: 8 | AX29: 2 | AY29: 6星同系 | AZ29: 1 | BA29: 9 | BB29: 1 | BC29: 5星同名 | BD29: 1 | BE29: 9 | BF29: 2 | BG29: 6星同系 | BH29: 1 | BI29: 9 | BJ29: 3 | BK29: 5星同系 | BL29: 2 | BM29: =_xlfn.IFNA(E29&"#"&F29&"#"&VLOOKUP(G29,数组!$B:$C,2,0)&"#"&角色升星配方!H29,"") -> 5#1#2#3 | BN29: =_xlfn.IFNA(F29&"#"&G29&"#"&VLOOKUP(H29,数组!$B:$C,2,0)&"#"&角色升星配方!I29,"") ->  | BO29: =_xlfn.IFNA(G29&"#"&H29&"#"&VLOOKUP(I29,数组!$B:$C,2,0)&"#"&角色升星配方!J29,"") ->  | BP29: =_xlfn.IFNA(H29&"#"&I29&"#"&VLOOKUP(J29,数组!$B:$C,2,0)&"#"&角色升星配方!K29,"") ->  | BQ29: =_xlfn.IFNA(I29&"#"&J29&"#"&VLOOKUP(K29,数组!$B:$C,2,0)&"#"&角色升星配方!L29,"") -> 5#2#15#4 | BR29: =_xlfn.IFNA(J29&"#"&K29&"#"&VLOOKUP(L29,数组!$B:$C,2,0)&"#"&角色升星配方!M29,"") ->  | BS29: =_xlfn.IFNA(K29&"#"&L29&"#"&VLOOKUP(M29,数组!$B:$C,2,0)&"#"&角色升星配方!N29,"") ->  | BT29: =_xlfn.IFNA(L29&"#"&M29&"#"&VLOOKUP(N29,数组!$B:$C,2,0)&"#"&角色升星配方!O29,"") ->  | BU29: =_xlfn.IFNA(M29&"#"&N29&"#"&VLOOKUP(O29,数组!$B:$C,2,0)&"#"&角色升星配方!P29,"") -> 5#3#16#4 | BV29: =_xlfn.IFNA(N29&"#"&O29&"#"&VLOOKUP(P29,数组!$B:$C,2,0)&"#"&角色升星配方!Q29,"") ->  | BW29: =_xlfn.IFNA(O29&"#"&P29&"#"&VLOOKUP(Q29,数组!$B:$C,2,0)&"#"&角色升星配方!R29,"") ->  | BX29: =_xlfn.IFNA(P29&"#"&Q29&"#"&VLOOKUP(R29,数组!$B:$C,2,0)&"#"&角色升星配方!S29,"") ->  | BY29: =_xlfn.IFNA(Q29&"#"&R29&"#"&VLOOKUP(S29,数组!$B:$C,2,0)&"#"&角色升星配方!T29,"") ->  | BZ29: =_xlfn.IFNA(R29&"#"&S29&"#"&VLOOKUP(T29,数组!$B:$C,2,0)&"#"&角色升星配方!U29,"") ->  | CA29: =_xlfn.IFNA(S29&"#"&T29&"#"&VLOOKUP(U29,数组!$B:$C,2,0)&"#"&角色升星配方!V29,"") ->  | CB29: =_xlfn.IFNA(T29&"#"&U29&"#"&VLOOKUP(V29,数组!$B:$C,2,0)&"#"&角色升星配方!W29,"") ->  | CC29: =_xlfn.IFNA(U29&"#"&V29&"#"&VLOOKUP(W29,数组!$B:$C,2,0)&"#"&角色升星配方!X29,"") ->  | CD29: =_xlfn.IFNA(V29&"#"&W29&"#"&VLOOKUP(X29,数组!$B:$C,2,0)&"#"&角色升星配方!AC29,"") ->  | CE29: =_xlfn.IFNA(W29&"#"&X29&"#"&VLOOKUP(AC29,数组!$B:$C,2,0)&"#"&角色升星配方!AD29,"") ->  | CF29: =_xlfn.IFNA(X29&"#"&AC29&"#"&VLOOKUP(AD29,数组!$B:$C,2,0)&"#"&角色升星配方!AE29,"") ->  | CG29: =_xlfn.IFNA(AC29&"#"&AD29&"#"&VLOOKUP(AE29,数组!$B:$C,2,0)&"#"&角色升星配方!AF29,"") -> 6#1#3#1 | CH29: =_xlfn.IFNA(AD29&"#"&AE29&"#"&VLOOKUP(AF29,数组!$B:$C,2,0)&"#"&角色升星配方!AG29,"") ->  | CI29: =_xlfn.IFNA(AE29&"#"&AF29&"#"&VLOOKUP(AG29,数组!$B:$C,2,0)&"#"&角色升星配方!AH29,"") ->  | CJ29: =_xlfn.IFNA(AF29&"#"&AG29&"#"&VLOOKUP(AH29,数组!$B:$C,2,0)&"#"&角色升星配方!AI29,"") ->  | CK29: =_xlfn.IFNA(AG29&"#"&AH29&"#"&VLOOKUP(AI29,数组!$B:$C,2,0)&"#"&角色升星配方!AJ29,"") -> 6#2#25#1 | CL29: =_xlfn.IFNA(AH29&"#"&AI29&"#"&VLOOKUP(AJ29,数组!$B:$C,2,0)&"#"&角色升星配方!AK29,"") ->  | CM29: =_xlfn.IFNA(AI29&"#"&AJ29&"#"&VLOOKUP(AK29,数组!$B:$C,2,0)&"#"&角色升星配方!AL29,"") ->  | CN29: =_xlfn.IFNA(AJ29&"#"&AK29&"#"&VLOOKUP(AL29,数组!$B:$C,2,0)&"#"&角色升星配方!AM29,"") ->  | CO29: =_xlfn.IFNA(AK29&"#"&AL29&"#"&VLOOKUP(AM29,数组!$B:$C,2,0)&"#"&角色升星配方!AN29,"") -> 6#3#17#3 | CP29: =_xlfn.IFNA(AL29&"#"&AM29&"#"&VLOOKUP(AN29,数组!$B:$C,2,0)&"#"&角色升星配方!AO29,"") ->  | CQ29: =_xlfn.IFNA(AM29&"#"&AN29&"#"&VLOOKUP(AO29,数组!$B:$C,2,0)&"#"&角色升星配方!AP29,"") ->  | CR29: =_xlfn.IFNA(AN29&"#"&AO29&"#"&VLOOKUP(AP29,数组!$B:$C,2,0)&"#"&角色升星配方!AQ29,"") ->  | CS29: =_xlfn.IFNA(AO29&"#"&AP29&"#"&VLOOKUP(AQ29,数组!$B:$C,2,0)&"#"&角色升星配方!AR29,"") -> 7#1#17#4 | CT29: =_xlfn.IFNA(AP29&"#"&AQ29&"#"&VLOOKUP(AR29,数组!$B:$C,2,0)&"#"&角色升星配方!AS29,"") ->  | CU29: =_xlfn.IFNA(AQ29&"#"&AR29&"#"&VLOOKUP(AS29,数组!$B:$C,2,0)&"#"&角色升星配方!AT29,"") ->  | CV29: =_xlfn.IFNA(AR29&"#"&AS29&"#"&VLOOKUP(AT29,数组!$B:$C,2,0)&"#"&角色升星配方!AU29,"") ->  | CW29: =_xlfn.IFNA(AS29&"#"&AT29&"#"&VLOOKUP(AU29,数组!$B:$C,2,0)&"#"&角色升星配方!AV29,"") -> 8#1#17#3 | CX29: =_xlfn.IFNA(AT29&"#"&AU29&"#"&VLOOKUP(AV29,数组!$B:$C,2,0)&"#"&角色升星配方!AW29,"") ->  | CY29: =_xlfn.IFNA(AU29&"#"&AV29&"#"&VLOOKUP(AW29,数组!$B:$C,2,0)&"#"&角色升星配方!AX29,"") ->  | CZ29: =_xlfn.IFNA(AV29&"#"&AW29&"#"&VLOOKUP(AX29,数组!$B:$C,2,0)&"#"&角色升星配方!AY29,"") ->  | DA29: =_xlfn.IFNA(AW29&"#"&AX29&"#"&VLOOKUP(AY29,数组!$B:$C,2,0)&"#"&角色升星配方!AZ29,"") -> 8#2#18#1 | DB29: =_xlfn.IFNA(AX29&"#"&AY29&"#"&VLOOKUP(AZ29,数组!$B:$C,2,0)&"#"&角色升星配方!BM29,"") ->  | DE29: =_xlfn.IFNA(BA29&"#"&BB29&"#"&VLOOKUP(BC29,数组!$B:$C,2,0)&"#"&角色升星配方!BD29,"") -> 9#1#3#1 | DI29: =_xlfn.IFNA(BE29&"#"&BF29&"#"&VLOOKUP(BG29,数组!$B:$C,2,0)&"#"&角色升星配方!BH29,"") -> 9#2#18#1 | DM29: =_xlfn.IFNA(BI29&"#"&BJ29&"#"&VLOOKUP(BK29,数组!$B:$C,2,0)&"#"&角色升星配方!BL29,"") -> 9#3#17#2 | DN29: =[2]!SUMSTRING(BM29:DM29,"|") -> 
A30: 4 | B30: 10029 | C30: 4 | D30: 4 | E30: 5 | F30: 1 | G30: 4星同名 | H30: 3 | I30: 5 | J30: 2 | K30: 3星同系 | L30: 4 | M30: 5 | N30: 3 | O30: 4星同系 | P30: 4 | AC30: 6 | AD30: 1 | AE30: 5星同名 | AF30: 1 | AG30: 6 | AH30: 2 | AI30: 5星10032 | AJ30: 1 | AK30: 6 | AL30: 3 | AM30: 5星同系 | AN30: 3 | BM30: =_xlfn.IFNA(E30&"#"&F30&"#"&VLOOKUP(G30,数组!$B:$C,2,0)&"#"&角色升星配方!H30,"") -> 5#1#2#3 | BN30: =_xlfn.IFNA(F30&"#"&G30&"#"&VLOOKUP(H30,数组!$B:$C,2,0)&"#"&角色升星配方!I30,"") ->  | BO30: =_xlfn.IFNA(G30&"#"&H30&"#"&VLOOKUP(I30,数组!$B:$C,2,0)&"#"&角色升星配方!J30,"") ->  | BP30: =_xlfn.IFNA(H30&"#"&I30&"#"&VLOOKUP(J30,数组!$B:$C,2,0)&"#"&角色升星配方!K30,"") ->  | BQ30: =_xlfn.IFNA(I30&"#"&J30&"#"&VLOOKUP(K30,数组!$B:$C,2,0)&"#"&角色升星配方!L30,"") -> 5#2#15#4 | BR30: =_xlfn.IFNA(J30&"#"&K30&"#"&VLOOKUP(L30,数组!$B:$C,2,0)&"#"&角色升星配方!M30,"") ->  | BS30: =_xlfn.IFNA(K30&"#"&L30&"#"&VLOOKUP(M30,数组!$B:$C,2,0)&"#"&角色升星配方!N30,"") ->  | BT30: =_xlfn.IFNA(L30&"#"&M30&"#"&VLOOKUP(N30,数组!$B:$C,2,0)&"#"&角色升星配方!O30,"") ->  | BU30: =_xlfn.IFNA(M30&"#"&N30&"#"&VLOOKUP(O30,数组!$B:$C,2,0)&"#"&角色升星配方!P30,"") -> 5#3#16#4 | BV30: =_xlfn.IFNA(N30&"#"&O30&"#"&VLOOKUP(P30,数组!$B:$C,2,0)&"#"&角色升星配方!Q30,"") ->  | BW30: =_xlfn.IFNA(O30&"#"&P30&"#"&VLOOKUP(Q30,数组!$B:$C,2,0)&"#"&角色升星配方!R30,"") ->  | BX30: =_xlfn.IFNA(P30&"#"&Q30&"#"&VLOOKUP(R30,数组!$B:$C,2,0)&"#"&角色升星配方!S30,"") ->  | BY30: =_xlfn.IFNA(Q30&"#"&R30&"#"&VLOOKUP(S30,数组!$B:$C,2,0)&"#"&角色升星配方!T30,"") ->  | BZ30: =_xlfn.IFNA(R30&"#"&S30&"#"&VLOOKUP(T30,数组!$B:$C,2,0)&"#"&角色升星配方!U30,"") ->  | CA30: =_xlfn.IFNA(S30&"#"&T30&"#"&VLOOKUP(U30,数组!$B:$C,2,0)&"#"&角色升星配方!V30,"") ->  | CB30: =_xlfn.IFNA(T30&"#"&U30&"#"&VLOOKUP(V30,数组!$B:$C,2,0)&"#"&角色升星配方!W30,"") ->  | CC30: =_xlfn.IFNA(U30&"#"&V30&"#"&VLOOKUP(W30,数组!$B:$C,2,0)&"#"&角色升星配方!X30,"") ->  | CD30: =_xlfn.IFNA(V30&"#"&W30&"#"&VLOOKUP(X30,数组!$B:$C,2,0)&"#"&角色升星配方!AC30,"") ->  | CE30: =_xlfn.IFNA(W30&"#"&X30&"#"&VLOOKUP(AC30,数组!$B:$C,2,0)&"#"&角色升星配方!AD30,"") ->  | CF30: =_xlfn.IFNA(X30&"#"&AC30&"#"&VLOOKUP(AD30,数组!$B:$C,2,0)&"#"&角色升星配方!AE30,"") ->  | CG30: =_xlfn.IFNA(AC30&"#"&AD30&"#"&VLOOKUP(AE30,数组!$B:$C,2,0)&"#"&角色升星配方!AF30,"") -> 6#1#3#1 | CH30: =_xlfn.IFNA(AD30&"#"&AE30&"#"&VLOOKUP(AF30,数组!$B:$C,2,0)&"#"&角色升星配方!AG30,"") ->  | CI30: =_xlfn.IFNA(AE30&"#"&AF30&"#"&VLOOKUP(AG30,数组!$B:$C,2,0)&"#"&角色升星配方!AH30,"") ->  | CJ30: =_xlfn.IFNA(AF30&"#"&AG30&"#"&VLOOKUP(AH30,数组!$B:$C,2,0)&"#"&角色升星配方!AI30,"") ->  | CK30: =_xlfn.IFNA(AG30&"#"&AH30&"#"&VLOOKUP(AI30,数组!$B:$C,2,0)&"#"&角色升星配方!AJ30,"") -> 6#2#30#1 | CL30: =_xlfn.IFNA(AH30&"#"&AI30&"#"&VLOOKUP(AJ30,数组!$B:$C,2,0)&"#"&角色升星配方!AK30,"") ->  | CM30: =_xlfn.IFNA(AI30&"#"&AJ30&"#"&VLOOKUP(AK30,数组!$B:$C,2,0)&"#"&角色升星配方!AL30,"") ->  | CN30: =_xlfn.IFNA(AJ30&"#"&AK30&"#"&VLOOKUP(AL30,数组!$B:$C,2,0)&"#"&角色升星配方!AM30,"") ->  | CO30: =_xlfn.IFNA(AK30&"#"&AL30&"#"&VLOOKUP(AM30,数组!$B:$C,2,0)&"#"&角色升星配方!AN30,"") -> 6#3#17#3 | CP30: =_xlfn.IFNA(AL30&"#"&AM30&"#"&VLOOKUP(AN30,数组!$B:$C,2,0)&"#"&角色升星配方!AO30,"") ->  | CQ30: =_xlfn.IFNA(AM30&"#"&AN30&"#"&VLOOKUP(AO30,数组!$B:$C,2,0)&"#"&角色升星配方!AP30,"") ->  | CR30: =_xlfn.IFNA(AN30&"#"&AO30&"#"&VLOOKUP(AP30,数组!$B:$C,2,0)&"#"&角色升星配方!AQ30,"") ->  | CS30: =_xlfn.IFNA(AO30&"#"&AP30&"#"&VLOOKUP(AQ30,数组!$B:$C,2,0)&"#"&角色升星配方!AR30,"") ->  | CT30: =_xlfn.IFNA(AP30&"#"&AQ30&"#"&VLOOKUP(AR30,数组!$B:$C,2,0)&"#"&角色升星配方!AS30,"") ->  | CU30: =_xlfn.IFNA(AQ30&"#"&AR30&"#"&VLOOKUP(AS30,数组!$B:$C,2,0)&"#"&角色升星配方!AT30,"") ->  | CV30: =_xlfn.IFNA(AR30&"#"&AS30&"#"&VLOOKUP(AT30,数组!$B:$C,2,0)&"#"&角色升星配方!AU30,"") ->  | CW30: =_xlfn.IFNA(AS30&"#"&AT30&"#"&VLOOKUP(AU30,数组!$B:$C,2,0)&"#"&角色升星配方!AV30,"") ->  | CX30: =_xlfn.IFNA(AT30&"#"&AU30&"#"&VLOOKUP(AV30,数组!$B:$C,2,0)&"#"&角色升星配方!AW30,"") ->  | CY30: =_xlfn.IFNA(AU30&"#"&AV30&"#"&VLOOKUP(AW30,数组!$B:$C,2,0)&"#"&角色升星配方!AX30,"") ->  | CZ30: =_xlfn.IFNA(AV30&"#"&AW30&"#"&VLOOKUP(AX30,数组!$B:$C,2,0)&"#"&角色升星配方!AY30,"") ->  | DA30: =_xlfn.IFNA(AW30&"#"&AX30&"#"&VLOOKUP(AY30,数组!$B:$C,2,0)&"#"&角色升星配方!AZ30,"") ->  | DB30: =_xlfn.IFNA(AX30&"#"&AY30&"#"&VLOOKUP(AZ30,数组!$B:$C,2,0)&"#"&角色升星配方!BM30,"") ->  | DE30: =_xlfn.IFNA(BA30&"#"&BB30&"#"&VLOOKUP(BC30,数组!$B:$C,2,0)&"#"&角色升星配方!BD30,"") ->  | DI30: =_xlfn.IFNA(BE30&"#"&BF30&"#"&VLOOKUP(BG30,数组!$B:$C,2,0)&"#"&角色升星配方!BH30,"") ->  | DM30: =_xlfn.IFNA(BI30&"#"&BJ30&"#"&VLOOKUP(BK30,数组!$B:$C,2,0)&"#"&角色升星配方!BL30,"") ->  | DN30: =[2]!SUMSTRING(BM30:DM30,"|") -> 
A31: 2 | B31: 10030 | C31: 2 | D31: 4 | E31: 5 | F31: 1 | G31: 4星同名 | H31: 3 | I31: 5 | J31: 2 | K31: 3星同系 | L31: 4 | M31: 5 | N31: 3 | O31: 4星同系 | P31: 4 | AC31: 6 | AD31: 1 | AE31: 5星同名 | AF31: 1 | AG31: 6 | AH31: 2 | AI31: 5星10024 | AJ31: 1 | AK31: 6 | AL31: 3 | AM31: 5星同系 | AN31: 3 | BM31: =_xlfn.IFNA(E31&"#"&F31&"#"&VLOOKUP(G31,数组!$B:$C,2,0)&"#"&角色升星配方!H31,"") -> 5#1#2#3 | BN31: =_xlfn.IFNA(F31&"#"&G31&"#"&VLOOKUP(H31,数组!$B:$C,2,0)&"#"&角色升星配方!I31,"") ->  | BO31: =_xlfn.IFNA(G31&"#"&H31&"#"&VLOOKUP(I31,数组!$B:$C,2,0)&"#"&角色升星配方!J31,"") ->  | BP31: =_xlfn.IFNA(H31&"#"&I31&"#"&VLOOKUP(J31,数组!$B:$C,2,0)&"#"&角色升星配方!K31,"") ->  | BQ31: =_xlfn.IFNA(I31&"#"&J31&"#"&VLOOKUP(K31,数组!$B:$C,2,0)&"#"&角色升星配方!L31,"") -> 5#2#15#4 | BR31: =_xlfn.IFNA(J31&"#"&K31&"#"&VLOOKUP(L31,数组!$B:$C,2,0)&"#"&角色升星配方!M31,"") ->  | BS31: =_xlfn.IFNA(K31&"#"&L31&"#"&VLOOKUP(M31,数组!$B:$C,2,0)&"#"&角色升星配方!N31,"") ->  | BT31: =_xlfn.IFNA(L31&"#"&M31&"#"&VLOOKUP(N31,数组!$B:$C,2,0)&"#"&角色升星配方!O31,"") ->  | BU31: =_xlfn.IFNA(M31&"#"&N31&"#"&VLOOKUP(O31,数组!$B:$C,2,0)&"#"&角色升星配方!P31,"") -> 5#3#16#4 | BV31: =_xlfn.IFNA(N31&"#"&O31&"#"&VLOOKUP(P31,数组!$B:$C,2,0)&"#"&角色升星配方!Q31,"") ->  | BW31: =_xlfn.IFNA(O31&"#"&P31&"#"&VLOOKUP(Q31,数组!$B:$C,2,0)&"#"&角色升星配方!R31,"") ->  | BX31: =_xlfn.IFNA(P31&"#"&Q31&"#"&VLOOKUP(R31,数组!$B:$C,2,0)&"#"&角色升星配方!S31,"") ->  | BY31: =_xlfn.IFNA(Q31&"#"&R31&"#"&VLOOKUP(S31,数组!$B:$C,2,0)&"#"&角色升星配方!T31,"") ->  | BZ31: =_xlfn.IFNA(R31&"#"&S31&"#"&VLOOKUP(T31,数组!$B:$C,2,0)&"#"&角色升星配方!U31,"") ->  | CA31: =_xlfn.IFNA(S31&"#"&T31&"#"&VLOOKUP(U31,数组!$B:$C,2,0)&"#"&角色升星配方!V31,"") ->  | CB31: =_xlfn.IFNA(T31&"#"&U31&"#"&VLOOKUP(V31,数组!$B:$C,2,0)&"#"&角色升星配方!W31,"") ->  | CC31: =_xlfn.IFNA(U31&"#"&V31&"#"&VLOOKUP(W31,数组!$B:$C,2,0)&"#"&角色升星配方!X31,"") ->  | CD31: =_xlfn.IFNA(V31&"#"&W31&"#"&VLOOKUP(X31,数组!$B:$C,2,0)&"#"&角色升星配方!AC31,"") ->  | CE31: =_xlfn.IFNA(W31&"#"&X31&"#"&VLOOKUP(AC31,数组!$B:$C,2,0)&"#"&角色升星配方!AD31,"") ->  | CF31: =_xlfn.IFNA(X31&"#"&AC31&"#"&VLOOKUP(AD31,数组!$B:$C,2,0)&"#"&角色升星配方!AE31,"") ->  | CG31: =_xlfn.IFNA(AC31&"#"&AD31&"#"&VLOOKUP(AE31,数组!$B:$C,2,0)&"#"&角色升星配方!AF31,"") -> 6#1#3#1 | CH31: =_xlfn.IFNA(AD31&"#"&AE31&"#"&VLOOKUP(AF31,数组!$B:$C,2,0)&"#"&角色升星配方!AG31,"") ->  | CI31: =_xlfn.IFNA(AE31&"#"&AF31&"#"&VLOOKUP(AG31,数组!$B:$C,2,0)&"#"&角色升星配方!AH31,"") ->  | CJ31: =_xlfn.IFNA(AF31&"#"&AG31&"#"&VLOOKUP(AH31,数组!$B:$C,2,0)&"#"&角色升星配方!AI31,"") ->  | CK31: =_xlfn.IFNA(AG31&"#"&AH31&"#"&VLOOKUP(AI31,数组!$B:$C,2,0)&"#"&角色升星配方!AJ31,"") -> 6#2#22#1 | CL31: =_xlfn.IFNA(AH31&"#"&AI31&"#"&VLOOKUP(AJ31,数组!$B:$C,2,0)&"#"&角色升星配方!AK31,"") ->  | CM31: =_xlfn.IFNA(AI31&"#"&AJ31&"#"&VLOOKUP(AK31,数组!$B:$C,2,0)&"#"&角色升星配方!AL31,"") ->  | CN31: =_xlfn.IFNA(AJ31&"#"&AK31&"#"&VLOOKUP(AL31,数组!$B:$C,2,0)&"#"&角色升星配方!AM31,"") ->  | CO31: =_xlfn.IFNA(AK31&"#"&AL31&"#"&VLOOKUP(AM31,数组!$B:$C,2,0)&"#"&角色升星配方!AN31,"") -> 6#3#17#3 | CP31: =_xlfn.IFNA(AL31&"#"&AM31&"#"&VLOOKUP(AN31,数组!$B:$C,2,0)&"#"&角色升星配方!AO31,"") ->  | CQ31: =_xlfn.IFNA(AM31&"#"&AN31&"#"&VLOOKUP(AO31,数组!$B:$C,2,0)&"#"&角色升星配方!AP31,"") ->  | CR31: =_xlfn.IFNA(AN31&"#"&AO31&"#"&VLOOKUP(AP31,数组!$B:$C,2,0)&"#"&角色升星配方!AQ31,"") ->  | CS31: =_xlfn.IFNA(AO31&"#"&AP31&"#"&VLOOKUP(AQ31,数组!$B:$C,2,0)&"#"&角色升星配方!AR31,"") ->  | CT31: =_xlfn.IFNA(AP31&"#"&AQ31&"#"&VLOOKUP(AR31,数组!$B:$C,2,0)&"#"&角色升星配方!AS31,"") ->  | CU31: =_xlfn.IFNA(AQ31&"#"&AR31&"#"&VLOOKUP(AS31,数组!$B:$C,2,0)&"#"&角色升星配方!AT31,"") ->  | CV31: =_xlfn.IFNA(AR31&"#"&AS31&"#"&VLOOKUP(AT31,数组!$B:$C,2,0)&"#"&角色升星配方!AU31,"") ->  | CW31: =_xlfn.IFNA(AS31&"#"&AT31&"#"&VLOOKUP(AU31,数组!$B:$C,2,0)&"#"&角色升星配方!AV31,"") ->  | CX31: =_xlfn.IFNA(AT31&"#"&AU31&"#"&VLOOKUP(AV31,数组!$B:$C,2,0)&"#"&角色升星配方!AW31,"") ->  | CY31: =_xlfn.IFNA(AU31&"#"&AV31&"#"&VLOOKUP(AW31,数组!$B:$C,2,0)&"#"&角色升星配方!AX31,"") ->  | CZ31: =_xlfn.IFNA(AV31&"#"&AW31&"#"&VLOOKUP(AX31,数组!$B:$C,2,0)&"#"&角色升星配方!AY31,"") ->  | DA31: =_xlfn.IFNA(AW31&"#"&AX31&"#"&VLOOKUP(AY31,数组!$B:$C,2,0)&"#"&角色升星配方!AZ31,"") ->  | DB31: =_xlfn.IFNA(AX31&"#"&AY31&"#"&VLOOKUP(AZ31,数组!$B:$C,2,0)&"#"&角色升星配方!BM31,"") ->  | DE31: =_xlfn.IFNA(BA31&"#"&BB31&"#"&VLOOKUP(BC31,数组!$B:$C,2,0)&"#"&角色升星配方!BD31,"") ->  | DI31: =_xlfn.IFNA(BE31&"#"&BF31&"#"&VLOOKUP(BG31,数组!$B:$C,2,0)&"#"&角色升星配方!BH31,"") ->  | DM31: =_xlfn.IFNA(BI31&"#"&BJ31&"#"&VLOOKUP(BK31,数组!$B:$C,2,0)&"#"&角色升星配方!BL31,"") ->  | DN31: =[2]!SUMSTRING(BM31:DM31,"|") -> 
A32: 4 | B32: 10031 | C32: 4 | D32: 4 | E32: 5 | F32: 1 | G32: 4星同名 | H32: 3 | I32: 5 | J32: 2 | K32: 3星同系 | L32: 4 | M32: 5 | N32: 3 | O32: 4星同系 | P32: 4 | AC32: 6 | AD32: 1 | AE32: 5星同名 | AF32: 1 | AG32: 6 | AH32: 2 | AI32: 5星10029 | AJ32: 1 | AK32: 6 | AL32: 3 | AM32: 5星同系 | AN32: 3 | BM32: =_xlfn.IFNA(E32&"#"&F32&"#"&VLOOKUP(G32,数组!$B:$C,2,0)&"#"&角色升星配方!H32,"") -> 5#1#2#3 | BN32: =_xlfn.IFNA(F32&"#"&G32&"#"&VLOOKUP(H32,数组!$B:$C,2,0)&"#"&角色升星配方!I32,"") ->  | BO32: =_xlfn.IFNA(G32&"#"&H32&"#"&VLOOKUP(I32,数组!$B:$C,2,0)&"#"&角色升星配方!J32,"") ->  | BP32: =_xlfn.IFNA(H32&"#"&I32&"#"&VLOOKUP(J32,数组!$B:$C,2,0)&"#"&角色升星配方!K32,"") ->  | BQ32: =_xlfn.IFNA(I32&"#"&J32&"#"&VLOOKUP(K32,数组!$B:$C,2,0)&"#"&角色升星配方!L32,"") -> 5#2#15#4 | BR32: =_xlfn.IFNA(J32&"#"&K32&"#"&VLOOKUP(L32,数组!$B:$C,2,0)&"#"&角色升星配方!M32,"") ->  | BS32: =_xlfn.IFNA(K32&"#"&L32&"#"&VLOOKUP(M32,数组!$B:$C,2,0)&"#"&角色升星配方!N32,"") ->  | BT32: =_xlfn.IFNA(L32&"#"&M32&"#"&VLOOKUP(N32,数组!$B:$C,2,0)&"#"&角色升星配方!O32,"") ->  | BU32: =_xlfn.IFNA(M32&"#"&N32&"#"&VLOOKUP(O32,数组!$B:$C,2,0)&"#"&角色升星配方!P32,"") -> 5#3#16#4 | BV32: =_xlfn.IFNA(N32&"#"&O32&"#"&VLOOKUP(P32,数组!$B:$C,2,0)&"#"&角色升星配方!Q32,"") ->  | BW32: =_xlfn.IFNA(O32&"#"&P32&"#"&VLOOKUP(Q32,数组!$B:$C,2,0)&"#"&角色升星配方!R32,"") ->  | BX32: =_xlfn.IFNA(P32&"#"&Q32&"#"&VLOOKUP(R32,数组!$B:$C,2,0)&"#"&角色升星配方!S32,"") ->  | BY32: =_xlfn.IFNA(Q32&"#"&R32&"#"&VLOOKUP(S32,数组!$B:$C,2,0)&"#"&角色升星配方!T32,"") ->  | BZ32: =_xlfn.IFNA(R32&"#"&S32&"#"&VLOOKUP(T32,数组!$B:$C,2,0)&"#"&角色升星配方!U32,"") ->  | CA32: =_xlfn.IFNA(S32&"#"&T32&"#"&VLOOKUP(U32,数组!$B:$C,2,0)&"#"&角色升星配方!V32,"") ->  | CB32: =_xlfn.IFNA(T32&"#"&U32&"#"&VLOOKUP(V32,数组!$B:$C,2,0)&"#"&角色升星配方!W32,"") ->  | CC32: =_xlfn.IFNA(U32&"#"&V32&"#"&VLOOKUP(W32,数组!$B:$C,2,0)&"#"&角色升星配方!X32,"") ->  | CD32: =_xlfn.IFNA(V32&"#"&W32&"#"&VLOOKUP(X32,数组!$B:$C,2,0)&"#"&角色升星配方!AC32,"") ->  | CE32: =_xlfn.IFNA(W32&"#"&X32&"#"&VLOOKUP(AC32,数组!$B:$C,2,0)&"#"&角色升星配方!AD32,"") ->  | CF32: =_xlfn.IFNA(X32&"#"&AC32&"#"&VLOOKUP(AD32,数组!$B:$C,2,0)&"#"&角色升星配方!AE32,"") ->  | CG32: =_xlfn.IFNA(AC32&"#"&AD32&"#"&VLOOKUP(AE32,数组!$B:$C,2,0)&"#"&角色升星配方!AF32,"") -> 6#1#3#1 | CH32: =_xlfn.IFNA(AD32&"#"&AE32&"#"&VLOOKUP(AF32,数组!$B:$C,2,0)&"#"&角色升星配方!AG32,"") ->  | CI32: =_xlfn.IFNA(AE32&"#"&AF32&"#"&VLOOKUP(AG32,数组!$B:$C,2,0)&"#"&角色升星配方!AH32,"") ->  | CJ32: =_xlfn.IFNA(AF32&"#"&AG32&"#"&VLOOKUP(AH32,数组!$B:$C,2,0)&"#"&角色升星配方!AI32,"") ->  | CK32: =_xlfn.IFNA(AG32&"#"&AH32&"#"&VLOOKUP(AI32,数组!$B:$C,2,0)&"#"&角色升星配方!AJ32,"") -> 6#2#27#1 | CL32: =_xlfn.IFNA(AH32&"#"&AI32&"#"&VLOOKUP(AJ32,数组!$B:$C,2,0)&"#"&角色升星配方!AK32,"") ->  | CM32: =_xlfn.IFNA(AI32&"#"&AJ32&"#"&VLOOKUP(AK32,数组!$B:$C,2,0)&"#"&角色升星配方!AL32,"") ->  | CN32: =_xlfn.IFNA(AJ32&"#"&AK32&"#"&VLOOKUP(AL32,数组!$B:$C,2,0)&"#"&角色升星配方!AM32,"") ->  | CO32: =_xlfn.IFNA(AK32&"#"&AL32&"#"&VLOOKUP(AM32,数组!$B:$C,2,0)&"#"&角色升星配方!AN32,"") -> 6#3#17#3 | CP32: =_xlfn.IFNA(AL32&"#"&AM32&"#"&VLOOKUP(AN32,数组!$B:$C,2,0)&"#"&角色升星配方!AO32,"") ->  | CQ32: =_xlfn.IFNA(AM32&"#"&AN32&"#"&VLOOKUP(AO32,数组!$B:$C,2,0)&"#"&角色升星配方!AP32,"") ->  | CR32: =_xlfn.IFNA(AN32&"#"&AO32&"#"&VLOOKUP(AP32,数组!$B:$C,2,0)&"#"&角色升星配方!AQ32,"") ->  | CS32: =_xlfn.IFNA(AO32&"#"&AP32&"#"&VLOOKUP(AQ32,数组!$B:$C,2,0)&"#"&角色升星配方!AR32,"") ->  | CT32: =_xlfn.IFNA(AP32&"#"&AQ32&"#"&VLOOKUP(AR32,数组!$B:$C,2,0)&"#"&角色升星配方!AS32,"") ->  | CU32: =_xlfn.IFNA(AQ32&"#"&AR32&"#"&VLOOKUP(AS32,数组!$B:$C,2,0)&"#"&角色升星配方!AT32,"") ->  | CV32: =_xlfn.IFNA(AR32&"#"&AS32&"#"&VLOOKUP(AT32,数组!$B:$C,2,0)&"#"&角色升星配方!AU32,"") ->  | CW32: =_xlfn.IFNA(AS32&"#"&AT32&"#"&VLOOKUP(AU32,数组!$B:$C,2,0)&"#"&角色升星配方!AV32,"") ->  | CX32: =_xlfn.IFNA(AT32&"#"&AU32&"#"&VLOOKUP(AV32,数组!$B:$C,2,0)&"#"&角色升星配方!AW32,"") ->  | CY32: =_xlfn.IFNA(AU32&"#"&AV32&"#"&VLOOKUP(AW32,数组!$B:$C,2,0)&"#"&角色升星配方!AX32,"") ->  | CZ32: =_xlfn.IFNA(AV32&"#"&AW32&"#"&VLOOKUP(AX32,数组!$B:$C,2,0)&"#"&角色升星配方!AY32,"") ->  | DA32: =_xlfn.IFNA(AW32&"#"&AX32&"#"&VLOOKUP(AY32,数组!$B:$C,2,0)&"#"&角色升星配方!AZ32,"") ->  | DB32: =_xlfn.IFNA(AX32&"#"&AY32&"#"&VLOOKUP(AZ32,数组!$B:$C,2,0)&"#"&角色升星配方!BM32,"") ->  | DE32: =_xlfn.IFNA(BA32&"#"&BB32&"#"&VLOOKUP(BC32,数组!$B:$C,2,0)&"#"&角色升星配方!BD32,"") ->  | DI32: =_xlfn.IFNA(BE32&"#"&BF32&"#"&VLOOKUP(BG32,数组!$B:$C,2,0)&"#"&角色升星配方!BH32,"") ->  | DM32: =_xlfn.IFNA(BI32&"#"&BJ32&"#"&VLOOKUP(BK32,数组!$B:$C,2,0)&"#"&角色升星配方!BL32,"") ->  | DN32: =[2]!SUMSTRING(BM32:DM32,"|") -> 
A33: 4 | B33: 10032 | C33: 4 | D33: 4 | E33: 5 | F33: 1 | G33: 4星同名 | H33: 3 | I33: 5 | J33: 2 | K33: 3星同系 | L33: 4 | M33: 5 | N33: 3 | O33: 4星同系 | P33: 4 | AC33: 6 | AD33: 1 | AE33: 5星同名 | AF33: 1 | AG33: 6 | AH33: 2 | AI33: 5星10033 | AJ33: 1 | AK33: 6 | AL33: 3 | AM33: 5星同系 | AN33: 3 | BM33: =_xlfn.IFNA(E33&"#"&F33&"#"&VLOOKUP(G33,数组!$B:$C,2,0)&"#"&角色升星配方!H33,"") -> 5#1#2#3 | BN33: =_xlfn.IFNA(F33&"#"&G33&"#"&VLOOKUP(H33,数组!$B:$C,2,0)&"#"&角色升星配方!I33,"") ->  | BO33: =_xlfn.IFNA(G33&"#"&H33&"#"&VLOOKUP(I33,数组!$B:$C,2,0)&"#"&角色升星配方!J33,"") ->  | BP33: =_xlfn.IFNA(H33&"#"&I33&"#"&VLOOKUP(J33,数组!$B:$C,2,0)&"#"&角色升星配方!K33,"") ->  | BQ33: =_xlfn.IFNA(I33&"#"&J33&"#"&VLOOKUP(K33,数组!$B:$C,2,0)&"#"&角色升星配方!L33,"") -> 5#2#15#4 | BR33: =_xlfn.IFNA(J33&"#"&K33&"#"&VLOOKUP(L33,数组!$B:$C,2,0)&"#"&角色升星配方!M33,"") ->  | BS33: =_xlfn.IFNA(K33&"#"&L33&"#"&VLOOKUP(M33,数组!$B:$C,2,0)&"#"&角色升星配方!N33,"") ->  | BT33: =_xlfn.IFNA(L33&"#"&M33&"#"&VLOOKUP(N33,数组!$B:$C,2,0)&"#"&角色升星配方!O33,"") ->  | BU33: =_xlfn.IFNA(M33&"#"&N33&"#"&VLOOKUP(O33,数组!$B:$C,2,0)&"#"&角色升星配方!P33,"") -> 5#3#16#4 | BV33: =_xlfn.IFNA(N33&"#"&O33&"#"&VLOOKUP(P33,数组!$B:$C,2,0)&"#"&角色升星配方!Q33,"") ->  | BW33: =_xlfn.IFNA(O33&"#"&P33&"#"&VLOOKUP(Q33,数组!$B:$C,2,0)&"#"&角色升星配方!R33,"") ->  | BX33: =_xlfn.IFNA(P33&"#"&Q33&"#"&VLOOKUP(R33,数组!$B:$C,2,0)&"#"&角色升星配方!S33,"") ->  | BY33: =_xlfn.IFNA(Q33&"#"&R33&"#"&VLOOKUP(S33,数组!$B:$C,2,0)&"#"&角色升星配方!T33,"") ->  | BZ33: =_xlfn.IFNA(R33&"#"&S33&"#"&VLOOKUP(T33,数组!$B:$C,2,0)&"#"&角色升星配方!U33,"") ->  | CA33: =_xlfn.IFNA(S33&"#"&T33&"#"&VLOOKUP(U33,数组!$B:$C,2,0)&"#"&角色升星配方!V33,"") ->  | CB33: =_xlfn.IFNA(T33&"#"&U33&"#"&VLOOKUP(V33,数组!$B:$C,2,0)&"#"&角色升星配方!W33,"") ->  | CC33: =_xlfn.IFNA(U33&"#"&V33&"#"&VLOOKUP(W33,数组!$B:$C,2,0)&"#"&角色升星配方!X33,"") ->  | CD33: =_xlfn.IFNA(V33&"#"&W33&"#"&VLOOKUP(X33,数组!$B:$C,2,0)&"#"&角色升星配方!AC33,"") ->  | CE33: =_xlfn.IFNA(W33&"#"&X33&"#"&VLOOKUP(AC33,数组!$B:$C,2,0)&"#"&角色升星配方!AD33,"") ->  | CF33: =_xlfn.IFNA(X33&"#"&AC33&"#"&VLOOKUP(AD33,数组!$B:$C,2,0)&"#"&角色升星配方!AE33,"") ->  | CG33: =_xlfn.IFNA(AC33&"#"&AD33&"#"&VLOOKUP(AE33,数组!$B:$C,2,0)&"#"&角色升星配方!AF33,"") -> 6#1#3#1 | CH33: =_xlfn.IFNA(AD33&"#"&AE33&"#"&VLOOKUP(AF33,数组!$B:$C,2,0)&"#"&角色升星配方!AG33,"") ->  | CI33: =_xlfn.IFNA(AE33&"#"&AF33&"#"&VLOOKUP(AG33,数组!$B:$C,2,0)&"#"&角色升星配方!AH33,"") ->  | CJ33: =_xlfn.IFNA(AF33&"#"&AG33&"#"&VLOOKUP(AH33,数组!$B:$C,2,0)&"#"&角色升星配方!AI33,"") ->  | CK33: =_xlfn.IFNA(AG33&"#"&AH33&"#"&VLOOKUP(AI33,数组!$B:$C,2,0)&"#"&角色升星配方!AJ33,"") -> 6#2#31#1 | CL33: =_xlfn.IFNA(AH33&"#"&AI33&"#"&VLOOKUP(AJ33,数组!$B:$C,2,0)&"#"&角色升星配方!AK33,"") ->  | CM33: =_xlfn.IFNA(AI33&"#"&AJ33&"#"&VLOOKUP(AK33,数组!$B:$C,2,0)&"#"&角色升星配方!AL33,"") ->  | CN33: =_xlfn.IFNA(AJ33&"#"&AK33&"#"&VLOOKUP(AL33,数组!$B:$C,2,0)&"#"&角色升星配方!AM33,"") ->  | CO33: =_xlfn.IFNA(AK33&"#"&AL33&"#"&VLOOKUP(AM33,数组!$B:$C,2,0)&"#"&角色升星配方!AN33,"") -> 6#3#17#3 | CP33: =_xlfn.IFNA(AL33&"#"&AM33&"#"&VLOOKUP(AN33,数组!$B:$C,2,0)&"#"&角色升星配方!AO33,"") ->  | CQ33: =_xlfn.IFNA(AM33&"#"&AN33&"#"&VLOOKUP(AO33,数组!$B:$C,2,0)&"#"&角色升星配方!AP33,"") ->  | CR33: =_xlfn.IFNA(AN33&"#"&AO33&"#"&VLOOKUP(AP33,数组!$B:$C,2,0)&"#"&角色升星配方!AQ33,"") ->  | CS33: =_xlfn.IFNA(AO33&"#"&AP33&"#"&VLOOKUP(AQ33,数组!$B:$C,2,0)&"#"&角色升星配方!AR33,"") ->  | CT33: =_xlfn.IFNA(AP33&"#"&AQ33&"#"&VLOOKUP(AR33,数组!$B:$C,2,0)&"#"&角色升星配方!AS33,"") ->  | CU33: =_xlfn.IFNA(AQ33&"#"&AR33&"#"&VLOOKUP(AS33,数组!$B:$C,2,0)&"#"&角色升星配方!AT33,"") ->  | CV33: =_xlfn.IFNA(AR33&"#"&AS33&"#"&VLOOKUP(AT33,数组!$B:$C,2,0)&"#"&角色升星配方!AU33,"") ->  | CW33: =_xlfn.IFNA(AS33&"#"&AT33&"#"&VLOOKUP(AU33,数组!$B:$C,2,0)&"#"&角色升星配方!AV33,"") ->  | CX33: =_xlfn.IFNA(AT33&"#"&AU33&"#"&VLOOKUP(AV33,数组!$B:$C,2,0)&"#"&角色升星配方!AW33,"") ->  | CY33: =_xlfn.IFNA(AU33&"#"&AV33&"#"&VLOOKUP(AW33,数组!$B:$C,2,0)&"#"&角色升星配方!AX33,"") ->  | CZ33: =_xlfn.IFNA(AV33&"#"&AW33&"#"&VLOOKUP(AX33,数组!$B:$C,2,0)&"#"&角色升星配方!AY33,"") ->  | DA33: =_xlfn.IFNA(AW33&"#"&AX33&"#"&VLOOKUP(AY33,数组!$B:$C,2,0)&"#"&角色升星配方!AZ33,"") ->  | DB33: =_xlfn.IFNA(AX33&"#"&AY33&"#"&VLOOKUP(AZ33,数组!$B:$C,2,0)&"#"&角色升星配方!BM33,"") ->  | DE33: =_xlfn.IFNA(BA33&"#"&BB33&"#"&VLOOKUP(BC33,数组!$B:$C,2,0)&"#"&角色升星配方!BD33,"") ->  | DI33: =_xlfn.IFNA(BE33&"#"&BF33&"#"&VLOOKUP(BG33,数组!$B:$C,2,0)&"#"&角色升星配方!BH33,"") ->  | DM33: =_xlfn.IFNA(BI33&"#"&BJ33&"#"&VLOOKUP(BK33,数组!$B:$C,2,0)&"#"&角色升星配方!BL33,"") ->  | DN33: =[2]!SUMSTRING(BM33:DM33,"|") -> 
A34: 4 | B34: 10033 | C34: 4 | D34: 4 | E34: 5 | F34: 1 | G34: 4星同名 | H34: 3 | I34: 5 | J34: 2 | K34: 3星同系 | L34: 4 | M34: 5 | N34: 3 | O34: 4星同系 | P34: 4 | AC34: 6 | AD34: 1 | AE34: 5星同名 | AF34: 1 | AG34: 6 | AH34: 2 | AI34: 5星10031 | AJ34: 1 | AK34: 6 | AL34: 3 | AM34: 5星同系 | AN34: 3 | BM34: =_xlfn.IFNA(E34&"#"&F34&"#"&VLOOKUP(G34,数组!$B:$C,2,0)&"#"&角色升星配方!H34,"") -> 5#1#2#3 | BN34: =_xlfn.IFNA(F34&"#"&G34&"#"&VLOOKUP(H34,数组!$B:$C,2,0)&"#"&角色升星配方!I34,"") ->  | BO34: =_xlfn.IFNA(G34&"#"&H34&"#"&VLOOKUP(I34,数组!$B:$C,2,0)&"#"&角色升星配方!J34,"") ->  | BP34: =_xlfn.IFNA(H34&"#"&I34&"#"&VLOOKUP(J34,数组!$B:$C,2,0)&"#"&角色升星配方!K34,"") ->  | BQ34: =_xlfn.IFNA(I34&"#"&J34&"#"&VLOOKUP(K34,数组!$B:$C,2,0)&"#"&角色升星配方!L34,"") -> 5#2#15#4 | BR34: =_xlfn.IFNA(J34&"#"&K34&"#"&VLOOKUP(L34,数组!$B:$C,2,0)&"#"&角色升星配方!M34,"") ->  | BS34: =_xlfn.IFNA(K34&"#"&L34&"#"&VLOOKUP(M34,数组!$B:$C,2,0)&"#"&角色升星配方!N34,"") ->  | BT34: =_xlfn.IFNA(L34&"#"&M34&"#"&VLOOKUP(N34,数组!$B:$C,2,0)&"#"&角色升星配方!O34,"") ->  | BU34: =_xlfn.IFNA(M34&"#"&N34&"#"&VLOOKUP(O34,数组!$B:$C,2,0)&"#"&角色升星配方!P34,"") -> 5#3#16#4 | BV34: =_xlfn.IFNA(N34&"#"&O34&"#"&VLOOKUP(P34,数组!$B:$C,2,0)&"#"&角色升星配方!Q34,"") ->  | BW34: =_xlfn.IFNA(O34&"#"&P34&"#"&VLOOKUP(Q34,数组!$B:$C,2,0)&"#"&角色升星配方!R34,"") ->  | BX34: =_xlfn.IFNA(P34&"#"&Q34&"#"&VLOOKUP(R34,数组!$B:$C,2,0)&"#"&角色升星配方!S34,"") ->  | BY34: =_xlfn.IFNA(Q34&"#"&R34&"#"&VLOOKUP(S34,数组!$B:$C,2,0)&"#"&角色升星配方!T34,"") ->  | BZ34: =_xlfn.IFNA(R34&"#"&S34&"#"&VLOOKUP(T34,数组!$B:$C,2,0)&"#"&角色升星配方!U34,"") ->  | CA34: =_xlfn.IFNA(S34&"#"&T34&"#"&VLOOKUP(U34,数组!$B:$C,2,0)&"#"&角色升星配方!V34,"") ->  | CB34: =_xlfn.IFNA(T34&"#"&U34&"#"&VLOOKUP(V34,数组!$B:$C,2,0)&"#"&角色升星配方!W34,"") ->  | CC34: =_xlfn.IFNA(U34&"#"&V34&"#"&VLOOKUP(W34,数组!$B:$C,2,0)&"#"&角色升星配方!X34,"") ->  | CD34: =_xlfn.IFNA(V34&"#"&W34&"#"&VLOOKUP(X34,数组!$B:$C,2,0)&"#"&角色升星配方!AC34,"") ->  | CE34: =_xlfn.IFNA(W34&"#"&X34&"#"&VLOOKUP(AC34,数组!$B:$C,2,0)&"#"&角色升星配方!AD34,"") ->  | CF34: =_xlfn.IFNA(X34&"#"&AC34&"#"&VLOOKUP(AD34,数组!$B:$C,2,0)&"#"&角色升星配方!AE34,"") ->  | CG34: =_xlfn.IFNA(AC34&"#"&AD34&"#"&VLOOKUP(AE34,数组!$B:$C,2,0)&"#"&角色升星配方!AF34,"") -> 6#1#3#1 | CH34: =_xlfn.IFNA(AD34&"#"&AE34&"#"&VLOOKUP(AF34,数组!$B:$C,2,0)&"#"&角色升星配方!AG34,"") ->  | CI34: =_xlfn.IFNA(AE34&"#"&AF34&"#"&VLOOKUP(AG34,数组!$B:$C,2,0)&"#"&角色升星配方!AH34,"") ->  | CJ34: =_xlfn.IFNA(AF34&"#"&AG34&"#"&VLOOKUP(AH34,数组!$B:$C,2,0)&"#"&角色升星配方!AI34,"") ->  | CK34: =_xlfn.IFNA(AG34&"#"&AH34&"#"&VLOOKUP(AI34,数组!$B:$C,2,0)&"#"&角色升星配方!AJ34,"") -> 6#2#29#1 | CL34: =_xlfn.IFNA(AH34&"#"&AI34&"#"&VLOOKUP(AJ34,数组!$B:$C,2,0)&"#"&角色升星配方!AK34,"") ->  | CM34: =_xlfn.IFNA(AI34&"#"&AJ34&"#"&VLOOKUP(AK34,数组!$B:$C,2,0)&"#"&角色升星配方!AL34,"") ->  | CN34: =_xlfn.IFNA(AJ34&"#"&AK34&"#"&VLOOKUP(AL34,数组!$B:$C,2,0)&"#"&角色升星配方!AM34,"") ->  | CO34: =_xlfn.IFNA(AK34&"#"&AL34&"#"&VLOOKUP(AM34,数组!$B:$C,2,0)&"#"&角色升星配方!AN34,"") -> 6#3#17#3 | CP34: =_xlfn.IFNA(AL34&"#"&AM34&"#"&VLOOKUP(AN34,数组!$B:$C,2,0)&"#"&角色升星配方!AO34,"") ->  | CQ34: =_xlfn.IFNA(AM34&"#"&AN34&"#"&VLOOKUP(AO34,数组!$B:$C,2,0)&"#"&角色升星配方!AP34,"") ->  | CR34: =_xlfn.IFNA(AN34&"#"&AO34&"#"&VLOOKUP(AP34,数组!$B:$C,2,0)&"#"&角色升星配方!AQ34,"") ->  | CS34: =_xlfn.IFNA(AO34&"#"&AP34&"#"&VLOOKUP(AQ34,数组!$B:$C,2,0)&"#"&角色升星配方!AR34,"") ->  | CT34: =_xlfn.IFNA(AP34&"#"&AQ34&"#"&VLOOKUP(AR34,数组!$B:$C,2,0)&"#"&角色升星配方!AS34,"") ->  | CU34: =_xlfn.IFNA(AQ34&"#"&AR34&"#"&VLOOKUP(AS34,数组!$B:$C,2,0)&"#"&角色升星配方!AT34,"") ->  | CV34: =_xlfn.IFNA(AR34&"#"&AS34&"#"&VLOOKUP(AT34,数组!$B:$C,2,0)&"#"&角色升星配方!AU34,"") ->  | CW34: =_xlfn.IFNA(AS34&"#"&AT34&"#"&VLOOKUP(AU34,数组!$B:$C,2,0)&"#"&角色升星配方!AV34,"") ->  | CX34: =_xlfn.IFNA(AT34&"#"&AU34&"#"&VLOOKUP(AV34,数组!$B:$C,2,0)&"#"&角色升星配方!AW34,"") ->  | CY34: =_xlfn.IFNA(AU34&"#"&AV34&"#"&VLOOKUP(AW34,数组!$B:$C,2,0)&"#"&角色升星配方!AX34,"") ->  | CZ34: =_xlfn.IFNA(AV34&"#"&AW34&"#"&VLOOKUP(AX34,数组!$B:$C,2,0)&"#"&角色升星配方!AY34,"") ->  | DA34: =_xlfn.IFNA(AW34&"#"&AX34&"#"&VLOOKUP(AY34,数组!$B:$C,2,0)&"#"&角色升星配方!AZ34,"") ->  | DB34: =_xlfn.IFNA(AX34&"#"&AY34&"#"&VLOOKUP(AZ34,数组!$B:$C,2,0)&"#"&角色升星配方!BM34,"") ->  | DE34: =_xlfn.IFNA(BA34&"#"&BB34&"#"&VLOOKUP(BC34,数组!$B:$C,2,0)&"#"&角色升星配方!BD34,"") ->  | DI34: =_xlfn.IFNA(BE34&"#"&BF34&"#"&VLOOKUP(BG34,数组!$B:$C,2,0)&"#"&角色升星配方!BH34,"") ->  | DM34: =_xlfn.IFNA(BI34&"#"&BJ34&"#"&VLOOKUP(BK34,数组!$B:$C,2,0)&"#"&角色升星配方!BL34,"") ->  | DN34: =[2]!SUMSTRING(BM34:DM34,"|") -> 
A35: 6 | B35: 10034 | C35: 6 | D35: 4 | E35: 5 | F35: 1 | G35: 4星同名 | H35: 3 | I35: 5 | J35: 2 | K35: 3星同系 | L35: 4 | M35: 5 | N35: 3 | O35: 4星同系 | P35: 4 | AC35: 6 | AD35: 1 | AE35: 5星同名 | AF35: 1 | AG35: 6 | AH35: 2 | AI35: 5星10044 | AJ35: 1 | AK35: 6 | AL35: 3 | AM35: 5星同系 | AN35: 3 | AO35: 7 | AP35: 1 | AQ35: 5星同系 | AR35: 4 | AS35: 8 | AT35: 1 | AU35: 5星同系 | AV35: 3 | AW35: 8 | AX35: 2 | AY35: 6星同系 | AZ35: 1 | BA35: 9 | BB35: 1 | BC35: 5星同名 | BD35: 1 | BE35: 9 | BF35: 2 | BG35: 6星同系 | BH35: 1 | BI35: 9 | BJ35: 3 | BK35: 5星同系 | BL35: 2 | BM35: =_xlfn.IFNA(E35&"#"&F35&"#"&VLOOKUP(G35,数组!$B:$C,2,0)&"#"&角色升星配方!H35,"") -> 5#1#2#3 | BN35: =_xlfn.IFNA(F35&"#"&G35&"#"&VLOOKUP(H35,数组!$B:$C,2,0)&"#"&角色升星配方!I35,"") ->  | BO35: =_xlfn.IFNA(G35&"#"&H35&"#"&VLOOKUP(I35,数组!$B:$C,2,0)&"#"&角色升星配方!J35,"") ->  | BP35: =_xlfn.IFNA(H35&"#"&I35&"#"&VLOOKUP(J35,数组!$B:$C,2,0)&"#"&角色升星配方!K35,"") ->  | BQ35: =_xlfn.IFNA(I35&"#"&J35&"#"&VLOOKUP(K35,数组!$B:$C,2,0)&"#"&角色升星配方!L35,"") -> 5#2#15#4 | BR35: =_xlfn.IFNA(J35&"#"&K35&"#"&VLOOKUP(L35,数组!$B:$C,2,0)&"#"&角色升星配方!M35,"") ->  | BS35: =_xlfn.IFNA(K35&"#"&L35&"#"&VLOOKUP(M35,数组!$B:$C,2,0)&"#"&角色升星配方!N35,"") ->  | BT35: =_xlfn.IFNA(L35&"#"&M35&"#"&VLOOKUP(N35,数组!$B:$C,2,0)&"#"&角色升星配方!O35,"") ->  | BU35: =_xlfn.IFNA(M35&"#"&N35&"#"&VLOOKUP(O35,数组!$B:$C,2,0)&"#"&角色升星配方!P35,"") -> 5#3#16#4 | BV35: =_xlfn.IFNA(N35&"#"&O35&"#"&VLOOKUP(P35,数组!$B:$C,2,0)&"#"&角色升星配方!Q35,"") ->  | BW35: =_xlfn.IFNA(O35&"#"&P35&"#"&VLOOKUP(Q35,数组!$B:$C,2,0)&"#"&角色升星配方!R35,"") ->  | BX35: =_xlfn.IFNA(P35&"#"&Q35&"#"&VLOOKUP(R35,数组!$B:$C,2,0)&"#"&角色升星配方!S35,"") ->  | BY35: =_xlfn.IFNA(Q35&"#"&R35&"#"&VLOOKUP(S35,数组!$B:$C,2,0)&"#"&角色升星配方!T35,"") ->  | BZ35: =_xlfn.IFNA(R35&"#"&S35&"#"&VLOOKUP(T35,数组!$B:$C,2,0)&"#"&角色升星配方!U35,"") ->  | CA35: =_xlfn.IFNA(S35&"#"&T35&"#"&VLOOKUP(U35,数组!$B:$C,2,0)&"#"&角色升星配方!V35,"") ->  | CB35: =_xlfn.IFNA(T35&"#"&U35&"#"&VLOOKUP(V35,数组!$B:$C,2,0)&"#"&角色升星配方!W35,"") ->  | CC35: =_xlfn.IFNA(U35&"#"&V35&"#"&VLOOKUP(W35,数组!$B:$C,2,0)&"#"&角色升星配方!X35,"") ->  | CD35: =_xlfn.IFNA(V35&"#"&W35&"#"&VLOOKUP(X35,数组!$B:$C,2,0)&"#"&角色升星配方!AC35,"") ->  | CE35: =_xlfn.IFNA(W35&"#"&X35&"#"&VLOOKUP(AC35,数组!$B:$C,2,0)&"#"&角色升星配方!AD35,"") ->  | CF35: =_xlfn.IFNA(X35&"#"&AC35&"#"&VLOOKUP(AD35,数组!$B:$C,2,0)&"#"&角色升星配方!AE35,"") ->  | CG35: =_xlfn.IFNA(AC35&"#"&AD35&"#"&VLOOKUP(AE35,数组!$B:$C,2,0)&"#"&角色升星配方!AF35,"") -> 6#1#3#1 | CH35: =_xlfn.IFNA(AD35&"#"&AE35&"#"&VLOOKUP(AF35,数组!$B:$C,2,0)&"#"&角色升星配方!AG35,"") ->  | CI35: =_xlfn.IFNA(AE35&"#"&AF35&"#"&VLOOKUP(AG35,数组!$B:$C,2,0)&"#"&角色升星配方!AH35,"") ->  | CJ35: =_xlfn.IFNA(AF35&"#"&AG35&"#"&VLOOKUP(AH35,数组!$B:$C,2,0)&"#"&角色升星配方!AI35,"") ->  | CK35: =_xlfn.IFNA(AG35&"#"&AH35&"#"&VLOOKUP(AI35,数组!$B:$C,2,0)&"#"&角色升星配方!AJ35,"") -> 6#2#42#1 | CL35: =_xlfn.IFNA(AH35&"#"&AI35&"#"&VLOOKUP(AJ35,数组!$B:$C,2,0)&"#"&角色升星配方!AK35,"") ->  | CM35: =_xlfn.IFNA(AI35&"#"&AJ35&"#"&VLOOKUP(AK35,数组!$B:$C,2,0)&"#"&角色升星配方!AL35,"") ->  | CN35: =_xlfn.IFNA(AJ35&"#"&AK35&"#"&VLOOKUP(AL35,数组!$B:$C,2,0)&"#"&角色升星配方!AM35,"") ->  | CO35: =_xlfn.IFNA(AK35&"#"&AL35&"#"&VLOOKUP(AM35,数组!$B:$C,2,0)&"#"&角色升星配方!AN35,"") -> 6#3#17#3 | CP35: =_xlfn.IFNA(AL35&"#"&AM35&"#"&VLOOKUP(AN35,数组!$B:$C,2,0)&"#"&角色升星配方!AO35,"") ->  | CQ35: =_xlfn.IFNA(AM35&"#"&AN35&"#"&VLOOKUP(AO35,数组!$B:$C,2,0)&"#"&角色升星配方!AP35,"") ->  | CR35: =_xlfn.IFNA(AN35&"#"&AO35&"#"&VLOOKUP(AP35,数组!$B:$C,2,0)&"#"&角色升星配方!AQ35,"") ->  | CS35: =_xlfn.IFNA(AO35&"#"&AP35&"#"&VLOOKUP(AQ35,数组!$B:$C,2,0)&"#"&角色升星配方!AR35,"") -> 7#1#17#4 | CT35: =_xlfn.IFNA(AP35&"#"&AQ35&"#"&VLOOKUP(AR35,数组!$B:$C,2,0)&"#"&角色升星配方!AS35,"") ->  | CU35: =_xlfn.IFNA(AQ35&"#"&AR35&"#"&VLOOKUP(AS35,数组!$B:$C,2,0)&"#"&角色升星配方!AT35,"") ->  | CV35: =_xlfn.IFNA(AR35&"#"&AS35&"#"&VLOOKUP(AT35,数组!$B:$C,2,0)&"#"&角色升星配方!AU35,"") ->  | CW35: =_xlfn.IFNA(AS35&"#"&AT35&"#"&VLOOKUP(AU35,数组!$B:$C,2,0)&"#"&角色升星配方!AV35,"") -> 8#1#17#3 | CX35: =_xlfn.IFNA(AT35&"#"&AU35&"#"&VLOOKUP(AV35,数组!$B:$C,2,0)&"#"&角色升星配方!AW35,"") ->  | CY35: =_xlfn.IFNA(AU35&"#"&AV35&"#"&VLOOKUP(AW35,数组!$B:$C,2,0)&"#"&角色升星配方!AX35,"") ->  | CZ35: =_xlfn.IFNA(AV35&"#"&AW35&"#"&VLOOKUP(AX35,数组!$B:$C,2,0)&"#"&角色升星配方!AY35,"") ->  | DA35: =_xlfn.IFNA(AW35&"#"&AX35&"#"&VLOOKUP(AY35,数组!$B:$C,2,0)&"#"&角色升星配方!AZ35,"") -> 8#2#18#1 | DB35: =_xlfn.IFNA(AX35&"#"&AY35&"#"&VLOOKUP(AZ35,数组!$B:$C,2,0)&"#"&角色升星配方!BM35,"") ->  | DE35: =_xlfn.IFNA(BA35&"#"&BB35&"#"&VLOOKUP(BC35,数组!$B:$C,2,0)&"#"&角色升星配方!BD35,"") -> 9#1#3#1 | DI35: =_xlfn.IFNA(BE35&"#"&BF35&"#"&VLOOKUP(BG35,数组!$B:$C,2,0)&"#"&角色升星配方!BH35,"") -> 9#2#18#1 | DM35: =_xlfn.IFNA(BI35&"#"&BJ35&"#"&VLOOKUP(BK35,数组!$B:$C,2,0)&"#"&角色升星配方!BL35,"") -> 9#3#17#2 | DN35: =[2]!SUMSTRING(BM35:DM35,"|") -> 
A36: 6 | B36: 10035 | C36: 6 | D36: 4 | E36: 5 | F36: 1 | G36: 4星同名 | H36: 3 | I36: 5 | J36: 2 | K36: 3星同系 | L36: 4 | M36: 5 | N36: 3 | O36: 4星同系 | P36: 4 | AC36: 6 | AD36: 1 | AE36: 5星同名 | AF36: 1 | AG36: 6 | AH36: 2 | AI36: 5星10034 | AJ36: 1 | AK36: 6 | AL36: 3 | AM36: 5星同系 | AN36: 3 | AO36: 7 | AP36: 1 | AQ36: 5星同系 | AR36: 4 | AS36: 8 | AT36: 1 | AU36: 5星同系 | AV36: 3 | AW36: 8 | AX36: 2 | AY36: 6星同系 | AZ36: 1 | BA36: 9 | BB36: 1 | BC36: 5星同名 | BD36: 1 | BE36: 9 | BF36: 2 | BG36: 6星同系 | BH36: 1 | BI36: 9 | BJ36: 3 | BK36: 5星同系 | BL36: 2 | BM36: =_xlfn.IFNA(E36&"#"&F36&"#"&VLOOKUP(G36,数组!$B:$C,2,0)&"#"&角色升星配方!H36,"") -> 5#1#2#3 | BN36: =_xlfn.IFNA(F36&"#"&G36&"#"&VLOOKUP(H36,数组!$B:$C,2,0)&"#"&角色升星配方!I36,"") ->  | BO36: =_xlfn.IFNA(G36&"#"&H36&"#"&VLOOKUP(I36,数组!$B:$C,2,0)&"#"&角色升星配方!J36,"") ->  | BP36: =_xlfn.IFNA(H36&"#"&I36&"#"&VLOOKUP(J36,数组!$B:$C,2,0)&"#"&角色升星配方!K36,"") ->  | BQ36: =_xlfn.IFNA(I36&"#"&J36&"#"&VLOOKUP(K36,数组!$B:$C,2,0)&"#"&角色升星配方!L36,"") -> 5#2#15#4 | BR36: =_xlfn.IFNA(J36&"#"&K36&"#"&VLOOKUP(L36,数组!$B:$C,2,0)&"#"&角色升星配方!M36,"") ->  | BS36: =_xlfn.IFNA(K36&"#"&L36&"#"&VLOOKUP(M36,数组!$B:$C,2,0)&"#"&角色升星配方!N36,"") ->  | BT36: =_xlfn.IFNA(L36&"#"&M36&"#"&VLOOKUP(N36,数组!$B:$C,2,0)&"#"&角色升星配方!O36,"") ->  | BU36: =_xlfn.IFNA(M36&"#"&N36&"#"&VLOOKUP(O36,数组!$B:$C,2,0)&"#"&角色升星配方!P36,"") -> 5#3#16#4 | BV36: =_xlfn.IFNA(N36&"#"&O36&"#"&VLOOKUP(P36,数组!$B:$C,2,0)&"#"&角色升星配方!Q36,"") ->  | BW36: =_xlfn.IFNA(O36&"#"&P36&"#"&VLOOKUP(Q36,数组!$B:$C,2,0)&"#"&角色升星配方!R36,"") ->  | BX36: =_xlfn.IFNA(P36&"#"&Q36&"#"&VLOOKUP(R36,数组!$B:$C,2,0)&"#"&角色升星配方!S36,"") ->  | BY36: =_xlfn.IFNA(Q36&"#"&R36&"#"&VLOOKUP(S36,数组!$B:$C,2,0)&"#"&角色升星配方!T36,"") ->  | BZ36: =_xlfn.IFNA(R36&"#"&S36&"#"&VLOOKUP(T36,数组!$B:$C,2,0)&"#"&角色升星配方!U36,"") ->  | CA36: =_xlfn.IFNA(S36&"#"&T36&"#"&VLOOKUP(U36,数组!$B:$C,2,0)&"#"&角色升星配方!V36,"") ->  | CB36: =_xlfn.IFNA(T36&"#"&U36&"#"&VLOOKUP(V36,数组!$B:$C,2,0)&"#"&角色升星配方!W36,"") ->  | CC36: =_xlfn.IFNA(U36&"#"&V36&"#"&VLOOKUP(W36,数组!$B:$C,2,0)&"#"&角色升星配方!X36,"") ->  | CD36: =_xlfn.IFNA(V36&"#"&W36&"#"&VLOOKUP(X36,数组!$B:$C,2,0)&"#"&角色升星配方!AC36,"") ->  | CE36: =_xlfn.IFNA(W36&"#"&X36&"#"&VLOOKUP(AC36,数组!$B:$C,2,0)&"#"&角色升星配方!AD36,"") ->  | CF36: =_xlfn.IFNA(X36&"#"&AC36&"#"&VLOOKUP(AD36,数组!$B:$C,2,0)&"#"&角色升星配方!AE36,"") ->  | CG36: =_xlfn.IFNA(AC36&"#"&AD36&"#"&VLOOKUP(AE36,数组!$B:$C,2,0)&"#"&角色升星配方!AF36,"") -> 6#1#3#1 | CH36: =_xlfn.IFNA(AD36&"#"&AE36&"#"&VLOOKUP(AF36,数组!$B:$C,2,0)&"#"&角色升星配方!AG36,"") ->  | CI36: =_xlfn.IFNA(AE36&"#"&AF36&"#"&VLOOKUP(AG36,数组!$B:$C,2,0)&"#"&角色升星配方!AH36,"") ->  | CJ36: =_xlfn.IFNA(AF36&"#"&AG36&"#"&VLOOKUP(AH36,数组!$B:$C,2,0)&"#"&角色升星配方!AI36,"") ->  | CK36: =_xlfn.IFNA(AG36&"#"&AH36&"#"&VLOOKUP(AI36,数组!$B:$C,2,0)&"#"&角色升星配方!AJ36,"") -> 6#2#32#1 | CL36: =_xlfn.IFNA(AH36&"#"&AI36&"#"&VLOOKUP(AJ36,数组!$B:$C,2,0)&"#"&角色升星配方!AK36,"") ->  | CM36: =_xlfn.IFNA(AI36&"#"&AJ36&"#"&VLOOKUP(AK36,数组!$B:$C,2,0)&"#"&角色升星配方!AL36,"") ->  | CN36: =_xlfn.IFNA(AJ36&"#"&AK36&"#"&VLOOKUP(AL36,数组!$B:$C,2,0)&"#"&角色升星配方!AM36,"") ->  | CO36: =_xlfn.IFNA(AK36&"#"&AL36&"#"&VLOOKUP(AM36,数组!$B:$C,2,0)&"#"&角色升星配方!AN36,"") -> 6#3#17#3 | CP36: =_xlfn.IFNA(AL36&"#"&AM36&"#"&VLOOKUP(AN36,数组!$B:$C,2,0)&"#"&角色升星配方!AO36,"") ->  | CQ36: =_xlfn.IFNA(AM36&"#"&AN36&"#"&VLOOKUP(AO36,数组!$B:$C,2,0)&"#"&角色升星配方!AP36,"") ->  | CR36: =_xlfn.IFNA(AN36&"#"&AO36&"#"&VLOOKUP(AP36,数组!$B:$C,2,0)&"#"&角色升星配方!AQ36,"") ->  | CS36: =_xlfn.IFNA(AO36&"#"&AP36&"#"&VLOOKUP(AQ36,数组!$B:$C,2,0)&"#"&角色升星配方!AR36,"") -> 7#1#17#4 | CT36: =_xlfn.IFNA(AP36&"#"&AQ36&"#"&VLOOKUP(AR36,数组!$B:$C,2,0)&"#"&角色升星配方!AS36,"") ->  | CU36: =_xlfn.IFNA(AQ36&"#"&AR36&"#"&VLOOKUP(AS36,数组!$B:$C,2,0)&"#"&角色升星配方!AT36,"") ->  | CV36: =_xlfn.IFNA(AR36&"#"&AS36&"#"&VLOOKUP(AT36,数组!$B:$C,2,0)&"#"&角色升星配方!AU36,"") ->  | CW36: =_xlfn.IFNA(AS36&"#"&AT36&"#"&VLOOKUP(AU36,数组!$B:$C,2,0)&"#"&角色升星配方!AV36,"") -> 8#1#17#3 | CX36: =_xlfn.IFNA(AT36&"#"&AU36&"#"&VLOOKUP(AV36,数组!$B:$C,2,0)&"#"&角色升星配方!AW36,"") ->  | CY36: =_xlfn.IFNA(AU36&"#"&AV36&"#"&VLOOKUP(AW36,数组!$B:$C,2,0)&"#"&角色升星配方!AX36,"") ->  | CZ36: =_xlfn.IFNA(AV36&"#"&AW36&"#"&VLOOKUP(AX36,数组!$B:$C,2,0)&"#"&角色升星配方!AY36,"") ->  | DA36: =_xlfn.IFNA(AW36&"#"&AX36&"#"&VLOOKUP(AY36,数组!$B:$C,2,0)&"#"&角色升星配方!AZ36,"") -> 8#2#18#1 | DB36: =_xlfn.IFNA(AX36&"#"&AY36&"#"&VLOOKUP(AZ36,数组!$B:$C,2,0)&"#"&角色升星配方!BM36,"") ->  | DE36: =_xlfn.IFNA(BA36&"#"&BB36&"#"&VLOOKUP(BC36,数组!$B:$C,2,0)&"#"&角色升星配方!BD36,"") -> 9#1#3#1 | DI36: =_xlfn.IFNA(BE36&"#"&BF36&"#"&VLOOKUP(BG36,数组!$B:$C,2,0)&"#"&角色升星配方!BH36,"") -> 9#2#18#1 | DM36: =_xlfn.IFNA(BI36&"#"&BJ36&"#"&VLOOKUP(BK36,数组!$B:$C,2,0)&"#"&角色升星配方!BL36,"") -> 9#3#17#2 | DN36: =[2]!SUMSTRING(BM36:DM36,"|") -> 
A37: 3 | B37: 10036 | C37: 3 | D37: 4 | E37: 5 | F37: 1 | G37: 4星同名 | H37: 3 | I37: 5 | J37: 2 | K37: 3星同系 | L37: 4 | M37: 5 | N37: 3 | O37: 4星同系 | P37: 4 | AC37: 6 | AD37: 1 | AE37: 5星同名 | AF37: 1 | AG37: 6 | AH37: 2 | AI37: 5星10039 | AJ37: 1 | AK37: 6 | AL37: 3 | AM37: 5星同系 | AN37: 3 | BM37: =_xlfn.IFNA(E37&"#"&F37&"#"&VLOOKUP(G37,数组!$B:$C,2,0)&"#"&角色升星配方!H37,"") -> 5#1#2#3 | BN37: =_xlfn.IFNA(F37&"#"&G37&"#"&VLOOKUP(H37,数组!$B:$C,2,0)&"#"&角色升星配方!I37,"") ->  | BO37: =_xlfn.IFNA(G37&"#"&H37&"#"&VLOOKUP(I37,数组!$B:$C,2,0)&"#"&角色升星配方!J37,"") ->  | BP37: =_xlfn.IFNA(H37&"#"&I37&"#"&VLOOKUP(J37,数组!$B:$C,2,0)&"#"&角色升星配方!K37,"") ->  | BQ37: =_xlfn.IFNA(I37&"#"&J37&"#"&VLOOKUP(K37,数组!$B:$C,2,0)&"#"&角色升星配方!L37,"") -> 5#2#15#4 | BR37: =_xlfn.IFNA(J37&"#"&K37&"#"&VLOOKUP(L37,数组!$B:$C,2,0)&"#"&角色升星配方!M37,"") ->  | BS37: =_xlfn.IFNA(K37&"#"&L37&"#"&VLOOKUP(M37,数组!$B:$C,2,0)&"#"&角色升星配方!N37,"") ->  | BT37: =_xlfn.IFNA(L37&"#"&M37&"#"&VLOOKUP(N37,数组!$B:$C,2,0)&"#"&角色升星配方!O37,"") ->  | BU37: =_xlfn.IFNA(M37&"#"&N37&"#"&VLOOKUP(O37,数组!$B:$C,2,0)&"#"&角色升星配方!P37,"") -> 5#3#16#4 | BV37: =_xlfn.IFNA(N37&"#"&O37&"#"&VLOOKUP(P37,数组!$B:$C,2,0)&"#"&角色升星配方!Q37,"") ->  | BW37: =_xlfn.IFNA(O37&"#"&P37&"#"&VLOOKUP(Q37,数组!$B:$C,2,0)&"#"&角色升星配方!R37,"") ->  | BX37: =_xlfn.IFNA(P37&"#"&Q37&"#"&VLOOKUP(R37,数组!$B:$C,2,0)&"#"&角色升星配方!S37,"") ->  | BY37: =_xlfn.IFNA(Q37&"#"&R37&"#"&VLOOKUP(S37,数组!$B:$C,2,0)&"#"&角色升星配方!T37,"") ->  | BZ37: =_xlfn.IFNA(R37&"#"&S37&"#"&VLOOKUP(T37,数组!$B:$C,2,0)&"#"&角色升星配方!U37,"") ->  | CA37: =_xlfn.IFNA(S37&"#"&T37&"#"&VLOOKUP(U37,数组!$B:$C,2,0)&"#"&角色升星配方!V37,"") ->  | CB37: =_xlfn.IFNA(T37&"#"&U37&"#"&VLOOKUP(V37,数组!$B:$C,2,0)&"#"&角色升星配方!W37,"") ->  | CC37: =_xlfn.IFNA(U37&"#"&V37&"#"&VLOOKUP(W37,数组!$B:$C,2,0)&"#"&角色升星配方!X37,"") ->  | CD37: =_xlfn.IFNA(V37&"#"&W37&"#"&VLOOKUP(X37,数组!$B:$C,2,0)&"#"&角色升星配方!AC37,"") ->  | CE37: =_xlfn.IFNA(W37&"#"&X37&"#"&VLOOKUP(AC37,数组!$B:$C,2,0)&"#"&角色升星配方!AD37,"") ->  | CF37: =_xlfn.IFNA(X37&"#"&AC37&"#"&VLOOKUP(AD37,数组!$B:$C,2,0)&"#"&角色升星配方!AE37,"") ->  | CG37: =_xlfn.IFNA(AC37&"#"&AD37&"#"&VLOOKUP(AE37,数组!$B:$C,2,0)&"#"&角色升星配方!AF37,"") -> 6#1#3#1 | CH37: =_xlfn.IFNA(AD37&"#"&AE37&"#"&VLOOKUP(AF37,数组!$B:$C,2,0)&"#"&角色升星配方!AG37,"") ->  | CI37: =_xlfn.IFNA(AE37&"#"&AF37&"#"&VLOOKUP(AG37,数组!$B:$C,2,0)&"#"&角色升星配方!AH37,"") ->  | CJ37: =_xlfn.IFNA(AF37&"#"&AG37&"#"&VLOOKUP(AH37,数组!$B:$C,2,0)&"#"&角色升星配方!AI37,"") ->  | CK37: =_xlfn.IFNA(AG37&"#"&AH37&"#"&VLOOKUP(AI37,数组!$B:$C,2,0)&"#"&角色升星配方!AJ37,"") -> 6#2#37#1 | CL37: =_xlfn.IFNA(AH37&"#"&AI37&"#"&VLOOKUP(AJ37,数组!$B:$C,2,0)&"#"&角色升星配方!AK37,"") ->  | CM37: =_xlfn.IFNA(AI37&"#"&AJ37&"#"&VLOOKUP(AK37,数组!$B:$C,2,0)&"#"&角色升星配方!AL37,"") ->  | CN37: =_xlfn.IFNA(AJ37&"#"&AK37&"#"&VLOOKUP(AL37,数组!$B:$C,2,0)&"#"&角色升星配方!AM37,"") ->  | CO37: =_xlfn.IFNA(AK37&"#"&AL37&"#"&VLOOKUP(AM37,数组!$B:$C,2,0)&"#"&角色升星配方!AN37,"") -> 6#3#17#3 | CP37: =_xlfn.IFNA(AL37&"#"&AM37&"#"&VLOOKUP(AN37,数组!$B:$C,2,0)&"#"&角色升星配方!AO37,"") ->  | CQ37: =_xlfn.IFNA(AM37&"#"&AN37&"#"&VLOOKUP(AO37,数组!$B:$C,2,0)&"#"&角色升星配方!AP37,"") ->  | CR37: =_xlfn.IFNA(AN37&"#"&AO37&"#"&VLOOKUP(AP37,数组!$B:$C,2,0)&"#"&角色升星配方!AQ37,"") ->  | CS37: =_xlfn.IFNA(AO37&"#"&AP37&"#"&VLOOKUP(AQ37,数组!$B:$C,2,0)&"#"&角色升星配方!AR37,"") ->  | CT37: =_xlfn.IFNA(AP37&"#"&AQ37&"#"&VLOOKUP(AR37,数组!$B:$C,2,0)&"#"&角色升星配方!AS37,"") ->  | CU37: =_xlfn.IFNA(AQ37&"#"&AR37&"#"&VLOOKUP(AS37,数组!$B:$C,2,0)&"#"&角色升星配方!AT37,"") ->  | CV37: =_xlfn.IFNA(AR37&"#"&AS37&"#"&VLOOKUP(AT37,数组!$B:$C,2,0)&"#"&角色升星配方!AU37,"") ->  | CW37: =_xlfn.IFNA(AS37&"#"&AT37&"#"&VLOOKUP(AU37,数组!$B:$C,2,0)&"#"&角色升星配方!AV37,"") ->  | CX37: =_xlfn.IFNA(AT37&"#"&AU37&"#"&VLOOKUP(AV37,数组!$B:$C,2,0)&"#"&角色升星配方!AW37,"") ->  | CY37: =_xlfn.IFNA(AU37&"#"&AV37&"#"&VLOOKUP(AW37,数组!$B:$C,2,0)&"#"&角色升星配方!AX37,"") ->  | CZ37: =_xlfn.IFNA(AV37&"#"&AW37&"#"&VLOOKUP(AX37,数组!$B:$C,2,0)&"#"&角色升星配方!AY37,"") ->  | DA37: =_xlfn.IFNA(AW37&"#"&AX37&"#"&VLOOKUP(AY37,数组!$B:$C,2,0)&"#"&角色升星配方!AZ37,"") ->  | DB37: =_xlfn.IFNA(AX37&"#"&AY37&"#"&VLOOKUP(AZ37,数组!$B:$C,2,0)&"#"&角色升星配方!BM37,"") ->  | DE37: =_xlfn.IFNA(BA37&"#"&BB37&"#"&VLOOKUP(BC37,数组!$B:$C,2,0)&"#"&角色升星配方!BD37,"") ->  | DI37: =_xlfn.IFNA(BE37&"#"&BF37&"#"&VLOOKUP(BG37,数组!$B:$C,2,0)&"#"&角色升星配方!BH37,"") ->  | DM37: =_xlfn.IFNA(BI37&"#"&BJ37&"#"&VLOOKUP(BK37,数组!$B:$C,2,0)&"#"&角色升星配方!BL37,"") ->  | DN37: =[2]!SUMSTRING(BM37:DM37,"|") -> 
A38: 3 | B38: 10037 | C38: 3 | D38: 4 | E38: 5 | F38: 1 | G38: 4星同名 | H38: 3 | I38: 5 | J38: 2 | K38: 3星同系 | L38: 4 | M38: 5 | N38: 3 | O38: 4星同系 | P38: 4 | AC38: 6 | AD38: 1 | AE38: 5星同名 | AF38: 1 | AG38: 6 | AH38: 2 | AI38: 5星10043 | AJ38: 1 | AK38: 6 | AL38: 3 | AM38: 5星同系 | AN38: 3 | BM38: =_xlfn.IFNA(E38&"#"&F38&"#"&VLOOKUP(G38,数组!$B:$C,2,0)&"#"&角色升星配方!H38,"") -> 5#1#2#3 | BN38: =_xlfn.IFNA(F38&"#"&G38&"#"&VLOOKUP(H38,数组!$B:$C,2,0)&"#"&角色升星配方!I38,"") ->  | BO38: =_xlfn.IFNA(G38&"#"&H38&"#"&VLOOKUP(I38,数组!$B:$C,2,0)&"#"&角色升星配方!J38,"") ->  | BP38: =_xlfn.IFNA(H38&"#"&I38&"#"&VLOOKUP(J38,数组!$B:$C,2,0)&"#"&角色升星配方!K38,"") ->  | BQ38: =_xlfn.IFNA(I38&"#"&J38&"#"&VLOOKUP(K38,数组!$B:$C,2,0)&"#"&角色升星配方!L38,"") -> 5#2#15#4 | BR38: =_xlfn.IFNA(J38&"#"&K38&"#"&VLOOKUP(L38,数组!$B:$C,2,0)&"#"&角色升星配方!M38,"") ->  | BS38: =_xlfn.IFNA(K38&"#"&L38&"#"&VLOOKUP(M38,数组!$B:$C,2,0)&"#"&角色升星配方!N38,"") ->  | BT38: =_xlfn.IFNA(L38&"#"&M38&"#"&VLOOKUP(N38,数组!$B:$C,2,0)&"#"&角色升星配方!O38,"") ->  | BU38: =_xlfn.IFNA(M38&"#"&N38&"#"&VLOOKUP(O38,数组!$B:$C,2,0)&"#"&角色升星配方!P38,"") -> 5#3#16#4 | BV38: =_xlfn.IFNA(N38&"#"&O38&"#"&VLOOKUP(P38,数组!$B:$C,2,0)&"#"&角色升星配方!Q38,"") ->  | BW38: =_xlfn.IFNA(O38&"#"&P38&"#"&VLOOKUP(Q38,数组!$B:$C,2,0)&"#"&角色升星配方!R38,"") ->  | BX38: =_xlfn.IFNA(P38&"#"&Q38&"#"&VLOOKUP(R38,数组!$B:$C,2,0)&"#"&角色升星配方!S38,"") ->  | BY38: =_xlfn.IFNA(Q38&"#"&R38&"#"&VLOOKUP(S38,数组!$B:$C,2,0)&"#"&角色升星配方!T38,"") ->  | BZ38: =_xlfn.IFNA(R38&"#"&S38&"#"&VLOOKUP(T38,数组!$B:$C,2,0)&"#"&角色升星配方!U38,"") ->  | CA38: =_xlfn.IFNA(S38&"#"&T38&"#"&VLOOKUP(U38,数组!$B:$C,2,0)&"#"&角色升星配方!V38,"") ->  | CB38: =_xlfn.IFNA(T38&"#"&U38&"#"&VLOOKUP(V38,数组!$B:$C,2,0)&"#"&角色升星配方!W38,"") ->  | CC38: =_xlfn.IFNA(U38&"#"&V38&"#"&VLOOKUP(W38,数组!$B:$C,2,0)&"#"&角色升星配方!X38,"") ->  | CD38: =_xlfn.IFNA(V38&"#"&W38&"#"&VLOOKUP(X38,数组!$B:$C,2,0)&"#"&角色升星配方!AC38,"") ->  | CE38: =_xlfn.IFNA(W38&"#"&X38&"#"&VLOOKUP(AC38,数组!$B:$C,2,0)&"#"&角色升星配方!AD38,"") ->  | CF38: =_xlfn.IFNA(X38&"#"&AC38&"#"&VLOOKUP(AD38,数组!$B:$C,2,0)&"#"&角色升星配方!AE38,"") ->  | CG38: =_xlfn.IFNA(AC38&"#"&AD38&"#"&VLOOKUP(AE38,数组!$B:$C,2,0)&"#"&角色升星配方!AF38,"") -> 6#1#3#1 | CH38: =_xlfn.IFNA(AD38&"#"&AE38&"#"&VLOOKUP(AF38,数组!$B:$C,2,0)&"#"&角色升星配方!AG38,"") ->  | CI38: =_xlfn.IFNA(AE38&"#"&AF38&"#"&VLOOKUP(AG38,数组!$B:$C,2,0)&"#"&角色升星配方!AH38,"") ->  | CJ38: =_xlfn.IFNA(AF38&"#"&AG38&"#"&VLOOKUP(AH38,数组!$B:$C,2,0)&"#"&角色升星配方!AI38,"") ->  | CK38: =_xlfn.IFNA(AG38&"#"&AH38&"#"&VLOOKUP(AI38,数组!$B:$C,2,0)&"#"&角色升星配方!AJ38,"") -> 6#2#41#1 | CL38: =_xlfn.IFNA(AH38&"#"&AI38&"#"&VLOOKUP(AJ38,数组!$B:$C,2,0)&"#"&角色升星配方!AK38,"") ->  | CM38: =_xlfn.IFNA(AI38&"#"&AJ38&"#"&VLOOKUP(AK38,数组!$B:$C,2,0)&"#"&角色升星配方!AL38,"") ->  | CN38: =_xlfn.IFNA(AJ38&"#"&AK38&"#"&VLOOKUP(AL38,数组!$B:$C,2,0)&"#"&角色升星配方!AM38,"") ->  | CO38: =_xlfn.IFNA(AK38&"#"&AL38&"#"&VLOOKUP(AM38,数组!$B:$C,2,0)&"#"&角色升星配方!AN38,"") -> 6#3#17#3 | CP38: =_xlfn.IFNA(AL38&"#"&AM38&"#"&VLOOKUP(AN38,数组!$B:$C,2,0)&"#"&角色升星配方!AO38,"") ->  | CQ38: =_xlfn.IFNA(AM38&"#"&AN38&"#"&VLOOKUP(AO38,数组!$B:$C,2,0)&"#"&角色升星配方!AP38,"") ->  | CR38: =_xlfn.IFNA(AN38&"#"&AO38&"#"&VLOOKUP(AP38,数组!$B:$C,2,0)&"#"&角色升星配方!AQ38,"") ->  | CS38: =_xlfn.IFNA(AO38&"#"&AP38&"#"&VLOOKUP(AQ38,数组!$B:$C,2,0)&"#"&角色升星配方!AR38,"") ->  | CT38: =_xlfn.IFNA(AP38&"#"&AQ38&"#"&VLOOKUP(AR38,数组!$B:$C,2,0)&"#"&角色升星配方!AS38,"") ->  | CU38: =_xlfn.IFNA(AQ38&"#"&AR38&"#"&VLOOKUP(AS38,数组!$B:$C,2,0)&"#"&角色升星配方!AT38,"") ->  | CV38: =_xlfn.IFNA(AR38&"#"&AS38&"#"&VLOOKUP(AT38,数组!$B:$C,2,0)&"#"&角色升星配方!AU38,"") ->  | CW38: =_xlfn.IFNA(AS38&"#"&AT38&"#"&VLOOKUP(AU38,数组!$B:$C,2,0)&"#"&角色升星配方!AV38,"") ->  | CX38: =_xlfn.IFNA(AT38&"#"&AU38&"#"&VLOOKUP(AV38,数组!$B:$C,2,0)&"#"&角色升星配方!AW38,"") ->  | CY38: =_xlfn.IFNA(AU38&"#"&AV38&"#"&VLOOKUP(AW38,数组!$B:$C,2,0)&"#"&角色升星配方!AX38,"") ->  | CZ38: =_xlfn.IFNA(AV38&"#"&AW38&"#"&VLOOKUP(AX38,数组!$B:$C,2,0)&"#"&角色升星配方!AY38,"") ->  | DA38: =_xlfn.IFNA(AW38&"#"&AX38&"#"&VLOOKUP(AY38,数组!$B:$C,2,0)&"#"&角色升星配方!AZ38,"") ->  | DB38: =_xlfn.IFNA(AX38&"#"&AY38&"#"&VLOOKUP(AZ38,数组!$B:$C,2,0)&"#"&角色升星配方!BM38,"") ->  | DE38: =_xlfn.IFNA(BA38&"#"&BB38&"#"&VLOOKUP(BC38,数组!$B:$C,2,0)&"#"&角色升星配方!BD38,"") ->  | DI38: =_xlfn.IFNA(BE38&"#"&BF38&"#"&VLOOKUP(BG38,数组!$B:$C,2,0)&"#"&角色升星配方!BH38,"") ->  | DM38: =_xlfn.IFNA(BI38&"#"&BJ38&"#"&VLOOKUP(BK38,数组!$B:$C,2,0)&"#"&角色升星配方!BL38,"") ->  | DN38: =[2]!SUMSTRING(BM38:DM38,"|") -> 
A39: 1 | B39: 10038 | C39: 1 | D39: 4 | E39: 5 | F39: 1 | G39: 4星同名 | H39: 3 | I39: 5 | J39: 2 | K39: 3星同系 | L39: 4 | M39: 5 | N39: 3 | O39: 4星同系 | P39: 4 | AC39: 6 | AD39: 1 | AE39: 5星同名 | AF39: 1 | AG39: 6 | AH39: 2 | AI39: 5星10038 | AJ39: 1 | AK39: 6 | AL39: 3 | AM39: 5星同系 | AN39: 3 | BM39: =_xlfn.IFNA(E39&"#"&F39&"#"&VLOOKUP(G39,数组!$B:$C,2,0)&"#"&角色升星配方!H39,"") -> 5#1#2#3 | BN39: =_xlfn.IFNA(F39&"#"&G39&"#"&VLOOKUP(H39,数组!$B:$C,2,0)&"#"&角色升星配方!I39,"") ->  | BO39: =_xlfn.IFNA(G39&"#"&H39&"#"&VLOOKUP(I39,数组!$B:$C,2,0)&"#"&角色升星配方!J39,"") ->  | BP39: =_xlfn.IFNA(H39&"#"&I39&"#"&VLOOKUP(J39,数组!$B:$C,2,0)&"#"&角色升星配方!K39,"") ->  | BQ39: =_xlfn.IFNA(I39&"#"&J39&"#"&VLOOKUP(K39,数组!$B:$C,2,0)&"#"&角色升星配方!L39,"") -> 5#2#15#4 | BR39: =_xlfn.IFNA(J39&"#"&K39&"#"&VLOOKUP(L39,数组!$B:$C,2,0)&"#"&角色升星配方!M39,"") ->  | BS39: =_xlfn.IFNA(K39&"#"&L39&"#"&VLOOKUP(M39,数组!$B:$C,2,0)&"#"&角色升星配方!N39,"") ->  | BT39: =_xlfn.IFNA(L39&"#"&M39&"#"&VLOOKUP(N39,数组!$B:$C,2,0)&"#"&角色升星配方!O39,"") ->  | BU39: =_xlfn.IFNA(M39&"#"&N39&"#"&VLOOKUP(O39,数组!$B:$C,2,0)&"#"&角色升星配方!P39,"") -> 5#3#16#4 | BV39: =_xlfn.IFNA(N39&"#"&O39&"#"&VLOOKUP(P39,数组!$B:$C,2,0)&"#"&角色升星配方!Q39,"") ->  | BW39: =_xlfn.IFNA(O39&"#"&P39&"#"&VLOOKUP(Q39,数组!$B:$C,2,0)&"#"&角色升星配方!R39,"") ->  | BX39: =_xlfn.IFNA(P39&"#"&Q39&"#"&VLOOKUP(R39,数组!$B:$C,2,0)&"#"&角色升星配方!S39,"") ->  | BY39: =_xlfn.IFNA(Q39&"#"&R39&"#"&VLOOKUP(S39,数组!$B:$C,2,0)&"#"&角色升星配方!T39,"") ->  | BZ39: =_xlfn.IFNA(R39&"#"&S39&"#"&VLOOKUP(T39,数组!$B:$C,2,0)&"#"&角色升星配方!U39,"") ->  | CA39: =_xlfn.IFNA(S39&"#"&T39&"#"&VLOOKUP(U39,数组!$B:$C,2,0)&"#"&角色升星配方!V39,"") ->  | CB39: =_xlfn.IFNA(T39&"#"&U39&"#"&VLOOKUP(V39,数组!$B:$C,2,0)&"#"&角色升星配方!W39,"") ->  | CC39: =_xlfn.IFNA(U39&"#"&V39&"#"&VLOOKUP(W39,数组!$B:$C,2,0)&"#"&角色升星配方!X39,"") ->  | CD39: =_xlfn.IFNA(V39&"#"&W39&"#"&VLOOKUP(X39,数组!$B:$C,2,0)&"#"&角色升星配方!AC39,"") ->  | CE39: =_xlfn.IFNA(W39&"#"&X39&"#"&VLOOKUP(AC39,数组!$B:$C,2,0)&"#"&角色升星配方!AD39,"") ->  | CF39: =_xlfn.IFNA(X39&"#"&AC39&"#"&VLOOKUP(AD39,数组!$B:$C,2,0)&"#"&角色升星配方!AE39,"") ->  | CG39: =_xlfn.IFNA(AC39&"#"&AD39&"#"&VLOOKUP(AE39,数组!$B:$C,2,0)&"#"&角色升星配方!AF39,"") -> 6#1#3#1 | CH39: =_xlfn.IFNA(AD39&"#"&AE39&"#"&VLOOKUP(AF39,数组!$B:$C,2,0)&"#"&角色升星配方!AG39,"") ->  | CI39: =_xlfn.IFNA(AE39&"#"&AF39&"#"&VLOOKUP(AG39,数组!$B:$C,2,0)&"#"&角色升星配方!AH39,"") ->  | CJ39: =_xlfn.IFNA(AF39&"#"&AG39&"#"&VLOOKUP(AH39,数组!$B:$C,2,0)&"#"&角色升星配方!AI39,"") ->  | CK39: =_xlfn.IFNA(AG39&"#"&AH39&"#"&VLOOKUP(AI39,数组!$B:$C,2,0)&"#"&角色升星配方!AJ39,"") -> 6#2#36#1 | CL39: =_xlfn.IFNA(AH39&"#"&AI39&"#"&VLOOKUP(AJ39,数组!$B:$C,2,0)&"#"&角色升星配方!AK39,"") ->  | CM39: =_xlfn.IFNA(AI39&"#"&AJ39&"#"&VLOOKUP(AK39,数组!$B:$C,2,0)&"#"&角色升星配方!AL39,"") ->  | CN39: =_xlfn.IFNA(AJ39&"#"&AK39&"#"&VLOOKUP(AL39,数组!$B:$C,2,0)&"#"&角色升星配方!AM39,"") ->  | CO39: =_xlfn.IFNA(AK39&"#"&AL39&"#"&VLOOKUP(AM39,数组!$B:$C,2,0)&"#"&角色升星配方!AN39,"") -> 6#3#17#3 | CP39: =_xlfn.IFNA(AL39&"#"&AM39&"#"&VLOOKUP(AN39,数组!$B:$C,2,0)&"#"&角色升星配方!AO39,"") ->  | CQ39: =_xlfn.IFNA(AM39&"#"&AN39&"#"&VLOOKUP(AO39,数组!$B:$C,2,0)&"#"&角色升星配方!AP39,"") ->  | CR39: =_xlfn.IFNA(AN39&"#"&AO39&"#"&VLOOKUP(AP39,数组!$B:$C,2,0)&"#"&角色升星配方!AQ39,"") ->  | CS39: =_xlfn.IFNA(AO39&"#"&AP39&"#"&VLOOKUP(AQ39,数组!$B:$C,2,0)&"#"&角色升星配方!AR39,"") ->  | CT39: =_xlfn.IFNA(AP39&"#"&AQ39&"#"&VLOOKUP(AR39,数组!$B:$C,2,0)&"#"&角色升星配方!AS39,"") ->  | CU39: =_xlfn.IFNA(AQ39&"#"&AR39&"#"&VLOOKUP(AS39,数组!$B:$C,2,0)&"#"&角色升星配方!AT39,"") ->  | CV39: =_xlfn.IFNA(AR39&"#"&AS39&"#"&VLOOKUP(AT39,数组!$B:$C,2,0)&"#"&角色升星配方!AU39,"") ->  | CW39: =_xlfn.IFNA(AS39&"#"&AT39&"#"&VLOOKUP(AU39,数组!$B:$C,2,0)&"#"&角色升星配方!AV39,"") ->  | CX39: =_xlfn.IFNA(AT39&"#"&AU39&"#"&VLOOKUP(AV39,数组!$B:$C,2,0)&"#"&角色升星配方!AW39,"") ->  | CY39: =_xlfn.IFNA(AU39&"#"&AV39&"#"&VLOOKUP(AW39,数组!$B:$C,2,0)&"#"&角色升星配方!AX39,"") ->  | CZ39: =_xlfn.IFNA(AV39&"#"&AW39&"#"&VLOOKUP(AX39,数组!$B:$C,2,0)&"#"&角色升星配方!AY39,"") ->  | DA39: =_xlfn.IFNA(AW39&"#"&AX39&"#"&VLOOKUP(AY39,数组!$B:$C,2,0)&"#"&角色升星配方!AZ39,"") ->  | DB39: =_xlfn.IFNA(AX39&"#"&AY39&"#"&VLOOKUP(AZ39,数组!$B:$C,2,0)&"#"&角色升星配方!BM39,"") ->  | DE39: =_xlfn.IFNA(BA39&"#"&BB39&"#"&VLOOKUP(BC39,数组!$B:$C,2,0)&"#"&角色升星配方!BD39,"") ->  | DI39: =_xlfn.IFNA(BE39&"#"&BF39&"#"&VLOOKUP(BG39,数组!$B:$C,2,0)&"#"&角色升星配方!BH39,"") ->  | DM39: =_xlfn.IFNA(BI39&"#"&BJ39&"#"&VLOOKUP(BK39,数组!$B:$C,2,0)&"#"&角色升星配方!BL39,"") ->  | DN39: =[2]!SUMSTRING(BM39:DM39,"|") -> 
A40: 3 | B40: 10039 | C40: 3 | D40: 4 | E40: 5 | F40: 1 | G40: 4星同名 | H40: 3 | I40: 5 | J40: 2 | K40: 3星同系 | L40: 4 | M40: 5 | N40: 3 | O40: 4星同系 | P40: 4 | AC40: 6 | AD40: 1 | AE40: 5星同名 | AF40: 1 | AG40: 6 | AH40: 2 | AI40: 5星10037 | AJ40: 1 | AK40: 6 | AL40: 3 | AM40: 5星同系 | AN40: 3 | BM40: =_xlfn.IFNA(E40&"#"&F40&"#"&VLOOKUP(G40,数组!$B:$C,2,0)&"#"&角色升星配方!H40,"") -> 5#1#2#3 | BN40: =_xlfn.IFNA(F40&"#"&G40&"#"&VLOOKUP(H40,数组!$B:$C,2,0)&"#"&角色升星配方!I40,"") ->  | BO40: =_xlfn.IFNA(G40&"#"&H40&"#"&VLOOKUP(I40,数组!$B:$C,2,0)&"#"&角色升星配方!J40,"") ->  | BP40: =_xlfn.IFNA(H40&"#"&I40&"#"&VLOOKUP(J40,数组!$B:$C,2,0)&"#"&角色升星配方!K40,"") ->  | BQ40: =_xlfn.IFNA(I40&"#"&J40&"#"&VLOOKUP(K40,数组!$B:$C,2,0)&"#"&角色升星配方!L40,"") -> 5#2#15#4 | BR40: =_xlfn.IFNA(J40&"#"&K40&"#"&VLOOKUP(L40,数组!$B:$C,2,0)&"#"&角色升星配方!M40,"") ->  | BS40: =_xlfn.IFNA(K40&"#"&L40&"#"&VLOOKUP(M40,数组!$B:$C,2,0)&"#"&角色升星配方!N40,"") ->  | BT40: =_xlfn.IFNA(L40&"#"&M40&"#"&VLOOKUP(N40,数组!$B:$C,2,0)&"#"&角色升星配方!O40,"") ->  | BU40: =_xlfn.IFNA(M40&"#"&N40&"#"&VLOOKUP(O40,数组!$B:$C,2,0)&"#"&角色升星配方!P40,"") -> 5#3#16#4 | BV40: =_xlfn.IFNA(N40&"#"&O40&"#"&VLOOKUP(P40,数组!$B:$C,2,0)&"#"&角色升星配方!Q40,"") ->  | BW40: =_xlfn.IFNA(O40&"#"&P40&"#"&VLOOKUP(Q40,数组!$B:$C,2,0)&"#"&角色升星配方!R40,"") ->  | BX40: =_xlfn.IFNA(P40&"#"&Q40&"#"&VLOOKUP(R40,数组!$B:$C,2,0)&"#"&角色升星配方!S40,"") ->  | BY40: =_xlfn.IFNA(Q40&"#"&R40&"#"&VLOOKUP(S40,数组!$B:$C,2,0)&"#"&角色升星配方!T40,"") ->  | BZ40: =_xlfn.IFNA(R40&"#"&S40&"#"&VLOOKUP(T40,数组!$B:$C,2,0)&"#"&角色升星配方!U40,"") ->  | CA40: =_xlfn.IFNA(S40&"#"&T40&"#"&VLOOKUP(U40,数组!$B:$C,2,0)&"#"&角色升星配方!V40,"") ->  | CB40: =_xlfn.IFNA(T40&"#"&U40&"#"&VLOOKUP(V40,数组!$B:$C,2,0)&"#"&角色升星配方!W40,"") ->  | CC40: =_xlfn.IFNA(U40&"#"&V40&"#"&VLOOKUP(W40,数组!$B:$C,2,0)&"#"&角色升星配方!X40,"") ->  | CD40: =_xlfn.IFNA(V40&"#"&W40&"#"&VLOOKUP(X40,数组!$B:$C,2,0)&"#"&角色升星配方!AC40,"") ->  | CE40: =_xlfn.IFNA(W40&"#"&X40&"#"&VLOOKUP(AC40,数组!$B:$C,2,0)&"#"&角色升星配方!AD40,"") ->  | CF40: =_xlfn.IFNA(X40&"#"&AC40&"#"&VLOOKUP(AD40,数组!$B:$C,2,0)&"#"&角色升星配方!AE40,"") ->  | CG40: =_xlfn.IFNA(AC40&"#"&AD40&"#"&VLOOKUP(AE40,数组!$B:$C,2,0)&"#"&角色升星配方!AF40,"") -> 6#1#3#1 | CH40: =_xlfn.IFNA(AD40&"#"&AE40&"#"&VLOOKUP(AF40,数组!$B:$C,2,0)&"#"&角色升星配方!AG40,"") ->  | CI40: =_xlfn.IFNA(AE40&"#"&AF40&"#"&VLOOKUP(AG40,数组!$B:$C,2,0)&"#"&角色升星配方!AH40,"") ->  | CJ40: =_xlfn.IFNA(AF40&"#"&AG40&"#"&VLOOKUP(AH40,数组!$B:$C,2,0)&"#"&角色升星配方!AI40,"") ->  | CK40: =_xlfn.IFNA(AG40&"#"&AH40&"#"&VLOOKUP(AI40,数组!$B:$C,2,0)&"#"&角色升星配方!AJ40,"") -> 6#2#35#1 | CL40: =_xlfn.IFNA(AH40&"#"&AI40&"#"&VLOOKUP(AJ40,数组!$B:$C,2,0)&"#"&角色升星配方!AK40,"") ->  | CM40: =_xlfn.IFNA(AI40&"#"&AJ40&"#"&VLOOKUP(AK40,数组!$B:$C,2,0)&"#"&角色升星配方!AL40,"") ->  | CN40: =_xlfn.IFNA(AJ40&"#"&AK40&"#"&VLOOKUP(AL40,数组!$B:$C,2,0)&"#"&角色升星配方!AM40,"") ->  | CO40: =_xlfn.IFNA(AK40&"#"&AL40&"#"&VLOOKUP(AM40,数组!$B:$C,2,0)&"#"&角色升星配方!AN40,"") -> 6#3#17#3 | CP40: =_xlfn.IFNA(AL40&"#"&AM40&"#"&VLOOKUP(AN40,数组!$B:$C,2,0)&"#"&角色升星配方!AO40,"") ->  | CQ40: =_xlfn.IFNA(AM40&"#"&AN40&"#"&VLOOKUP(AO40,数组!$B:$C,2,0)&"#"&角色升星配方!AP40,"") ->  | CR40: =_xlfn.IFNA(AN40&"#"&AO40&"#"&VLOOKUP(AP40,数组!$B:$C,2,0)&"#"&角色升星配方!AQ40,"") ->  | CS40: =_xlfn.IFNA(AO40&"#"&AP40&"#"&VLOOKUP(AQ40,数组!$B:$C,2,0)&"#"&角色升星配方!AR40,"") ->  | CT40: =_xlfn.IFNA(AP40&"#"&AQ40&"#"&VLOOKUP(AR40,数组!$B:$C,2,0)&"#"&角色升星配方!AS40,"") ->  | CU40: =_xlfn.IFNA(AQ40&"#"&AR40&"#"&VLOOKUP(AS40,数组!$B:$C,2,0)&"#"&角色升星配方!AT40,"") ->  | CV40: =_xlfn.IFNA(AR40&"#"&AS40&"#"&VLOOKUP(AT40,数组!$B:$C,2,0)&"#"&角色升星配方!AU40,"") ->  | CW40: =_xlfn.IFNA(AS40&"#"&AT40&"#"&VLOOKUP(AU40,数组!$B:$C,2,0)&"#"&角色升星配方!AV40,"") ->  | CX40: =_xlfn.IFNA(AT40&"#"&AU40&"#"&VLOOKUP(AV40,数组!$B:$C,2,0)&"#"&角色升星配方!AW40,"") ->  | CY40: =_xlfn.IFNA(AU40&"#"&AV40&"#"&VLOOKUP(AW40,数组!$B:$C,2,0)&"#"&角色升星配方!AX40,"") ->  | CZ40: =_xlfn.IFNA(AV40&"#"&AW40&"#"&VLOOKUP(AX40,数组!$B:$C,2,0)&"#"&角色升星配方!AY40,"") ->  | DA40: =_xlfn.IFNA(AW40&"#"&AX40&"#"&VLOOKUP(AY40,数组!$B:$C,2,0)&"#"&角色升星配方!AZ40,"") ->  | DB40: =_xlfn.IFNA(AX40&"#"&AY40&"#"&VLOOKUP(AZ40,数组!$B:$C,2,0)&"#"&角色升星配方!BM40,"") ->  | DE40: =_xlfn.IFNA(BA40&"#"&BB40&"#"&VLOOKUP(BC40,数组!$B:$C,2,0)&"#"&角色升星配方!BD40,"") ->  | DI40: =_xlfn.IFNA(BE40&"#"&BF40&"#"&VLOOKUP(BG40,数组!$B:$C,2,0)&"#"&角色升星配方!BH40,"") ->  | DM40: =_xlfn.IFNA(BI40&"#"&BJ40&"#"&VLOOKUP(BK40,数组!$B:$C,2,0)&"#"&角色升星配方!BL40,"") ->  | DN40: =[2]!SUMSTRING(BM40:DM40,"|") -> 
A41: 1 | B41: 10040 | C41: 1 | D41: 4 | E41: 5 | F41: 1 | G41: 4星同名 | H41: 3 | I41: 5 | J41: 2 | K41: 3星同系 | L41: 4 | M41: 5 | N41: 3 | O41: 4星同系 | P41: 4 | AC41: 6 | AD41: 1 | AE41: 5星同名 | AF41: 1 | AG41: 6 | AH41: 2 | AI41: 5星10025 | AJ41: 1 | AK41: 6 | AL41: 3 | AM41: 5星同系 | AN41: 3 | BM41: =_xlfn.IFNA(E41&"#"&F41&"#"&VLOOKUP(G41,数组!$B:$C,2,0)&"#"&角色升星配方!H41,"") -> 5#1#2#3 | BN41: =_xlfn.IFNA(F41&"#"&G41&"#"&VLOOKUP(H41,数组!$B:$C,2,0)&"#"&角色升星配方!I41,"") ->  | BO41: =_xlfn.IFNA(G41&"#"&H41&"#"&VLOOKUP(I41,数组!$B:$C,2,0)&"#"&角色升星配方!J41,"") ->  | BP41: =_xlfn.IFNA(H41&"#"&I41&"#"&VLOOKUP(J41,数组!$B:$C,2,0)&"#"&角色升星配方!K41,"") ->  | BQ41: =_xlfn.IFNA(I41&"#"&J41&"#"&VLOOKUP(K41,数组!$B:$C,2,0)&"#"&角色升星配方!L41,"") -> 5#2#15#4 | BR41: =_xlfn.IFNA(J41&"#"&K41&"#"&VLOOKUP(L41,数组!$B:$C,2,0)&"#"&角色升星配方!M41,"") ->  | BS41: =_xlfn.IFNA(K41&"#"&L41&"#"&VLOOKUP(M41,数组!$B:$C,2,0)&"#"&角色升星配方!N41,"") ->  | BT41: =_xlfn.IFNA(L41&"#"&M41&"#"&VLOOKUP(N41,数组!$B:$C,2,0)&"#"&角色升星配方!O41,"") ->  | BU41: =_xlfn.IFNA(M41&"#"&N41&"#"&VLOOKUP(O41,数组!$B:$C,2,0)&"#"&角色升星配方!P41,"") -> 5#3#16#4 | BV41: =_xlfn.IFNA(N41&"#"&O41&"#"&VLOOKUP(P41,数组!$B:$C,2,0)&"#"&角色升星配方!Q41,"") ->  | BW41: =_xlfn.IFNA(O41&"#"&P41&"#"&VLOOKUP(Q41,数组!$B:$C,2,0)&"#"&角色升星配方!R41,"") ->  | BX41: =_xlfn.IFNA(P41&"#"&Q41&"#"&VLOOKUP(R41,数组!$B:$C,2,0)&"#"&角色升星配方!S41,"") ->  | BY41: =_xlfn.IFNA(Q41&"#"&R41&"#"&VLOOKUP(S41,数组!$B:$C,2,0)&"#"&角色升星配方!T41,"") ->  | BZ41: =_xlfn.IFNA(R41&"#"&S41&"#"&VLOOKUP(T41,数组!$B:$C,2,0)&"#"&角色升星配方!U41,"") ->  | CA41: =_xlfn.IFNA(S41&"#"&T41&"#"&VLOOKUP(U41,数组!$B:$C,2,0)&"#"&角色升星配方!V41,"") ->  | CB41: =_xlfn.IFNA(T41&"#"&U41&"#"&VLOOKUP(V41,数组!$B:$C,2,0)&"#"&角色升星配方!W41,"") ->  | CC41: =_xlfn.IFNA(U41&"#"&V41&"#"&VLOOKUP(W41,数组!$B:$C,2,0)&"#"&角色升星配方!X41,"") ->  | CD41: =_xlfn.IFNA(V41&"#"&W41&"#"&VLOOKUP(X41,数组!$B:$C,2,0)&"#"&角色升星配方!AC41,"") ->  | CE41: =_xlfn.IFNA(W41&"#"&X41&"#"&VLOOKUP(AC41,数组!$B:$C,2,0)&"#"&角色升星配方!AD41,"") ->  | CF41: =_xlfn.IFNA(X41&"#"&AC41&"#"&VLOOKUP(AD41,数组!$B:$C,2,0)&"#"&角色升星配方!AE41,"") ->  | CG41: =_xlfn.IFNA(AC41&"#"&AD41&"#"&VLOOKUP(AE41,数组!$B:$C,2,0)&"#"&角色升星配方!AF41,"") -> 6#1#3#1 | CH41: =_xlfn.IFNA(AD41&"#"&AE41&"#"&VLOOKUP(AF41,数组!$B:$C,2,0)&"#"&角色升星配方!AG41,"") ->  | CI41: =_xlfn.IFNA(AE41&"#"&AF41&"#"&VLOOKUP(AG41,数组!$B:$C,2,0)&"#"&角色升星配方!AH41,"") ->  | CJ41: =_xlfn.IFNA(AF41&"#"&AG41&"#"&VLOOKUP(AH41,数组!$B:$C,2,0)&"#"&角色升星配方!AI41,"") ->  | CK41: =_xlfn.IFNA(AG41&"#"&AH41&"#"&VLOOKUP(AI41,数组!$B:$C,2,0)&"#"&角色升星配方!AJ41,"") -> 6#2#23#1 | CL41: =_xlfn.IFNA(AH41&"#"&AI41&"#"&VLOOKUP(AJ41,数组!$B:$C,2,0)&"#"&角色升星配方!AK41,"") ->  | CM41: =_xlfn.IFNA(AI41&"#"&AJ41&"#"&VLOOKUP(AK41,数组!$B:$C,2,0)&"#"&角色升星配方!AL41,"") ->  | CN41: =_xlfn.IFNA(AJ41&"#"&AK41&"#"&VLOOKUP(AL41,数组!$B:$C,2,0)&"#"&角色升星配方!AM41,"") ->  | CO41: =_xlfn.IFNA(AK41&"#"&AL41&"#"&VLOOKUP(AM41,数组!$B:$C,2,0)&"#"&角色升星配方!AN41,"") -> 6#3#17#3 | CP41: =_xlfn.IFNA(AL41&"#"&AM41&"#"&VLOOKUP(AN41,数组!$B:$C,2,0)&"#"&角色升星配方!AO41,"") ->  | CQ41: =_xlfn.IFNA(AM41&"#"&AN41&"#"&VLOOKUP(AO41,数组!$B:$C,2,0)&"#"&角色升星配方!AP41,"") ->  | CR41: =_xlfn.IFNA(AN41&"#"&AO41&"#"&VLOOKUP(AP41,数组!$B:$C,2,0)&"#"&角色升星配方!AQ41,"") ->  | CS41: =_xlfn.IFNA(AO41&"#"&AP41&"#"&VLOOKUP(AQ41,数组!$B:$C,2,0)&"#"&角色升星配方!AR41,"") ->  | CT41: =_xlfn.IFNA(AP41&"#"&AQ41&"#"&VLOOKUP(AR41,数组!$B:$C,2,0)&"#"&角色升星配方!AS41,"") ->  | CU41: =_xlfn.IFNA(AQ41&"#"&AR41&"#"&VLOOKUP(AS41,数组!$B:$C,2,0)&"#"&角色升星配方!AT41,"") ->  | CV41: =_xlfn.IFNA(AR41&"#"&AS41&"#"&VLOOKUP(AT41,数组!$B:$C,2,0)&"#"&角色升星配方!AU41,"") ->  | CW41: =_xlfn.IFNA(AS41&"#"&AT41&"#"&VLOOKUP(AU41,数组!$B:$C,2,0)&"#"&角色升星配方!AV41,"") ->  | CX41: =_xlfn.IFNA(AT41&"#"&AU41&"#"&VLOOKUP(AV41,数组!$B:$C,2,0)&"#"&角色升星配方!AW41,"") ->  | CY41: =_xlfn.IFNA(AU41&"#"&AV41&"#"&VLOOKUP(AW41,数组!$B:$C,2,0)&"#"&角色升星配方!AX41,"") ->  | CZ41: =_xlfn.IFNA(AV41&"#"&AW41&"#"&VLOOKUP(AX41,数组!$B:$C,2,0)&"#"&角色升星配方!AY41,"") ->  | DA41: =_xlfn.IFNA(AW41&"#"&AX41&"#"&VLOOKUP(AY41,数组!$B:$C,2,0)&"#"&角色升星配方!AZ41,"") ->  | DB41: =_xlfn.IFNA(AX41&"#"&AY41&"#"&VLOOKUP(AZ41,数组!$B:$C,2,0)&"#"&角色升星配方!BM41,"") ->  | DE41: =_xlfn.IFNA(BA41&"#"&BB41&"#"&VLOOKUP(BC41,数组!$B:$C,2,0)&"#"&角色升星配方!BD41,"") ->  | DI41: =_xlfn.IFNA(BE41&"#"&BF41&"#"&VLOOKUP(BG41,数组!$B:$C,2,0)&"#"&角色升星配方!BH41,"") ->  | DM41: =_xlfn.IFNA(BI41&"#"&BJ41&"#"&VLOOKUP(BK41,数组!$B:$C,2,0)&"#"&角色升星配方!BL41,"") ->  | DN41: =[2]!SUMSTRING(BM41:DM41,"|") -> 
A42: 1 | B42: 10041 | C42: 1 | D42: 4 | E42: 5 | F42: 1 | G42: 4星同名 | H42: 3 | I42: 5 | J42: 2 | K42: 3星同系 | L42: 4 | M42: 5 | N42: 3 | O42: 4星同系 | P42: 4 | AC42: 6 | AD42: 1 | AE42: 5星同名 | AF42: 1 | AG42: 6 | AH42: 2 | AI42: 5星10040 | AJ42: 1 | AK42: 6 | AL42: 3 | AM42: 5星同系 | AN42: 3 | BM42: =_xlfn.IFNA(E42&"#"&F42&"#"&VLOOKUP(G42,数组!$B:$C,2,0)&"#"&角色升星配方!H42,"") -> 5#1#2#3 | BN42: =_xlfn.IFNA(F42&"#"&G42&"#"&VLOOKUP(H42,数组!$B:$C,2,0)&"#"&角色升星配方!I42,"") ->  | BO42: =_xlfn.IFNA(G42&"#"&H42&"#"&VLOOKUP(I42,数组!$B:$C,2,0)&"#"&角色升星配方!J42,"") ->  | BP42: =_xlfn.IFNA(H42&"#"&I42&"#"&VLOOKUP(J42,数组!$B:$C,2,0)&"#"&角色升星配方!K42,"") ->  | BQ42: =_xlfn.IFNA(I42&"#"&J42&"#"&VLOOKUP(K42,数组!$B:$C,2,0)&"#"&角色升星配方!L42,"") -> 5#2#15#4 | BR42: =_xlfn.IFNA(J42&"#"&K42&"#"&VLOOKUP(L42,数组!$B:$C,2,0)&"#"&角色升星配方!M42,"") ->  | BS42: =_xlfn.IFNA(K42&"#"&L42&"#"&VLOOKUP(M42,数组!$B:$C,2,0)&"#"&角色升星配方!N42,"") ->  | BT42: =_xlfn.IFNA(L42&"#"&M42&"#"&VLOOKUP(N42,数组!$B:$C,2,0)&"#"&角色升星配方!O42,"") ->  | BU42: =_xlfn.IFNA(M42&"#"&N42&"#"&VLOOKUP(O42,数组!$B:$C,2,0)&"#"&角色升星配方!P42,"") -> 5#3#16#4 | BV42: =_xlfn.IFNA(N42&"#"&O42&"#"&VLOOKUP(P42,数组!$B:$C,2,0)&"#"&角色升星配方!Q42,"") ->  | BW42: =_xlfn.IFNA(O42&"#"&P42&"#"&VLOOKUP(Q42,数组!$B:$C,2,0)&"#"&角色升星配方!R42,"") ->  | BX42: =_xlfn.IFNA(P42&"#"&Q42&"#"&VLOOKUP(R42,数组!$B:$C,2,0)&"#"&角色升星配方!S42,"") ->  | BY42: =_xlfn.IFNA(Q42&"#"&R42&"#"&VLOOKUP(S42,数组!$B:$C,2,0)&"#"&角色升星配方!T42,"") ->  | BZ42: =_xlfn.IFNA(R42&"#"&S42&"#"&VLOOKUP(T42,数组!$B:$C,2,0)&"#"&角色升星配方!U42,"") ->  | CA42: =_xlfn.IFNA(S42&"#"&T42&"#"&VLOOKUP(U42,数组!$B:$C,2,0)&"#"&角色升星配方!V42,"") ->  | CB42: =_xlfn.IFNA(T42&"#"&U42&"#"&VLOOKUP(V42,数组!$B:$C,2,0)&"#"&角色升星配方!W42,"") ->  | CC42: =_xlfn.IFNA(U42&"#"&V42&"#"&VLOOKUP(W42,数组!$B:$C,2,0)&"#"&角色升星配方!X42,"") ->  | CD42: =_xlfn.IFNA(V42&"#"&W42&"#"&VLOOKUP(X42,数组!$B:$C,2,0)&"#"&角色升星配方!AC42,"") ->  | CE42: =_xlfn.IFNA(W42&"#"&X42&"#"&VLOOKUP(AC42,数组!$B:$C,2,0)&"#"&角色升星配方!AD42,"") ->  | CF42: =_xlfn.IFNA(X42&"#"&AC42&"#"&VLOOKUP(AD42,数组!$B:$C,2,0)&"#"&角色升星配方!AE42,"") ->  | CG42: =_xlfn.IFNA(AC42&"#"&AD42&"#"&VLOOKUP(AE42,数组!$B:$C,2,0)&"#"&角色升星配方!AF42,"") -> 6#1#3#1 | CH42: =_xlfn.IFNA(AD42&"#"&AE42&"#"&VLOOKUP(AF42,数组!$B:$C,2,0)&"#"&角色升星配方!AG42,"") ->  | CI42: =_xlfn.IFNA(AE42&"#"&AF42&"#"&VLOOKUP(AG42,数组!$B:$C,2,0)&"#"&角色升星配方!AH42,"") ->  | CJ42: =_xlfn.IFNA(AF42&"#"&AG42&"#"&VLOOKUP(AH42,数组!$B:$C,2,0)&"#"&角色升星配方!AI42,"") ->  | CK42: =_xlfn.IFNA(AG42&"#"&AH42&"#"&VLOOKUP(AI42,数组!$B:$C,2,0)&"#"&角色升星配方!AJ42,"") -> 6#2#38#1 | CL42: =_xlfn.IFNA(AH42&"#"&AI42&"#"&VLOOKUP(AJ42,数组!$B:$C,2,0)&"#"&角色升星配方!AK42,"") ->  | CM42: =_xlfn.IFNA(AI42&"#"&AJ42&"#"&VLOOKUP(AK42,数组!$B:$C,2,0)&"#"&角色升星配方!AL42,"") ->  | CN42: =_xlfn.IFNA(AJ42&"#"&AK42&"#"&VLOOKUP(AL42,数组!$B:$C,2,0)&"#"&角色升星配方!AM42,"") ->  | CO42: =_xlfn.IFNA(AK42&"#"&AL42&"#"&VLOOKUP(AM42,数组!$B:$C,2,0)&"#"&角色升星配方!AN42,"") -> 6#3#17#3 | CP42: =_xlfn.IFNA(AL42&"#"&AM42&"#"&VLOOKUP(AN42,数组!$B:$C,2,0)&"#"&角色升星配方!AO42,"") ->  | CQ42: =_xlfn.IFNA(AM42&"#"&AN42&"#"&VLOOKUP(AO42,数组!$B:$C,2,0)&"#"&角色升星配方!AP42,"") ->  | CR42: =_xlfn.IFNA(AN42&"#"&AO42&"#"&VLOOKUP(AP42,数组!$B:$C,2,0)&"#"&角色升星配方!AQ42,"") ->  | CS42: =_xlfn.IFNA(AO42&"#"&AP42&"#"&VLOOKUP(AQ42,数组!$B:$C,2,0)&"#"&角色升星配方!AR42,"") ->  | CT42: =_xlfn.IFNA(AP42&"#"&AQ42&"#"&VLOOKUP(AR42,数组!$B:$C,2,0)&"#"&角色升星配方!AS42,"") ->  | CU42: =_xlfn.IFNA(AQ42&"#"&AR42&"#"&VLOOKUP(AS42,数组!$B:$C,2,0)&"#"&角色升星配方!AT42,"") ->  | CV42: =_xlfn.IFNA(AR42&"#"&AS42&"#"&VLOOKUP(AT42,数组!$B:$C,2,0)&"#"&角色升星配方!AU42,"") ->  | CW42: =_xlfn.IFNA(AS42&"#"&AT42&"#"&VLOOKUP(AU42,数组!$B:$C,2,0)&"#"&角色升星配方!AV42,"") ->  | CX42: =_xlfn.IFNA(AT42&"#"&AU42&"#"&VLOOKUP(AV42,数组!$B:$C,2,0)&"#"&角色升星配方!AW42,"") ->  | CY42: =_xlfn.IFNA(AU42&"#"&AV42&"#"&VLOOKUP(AW42,数组!$B:$C,2,0)&"#"&角色升星配方!AX42,"") ->  | CZ42: =_xlfn.IFNA(AV42&"#"&AW42&"#"&VLOOKUP(AX42,数组!$B:$C,2,0)&"#"&角色升星配方!AY42,"") ->  | DA42: =_xlfn.IFNA(AW42&"#"&AX42&"#"&VLOOKUP(AY42,数组!$B:$C,2,0)&"#"&角色升星配方!AZ42,"") ->  | DB42: =_xlfn.IFNA(AX42&"#"&AY42&"#"&VLOOKUP(AZ42,数组!$B:$C,2,0)&"#"&角色升星配方!BM42,"") ->  | DE42: =_xlfn.IFNA(BA42&"#"&BB42&"#"&VLOOKUP(BC42,数组!$B:$C,2,0)&"#"&角色升星配方!BD42,"") ->  | DI42: =_xlfn.IFNA(BE42&"#"&BF42&"#"&VLOOKUP(BG42,数组!$B:$C,2,0)&"#"&角色升星配方!BH42,"") ->  | DM42: =_xlfn.IFNA(BI42&"#"&BJ42&"#"&VLOOKUP(BK42,数组!$B:$C,2,0)&"#"&角色升星配方!BL42,"") ->  | DN42: =[2]!SUMSTRING(BM42:DM42,"|") -> 
